Workbook

Sheet Sheet1 (hidden)
G1: технологическая карта | N1: изд | O1: 1 | R1: партия | S1: 4-21
J2: август | L2: 2021
B3: коэф | C3: Ф. И. О. | D3: р/р | E3: 2 | F3: 3 | G3: 4 | H3: 5 | I3: 6 | J3: 9 | K3: 10 | L3: 11 | M3: 12 | N3: 13 | O3: 16 | P3: 17 | Q3: 18 | R3: 19 | S3: 20 | T3: 23 | U3: 24 | V3: 25 | W3: 26 | X3: 27 | Y3: 30 | Z3: 31
C4: работник6 | D4: 3/16 | I4: 1 | L4: 1 | M4: 4 | N4: 3.2 | O4: 2 | P4: 1.2 | AA4: =SUM(E4:Z4) -> 12.4
C5: работник7 | K5: 7.2 | AA5: 7.2
C6: работник1 | E6: 6.7 | I6: 4.7 | O6: 6.7 | P6: 2 | AA6: 20.1
C7: работник8 | E7: 7.2 | G7: 7.2 | H7: 5 | I7: 4.2 | J7: 7.2 | K7: 7.2 | L7: 6.2 | AA7: 44.2
C8: работник9 | E8: 7.2 | F8: 7.2 | AA8: 14.4
C9: работник3 | F9: 2.6 | H9: 7.2 | K9: 7.2 | AA9: 17
C10: работник10 | H10: 7.2 | I10: 7.2 | J10: 4 | K10: 4 | L10: 2 | AA10: 24.4
C11: работник10 | L11: 7.2 | M11: 7.2 | N11: 7.2 | O11: 7.2 | AA11: 28.8
C12: работник5 | K12: 4 | M12: 4 | AA12: 8
C13: работник11 | J13: 7.2 | K13: 7.2 | M13: 7.2 | AA13: 21.6
C14: работник2 | H14: 2.2 | AA14: 2.2
C15: работник4 | E15: 7.2 | F15: 7.2 | AA15: 14.4
B17: 1.1 | C17: работник5 | D17: 3/16 | E17: 7.2 | AA17: 7.2
B18: 1.1 | C18: работник2 | G18: 2 | AA18: 2
E19: =SUM(E4:E18) -> 35.5 | F19: 17 | G19: 9.2 | H19: 21.6 | I19: 17.1 | J19: 18.4 | K19: 36.8 | L19: 16.4 | M19: 22.4 | N19: 10.4 | O19: 15.9 | P19: 3.2 | Q19: 0 | R19: 0 | S19: 0 | T19: 0 | U19: 0 | V19: 0 | W19: 0 | X19: 0 | Y19: 0 | Z19: 0 | AA19: 223.9
G22: технологическая карта | N22: изд | O22: 2 | R22: партия | S22: 33-21
J23: август | L23: 2021
B24: коэф | C24: Ф. И. О. | D24: р/р | E24: 2 | F24: 3 | G24: 4 | H24: 5 | I24: 6 | J24: 9 | K24: 10 | L24: 11 | M24: 12 | N24: 13 | O24: 16 | P24: 17 | Q24: 18 | R24: 19 | S24: 20 | T24: 23 | U24: 24 | V24: 25 | W24: 26 | X24: 27 | Y24: 30 | Z24: 31
C25: работник6 | D25: 3/16 | M25: 2 | N25: 4 | AA25: =SUM(E25:Z25) -> 6
C26: работник10 | N26: 7.2 | O26: 7.2 | AA26: 14.4
C27: работник11 | L27: 7.2 | AA27: 7.2
C28: работник3 | E28: 3.2 | F28: 4.6 | G28: 2.8 | AA28: =SUM(E28:Z28) -> 10.6
C29: работник8 | S29: 7.2 | AA29: 7.2
C30: работник9 | G30: 7.2 | H30: 7.2 | I30: 7.2 | J30: 7.2 | K30: 7.2 | AA30: 36
E31: =SUM(E25:E30) -> 3.2 | F31: 4.6 | G31: 10 | H31: 7.2 | I31: 7.2 | J31: 7.2 | K31: 7.2 | L31: 7.2 | M31: 2 | N31: 11.2 | O31: 7.2 | P31: 0 | Q31: 0 | R31: 0 | S31: 7.2 | T31: 0 | U31: 0 | V31: 0 | W31: 0 | X31: 0 | Y31: 0 | Z31: 0 | AA31: =SUM(AA25:AA30) -> 81.4
G33: технологическая карта | N33: изд | O33: 3 | R33: партия | S33: 27-21
J34: август | L34: 2021
B35: коэф | C35: Ф. И. О. | D35: р/р | E35: 2 | F35: 3 | G35: 4 | H35: 5 | I35: 6 | J35: 9 | K35: 10 | L35: 11 | M35: 12 | N35: 13 | O35: 16 | P35: 17 | Q35: 18 | R35: 19 | S35: 20 | T35: 23 | U35: 24 | V35: 25 | W35: 26 | X35: 27 | Y35: 30 | Z35: 31
C36: работник3 | D36: 2/4 | I36: 2.8 | AA36: =SUM(E36:Z36) -> 2.8
C37: работник7 | Q37: 7.2 | AA37: =SUM(E37:Z37) -> 7.2
C39: работник7 | D39: 3/4 | E39: 3.2 | AA39: =SUM(E39:Z39) -> 3.2
C40: работник12 | E40: 4 | F40: 4 | G40: 4 | H40: 4 | N40: 7 | AA40: =SUM(E40:Z40) -> 23
C41: работник2 | J41: 4.2 | Q41: 2.2 | S41: 7.2 | U41: 7.2 | W41: 3.6 | AA41: =SUM(E41:Z41) -> 24.4
C42: работник13 | P42: 1.2 | AA42: 1.2
C44: работник2 | D44: 3/16 | T44: 1.8 | W44: 3.6 | X44: 7.2 | AA44: 12.6
C45: работник1 | P45: 4.7 | Q45: 6.7 | R45: 2 | U45: 3 | X45: 5.7 | Y45: 6.7 | Z45: 6.7 | AA45: 35.5
C46: работник10 | E46: 7.2 | F46: 7.2 | G46: 7.2 | P46: 7.2 | Q46: 7.2 | AA46: 36
C47: работник11 | F47: 7.2 | H47: 7.2 | I47: 7.2 | O47: 7.2 | P47: 7.2 | U47: 7.2 | V47: 7.2 | AA47: 50.4
C48: работник9 | L48: 7.2 | M48: 7.2 | N48: 7.2 | O48: 7.2 | P48: 7.2 | Q48: 7.2 | R48: 7.2 | S48: 7.2 | AA48: 57.6
C49: работник3 | E49: 4 | AA49: 4
C50: работник12 | E50: 3 | F50: 3 | G50: 3 | H50: 3 | K50: 3 | L50: 3 | AA50: 18
C51: работник5 | K51: 2.2 | M51: 2.2 | O51: 4.2 | S51: 3.2 | AA51: 11.8
C52: работник13 | N52: 7.2 | O52: 7.2 | P52: 6 | AA52: 20.4
C53: работник14 | R53: 6.7 | S53: 6.7 | AA53: 13.4
C54: работник15 | E54: 7.2 | AA54: 7.2
C55: работник6 | F55: 7.2 | H55: 7.2 | I55: 2 | Q55: 2 | AA55: 18.4
C56: работник4 | Y56: 7.2 | Z56: 7.2 | AA56: 14.4
B58: 1.5 | C58: работник7 | D58: 4/8 | E58: 4 | F58: 7.2 | G58: 7.2 | H58: 7.2 | I58: 7.2 | R58: 7.2 | S58: 7.2 | AA58: 47.2
B60: 1.1 | C60: работник5 | D60: 3/16 | J60: 4.2 | L60: 4.2 | AA60: 8.4
B61: 1.1 | C61: работник2 | G61: 5.2 | V61: 7.2 | AA61: 12.4
B62: 1.1 | C62: работник11 | E62: 7.2 | G62: 7.2 | AA62: 14.4
E63: =SUM(E36:E62) -> 39.8 | F63: =SUM(F36:F62) -> 35.8 | G63: 33.8 | H63: 28.6 | I63: 19.2 | J63: 8.4 | K63: 5.2 | L63: 14.4 | M63: 9.4 | N63: 21.4 | O63: 25.8 | P63: 33.5 | Q63: 32.5 | R63: 23.1 | S63: 31.5 | T63: 1.8 | U63: 17.4 | V63: 14.4 | W63: 7.2 | X63: 12.9 | Y63: 13.9 | Z63: 13.9 | AA63: =SUM(AA36:AA62) -> 443.9

Sheet Data_Tech
A1: месяц | B1: год | C1: изд | D1: партия | E1: коэф | F1: Ф. И. О. | G1: р/р | H1: 1 | I1: 2 | J1: 3 | K1: 4 | L1: 5 | M1: 6 | N1: 7 | O1: 8 | P1: 9 | Q1: 10 | R1: 11 | S1: 12 | T1: 13 | U1: 14 | V1: 15 | W1: 16 | X1: 17 | Y1: 18 | Z1: 19 | AA1: 20 | AB1: 21 | AC1: 22 | AD1: 23 | AE1: 24 | AF1: 25 | AG1: 26 | AH1: 27 | AI1: 28 | AJ1: 29 | AK1: 30 | AL1: 31 | AM1: сумма
A2: Декабрь | B2: 2021 | C2: н 5 | D2: 3-21 | E2: 1 | F2: работник 1 | G2: 3/24 | Q2: 7.2 | R2: 7.2 | AM2: =SUM(Таблица1[[#This Row],[1]:[31]]) -> 14.4
A3: Декабрь | B3: 2021 | C3: н 5 | D3: 3-21 | E3: 1 | F3: работник 2 | G3: 4/24 | Q3: 7.2 | R3: 7.2 | AM3: =SUM(Таблица1[[#This Row],[1]:[31]]) -> 14.4
A4: Декабрь | B4: 2021 | C4: н 5 | D4: 3-21 | E4: 1 | F4: работник 3 | G4: 5/24 | Q4: 7.2 | AM4: =SUM(Таблица1[[#This Row],[1]:[31]]) -> 7.2
A5: Декабрь | B5: 2021 | C5: б/а/п | D5: 4-21 | E5: 1 | F5: работник 4 | G5: 3/24 | H5: 7.2 | I5: 7.2 | AM5: =SUM(Таблица1[[#This Row],[1]:[31]]) -> 14.4
A6: Декабрь | B6: 2021 | C6: б/а/п | D6: 4-21 | E6: 1 | F6: работник 5 | G6: 3/24 | I6: 7.2 | AM6: =SUM(Таблица1[[#This Row],[1]:[31]]) -> 7.2
A7: Декабрь | B7: 2021 | C7: б/а/п | D7: 4-21 | E7: 1 | F7: работник 6 | G7: 3/24 | H7: 7.2 | AM7: =SUM(Таблица1[[#This Row],[1]:[31]]) -> 7.2
A8: Декабрь | B8: 2021 | C8: н 9мк | D8: 21/23-21 | E8: 1 | F8: работник 7 | G8: 5/24 | O8: 7.2 | AM8: =SUM(Таблица1[[#This Row],[1]:[31]]) -> 7.2
A9: Декабрь | B9: 2021 | C9: н 9 | D9: 01-10 | E9: 1 | F9: работник 8 | G9: 3/24 | P9: 7.2 | Q9: 7.2 | AM9: =SUM(Таблица1[[#This Row],[1]:[31]]) -> 14.4
A10: Декабрь | B10: 2021 | C10: н 9 | D10: 01-10 | E10: 1 | F10: работник 9 | G10: 3/24 | T10: 7.2 | AM10: =SUM(Таблица1[[#This Row],[1]:[31]]) -> 7.2
A11: Декабрь | B11: 2021 | C11: н 9 | D11: 01-10 | E11: 1 | F11: работник 10 | G11: 4/24 | Q11: 7.2 | AM11: =SUM(Таблица1[[#This Row],[1]:[31]]) -> 7.2
A12: Декабрь | B12: 2021 | C12: н 9 | D12: 01-10 | E12: 1 | F12: работник 11 | G12: 4/24 | P12: 7.2 | T12: 7.2 | AM12: =SUM(Таблица1[[#This Row],[1]:[31]]) -> 14.4
A13: Декабрь | B13: 2021 | C13: н 9 | D13: 01-10 | E13: 1 | F13: работник 12 | G13: 4/24 | Q13: 7.2 | AM13: =SUM(Таблица1[[#This Row],[1]:[31]]) -> 7.2
A14: Декабрь | B14: 2021 | C14: н 9 | D14: 01-10 | E14: 1 | F14: работник 13 | G14: 4/24 | Q14: 7.2 | AM14: =SUM(Таблица1[[#This Row],[1]:[31]]) -> 7.2
A15: Декабрь | B15: 2021 | C15: см н 5 | D15: 3-21 | E15: 1 | F15: работник 14 | G15: 4/24 | I15: 7.2 | AM15: =SUM(Таблица1[[#This Row],[1]:[31]]) -> 7.2
A16: Декабрь | B16: 2021 | C16: см н 5 | D16: 3-21 | E16: 1 | F16: работник 15 | G16: 4/24 | I16: 7.2 | AM16: =SUM(Таблица1[[#This Row],[1]:[31]]) -> 7.2
A17: Декабрь | B17: 2021 | C17: н 5 | D17: 4-21 | E17: 1 | F17: работник 16 | G17: 4/24 | T17: 7.2 | AM17: =SUM(Таблица1[[#This Row],[1]:[31]]) -> 7.2
A18: Декабрь | B18: 2021 | C18: н 5 | D18: 4-21 | E18: 1 | F18: работник 17 | G18: 5/24 | T18: 7.2 | AM18: =SUM(Таблица1[[#This Row],[1]:[31]]) -> 7.2
A19: Декабрь | B19: 2022 | C19: 5 | D19: п/ф-21 | E19: 1 | F19: работник 2 | G19: 4/24 | T19: 6 | U19: 6 | W19: 8 | X19: 8 | AM19: =SUM(Таблица1[[#This Row],[1]:[31]]) -> 28
A20: Декабрь | B20: 2021 | C20: 9 | D20: 21/23-21 | E20: 1 | F20: работник 7 | G20: 4/24 | H20: 7,2 | I20: 7,2 | J20: 7,2 | K20: 7,2 | L20: 7,2 | M20: 7,2 | AM20: =SUM(Таблица1[[#This Row],[1]:[31]]) -> 0
A21: Декабрь | B21: 2021 | C21: 9 | D21: 21/23-21 | E21: 1.5 | F21: работник 7 | G21: 4/24 | H21: 7.2 | I21: 7.2 | J21: 7.2 | K21: 7.2 | L21: 7.2 | M21: 7.2 | AM21: =SUM(Таблица1[[#This Row],[1]:[31]]) -> 43.2

Sheet партия
G1: технологическая карта | N1: изд | O1: 9 | R1: партия | S1: 21/23-21 | W1: партия
J2: декабрь | L2: 2021 | W2: ИСП ОТК | AA2: ИСП ВП | AE2: ТП | AG2: подбор
B3: коэф | C3: Ф. И. О. | D3: р/р | E3: 1 | F3: 2 | G3: 3 | H3: 4 | I3: 5 | J3: 6 | K3: 7 | L3: 8 | M3: 9 | N3: 10 | O3: 11 | P3: 12 | Q3: 13 | R3: 14 | S3: 15 | T3: 16 | U3: 17 | V3: 18 | W3: 19 | X3: 20 | Y3: 21 | Z3: 22 | AA3: 23 | AB3: 24 | AC3: 25 | AD3: 26 | AE3: 27 | AF3: 28 | AG3: 29 | AH3: 30 | AI3: 31 | AJ3: сумма
B4: =IFERROR(INDEX(Таблица1[коэф],_xlfn.AGGREGATE(15,6,(ROW(Таблица1[коэф])-ROW(Таблица1[[#Headers],[коэф]]))/(Таблица1[[месяц]:[месяц]]=$J$2)/(Таблица1[[год]:[год]]=$L$2)/(Таблица1[[изд]:[изд]]=$O$1)/(Таблица1[[партия]:[партия]]=$S$1),ROW(A1))),"") -> 1 | C4: =IFERROR(INDEX(Таблица1[Ф. И. О.],_xlfn.AGGREGATE(15,6,(ROW(Таблица1[Ф. И. О.])-ROW(Таблица1[[#Headers],[Ф. И. О.]]))/(Таблица1[[месяц]:[месяц]]=$J$2)/(Таблица1[[год]:[год]]=$L$2)/(Таблица1[[изд]:[изд]]=$O$1)/(Таблица1[[партия]:[партия]]=$S$1),ROW(B1))),"") -> работник 7 | D4: =IFERROR(INDEX(Таблица1[р/р],_xlfn.AGGREGATE(15,6,(ROW(Таблица1[р/р])-ROW(Таблица1[[#Headers],[р/р]]))/(Таблица1[[месяц]:[месяц]]=$J$2)/(Таблица1[[год]:[год]]=$L$2)/(Таблица1[[изд]:[изд]]=$O$1)/(Таблица1[[партия]:[партия]]=$S$1),ROW(C1))),"") -> 4/24 | E4: =IFERROR(INDEX(Таблица1[1],_xlfn.AGGREGATE(15,6,(ROW(Таблица1[1])-ROW(Таблица1[[#Headers],[1]]))/(Таблица1[[месяц]:[месяц]]=$J$2)/(Таблица1[[год]:[год]]=$L$2)/(Таблица1[[изд]:[изд]]=$O$1)/(Таблица1[[партия]:[партия]]=$S$1),ROW(D1))),"") -> 7,2 | F4: =IFERROR(INDEX(Таблица1[2],_xlfn.AGGREGATE(15,6,(ROW(Таблица1[2])-ROW(Таблица1[[#Headers],[2]]))/(Таблица1[[месяц]:[месяц]]=$J$2)/(Таблица1[[год]:[год]]=$L$2)/(Таблица1[[изд]:[изд]]=$O$1)/(Таблица1[[партия]:[партия]]=$S$1),ROW(E1))),"") -> 7,2 | G4: =IFERROR(INDEX(Таблица1[3],_xlfn.AGGREGATE(15,6,(ROW(Таблица1[3])-ROW(Таблица1[[#Headers],[3]]))/(Таблица1[[месяц]:[месяц]]=$J$2)/(Таблица1[[год]:[год]]=$L$2)/(Таблица1[[изд]:[изд]]=$O$1)/(Таблица1[[партия]:[партия]]=$S$1),ROW(F1))),"") -> 7,2 | H4: =IFERROR(INDEX(Таблица1[4],_xlfn.AGGREGATE(15,6,(ROW(Таблица1[4])-ROW(Таблица1[[#Headers],[4]]))/(Таблица1[[месяц]:[месяц]]=$J$2)/(Таблица1[[год]:[год]]=$L$2)/(Таблица1[[изд]:[изд]]=$O$1)/(Таблица1[[партия]:[партия]]=$S$1),ROW(G1))),"") -> 7,2 | I4: =IFERROR(INDEX(Таблица1[5],_xlfn.AGGREGATE(15,6,(ROW(Таблица1[5])-ROW(Таблица1[[#Headers],[5]]))/(Таблица1[[месяц]:[месяц]]=$J$2)/(Таблица1[[год]:[год]]=$L$2)/(Таблица1[[изд]:[изд]]=$O$1)/(Таблица1[[партия]:[партия]]=$S$1),ROW(H1))),"") -> 7,2 | J4: =IFERROR(INDEX(Таблица1[6],_xlfn.AGGREGATE(15,6,(ROW(Таблица1[6])-ROW(Таблица1[[#Headers],[6]]))/(Таблица1[[месяц]:[месяц]]=$J$2)/(Таблица1[[год]:[год]]=$L$2)/(Таблица1[[изд]:[изд]]=$O$1)/(Таблица1[[партия]:[партия]]=$S$1),ROW(I1))),"") -> 7,2 | K4: =IFERROR(INDEX(Таблица1[7],_xlfn.AGGREGATE(15,6,(ROW(Таблица1[7])-ROW(Таблица1[[#Headers],[7]]))/(Таблица1[[месяц]:[месяц]]=$J$2)/(Таблица1[[год]:[год]]=$L$2)/(Таблица1[[изд]:[изд]]=$O$1)/(Таблица1[[партия]:[партия]]=$S$1),ROW(J1))),"") -> 0 | L4: =IFERROR(INDEX(Таблица1[8],_xlfn.AGGREGATE(15,6,(ROW(Таблица1[8])-ROW(Таблица1[[#Headers],[8]]))/(Таблица1[[месяц]:[месяц]]=$J$2)/(Таблица1[[год]:[год]]=$L$2)/(Таблица1[[изд]:[изд]]=$O$1)/(Таблица1[[партия]:[партия]]=$S$1),ROW(K1))),"") -> 0 | M4: =IFERROR(INDEX(Таблица1[9],_xlfn.AGGREGATE(15,6,(ROW(Таблица1[9])-ROW(Таблица1[[#Headers],[9]]))/(Таблица1[[месяц]:[месяц]]=$J$2)/(Таблица1[[год]:[год]]=$L$2)/(Таблица1[[изд]:[изд]]=$O$1)/(Таблица1[[партия]:[партия]]=$S$1),ROW(L1))),"") -> 0 | N4: =IFERROR(INDEX(Таблица1[10],_xlfn.AGGREGATE(15,6,(ROW(Таблица1[10])-ROW(Таблица1[[#Headers],[10]]))/(Таблица1[[месяц]:[месяц]]=$J$2)/(Таблица1[[год]:[год]]=$L$2)/(Таблица1[[изд]:[изд]]=$O$1)/(Таблица1[[партия]:[партия]]=$S$1),ROW(M1))),"") -> 0 | O4: =IFERROR(INDEX(Таблица1[11],_xlfn.AGGREGATE(15,6,(ROW(Таблица1[11])-ROW(Таблица1[[#Headers],[11]]))/(Таблица1[[месяц]:[месяц]]=$J$2)/(Таблица1[[год]:[год]]=$L$2)/(Таблица1[[изд]:[изд]]=$O$1)/(Таблица1[[партия]:[партия]]=$S$1),ROW(N1))),"") -> 0 | P4: =IFERROR(INDEX(Таблица1[12],_xlfn.AGGREGATE(15,6,(ROW(Таблица1[12])-ROW(Таблица1[[#Headers],[12]]))/(Таблица1[[месяц]:[месяц]]=$J$2)/(Таблица1[[год]:[год]]=$L$2)/(Таблица1[[изд]:[изд]]=$O$1)/(Таблица1[[партия]:[партия]]=$S$1),ROW(O1))),"") -> 0 | Q4: =IFERROR(INDEX(Таблица1[13],_xlfn.AGGREGATE(15,6,(ROW(Таблица1[13])-ROW(Таблица1[[#Headers],[13]]))/(Таблица1[[месяц]:[месяц]]=$J$2)/(Таблица1[[год]:[год]]=$L$2)/(Таблица1[[изд]:[изд]]=$O$1)/(Таблица1[[партия]:[партия]]=$S$1),ROW(P1))),"") -> 0 | R4: =IFERROR(INDEX(Таблица1[14],_xlfn.AGGREGATE(15,6,(ROW(Таблица1[14])-ROW(Таблица1[[#Headers],[14]]))/(Таблица1[[месяц]:[месяц]]=$J$2)/(Таблица1[[год]:[год]]=$L$2)/(Таблица1[[изд]:[изд]]=$O$1)/(Таблица1[[партия]:[партия]]=$S$1),ROW(Q1))),"") -> 0 | S4: =IFERROR(INDEX(Таблица1[15],_xlfn.AGGREGATE(15,6,(ROW(Таблица1[15])-ROW(Таблица1[[#Headers],[15]]))/(Таблица1[[месяц]:[месяц]]=$J$2)/(Таблица1[[год]:[год]]=$L$2)/(Таблица1[[изд]:[изд]]=$O$1)/(Таблица1[[партия]:[партия]]=$S$1),ROW(R1))),"") -> 0 | T4: =IFERROR(INDEX(Таблица1[16],_xlfn.AGGREGATE(15,6,(ROW(Таблица1[16])-ROW(Таблица1[[#Headers],[16]]))/(Таблица1[[месяц]:[месяц]]=$J$2)/(Таблица1[[год]:[год]]=$L$2)/(Таблица1[[изд]:[изд]]=$O$1)/(Таблица1[[партия]:[партия]]=$S$1),ROW(S1))),"") -> 0 | U4: =IFERROR(INDEX(Таблица1[17],_xlfn.AGGREGATE(15,6,(ROW(Таблица1[17])-ROW(Таблица1[[#Headers],[17]]))/(Таблица1[[месяц]:[месяц]]=$J$2)/(Таблица1[[год]:[год]]=$L$2)/(Таблица1[[изд]:[изд]]=$O$1)/(Таблица1[[партия]:[партия]]=$S$1),ROW(T1))),"") -> 0 | V4: =IFERROR(INDEX(Таблица1[18],_xlfn.AGGREGATE(15,6,(ROW(Таблица1[18])-ROW(Таблица1[[#Headers],[18]]))/(Таблица1[[месяц]:[месяц]]=$J$2)/(Таблица1[[год]:[год]]=$L$2)/(Таблица1[[изд]:[изд]]=$O$1)/(Таблица1[[партия]:[партия]]=$S$1),ROW(U1))),"") -> 0 | W4: =IFERROR(INDEX(Таблица1[19],_xlfn.AGGREGATE(15,6,(ROW(Таблица1[19])-ROW(Таблица1[[#Headers],[19]]))/(Таблица1[[месяц]:[месяц]]=$J$2)/(Таблица1[[год]:[год]]=$L$2)/(Таблица1[[изд]:[изд]]=$O$1)/(Таблица1[[партия]:[партия]]=$S$1),ROW(V1))),"") -> 0 | X4: =IFERROR(INDEX(Таблица1[20],_xlfn.AGGREGATE(15,6,(ROW(Таблица1[20])-ROW(Таблица1[[#Headers],[20]]))/(Таблица1[[месяц]:[месяц]]=$J$2)/(Таблица1[[год]:[год]]=$L$2)/(Таблица1[[изд]:[изд]]=$O$1)/(Таблица1[[партия]:[партия]]=$S$1),ROW(W1))),"") -> 0 | Y4: =IFERROR(INDEX(Таблица1[21],_xlfn.AGGREGATE(15,6,(ROW(Таблица1[21])-ROW(Таблица1[[#Headers],[21]]))/(Таблица1[[месяц]:[месяц]]=$J$2)/(Таблица1[[год]:[год]]=$L$2)/(Таблица1[[изд]:[изд]]=$O$1)/(Таблица1[[партия]:[партия]]=$S$1),ROW(X1))),"") -> 0 | Z4: =IFERROR(INDEX(Таблица1[22],_xlfn.AGGREGATE(15,6,(ROW(Таблица1[22])-ROW(Таблица1[[#Headers],[22]]))/(Таблица1[[месяц]:[месяц]]=$J$2)/(Таблица1[[год]:[год]]=$L$2)/(Таблица1[[изд]:[изд]]=$O$1)/(Таблица1[[партия]:[партия]]=$S$1),ROW(Y1))),"") -> 0 | AA4: =IFERROR(INDEX(Таблица1[23],_xlfn.AGGREGATE(15,6,(ROW(Таблица1[23])-ROW(Таблица1[[#Headers],[23]]))/(Таблица1[[месяц]:[месяц]]=$J$2)/(Таблица1[[год]:[год]]=$L$2)/(Таблица1[[изд]:[изд]]=$O$1)/(Таблица1[[партия]:[партия]]=$S$1),ROW(Z1))),"") -> 0 | AB4: =IFERROR(INDEX(Таблица1[24],_xlfn.AGGREGATE(15,6,(ROW(Таблица1[24])-ROW(Таблица1[[#Headers],[24]]))/(Таблица1[[месяц]:[месяц]]=$J$2)/(Таблица1[[год]:[год]]=$L$2)/(Таблица1[[изд]:[изд]]=$O$1)/(Таблица1[[партия]:[партия]]=$S$1),ROW(AA1))),"") -> 0 | AC4: =IFERROR(INDEX(Таблица1[25],_xlfn.AGGREGATE(15,6,(ROW(Таблица1[25])-ROW(Таблица1[[#Headers],[25]]))/(Таблица1[[месяц]:[месяц]]=$J$2)/(Таблица1[[год]:[год]]=$L$2)/(Таблица1[[изд]:[изд]]=$O$1)/(Таблица1[[партия]:[партия]]=$S$1),ROW(AB1))),"") -> 0 | AD4: =IFERROR(INDEX(Таблица1[26],_xlfn.AGGREGATE(15,6,(ROW(Таблица1[26])-ROW(Таблица1[[#Headers],[26]]))/(Таблица1[[месяц]:[месяц]]=$J$2)/(Таблица1[[год]:[год]]=$L$2)/(Таблица1[[изд]:[изд]]=$O$1)/(Таблица1[[партия]:[партия]]=$S$1),ROW(AC1))),"") -> 0 | AE4: =IFERROR(INDEX(Таблица1[27],_xlfn.AGGREGATE(15,6,(ROW(Таблица1[27])-ROW(Таблица1[[#Headers],[27]]))/(Таблица1[[месяц]:[месяц]]=$J$2)/(Таблица1[[год]:[год]]=$L$2)/(Таблица1[[изд]:[изд]]=$O$1)/(Таблица1[[партия]:[партия]]=$S$1),ROW(AD1))),"") -> 0 | AF4: =IFERROR(INDEX(Таблица1[28],_xlfn.AGGREGATE(15,6,(ROW(Таблица1[28])-ROW(Таблица1[[#Headers],[28]]))/(Таблица1[[месяц]:[месяц]]=$J$2)/(Таблица1[[год]:[год]]=$L$2)/(Таблица1[[изд]:[изд]]=$O$1)/(Таблица1[[партия]:[партия]]=$S$1),ROW(AE1))),"") -> 0 | AG4: =IFERROR(INDEX(Таблица1[29],_xlfn.AGGREGATE(15,6,(ROW(Таблица1[29])-ROW(Таблица1[[#Headers],[29]]))/(Таблица1[[месяц]:[месяц]]=$J$2)/(Таблица1[[год]:[год]]=$L$2)/(Таблица1[[изд]:[изд]]=$O$1)/(Таблица1[[партия]:[партия]]=$S$1),ROW(AF1))),"") -> 0 | AH4: =IFERROR(INDEX(Таблица1[30],_xlfn.AGGREGATE(15,6,(ROW(Таблица1[30])-ROW(Таблица1[[#Headers],[30]]))/(Таблица1[[месяц]:[месяц]]=$J$2)/(Таблица1[[год]:[год]]=$L$2)/(Таблица1[[изд]:[изд]]=$O$1)/(Таблица1[[партия]:[партия]]=$S$1),ROW(AG1))),"") -> 0 | AI4: =IFERROR(INDEX(Таблица1[31],_xlfn.AGGREGATE(15,6,(ROW(Таблица1[31])-ROW(Таблица1[[#Headers],[31]]))/(Таблица1[[месяц]:[месяц]]=$J$2)/(Таблица1[[год]:[год]]=$L$2)/(Таблица1[[изд]:[изд]]=$O$1)/(Таблица1[[партия]:[партия]]=$S$1),ROW(AH1))),"") -> 0 | AJ4: =SUM(E4:AI4) -> 0
B5: =IFERROR(INDEX(Таблица1[коэф],_xlfn.AGGREGATE(15,6,(ROW(Таблица1[коэф])-ROW(Таблица1[[#Headers],[коэф]]))/(Таблица1[[месяц]:[месяц]]=$J$2)/(Таблица1[[год]:[год]]=$L$2)/(Таблица1[[изд]:[изд]]=$O$1)/(Таблица1[[партия]:[партия]]=$S$1),ROW(A2))),"") -> 1.5 | C5: =IFERROR(INDEX(Таблица1[Ф. И. О.],_xlfn.AGGREGATE(15,6,(ROW(Таблица1[Ф. И. О.])-ROW(Таблица1[[#Headers],[Ф. И. О.]]))/(Таблица1[[месяц]:[месяц]]=$J$2)/(Таблица1[[год]:[год]]=$L$2)/(Таблица1[[изд]:[изд]]=$O$1)/(Таблица1[[партия]:[партия]]=$S$1),ROW(B2))),"") -> работник 7 | D5: =IFERROR(INDEX(Таблица1[р/р],_xlfn.AGGREGATE(15,6,(ROW(Таблица1[р/р])-ROW(Таблица1[[#Headers],[р/р]]))/(Таблица1[[месяц]:[месяц]]=$J$2)/(Таблица1[[год]:[год]]=$L$2)/(Таблица1[[изд]:[изд]]=$O$1)/(Таблица1[[партия]:[партия]]=$S$1),ROW(C2))),"") -> 4/24 | E5: =IFERROR(INDEX(Таблица1[1],_xlfn.AGGREGATE(15,6,(ROW(Таблица1[1])-ROW(Таблица1[[#Headers],[1]]))/(Таблица1[[месяц]:[месяц]]=$J$2)/(Таблица1[[год]:[год]]=$L$2)/(Таблица1[[изд]:[изд]]=$O$1)/(Таблица1[[партия]:[партия]]=$S$1),ROW(D2))),"") -> 7.2 | F5: =IFERROR(INDEX(Таблица1[2],_xlfn.AGGREGATE(15,6,(ROW(Таблица1[2])-ROW(Таблица1[[#Headers],[2]]))/(Таблица1[[месяц]:[месяц]]=$J$2)/(Таблица1[[год]:[год]]=$L$2)/(Таблица1[[изд]:[изд]]=$O$1)/(Таблица1[[партия]:[партия]]=$S$1),ROW(E2))),"") -> 7.2 | G5: =IFERROR(INDEX(Таблица1[3],_xlfn.AGGREGATE(15,6,(ROW(Таблица1[3])-ROW(Таблица1[[#Headers],[3]]))/(Таблица1[[месяц]:[месяц]]=$J$2)/(Таблица1[[год]:[год]]=$L$2)/(Таблица1[[изд]:[изд]]=$O$1)/(Таблица1[[партия]:[партия]]=$S$1),ROW(F2))),"") -> 7.2 | H5: =IFERROR(INDEX(Таблица1[4],_xlfn.AGGREGATE(15,6,(ROW(Таблица1[4])-ROW(Таблица1[[#Headers],[4]]))/(Таблица1[[месяц]:[месяц]]=$J$2)/(Таблица1[[год]:[год]]=$L$2)/(Таблица1[[изд]:[изд]]=$O$1)/(Таблица1[[партия]:[партия]]=$S$1),ROW(G2))),"") -> 7.2 | I5: =IFERROR(INDEX(Таблица1[5],_xlfn.AGGREGATE(15,6,(ROW(Таблица1[5])-ROW(Таблица1[[#Headers],[5]]))/(Таблица1[[месяц]:[месяц]]=$J$2)/(Таблица1[[год]:[год]]=$L$2)/(Таблица1[[изд]:[изд]]=$O$1)/(Таблица1[[партия]:[партия]]=$S$1),ROW(H2))),"") -> 7.2 | J5: =IFERROR(INDEX(Таблица1[6],_xlfn.AGGREGATE(15,6,(ROW(Таблица1[6])-ROW(Таблица1[[#Headers],[6]]))/(Таблица1[[месяц]:[месяц]]=$J$2)/(Таблица1[[год]:[год]]=$L$2)/(Таблица1[[изд]:[изд]]=$O$1)/(Таблица1[[партия]:[партия]]=$S$1),ROW(I2))),"") -> 7.2 | K5: =IFERROR(INDEX(Таблица1[7],_xlfn.AGGREGATE(15,6,(ROW(Таблица1[7])-ROW(Таблица1[[#Headers],[7]]))/(Таблица1[[месяц]:[месяц]]=$J$2)/(Таблица1[[год]:[год]]=$L$2)/(Таблица1[[изд]:[изд]]=$O$1)/(Таблица1[[партия]:[партия]]=$S$1),ROW(J2))),"") -> 0 | L5: =IFERROR(INDEX(Таблица1[8],_xlfn.AGGREGATE(15,6,(ROW(Таблица1[8])-ROW(Таблица1[[#Headers],[8]]))/(Таблица1[[месяц]:[месяц]]=$J$2)/(Таблица1[[год]:[год]]=$L$2)/(Таблица1[[изд]:[изд]]=$O$1)/(Таблица1[[партия]:[партия]]=$S$1),ROW(K2))),"") -> 0 | M5: =IFERROR(INDEX(Таблица1[9],_xlfn.AGGREGATE(15,6,(ROW(Таблица1[9])-ROW(Таблица1[[#Headers],[9]]))/(Таблица1[[месяц]:[месяц]]=$J$2)/(Таблица1[[год]:[год]]=$L$2)/(Таблица1[[изд]:[изд]]=$O$1)/(Таблица1[[партия]:[партия]]=$S$1),ROW(L2))),"") -> 0 | N5: =IFERROR(INDEX(Таблица1[10],_xlfn.AGGREGATE(15,6,(ROW(Таблица1[10])-ROW(Таблица1[[#Headers],[10]]))/(Таблица1[[месяц]:[месяц]]=$J$2)/(Таблица1[[год]:[год]]=$L$2)/(Таблица1[[изд]:[изд]]=$O$1)/(Таблица1[[партия]:[партия]]=$S$1),ROW(M2))),"") -> 0 | O5: =IFERROR(INDEX(Таблица1[11],_xlfn.AGGREGATE(15,6,(ROW(Таблица1[11])-ROW(Таблица1[[#Headers],[11]]))/(Таблица1[[месяц]:[месяц]]=$J$2)/(Таблица1[[год]:[год]]=$L$2)/(Таблица1[[изд]:[изд]]=$O$1)/(Таблица1[[партия]:[партия]]=$S$1),ROW(N2))),"") -> 0 | P5: =IFERROR(INDEX(Таблица1[12],_xlfn.AGGREGATE(15,6,(ROW(Таблица1[12])-ROW(Таблица1[[#Headers],[12]]))/(Таблица1[[месяц]:[месяц]]=$J$2)/(Таблица1[[год]:[год]]=$L$2)/(Таблица1[[изд]:[изд]]=$O$1)/(Таблица1[[партия]:[партия]]=$S$1),ROW(O2))),"") -> 0 | Q5: =IFERROR(INDEX(Таблица1[13],_xlfn.AGGREGATE(15,6,(ROW(Таблица1[13])-ROW(Таблица1[[#Headers],[13]]))/(Таблица1[[месяц]:[месяц]]=$J$2)/(Таблица1[[год]:[год]]=$L$2)/(Таблица1[[изд]:[изд]]=$O$1)/(Таблица1[[партия]:[партия]]=$S$1),ROW(P2))),"") -> 0 | R5: =IFERROR(INDEX(Таблица1[14],_xlfn.AGGREGATE(15,6,(ROW(Таблица1[14])-ROW(Таблица1[[#Headers],[14]]))/(Таблица1[[месяц]:[месяц]]=$J$2)/(Таблица1[[год]:[год]]=$L$2)/(Таблица1[[изд]:[изд]]=$O$1)/(Таблица1[[партия]:[партия]]=$S$1),ROW(Q2))),"") -> 0 | S5: =IFERROR(INDEX(Таблица1[15],_xlfn.AGGREGATE(15,6,(ROW(Таблица1[15])-ROW(Таблица1[[#Headers],[15]]))/(Таблица1[[месяц]:[месяц]]=$J$2)/(Таблица1[[год]:[год]]=$L$2)/(Таблица1[[изд]:[изд]]=$O$1)/(Таблица1[[партия]:[партия]]=$S$1),ROW(R2))),"") -> 0 | T5: =IFERROR(INDEX(Таблица1[16],_xlfn.AGGREGATE(15,6,(ROW(Таблица1[16])-ROW(Таблица1[[#Headers],[16]]))/(Таблица1[[месяц]:[месяц]]=$J$2)/(Таблица1[[год]:[год]]=$L$2)/(Таблица1[[изд]:[изд]]=$O$1)/(Таблица1[[партия]:[партия]]=$S$1),ROW(S2))),"") -> 0 | U5: =IFERROR(INDEX(Таблица1[17],_xlfn.AGGREGATE(15,6,(ROW(Таблица1[17])-ROW(Таблица1[[#Headers],[17]]))/(Таблица1[[месяц]:[месяц]]=$J$2)/(Таблица1[[год]:[год]]=$L$2)/(Таблица1[[изд]:[изд]]=$O$1)/(Таблица1[[партия]:[партия]]=$S$1),ROW(T2))),"") -> 0 | V5: =IFERROR(INDEX(Таблица1[18],_xlfn.AGGREGATE(15,6,(ROW(Таблица1[18])-ROW(Таблица1[[#Headers],[18]]))/(Таблица1[[месяц]:[месяц]]=$J$2)/(Таблица1[[год]:[год]]=$L$2)/(Таблица1[[изд]:[изд]]=$O$1)/(Таблица1[[партия]:[партия]]=$S$1),ROW(U2))),"") -> 0 | W5: =IFERROR(INDEX(Таблица1[19],_xlfn.AGGREGATE(15,6,(ROW(Таблица1[19])-ROW(Таблица1[[#Headers],[19]]))/(Таблица1[[месяц]:[месяц]]=$J$2)/(Таблица1[[год]:[год]]=$L$2)/(Таблица1[[изд]:[изд]]=$O$1)/(Таблица1[[партия]:[партия]]=$S$1),ROW(V2))),"") -> 0 | X5: =IFERROR(INDEX(Таблица1[20],_xlfn.AGGREGATE(15,6,(ROW(Таблица1[20])-ROW(Таблица1[[#Headers],[20]]))/(Таблица1[[месяц]:[месяц]]=$J$2)/(Таблица1[[год]:[год]]=$L$2)/(Таблица1[[изд]:[изд]]=$O$1)/(Таблица1[[партия]:[партия]]=$S$1),ROW(W2))),"") -> 0 | Y5: =IFERROR(INDEX(Таблица1[21],_xlfn.AGGREGATE(15,6,(ROW(Таблица1[21])-ROW(Таблица1[[#Headers],[21]]))/(Таблица1[[месяц]:[месяц]]=$J$2)/(Таблица1[[год]:[год]]=$L$2)/(Таблица1[[изд]:[изд]]=$O$1)/(Таблица1[[партия]:[партия]]=$S$1),ROW(X2))),"") -> 0 | Z5: =IFERROR(INDEX(Таблица1[22],_xlfn.AGGREGATE(15,6,(ROW(Таблица1[22])-ROW(Таблица1[[#Headers],[22]]))/(Таблица1[[месяц]:[месяц]]=$J$2)/(Таблица1[[год]:[год]]=$L$2)/(Таблица1[[изд]:[изд]]=$O$1)/(Таблица1[[партия]:[партия]]=$S$1),ROW(Y2))),"") -> 0 | AA5: =IFERROR(INDEX(Таблица1[23],_xlfn.AGGREGATE(15,6,(ROW(Таблица1[23])-ROW(Таблица1[[#Headers],[23]]))/(Таблица1[[месяц]:[месяц]]=$J$2)/(Таблица1[[год]:[год]]=$L$2)/(Таблица1[[изд]:[изд]]=$O$1)/(Таблица1[[партия]:[партия]]=$S$1),ROW(Z2))),"") -> 0 | AB5: =IFERROR(INDEX(Таблица1[24],_xlfn.AGGREGATE(15,6,(ROW(Таблица1[24])-ROW(Таблица1[[#Headers],[24]]))/(Таблица1[[месяц]:[месяц]]=$J$2)/(Таблица1[[год]:[год]]=$L$2)/(Таблица1[[изд]:[изд]]=$O$1)/(Таблица1[[партия]:[партия]]=$S$1),ROW(AA2))),"") -> 0 | AC5: =IFERROR(INDEX(Таблица1[25],_xlfn.AGGREGATE(15,6,(ROW(Таблица1[25])-ROW(Таблица1[[#Headers],[25]]))/(Таблица1[[месяц]:[месяц]]=$J$2)/(Таблица1[[год]:[год]]=$L$2)/(Таблица1[[изд]:[изд]]=$O$1)/(Таблица1[[партия]:[партия]]=$S$1),ROW(AB2))),"") -> 0 | AD5: =IFERROR(INDEX(Таблица1[26],_xlfn.AGGREGATE(15,6,(ROW(Таблица1[26])-ROW(Таблица1[[#Headers],[26]]))/(Таблица1[[месяц]:[месяц]]=$J$2)/(Таблица1[[год]:[год]]=$L$2)/(Таблица1[[изд]:[изд]]=$O$1)/(Таблица1[[партия]:[партия]]=$S$1),ROW(AC2))),"") -> 0 | AE5: =IFERROR(INDEX(Таблица1[27],_xlfn.AGGREGATE(15,6,(ROW(Таблица1[27])-ROW(Таблица1[[#Headers],[27]]))/(Таблица1[[месяц]:[месяц]]=$J$2)/(Таблица1[[год]:[год]]=$L$2)/(Таблица1[[изд]:[изд]]=$O$1)/(Таблица1[[партия]:[партия]]=$S$1),ROW(AD2))),"") -> 0 | AF5: =IFERROR(INDEX(Таблица1[28],_xlfn.AGGREGATE(15,6,(ROW(Таблица1[28])-ROW(Таблица1[[#Headers],[28]]))/(Таблица1[[месяц]:[месяц]]=$J$2)/(Таблица1[[год]:[год]]=$L$2)/(Таблица1[[изд]:[изд]]=$O$1)/(Таблица1[[партия]:[партия]]=$S$1),ROW(AE2))),"") -> 0 | AG5: =IFERROR(INDEX(Таблица1[29],_xlfn.AGGREGATE(15,6,(ROW(Таблица1[29])-ROW(Таблица1[[#Headers],[29]]))/(Таблица1[[месяц]:[месяц]]=$J$2)/(Таблица1[[год]:[год]]=$L$2)/(Таблица1[[изд]:[изд]]=$O$1)/(Таблица1[[партия]:[партия]]=$S$1),ROW(AF2))),"") -> 0 | AH5: =IFERROR(INDEX(Таблица1[30],_xlfn.AGGREGATE(15,6,(ROW(Таблица1[30])-ROW(Таблица1[[#Headers],[30]]))/(Таблица1[[месяц]:[месяц]]=$J$2)/(Таблица1[[год]:[год]]=$L$2)/(Таблица1[[изд]:[изд]]=$O$1)/(Таблица1[[партия]:[партия]]=$S$1),ROW(AG2))),"") -> 0 | AI5: =IFERROR(INDEX(Таблица1[31],_xlfn.AGGREGATE(15,6,(ROW(Таблица1[31])-ROW(Таблица1[[#Headers],[31]]))/(Таблица1[[месяц]:[месяц]]=$J$2)/(Таблица1[[год]:[год]]=$L$2)/(Таблица1[[изд]:[изд]]=$O$1)/(Таблица1[[партия]:[партия]]=$S$1),ROW(AH2))),"") -> 0 | AJ5: =SUM(E5:AI5) -> 43.2
B6: =IFERROR(INDEX(Таблица1[коэф],_xlfn.AGGREGATE(15,6,(ROW(Таблица1[коэф])-ROW(Таблица1[[#Headers],[коэф]]))/(Таблица1[[месяц]:[месяц]]=$J$2)/(Таблица1[[год]:[год]]=$L$2)/(Таблица1[[изд]:[изд]]=$O$1)/(Таблица1[[партия]:[партия]]=$S$1),ROW(A3))),"") ->  | C6: =IFERROR(INDEX(Таблица1[Ф. И. О.],_xlfn.AGGREGATE(15,6,(ROW(Таблица1[Ф. И. О.])-ROW(Таблица1[[#Headers],[Ф. И. О.]]))/(Таблица1[[месяц]:[месяц]]=$J$2)/(Таблица1[[год]:[год]]=$L$2)/(Таблица1[[изд]:[изд]]=$O$1)/(Таблица1[[партия]:[партия]]=$S$1),ROW(B3))),"") ->  | D6: =IFERROR(INDEX(Таблица1[р/р],_xlfn.AGGREGATE(15,6,(ROW(Таблица1[р/р])-ROW(Таблица1[[#Headers],[р/р]]))/(Таблица1[[месяц]:[месяц]]=$J$2)/(Таблица1[[год]:[год]]=$L$2)/(Таблица1[[изд]:[изд]]=$O$1)/(Таблица1[[партия]:[партия]]=$S$1),ROW(C3))),"") ->  | E6: =IFERROR(INDEX(Таблица1[1],_xlfn.AGGREGATE(15,6,(ROW(Таблица1[1])-ROW(Таблица1[[#Headers],[1]]))/(Таблица1[[месяц]:[месяц]]=$J$2)/(Таблица1[[год]:[год]]=$L$2)/(Таблица1[[изд]:[изд]]=$O$1)/(Таблица1[[партия]:[партия]]=$S$1),ROW(D3))),"") ->  | F6: =IFERROR(INDEX(Таблица1[2],_xlfn.AGGREGATE(15,6,(ROW(Таблица1[2])-ROW(Таблица1[[#Headers],[2]]))/(Таблица1[[месяц]:[месяц]]=$J$2)/(Таблица1[[год]:[год]]=$L$2)/(Таблица1[[изд]:[изд]]=$O$1)/(Таблица1[[партия]:[партия]]=$S$1),ROW(E3))),"") ->  | G6: =IFERROR(INDEX(Таблица1[3],_xlfn.AGGREGATE(15,6,(ROW(Таблица1[3])-ROW(Таблица1[[#Headers],[3]]))/(Таблица1[[месяц]:[месяц]]=$J$2)/(Таблица1[[год]:[год]]=$L$2)/(Таблица1[[изд]:[изд]]=$O$1)/(Таблица1[[партия]:[партия]]=$S$1),ROW(F3))),"") ->  | H6: =IFERROR(INDEX(Таблица1[4],_xlfn.AGGREGATE(15,6,(ROW(Таблица1[4])-ROW(Таблица1[[#Headers],[4]]))/(Таблица1[[месяц]:[месяц]]=$J$2)/(Таблица1[[год]:[год]]=$L$2)/(Таблица1[[изд]:[изд]]=$O$1)/(Таблица1[[партия]:[партия]]=$S$1),ROW(G3))),"") ->  | I6: =IFERROR(INDEX(Таблица1[5],_xlfn.AGGREGATE(15,6,(ROW(Таблица1[5])-ROW(Таблица1[[#Headers],[5]]))/(Таблица1[[месяц]:[месяц]]=$J$2)/(Таблица1[[год]:[год]]=$L$2)/(Таблица1[[изд]:[изд]]=$O$1)/(Таблица1[[партия]:[партия]]=$S$1),ROW(H3))),"") ->  | J6: =IFERROR(INDEX(Таблица1[6],_xlfn.AGGREGATE(15,6,(ROW(Таблица1[6])-ROW(Таблица1[[#Headers],[6]]))/(Таблица1[[месяц]:[месяц]]=$J$2)/(Таблица1[[год]:[год]]=$L$2)/(Таблица1[[изд]:[изд]]=$O$1)/(Таблица1[[партия]:[партия]]=$S$1),ROW(I3))),"") ->  | K6: =IFERROR(INDEX(Таблица1[7],_xlfn.AGGREGATE(15,6,(ROW(Таблица1[7])-ROW(Таблица1[[#Headers],[7]]))/(Таблица1[[месяц]:[месяц]]=$J$2)/(Таблица1[[год]:[год]]=$L$2)/(Таблица1[[изд]:[изд]]=$O$1)/(Таблица1[[партия]:[партия]]=$S$1),ROW(J3))),"") ->  | L6: =IFERROR(INDEX(Таблица1[8],_xlfn.AGGREGATE(15,6,(ROW(Таблица1[8])-ROW(Таблица1[[#Headers],[8]]))/(Таблица1[[месяц]:[месяц]]=$J$2)/(Таблица1[[год]:[год]]=$L$2)/(Таблица1[[изд]:[изд]]=$O$1)/(Таблица1[[партия]:[партия]]=$S$1),ROW(K3))),"") ->  | M6: =IFERROR(INDEX(Таблица1[9],_xlfn.AGGREGATE(15,6,(ROW(Таблица1[9])-ROW(Таблица1[[#Headers],[9]]))/(Таблица1[[месяц]:[месяц]]=$J$2)/(Таблица1[[год]:[год]]=$L$2)/(Таблица1[[изд]:[изд]]=$O$1)/(Таблица1[[партия]:[партия]]=$S$1),ROW(L3))),"") ->  | N6: =IFERROR(INDEX(Таблица1[10],_xlfn.AGGREGATE(15,6,(ROW(Таблица1[10])-ROW(Таблица1[[#Headers],[10]]))/(Таблица1[[месяц]:[месяц]]=$J$2)/(Таблица1[[год]:[год]]=$L$2)/(Таблица1[[изд]:[изд]]=$O$1)/(Таблица1[[партия]:[партия]]=$S$1),ROW(M3))),"") ->  | O6: =IFERROR(INDEX(Таблица1[11],_xlfn.AGGREGATE(15,6,(ROW(Таблица1[11])-ROW(Таблица1[[#Headers],[11]]))/(Таблица1[[месяц]:[месяц]]=$J$2)/(Таблица1[[год]:[год]]=$L$2)/(Таблица1[[изд]:[изд]]=$O$1)/(Таблица1[[партия]:[партия]]=$S$1),ROW(N3))),"") ->  | P6: =IFERROR(INDEX(Таблица1[12],_xlfn.AGGREGATE(15,6,(ROW(Таблица1[12])-ROW(Таблица1[[#Headers],[12]]))/(Таблица1[[месяц]:[месяц]]=$J$2)/(Таблица1[[год]:[год]]=$L$2)/(Таблица1[[изд]:[изд]]=$O$1)/(Таблица1[[партия]:[партия]]=$S$1),ROW(O3))),"") ->  | Q6: =IFERROR(INDEX(Таблица1[13],_xlfn.AGGREGATE(15,6,(ROW(Таблица1[13])-ROW(Таблица1[[#Headers],[13]]))/(Таблица1[[месяц]:[месяц]]=$J$2)/(Таблица1[[год]:[год]]=$L$2)/(Таблица1[[изд]:[изд]]=$O$1)/(Таблица1[[партия]:[партия]]=$S$1),ROW(P3))),"") ->  | R6: =IFERROR(INDEX(Таблица1[14],_xlfn.AGGREGATE(15,6,(ROW(Таблица1[14])-ROW(Таблица1[[#Headers],[14]]))/(Таблица1[[месяц]:[месяц]]=$J$2)/(Таблица1[[год]:[год]]=$L$2)/(Таблица1[[изд]:[изд]]=$O$1)/(Таблица1[[партия]:[партия]]=$S$1),ROW(Q3))),"") ->  | S6: =IFERROR(INDEX(Таблица1[15],_xlfn.AGGREGATE(15,6,(ROW(Таблица1[15])-ROW(Таблица1[[#Headers],[15]]))/(Таблица1[[месяц]:[месяц]]=$J$2)/(Таблица1[[год]:[год]]=$L$2)/(Таблица1[[изд]:[изд]]=$O$1)/(Таблица1[[партия]:[партия]]=$S$1),ROW(R3))),"") ->  | T6: =IFERROR(INDEX(Таблица1[16],_xlfn.AGGREGATE(15,6,(ROW(Таблица1[16])-ROW(Таблица1[[#Headers],[16]]))/(Таблица1[[месяц]:[месяц]]=$J$2)/(Таблица1[[год]:[год]]=$L$2)/(Таблица1[[изд]:[изд]]=$O$1)/(Таблица1[[партия]:[партия]]=$S$1),ROW(S3))),"") ->  | U6: =IFERROR(INDEX(Таблица1[17],_xlfn.AGGREGATE(15,6,(ROW(Таблица1[17])-ROW(Таблица1[[#Headers],[17]]))/(Таблица1[[месяц]:[месяц]]=$J$2)/(Таблица1[[год]:[год]]=$L$2)/(Таблица1[[изд]:[изд]]=$O$1)/(Таблица1[[партия]:[партия]]=$S$1),ROW(T3))),"") ->  | V6: =IFERROR(INDEX(Таблица1[18],_xlfn.AGGREGATE(15,6,(ROW(Таблица1[18])-ROW(Таблица1[[#Headers],[18]]))/(Таблица1[[месяц]:[месяц]]=$J$2)/(Таблица1[[год]:[год]]=$L$2)/(Таблица1[[изд]:[изд]]=$O$1)/(Таблица1[[партия]:[партия]]=$S$1),ROW(U3))),"") ->  | W6: =IFERROR(INDEX(Таблица1[19],_xlfn.AGGREGATE(15,6,(ROW(Таблица1[19])-ROW(Таблица1[[#Headers],[19]]))/(Таблица1[[месяц]:[месяц]]=$J$2)/(Таблица1[[год]:[год]]=$L$2)/(Таблица1[[изд]:[изд]]=$O$1)/(Таблица1[[партия]:[партия]]=$S$1),ROW(V3))),"") ->  | X6: =IFERROR(INDEX(Таблица1[20],_xlfn.AGGREGATE(15,6,(ROW(Таблица1[20])-ROW(Таблица1[[#Headers],[20]]))/(Таблица1[[месяц]:[месяц]]=$J$2)/(Таблица1[[год]:[год]]=$L$2)/(Таблица1[[изд]:[изд]]=$O$1)/(Таблица1[[партия]:[партия]]=$S$1),ROW(W3))),"") ->  | Y6: =IFERROR(INDEX(Таблица1[21],_xlfn.AGGREGATE(15,6,(ROW(Таблица1[21])-ROW(Таблица1[[#Headers],[21]]))/(Таблица1[[месяц]:[месяц]]=$J$2)/(Таблица1[[год]:[год]]=$L$2)/(Таблица1[[изд]:[изд]]=$O$1)/(Таблица1[[партия]:[партия]]=$S$1),ROW(X3))),"") ->  | Z6: =IFERROR(INDEX(Таблица1[22],_xlfn.AGGREGATE(15,6,(ROW(Таблица1[22])-ROW(Таблица1[[#Headers],[22]]))/(Таблица1[[месяц]:[месяц]]=$J$2)/(Таблица1[[год]:[год]]=$L$2)/(Таблица1[[изд]:[изд]]=$O$1)/(Таблица1[[партия]:[партия]]=$S$1),ROW(Y3))),"") ->  | AA6: =IFERROR(INDEX(Таблица1[23],_xlfn.AGGREGATE(15,6,(ROW(Таблица1[23])-ROW(Таблица1[[#Headers],[23]]))/(Таблица1[[месяц]:[месяц]]=$J$2)/(Таблица1[[год]:[год]]=$L$2)/(Таблица1[[изд]:[изд]]=$O$1)/(Таблица1[[партия]:[партия]]=$S$1),ROW(Z3))),"") ->  | AB6: =IFERROR(INDEX(Таблица1[24],_xlfn.AGGREGATE(15,6,(ROW(Таблица1[24])-ROW(Таблица1[[#Headers],[24]]))/(Таблица1[[месяц]:[месяц]]=$J$2)/(Таблица1[[год]:[год]]=$L$2)/(Таблица1[[изд]:[изд]]=$O$1)/(Таблица1[[партия]:[партия]]=$S$1),ROW(AA3))),"") ->  | AC6: =IFERROR(INDEX(Таблица1[25],_xlfn.AGGREGATE(15,6,(ROW(Таблица1[25])-ROW(Таблица1[[#Headers],[25]]))/(Таблица1[[месяц]:[месяц]]=$J$2)/(Таблица1[[год]:[год]]=$L$2)/(Таблица1[[изд]:[изд]]=$O$1)/(Таблица1[[партия]:[партия]]=$S$1),ROW(AB3))),"") ->  | AD6: =IFERROR(INDEX(Таблица1[26],_xlfn.AGGREGATE(15,6,(ROW(Таблица1[26])-ROW(Таблица1[[#Headers],[26]]))/(Таблица1[[месяц]:[месяц]]=$J$2)/(Таблица1[[год]:[год]]=$L$2)/(Таблица1[[изд]:[изд]]=$O$1)/(Таблица1[[партия]:[партия]]=$S$1),ROW(AC3))),"") ->  | AE6: =IFERROR(INDEX(Таблица1[27],_xlfn.AGGREGATE(15,6,(ROW(Таблица1[27])-ROW(Таблица1[[#Headers],[27]]))/(Таблица1[[месяц]:[месяц]]=$J$2)/(Таблица1[[год]:[год]]=$L$2)/(Таблица1[[изд]:[изд]]=$O$1)/(Таблица1[[партия]:[партия]]=$S$1),ROW(AD3))),"") ->  | AF6: =IFERROR(INDEX(Таблица1[28],_xlfn.AGGREGATE(15,6,(ROW(Таблица1[28])-ROW(Таблица1[[#Headers],[28]]))/(Таблица1[[месяц]:[месяц]]=$J$2)/(Таблица1[[год]:[год]]=$L$2)/(Таблица1[[изд]:[изд]]=$O$1)/(Таблица1[[партия]:[партия]]=$S$1),ROW(AE3))),"") ->  | AG6: =IFERROR(INDEX(Таблица1[29],_xlfn.AGGREGATE(15,6,(ROW(Таблица1[29])-ROW(Таблица1[[#Headers],[29]]))/(Таблица1[[месяц]:[месяц]]=$J$2)/(Таблица1[[год]:[год]]=$L$2)/(Таблица1[[изд]:[изд]]=$O$1)/(Таблица1[[партия]:[партия]]=$S$1),ROW(AF3))),"") ->  | AH6: =IFERROR(INDEX(Таблица1[30],_xlfn.AGGREGATE(15,6,(ROW(Таблица1[30])-ROW(Таблица1[[#Headers],[30]]))/(Таблица1[[месяц]:[месяц]]=$J$2)/(Таблица1[[год]:[год]]=$L$2)/(Таблица1[[изд]:[изд]]=$O$1)/(Таблица1[[партия]:[партия]]=$S$1),ROW(AG3))),"") ->  | AI6: =IFERROR(INDEX(Таблица1[31],_xlfn.AGGREGATE(15,6,(ROW(Таблица1[31])-ROW(Таблица1[[#Headers],[31]]))/(Таблица1[[месяц]:[месяц]]=$J$2)/(Таблица1[[год]:[год]]=$L$2)/(Таблица1[[изд]:[изд]]=$O$1)/(Таблица1[[партия]:[партия]]=$S$1),ROW(AH3))),"") ->  | AJ6: 0
B7: =IFERROR(INDEX(Таблица1[коэф],_xlfn.AGGREGATE(15,6,(ROW(Таблица1[коэф])-ROW(Таблица1[[#Headers],[коэф]]))/(Таблица1[[месяц]:[месяц]]=$J$2)/(Таблица1[[год]:[год]]=$L$2)/(Таблица1[[изд]:[изд]]=$O$1)/(Таблица1[[партия]:[партия]]=$S$1),ROW(A4))),"") ->  | C7: =IFERROR(INDEX(Таблица1[Ф. И. О.],_xlfn.AGGREGATE(15,6,(ROW(Таблица1[Ф. И. О.])-ROW(Таблица1[[#Headers],[Ф. И. О.]]))/(Таблица1[[месяц]:[месяц]]=$J$2)/(Таблица1[[год]:[год]]=$L$2)/(Таблица1[[изд]:[изд]]=$O$1)/(Таблица1[[партия]:[партия]]=$S$1),ROW(B4))),"") ->  | D7: =IFERROR(INDEX(Таблица1[р/р],_xlfn.AGGREGATE(15,6,(ROW(Таблица1[р/р])-ROW(Таблица1[[#Headers],[р/р]]))/(Таблица1[[месяц]:[месяц]]=$J$2)/(Таблица1[[год]:[год]]=$L$2)/(Таблица1[[изд]:[изд]]=$O$1)/(Таблица1[[партия]:[партия]]=$S$1),ROW(C4))),"") ->  | E7: =IFERROR(INDEX(Таблица1[1],_xlfn.AGGREGATE(15,6,(ROW(Таблица1[1])-ROW(Таблица1[[#Headers],[1]]))/(Таблица1[[месяц]:[месяц]]=$J$2)/(Таблица1[[год]:[год]]=$L$2)/(Таблица1[[изд]:[изд]]=$O$1)/(Таблица1[[партия]:[партия]]=$S$1),ROW(D4))),"") ->  | F7: =IFERROR(INDEX(Таблица1[2],_xlfn.AGGREGATE(15,6,(ROW(Таблица1[2])-ROW(Таблица1[[#Headers],[2]]))/(Таблица1[[месяц]:[месяц]]=$J$2)/(Таблица1[[год]:[год]]=$L$2)/(Таблица1[[изд]:[изд]]=$O$1)/(Таблица1[[партия]:[партия]]=$S$1),ROW(E4))),"") ->  | G7: =IFERROR(INDEX(Таблица1[3],_xlfn.AGGREGATE(15,6,(ROW(Таблица1[3])-ROW(Таблица1[[#Headers],[3]]))/(Таблица1[[месяц]:[месяц]]=$J$2)/(Таблица1[[год]:[год]]=$L$2)/(Таблица1[[изд]:[изд]]=$O$1)/(Таблица1[[партия]:[партия]]=$S$1),ROW(F4))),"") ->  | H7: =IFERROR(INDEX(Таблица1[4],_xlfn.AGGREGATE(15,6,(ROW(Таблица1[4])-ROW(Таблица1[[#Headers],[4]]))/(Таблица1[[месяц]:[месяц]]=$J$2)/(Таблица1[[год]:[год]]=$L$2)/(Таблица1[[изд]:[изд]]=$O$1)/(Таблица1[[партия]:[партия]]=$S$1),ROW(G4))),"") ->  | I7: =IFERROR(INDEX(Таблица1[5],_xlfn.AGGREGATE(15,6,(ROW(Таблица1[5])-ROW(Таблица1[[#Headers],[5]]))/(Таблица1[[месяц]:[месяц]]=$J$2)/(Таблица1[[год]:[год]]=$L$2)/(Таблица1[[изд]:[изд]]=$O$1)/(Таблица1[[партия]:[партия]]=$S$1),ROW(H4))),"") ->  | J7: =IFERROR(INDEX(Таблица1[6],_xlfn.AGGREGATE(15,6,(ROW(Таблица1[6])-ROW(Таблица1[[#Headers],[6]]))/(Таблица1[[месяц]:[месяц]]=$J$2)/(Таблица1[[год]:[год]]=$L$2)/(Таблица1[[изд]:[изд]]=$O$1)/(Таблица1[[партия]:[партия]]=$S$1),ROW(I4))),"") ->  | K7: =IFERROR(INDEX(Таблица1[7],_xlfn.AGGREGATE(15,6,(ROW(Таблица1[7])-ROW(Таблица1[[#Headers],[7]]))/(Таблица1[[месяц]:[месяц]]=$J$2)/(Таблица1[[год]:[год]]=$L$2)/(Таблица1[[изд]:[изд]]=$O$1)/(Таблица1[[партия]:[партия]]=$S$1),ROW(J4))),"") ->  | L7: =IFERROR(INDEX(Таблица1[8],_xlfn.AGGREGATE(15,6,(ROW(Таблица1[8])-ROW(Таблица1[[#Headers],[8]]))/(Таблица1[[месяц]:[месяц]]=$J$2)/(Таблица1[[год]:[год]]=$L$2)/(Таблица1[[изд]:[изд]]=$O$1)/(Таблица1[[партия]:[партия]]=$S$1),ROW(K4))),"") ->  | M7: =IFERROR(INDEX(Таблица1[9],_xlfn.AGGREGATE(15,6,(ROW(Таблица1[9])-ROW(Таблица1[[#Headers],[9]]))/(Таблица1[[месяц]:[месяц]]=$J$2)/(Таблица1[[год]:[год]]=$L$2)/(Таблица1[[изд]:[изд]]=$O$1)/(Таблица1[[партия]:[партия]]=$S$1),ROW(L4))),"") ->  | N7: =IFERROR(INDEX(Таблица1[10],_xlfn.AGGREGATE(15,6,(ROW(Таблица1[10])-ROW(Таблица1[[#Headers],[10]]))/(Таблица1[[месяц]:[месяц]]=$J$2)/(Таблица1[[год]:[год]]=$L$2)/(Таблица1[[изд]:[изд]]=$O$1)/(Таблица1[[партия]:[партия]]=$S$1),ROW(M4))),"") ->  | O7: =IFERROR(INDEX(Таблица1[11],_xlfn.AGGREGATE(15,6,(ROW(Таблица1[11])-ROW(Таблица1[[#Headers],[11]]))/(Таблица1[[месяц]:[месяц]]=$J$2)/(Таблица1[[год]:[год]]=$L$2)/(Таблица1[[изд]:[изд]]=$O$1)/(Таблица1[[партия]:[партия]]=$S$1),ROW(N4))),"") ->  | P7: =IFERROR(INDEX(Таблица1[12],_xlfn.AGGREGATE(15,6,(ROW(Таблица1[12])-ROW(Таблица1[[#Headers],[12]]))/(Таблица1[[месяц]:[месяц]]=$J$2)/(Таблица1[[год]:[год]]=$L$2)/(Таблица1[[изд]:[изд]]=$O$1)/(Таблица1[[партия]:[партия]]=$S$1),ROW(O4))),"") ->  | Q7: =IFERROR(INDEX(Таблица1[13],_xlfn.AGGREGATE(15,6,(ROW(Таблица1[13])-ROW(Таблица1[[#Headers],[13]]))/(Таблица1[[месяц]:[месяц]]=$J$2)/(Таблица1[[год]:[год]]=$L$2)/(Таблица1[[изд]:[изд]]=$O$1)/(Таблица1[[партия]:[партия]]=$S$1),ROW(P4))),"") ->  | R7: =IFERROR(INDEX(Таблица1[14],_xlfn.AGGREGATE(15,6,(ROW(Таблица1[14])-ROW(Таблица1[[#Headers],[14]]))/(Таблица1[[месяц]:[месяц]]=$J$2)/(Таблица1[[год]:[год]]=$L$2)/(Таблица1[[изд]:[изд]]=$O$1)/(Таблица1[[партия]:[партия]]=$S$1),ROW(Q4))),"") ->  | S7: =IFERROR(INDEX(Таблица1[15],_xlfn.AGGREGATE(15,6,(ROW(Таблица1[15])-ROW(Таблица1[[#Headers],[15]]))/(Таблица1[[месяц]:[месяц]]=$J$2)/(Таблица1[[год]:[год]]=$L$2)/(Таблица1[[изд]:[изд]]=$O$1)/(Таблица1[[партия]:[партия]]=$S$1),ROW(R4))),"") ->  | T7: =IFERROR(INDEX(Таблица1[16],_xlfn.AGGREGATE(15,6,(ROW(Таблица1[16])-ROW(Таблица1[[#Headers],[16]]))/(Таблица1[[месяц]:[месяц]]=$J$2)/(Таблица1[[год]:[год]]=$L$2)/(Таблица1[[изд]:[изд]]=$O$1)/(Таблица1[[партия]:[партия]]=$S$1),ROW(S4))),"") ->  | U7: =IFERROR(INDEX(Таблица1[17],_xlfn.AGGREGATE(15,6,(ROW(Таблица1[17])-ROW(Таблица1[[#Headers],[17]]))/(Таблица1[[месяц]:[месяц]]=$J$2)/(Таблица1[[год]:[год]]=$L$2)/(Таблица1[[изд]:[изд]]=$O$1)/(Таблица1[[партия]:[партия]]=$S$1),ROW(T4))),"") ->  | V7: =IFERROR(INDEX(Таблица1[18],_xlfn.AGGREGATE(15,6,(ROW(Таблица1[18])-ROW(Таблица1[[#Headers],[18]]))/(Таблица1[[месяц]:[месяц]]=$J$2)/(Таблица1[[год]:[год]]=$L$2)/(Таблица1[[изд]:[изд]]=$O$1)/(Таблица1[[партия]:[партия]]=$S$1),ROW(U4))),"") ->  | W7: =IFERROR(INDEX(Таблица1[19],_xlfn.AGGREGATE(15,6,(ROW(Таблица1[19])-ROW(Таблица1[[#Headers],[19]]))/(Таблица1[[месяц]:[месяц]]=$J$2)/(Таблица1[[год]:[год]]=$L$2)/(Таблица1[[изд]:[изд]]=$O$1)/(Таблица1[[партия]:[партия]]=$S$1),ROW(V4))),"") ->  | X7: =IFERROR(INDEX(Таблица1[20],_xlfn.AGGREGATE(15,6,(ROW(Таблица1[20])-ROW(Таблица1[[#Headers],[20]]))/(Таблица1[[месяц]:[месяц]]=$J$2)/(Таблица1[[год]:[год]]=$L$2)/(Таблица1[[изд]:[изд]]=$O$1)/(Таблица1[[партия]:[партия]]=$S$1),ROW(W4))),"") ->  | Y7: =IFERROR(INDEX(Таблица1[21],_xlfn.AGGREGATE(15,6,(ROW(Таблица1[21])-ROW(Таблица1[[#Headers],[21]]))/(Таблица1[[месяц]:[месяц]]=$J$2)/(Таблица1[[год]:[год]]=$L$2)/(Таблица1[[изд]:[изд]]=$O$1)/(Таблица1[[партия]:[партия]]=$S$1),ROW(X4))),"") ->  | Z7: =IFERROR(INDEX(Таблица1[22],_xlfn.AGGREGATE(15,6,(ROW(Таблица1[22])-ROW(Таблица1[[#Headers],[22]]))/(Таблица1[[месяц]:[месяц]]=$J$2)/(Таблица1[[год]:[год]]=$L$2)/(Таблица1[[изд]:[изд]]=$O$1)/(Таблица1[[партия]:[партия]]=$S$1),ROW(Y4))),"") ->  | AA7: =IFERROR(INDEX(Таблица1[23],_xlfn.AGGREGATE(15,6,(ROW(Таблица1[23])-ROW(Таблица1[[#Headers],[23]]))/(Таблица1[[месяц]:[месяц]]=$J$2)/(Таблица1[[год]:[год]]=$L$2)/(Таблица1[[изд]:[изд]]=$O$1)/(Таблица1[[партия]:[партия]]=$S$1),ROW(Z4))),"") ->  | AB7: =IFERROR(INDEX(Таблица1[24],_xlfn.AGGREGATE(15,6,(ROW(Таблица1[24])-ROW(Таблица1[[#Headers],[24]]))/(Таблица1[[месяц]:[месяц]]=$J$2)/(Таблица1[[год]:[год]]=$L$2)/(Таблица1[[изд]:[изд]]=$O$1)/(Таблица1[[партия]:[партия]]=$S$1),ROW(AA4))),"") ->  | AC7: =IFERROR(INDEX(Таблица1[25],_xlfn.AGGREGATE(15,6,(ROW(Таблица1[25])-ROW(Таблица1[[#Headers],[25]]))/(Таблица1[[месяц]:[месяц]]=$J$2)/(Таблица1[[год]:[год]]=$L$2)/(Таблица1[[изд]:[изд]]=$O$1)/(Таблица1[[партия]:[партия]]=$S$1),ROW(AB4))),"") ->  | AD7: =IFERROR(INDEX(Таблица1[26],_xlfn.AGGREGATE(15,6,(ROW(Таблица1[26])-ROW(Таблица1[[#Headers],[26]]))/(Таблица1[[месяц]:[месяц]]=$J$2)/(Таблица1[[год]:[год]]=$L$2)/(Таблица1[[изд]:[изд]]=$O$1)/(Таблица1[[партия]:[партия]]=$S$1),ROW(AC4))),"") ->  | AE7: =IFERROR(INDEX(Таблица1[27],_xlfn.AGGREGATE(15,6,(ROW(Таблица1[27])-ROW(Таблица1[[#Headers],[27]]))/(Таблица1[[месяц]:[месяц]]=$J$2)/(Таблица1[[год]:[год]]=$L$2)/(Таблица1[[изд]:[изд]]=$O$1)/(Таблица1[[партия]:[партия]]=$S$1),ROW(AD4))),"") ->  | AF7: =IFERROR(INDEX(Таблица1[28],_xlfn.AGGREGATE(15,6,(ROW(Таблица1[28])-ROW(Таблица1[[#Headers],[28]]))/(Таблица1[[месяц]:[месяц]]=$J$2)/(Таблица1[[год]:[год]]=$L$2)/(Таблица1[[изд]:[изд]]=$O$1)/(Таблица1[[партия]:[партия]]=$S$1),ROW(AE4))),"") ->  | AG7: =IFERROR(INDEX(Таблица1[29],_xlfn.AGGREGATE(15,6,(ROW(Таблица1[29])-ROW(Таблица1[[#Headers],[29]]))/(Таблица1[[месяц]:[месяц]]=$J$2)/(Таблица1[[год]:[год]]=$L$2)/(Таблица1[[изд]:[изд]]=$O$1)/(Таблица1[[партия]:[партия]]=$S$1),ROW(AF4))),"") ->  | AH7: =IFERROR(INDEX(Таблица1[30],_xlfn.AGGREGATE(15,6,(ROW(Таблица1[30])-ROW(Таблица1[[#Headers],[30]]))/(Таблица1[[месяц]:[месяц]]=$J$2)/(Таблица1[[год]:[год]]=$L$2)/(Таблица1[[изд]:[изд]]=$O$1)/(Таблица1[[партия]:[партия]]=$S$1),ROW(AG4))),"") ->  | AI7: =IFERROR(INDEX(Таблица1[31],_xlfn.AGGREGATE(15,6,(ROW(Таблица1[31])-ROW(Таблица1[[#Headers],[31]]))/(Таблица1[[месяц]:[месяц]]=$J$2)/(Таблица1[[год]:[год]]=$L$2)/(Таблица1[[изд]:[изд]]=$O$1)/(Таблица1[[партия]:[партия]]=$S$1),ROW(AH4))),"") ->  | AJ7: 0
B8: =IFERROR(INDEX(Таблица1[коэф],_xlfn.AGGREGATE(15,6,(ROW(Таблица1[коэф])-ROW(Таблица1[[#Headers],[коэф]]))/(Таблица1[[месяц]:[месяц]]=$J$2)/(Таблица1[[год]:[год]]=$L$2)/(Таблица1[[изд]:[изд]]=$O$1)/(Таблица1[[партия]:[партия]]=$S$1),ROW(A5))),"") ->  | C8: =IFERROR(INDEX(Таблица1[Ф. И. О.],_xlfn.AGGREGATE(15,6,(ROW(Таблица1[Ф. И. О.])-ROW(Таблица1[[#Headers],[Ф. И. О.]]))/(Таблица1[[месяц]:[месяц]]=$J$2)/(Таблица1[[год]:[год]]=$L$2)/(Таблица1[[изд]:[изд]]=$O$1)/(Таблица1[[партия]:[партия]]=$S$1),ROW(B5))),"") ->  | D8: =IFERROR(INDEX(Таблица1[р/р],_xlfn.AGGREGATE(15,6,(ROW(Таблица1[р/р])-ROW(Таблица1[[#Headers],[р/р]]))/(Таблица1[[месяц]:[месяц]]=$J$2)/(Таблица1[[год]:[год]]=$L$2)/(Таблица1[[изд]:[изд]]=$O$1)/(Таблица1[[партия]:[партия]]=$S$1),ROW(C5))),"") ->  | E8: =IFERROR(INDEX(Таблица1[1],_xlfn.AGGREGATE(15,6,(ROW(Таблица1[1])-ROW(Таблица1[[#Headers],[1]]))/(Таблица1[[месяц]:[месяц]]=$J$2)/(Таблица1[[год]:[год]]=$L$2)/(Таблица1[[изд]:[изд]]=$O$1)/(Таблица1[[партия]:[партия]]=$S$1),ROW(D5))),"") ->  | F8: =IFERROR(INDEX(Таблица1[2],_xlfn.AGGREGATE(15,6,(ROW(Таблица1[2])-ROW(Таблица1[[#Headers],[2]]))/(Таблица1[[месяц]:[месяц]]=$J$2)/(Таблица1[[год]:[год]]=$L$2)/(Таблица1[[изд]:[изд]]=$O$1)/(Таблица1[[партия]:[партия]]=$S$1),ROW(E5))),"") ->  | G8: =IFERROR(INDEX(Таблица1[3],_xlfn.AGGREGATE(15,6,(ROW(Таблица1[3])-ROW(Таблица1[[#Headers],[3]]))/(Таблица1[[месяц]:[месяц]]=$J$2)/(Таблица1[[год]:[год]]=$L$2)/(Таблица1[[изд]:[изд]]=$O$1)/(Таблица1[[партия]:[партия]]=$S$1),ROW(F5))),"") ->  | H8: =IFERROR(INDEX(Таблица1[4],_xlfn.AGGREGATE(15,6,(ROW(Таблица1[4])-ROW(Таблица1[[#Headers],[4]]))/(Таблица1[[месяц]:[месяц]]=$J$2)/(Таблица1[[год]:[год]]=$L$2)/(Таблица1[[изд]:[изд]]=$O$1)/(Таблица1[[партия]:[партия]]=$S$1),ROW(G5))),"") ->  | I8: =IFERROR(INDEX(Таблица1[5],_xlfn.AGGREGATE(15,6,(ROW(Таблица1[5])-ROW(Таблица1[[#Headers],[5]]))/(Таблица1[[месяц]:[месяц]]=$J$2)/(Таблица1[[год]:[год]]=$L$2)/(Таблица1[[изд]:[изд]]=$O$1)/(Таблица1[[партия]:[партия]]=$S$1),ROW(H5))),"") ->  | J8: =IFERROR(INDEX(Таблица1[6],_xlfn.AGGREGATE(15,6,(ROW(Таблица1[6])-ROW(Таблица1[[#Headers],[6]]))/(Таблица1[[месяц]:[месяц]]=$J$2)/(Таблица1[[год]:[год]]=$L$2)/(Таблица1[[изд]:[изд]]=$O$1)/(Таблица1[[партия]:[партия]]=$S$1),ROW(I5))),"") ->  | K8: =IFERROR(INDEX(Таблица1[7],_xlfn.AGGREGATE(15,6,(ROW(Таблица1[7])-ROW(Таблица1[[#Headers],[7]]))/(Таблица1[[месяц]:[месяц]]=$J$2)/(Таблица1[[год]:[год]]=$L$2)/(Таблица1[[изд]:[изд]]=$O$1)/(Таблица1[[партия]:[партия]]=$S$1),ROW(J5))),"") ->  | L8: =IFERROR(INDEX(Таблица1[8],_xlfn.AGGREGATE(15,6,(ROW(Таблица1[8])-ROW(Таблица1[[#Headers],[8]]))/(Таблица1[[месяц]:[месяц]]=$J$2)/(Таблица1[[год]:[год]]=$L$2)/(Таблица1[[изд]:[изд]]=$O$1)/(Таблица1[[партия]:[партия]]=$S$1),ROW(K5))),"") ->  | M8: =IFERROR(INDEX(Таблица1[9],_xlfn.AGGREGATE(15,6,(ROW(Таблица1[9])-ROW(Таблица1[[#Headers],[9]]))/(Таблица1[[месяц]:[месяц]]=$J$2)/(Таблица1[[год]:[год]]=$L$2)/(Таблица1[[изд]:[изд]]=$O$1)/(Таблица1[[партия]:[партия]]=$S$1),ROW(L5))),"") ->  | N8: =IFERROR(INDEX(Таблица1[10],_xlfn.AGGREGATE(15,6,(ROW(Таблица1[10])-ROW(Таблица1[[#Headers],[10]]))/(Таблица1[[месяц]:[месяц]]=$J$2)/(Таблица1[[год]:[год]]=$L$2)/(Таблица1[[изд]:[изд]]=$O$1)/(Таблица1[[партия]:[партия]]=$S$1),ROW(M5))),"") ->  | O8: =IFERROR(INDEX(Таблица1[11],_xlfn.AGGREGATE(15,6,(ROW(Таблица1[11])-ROW(Таблица1[[#Headers],[11]]))/(Таблица1[[месяц]:[месяц]]=$J$2)/(Таблица1[[год]:[год]]=$L$2)/(Таблица1[[изд]:[изд]]=$O$1)/(Таблица1[[партия]:[партия]]=$S$1),ROW(N5))),"") ->  | P8: =IFERROR(INDEX(Таблица1[12],_xlfn.AGGREGATE(15,6,(ROW(Таблица1[12])-ROW(Таблица1[[#Headers],[12]]))/(Таблица1[[месяц]:[месяц]]=$J$2)/(Таблица1[[год]:[год]]=$L$2)/(Таблица1[[изд]:[изд]]=$O$1)/(Таблица1[[партия]:[партия]]=$S$1),ROW(O5))),"") ->  | Q8: =IFERROR(INDEX(Таблица1[13],_xlfn.AGGREGATE(15,6,(ROW(Таблица1[13])-ROW(Таблица1[[#Headers],[13]]))/(Таблица1[[месяц]:[месяц]]=$J$2)/(Таблица1[[год]:[год]]=$L$2)/(Таблица1[[изд]:[изд]]=$O$1)/(Таблица1[[партия]:[партия]]=$S$1),ROW(P5))),"") ->  | R8: =IFERROR(INDEX(Таблица1[14],_xlfn.AGGREGATE(15,6,(ROW(Таблица1[14])-ROW(Таблица1[[#Headers],[14]]))/(Таблица1[[месяц]:[месяц]]=$J$2)/(Таблица1[[год]:[год]]=$L$2)/(Таблица1[[изд]:[изд]]=$O$1)/(Таблица1[[партия]:[партия]]=$S$1),ROW(Q5))),"") ->  | S8: =IFERROR(INDEX(Таблица1[15],_xlfn.AGGREGATE(15,6,(ROW(Таблица1[15])-ROW(Таблица1[[#Headers],[15]]))/(Таблица1[[месяц]:[месяц]]=$J$2)/(Таблица1[[год]:[год]]=$L$2)/(Таблица1[[изд]:[изд]]=$O$1)/(Таблица1[[партия]:[партия]]=$S$1),ROW(R5))),"") ->  | T8: =IFERROR(INDEX(Таблица1[16],_xlfn.AGGREGATE(15,6,(ROW(Таблица1[16])-ROW(Таблица1[[#Headers],[16]]))/(Таблица1[[месяц]:[месяц]]=$J$2)/(Таблица1[[год]:[год]]=$L$2)/(Таблица1[[изд]:[изд]]=$O$1)/(Таблица1[[партия]:[партия]]=$S$1),ROW(S5))),"") ->  | U8: =IFERROR(INDEX(Таблица1[17],_xlfn.AGGREGATE(15,6,(ROW(Таблица1[17])-ROW(Таблица1[[#Headers],[17]]))/(Таблица1[[месяц]:[месяц]]=$J$2)/(Таблица1[[год]:[год]]=$L$2)/(Таблица1[[изд]:[изд]]=$O$1)/(Таблица1[[партия]:[партия]]=$S$1),ROW(T5))),"") ->  | V8: =IFERROR(INDEX(Таблица1[18],_xlfn.AGGREGATE(15,6,(ROW(Таблица1[18])-ROW(Таблица1[[#Headers],[18]]))/(Таблица1[[месяц]:[месяц]]=$J$2)/(Таблица1[[год]:[год]]=$L$2)/(Таблица1[[изд]:[изд]]=$O$1)/(Таблица1[[партия]:[партия]]=$S$1),ROW(U5))),"") ->  | W8: =IFERROR(INDEX(Таблица1[19],_xlfn.AGGREGATE(15,6,(ROW(Таблица1[19])-ROW(Таблица1[[#Headers],[19]]))/(Таблица1[[месяц]:[месяц]]=$J$2)/(Таблица1[[год]:[год]]=$L$2)/(Таблица1[[изд]:[изд]]=$O$1)/(Таблица1[[партия]:[партия]]=$S$1),ROW(V5))),"") ->  | X8: =IFERROR(INDEX(Таблица1[20],_xlfn.AGGREGATE(15,6,(ROW(Таблица1[20])-ROW(Таблица1[[#Headers],[20]]))/(Таблица1[[месяц]:[месяц]]=$J$2)/(Таблица1[[год]:[год]]=$L$2)/(Таблица1[[изд]:[изд]]=$O$1)/(Таблица1[[партия]:[партия]]=$S$1),ROW(W5))),"") ->  | Y8: =IFERROR(INDEX(Таблица1[21],_xlfn.AGGREGATE(15,6,(ROW(Таблица1[21])-ROW(Таблица1[[#Headers],[21]]))/(Таблица1[[месяц]:[месяц]]=$J$2)/(Таблица1[[год]:[год]]=$L$2)/(Таблица1[[изд]:[изд]]=$O$1)/(Таблица1[[партия]:[партия]]=$S$1),ROW(X5))),"") ->  | Z8: =IFERROR(INDEX(Таблица1[22],_xlfn.AGGREGATE(15,6,(ROW(Таблица1[22])-ROW(Таблица1[[#Headers],[22]]))/(Таблица1[[месяц]:[месяц]]=$J$2)/(Таблица1[[год]:[год]]=$L$2)/(Таблица1[[изд]:[изд]]=$O$1)/(Таблица1[[партия]:[партия]]=$S$1),ROW(Y5))),"") ->  | AA8: =IFERROR(INDEX(Таблица1[23],_xlfn.AGGREGATE(15,6,(ROW(Таблица1[23])-ROW(Таблица1[[#Headers],[23]]))/(Таблица1[[месяц]:[месяц]]=$J$2)/(Таблица1[[год]:[год]]=$L$2)/(Таблица1[[изд]:[изд]]=$O$1)/(Таблица1[[партия]:[партия]]=$S$1),ROW(Z5))),"") ->  | AB8: =IFERROR(INDEX(Таблица1[24],_xlfn.AGGREGATE(15,6,(ROW(Таблица1[24])-ROW(Таблица1[[#Headers],[24]]))/(Таблица1[[месяц]:[месяц]]=$J$2)/(Таблица1[[год]:[год]]=$L$2)/(Таблица1[[изд]:[изд]]=$O$1)/(Таблица1[[партия]:[партия]]=$S$1),ROW(AA5))),"") ->  | AC8: =IFERROR(INDEX(Таблица1[25],_xlfn.AGGREGATE(15,6,(ROW(Таблица1[25])-ROW(Таблица1[[#Headers],[25]]))/(Таблица1[[месяц]:[месяц]]=$J$2)/(Таблица1[[год]:[год]]=$L$2)/(Таблица1[[изд]:[изд]]=$O$1)/(Таблица1[[партия]:[партия]]=$S$1),ROW(AB5))),"") ->  | AD8: =IFERROR(INDEX(Таблица1[26],_xlfn.AGGREGATE(15,6,(ROW(Таблица1[26])-ROW(Таблица1[[#Headers],[26]]))/(Таблица1[[месяц]:[месяц]]=$J$2)/(Таблица1[[год]:[год]]=$L$2)/(Таблица1[[изд]:[изд]]=$O$1)/(Таблица1[[партия]:[партия]]=$S$1),ROW(AC5))),"") ->  | AE8: =IFERROR(INDEX(Таблица1[27],_xlfn.AGGREGATE(15,6,(ROW(Таблица1[27])-ROW(Таблица1[[#Headers],[27]]))/(Таблица1[[месяц]:[месяц]]=$J$2)/(Таблица1[[год]:[год]]=$L$2)/(Таблица1[[изд]:[изд]]=$O$1)/(Таблица1[[партия]:[партия]]=$S$1),ROW(AD5))),"") ->  | AF8: =IFERROR(INDEX(Таблица1[28],_xlfn.AGGREGATE(15,6,(ROW(Таблица1[28])-ROW(Таблица1[[#Headers],[28]]))/(Таблица1[[месяц]:[месяц]]=$J$2)/(Таблица1[[год]:[год]]=$L$2)/(Таблица1[[изд]:[изд]]=$O$1)/(Таблица1[[партия]:[партия]]=$S$1),ROW(AE5))),"") ->  | AG8: =IFERROR(INDEX(Таблица1[29],_xlfn.AGGREGATE(15,6,(ROW(Таблица1[29])-ROW(Таблица1[[#Headers],[29]]))/(Таблица1[[месяц]:[месяц]]=$J$2)/(Таблица1[[год]:[год]]=$L$2)/(Таблица1[[изд]:[изд]]=$O$1)/(Таблица1[[партия]:[партия]]=$S$1),ROW(AF5))),"") ->  | AH8: =IFERROR(INDEX(Таблица1[30],_xlfn.AGGREGATE(15,6,(ROW(Таблица1[30])-ROW(Таблица1[[#Headers],[30]]))/(Таблица1[[месяц]:[месяц]]=$J$2)/(Таблица1[[год]:[год]]=$L$2)/(Таблица1[[изд]:[изд]]=$O$1)/(Таблица1[[партия]:[партия]]=$S$1),ROW(AG5))),"") ->  | AI8: =IFERROR(INDEX(Таблица1[31],_xlfn.AGGREGATE(15,6,(ROW(Таблица1[31])-ROW(Таблица1[[#Headers],[31]]))/(Таблица1[[месяц]:[месяц]]=$J$2)/(Таблица1[[год]:[год]]=$L$2)/(Таблица1[[изд]:[изд]]=$O$1)/(Таблица1[[партия]:[партия]]=$S$1),ROW(AH5))),"") ->  | AJ8: 0
B9: =IFERROR(INDEX(Таблица1[коэф],_xlfn.AGGREGATE(15,6,(ROW(Таблица1[коэф])-ROW(Таблица1[[#Headers],[коэф]]))/(Таблица1[[месяц]:[месяц]]=$J$2)/(Таблица1[[год]:[год]]=$L$2)/(Таблица1[[изд]:[изд]]=$O$1)/(Таблица1[[партия]:[партия]]=$S$1),ROW(A6))),"") ->  | C9: =IFERROR(INDEX(Таблица1[Ф. И. О.],_xlfn.AGGREGATE(15,6,(ROW(Таблица1[Ф. И. О.])-ROW(Таблица1[[#Headers],[Ф. И. О.]]))/(Таблица1[[месяц]:[месяц]]=$J$2)/(Таблица1[[год]:[год]]=$L$2)/(Таблица1[[изд]:[изд]]=$O$1)/(Таблица1[[партия]:[партия]]=$S$1),ROW(B6))),"") ->  | D9: =IFERROR(INDEX(Таблица1[р/р],_xlfn.AGGREGATE(15,6,(ROW(Таблица1[р/р])-ROW(Таблица1[[#Headers],[р/р]]))/(Таблица1[[месяц]:[месяц]]=$J$2)/(Таблица1[[год]:[год]]=$L$2)/(Таблица1[[изд]:[изд]]=$O$1)/(Таблица1[[партия]:[партия]]=$S$1),ROW(C6))),"") ->  | E9: =IFERROR(INDEX(Таблица1[1],_xlfn.AGGREGATE(15,6,(ROW(Таблица1[1])-ROW(Таблица1[[#Headers],[1]]))/(Таблица1[[месяц]:[месяц]]=$J$2)/(Таблица1[[год]:[год]]=$L$2)/(Таблица1[[изд]:[изд]]=$O$1)/(Таблица1[[партия]:[партия]]=$S$1),ROW(D6))),"") ->  | F9: =IFERROR(INDEX(Таблица1[2],_xlfn.AGGREGATE(15,6,(ROW(Таблица1[2])-ROW(Таблица1[[#Headers],[2]]))/(Таблица1[[месяц]:[месяц]]=$J$2)/(Таблица1[[год]:[год]]=$L$2)/(Таблица1[[изд]:[изд]]=$O$1)/(Таблица1[[партия]:[партия]]=$S$1),ROW(E6))),"") ->  | G9: =IFERROR(INDEX(Таблица1[3],_xlfn.AGGREGATE(15,6,(ROW(Таблица1[3])-ROW(Таблица1[[#Headers],[3]]))/(Таблица1[[месяц]:[месяц]]=$J$2)/(Таблица1[[год]:[год]]=$L$2)/(Таблица1[[изд]:[изд]]=$O$1)/(Таблица1[[партия]:[партия]]=$S$1),ROW(F6))),"") ->  | H9: =IFERROR(INDEX(Таблица1[4],_xlfn.AGGREGATE(15,6,(ROW(Таблица1[4])-ROW(Таблица1[[#Headers],[4]]))/(Таблица1[[месяц]:[месяц]]=$J$2)/(Таблица1[[год]:[год]]=$L$2)/(Таблица1[[изд]:[изд]]=$O$1)/(Таблица1[[партия]:[партия]]=$S$1),ROW(G6))),"") ->  | I9: =IFERROR(INDEX(Таблица1[5],_xlfn.AGGREGATE(15,6,(ROW(Таблица1[5])-ROW(Таблица1[[#Headers],[5]]))/(Таблица1[[месяц]:[месяц]]=$J$2)/(Таблица1[[год]:[год]]=$L$2)/(Таблица1[[изд]:[изд]]=$O$1)/(Таблица1[[партия]:[партия]]=$S$1),ROW(H6))),"") ->  | J9: =IFERROR(INDEX(Таблица1[6],_xlfn.AGGREGATE(15,6,(ROW(Таблица1[6])-ROW(Таблица1[[#Headers],[6]]))/(Таблица1[[месяц]:[месяц]]=$J$2)/(Таблица1[[год]:[год]]=$L$2)/(Таблица1[[изд]:[изд]]=$O$1)/(Таблица1[[партия]:[партия]]=$S$1),ROW(I6))),"") ->  | K9: =IFERROR(INDEX(Таблица1[7],_xlfn.AGGREGATE(15,6,(ROW(Таблица1[7])-ROW(Таблица1[[#Headers],[7]]))/(Таблица1[[месяц]:[месяц]]=$J$2)/(Таблица1[[год]:[год]]=$L$2)/(Таблица1[[изд]:[изд]]=$O$1)/(Таблица1[[партия]:[партия]]=$S$1),ROW(J6))),"") ->  | L9: =IFERROR(INDEX(Таблица1[8],_xlfn.AGGREGATE(15,6,(ROW(Таблица1[8])-ROW(Таблица1[[#Headers],[8]]))/(Таблица1[[месяц]:[месяц]]=$J$2)/(Таблица1[[год]:[год]]=$L$2)/(Таблица1[[изд]:[изд]]=$O$1)/(Таблица1[[партия]:[партия]]=$S$1),ROW(K6))),"") ->  | M9: =IFERROR(INDEX(Таблица1[9],_xlfn.AGGREGATE(15,6,(ROW(Таблица1[9])-ROW(Таблица1[[#Headers],[9]]))/(Таблица1[[месяц]:[месяц]]=$J$2)/(Таблица1[[год]:[год]]=$L$2)/(Таблица1[[изд]:[изд]]=$O$1)/(Таблица1[[партия]:[партия]]=$S$1),ROW(L6))),"") ->  | N9: =IFERROR(INDEX(Таблица1[10],_xlfn.AGGREGATE(15,6,(ROW(Таблица1[10])-ROW(Таблица1[[#Headers],[10]]))/(Таблица1[[месяц]:[месяц]]=$J$2)/(Таблица1[[год]:[год]]=$L$2)/(Таблица1[[изд]:[изд]]=$O$1)/(Таблица1[[партия]:[партия]]=$S$1),ROW(M6))),"") ->  | O9: =IFERROR(INDEX(Таблица1[11],_xlfn.AGGREGATE(15,6,(ROW(Таблица1[11])-ROW(Таблица1[[#Headers],[11]]))/(Таблица1[[месяц]:[месяц]]=$J$2)/(Таблица1[[год]:[год]]=$L$2)/(Таблица1[[изд]:[изд]]=$O$1)/(Таблица1[[партия]:[партия]]=$S$1),ROW(N6))),"") ->  | P9: =IFERROR(INDEX(Таблица1[12],_xlfn.AGGREGATE(15,6,(ROW(Таблица1[12])-ROW(Таблица1[[#Headers],[12]]))/(Таблица1[[месяц]:[месяц]]=$J$2)/(Таблица1[[год]:[год]]=$L$2)/(Таблица1[[изд]:[изд]]=$O$1)/(Таблица1[[партия]:[партия]]=$S$1),ROW(O6))),"") ->  | Q9: =IFERROR(INDEX(Таблица1[13],_xlfn.AGGREGATE(15,6,(ROW(Таблица1[13])-ROW(Таблица1[[#Headers],[13]]))/(Таблица1[[месяц]:[месяц]]=$J$2)/(Таблица1[[год]:[год]]=$L$2)/(Таблица1[[изд]:[изд]]=$O$1)/(Таблица1[[партия]:[партия]]=$S$1),ROW(P6))),"") ->  | R9: =IFERROR(INDEX(Таблица1[14],_xlfn.AGGREGATE(15,6,(ROW(Таблица1[14])-ROW(Таблица1[[#Headers],[14]]))/(Таблица1[[месяц]:[месяц]]=$J$2)/(Таблица1[[год]:[год]]=$L$2)/(Таблица1[[изд]:[изд]]=$O$1)/(Таблица1[[партия]:[партия]]=$S$1),ROW(Q6))),"") ->  | S9: =IFERROR(INDEX(Таблица1[15],_xlfn.AGGREGATE(15,6,(ROW(Таблица1[15])-ROW(Таблица1[[#Headers],[15]]))/(Таблица1[[месяц]:[месяц]]=$J$2)/(Таблица1[[год]:[год]]=$L$2)/(Таблица1[[изд]:[изд]]=$O$1)/(Таблица1[[партия]:[партия]]=$S$1),ROW(R6))),"") ->  | T9: =IFERROR(INDEX(Таблица1[16],_xlfn.AGGREGATE(15,6,(ROW(Таблица1[16])-ROW(Таблица1[[#Headers],[16]]))/(Таблица1[[месяц]:[месяц]]=$J$2)/(Таблица1[[год]:[год]]=$L$2)/(Таблица1[[изд]:[изд]]=$O$1)/(Таблица1[[партия]:[партия]]=$S$1),ROW(S6))),"") ->  | U9: =IFERROR(INDEX(Таблица1[17],_xlfn.AGGREGATE(15,6,(ROW(Таблица1[17])-ROW(Таблица1[[#Headers],[17]]))/(Таблица1[[месяц]:[месяц]]=$J$2)/(Таблица1[[год]:[год]]=$L$2)/(Таблица1[[изд]:[изд]]=$O$1)/(Таблица1[[партия]:[партия]]=$S$1),ROW(T6))),"") ->  | V9: =IFERROR(INDEX(Таблица1[18],_xlfn.AGGREGATE(15,6,(ROW(Таблица1[18])-ROW(Таблица1[[#Headers],[18]]))/(Таблица1[[месяц]:[месяц]]=$J$2)/(Таблица1[[год]:[год]]=$L$2)/(Таблица1[[изд]:[изд]]=$O$1)/(Таблица1[[партия]:[партия]]=$S$1),ROW(U6))),"") ->  | W9: =IFERROR(INDEX(Таблица1[19],_xlfn.AGGREGATE(15,6,(ROW(Таблица1[19])-ROW(Таблица1[[#Headers],[19]]))/(Таблица1[[месяц]:[месяц]]=$J$2)/(Таблица1[[год]:[год]]=$L$2)/(Таблица1[[изд]:[изд]]=$O$1)/(Таблица1[[партия]:[партия]]=$S$1),ROW(V6))),"") ->  | X9: =IFERROR(INDEX(Таблица1[20],_xlfn.AGGREGATE(15,6,(ROW(Таблица1[20])-ROW(Таблица1[[#Headers],[20]]))/(Таблица1[[месяц]:[месяц]]=$J$2)/(Таблица1[[год]:[год]]=$L$2)/(Таблица1[[изд]:[изд]]=$O$1)/(Таблица1[[партия]:[партия]]=$S$1),ROW(W6))),"") ->  | Y9: =IFERROR(INDEX(Таблица1[21],_xlfn.AGGREGATE(15,6,(ROW(Таблица1[21])-ROW(Таблица1[[#Headers],[21]]))/(Таблица1[[месяц]:[месяц]]=$J$2)/(Таблица1[[год]:[год]]=$L$2)/(Таблица1[[изд]:[изд]]=$O$1)/(Таблица1[[партия]:[партия]]=$S$1),ROW(X6))),"") ->  | Z9: =IFERROR(INDEX(Таблица1[22],_xlfn.AGGREGATE(15,6,(ROW(Таблица1[22])-ROW(Таблица1[[#Headers],[22]]))/(Таблица1[[месяц]:[месяц]]=$J$2)/(Таблица1[[год]:[год]]=$L$2)/(Таблица1[[изд]:[изд]]=$O$1)/(Таблица1[[партия]:[партия]]=$S$1),ROW(Y6))),"") ->  | AA9: =IFERROR(INDEX(Таблица1[23],_xlfn.AGGREGATE(15,6,(ROW(Таблица1[23])-ROW(Таблица1[[#Headers],[23]]))/(Таблица1[[месяц]:[месяц]]=$J$2)/(Таблица1[[год]:[год]]=$L$2)/(Таблица1[[изд]:[изд]]=$O$1)/(Таблица1[[партия]:[партия]]=$S$1),ROW(Z6))),"") ->  | AB9: =IFERROR(INDEX(Таблица1[24],_xlfn.AGGREGATE(15,6,(ROW(Таблица1[24])-ROW(Таблица1[[#Headers],[24]]))/(Таблица1[[месяц]:[месяц]]=$J$2)/(Таблица1[[год]:[год]]=$L$2)/(Таблица1[[изд]:[изд]]=$O$1)/(Таблица1[[партия]:[партия]]=$S$1),ROW(AA6))),"") ->  | AC9: =IFERROR(INDEX(Таблица1[25],_xlfn.AGGREGATE(15,6,(ROW(Таблица1[25])-ROW(Таблица1[[#Headers],[25]]))/(Таблица1[[месяц]:[месяц]]=$J$2)/(Таблица1[[год]:[год]]=$L$2)/(Таблица1[[изд]:[изд]]=$O$1)/(Таблица1[[партия]:[партия]]=$S$1),ROW(AB6))),"") ->  | AD9: =IFERROR(INDEX(Таблица1[26],_xlfn.AGGREGATE(15,6,(ROW(Таблица1[26])-ROW(Таблица1[[#Headers],[26]]))/(Таблица1[[месяц]:[месяц]]=$J$2)/(Таблица1[[год]:[год]]=$L$2)/(Таблица1[[изд]:[изд]]=$O$1)/(Таблица1[[партия]:[партия]]=$S$1),ROW(AC6))),"") ->  | AE9: =IFERROR(INDEX(Таблица1[27],_xlfn.AGGREGATE(15,6,(ROW(Таблица1[27])-ROW(Таблица1[[#Headers],[27]]))/(Таблица1[[месяц]:[месяц]]=$J$2)/(Таблица1[[год]:[год]]=$L$2)/(Таблица1[[изд]:[изд]]=$O$1)/(Таблица1[[партия]:[партия]]=$S$1),ROW(AD6))),"") ->  | AF9: =IFERROR(INDEX(Таблица1[28],_xlfn.AGGREGATE(15,6,(ROW(Таблица1[28])-ROW(Таблица1[[#Headers],[28]]))/(Таблица1[[месяц]:[месяц]]=$J$2)/(Таблица1[[год]:[год]]=$L$2)/(Таблица1[[изд]:[изд]]=$O$1)/(Таблица1[[партия]:[партия]]=$S$1),ROW(AE6))),"") ->  | AG9: =IFERROR(INDEX(Таблица1[29],_xlfn.AGGREGATE(15,6,(ROW(Таблица1[29])-ROW(Таблица1[[#Headers],[29]]))/(Таблица1[[месяц]:[месяц]]=$J$2)/(Таблица1[[год]:[год]]=$L$2)/(Таблица1[[изд]:[изд]]=$O$1)/(Таблица1[[партия]:[партия]]=$S$1),ROW(AF6))),"") ->  | AH9: =IFERROR(INDEX(Таблица1[30],_xlfn.AGGREGATE(15,6,(ROW(Таблица1[30])-ROW(Таблица1[[#Headers],[30]]))/(Таблица1[[месяц]:[месяц]]=$J$2)/(Таблица1[[год]:[год]]=$L$2)/(Таблица1[[изд]:[изд]]=$O$1)/(Таблица1[[партия]:[партия]]=$S$1),ROW(AG6))),"") ->  | AI9: =IFERROR(INDEX(Таблица1[31],_xlfn.AGGREGATE(15,6,(ROW(Таблица1[31])-ROW(Таблица1[[#Headers],[31]]))/(Таблица1[[месяц]:[месяц]]=$J$2)/(Таблица1[[год]:[год]]=$L$2)/(Таблица1[[изд]:[изд]]=$O$1)/(Таблица1[[партия]:[партия]]=$S$1),ROW(AH6))),"") ->  | AJ9: 0
B10: =IFERROR(INDEX(Таблица1[коэф],_xlfn.AGGREGATE(15,6,(ROW(Таблица1[коэф])-ROW(Таблица1[[#Headers],[коэф]]))/(Таблица1[[месяц]:[месяц]]=$J$2)/(Таблица1[[год]:[год]]=$L$2)/(Таблица1[[изд]:[изд]]=$O$1)/(Таблица1[[партия]:[партия]]=$S$1),ROW(A7))),"") ->  | C10: =IFERROR(INDEX(Таблица1[Ф. И. О.],_xlfn.AGGREGATE(15,6,(ROW(Таблица1[Ф. И. О.])-ROW(Таблица1[[#Headers],[Ф. И. О.]]))/(Таблица1[[месяц]:[месяц]]=$J$2)/(Таблица1[[год]:[год]]=$L$2)/(Таблица1[[изд]:[изд]]=$O$1)/(Таблица1[[партия]:[партия]]=$S$1),ROW(B7))),"") ->  | D10: =IFERROR(INDEX(Таблица1[р/р],_xlfn.AGGREGATE(15,6,(ROW(Таблица1[р/р])-ROW(Таблица1[[#Headers],[р/р]]))/(Таблица1[[месяц]:[месяц]]=$J$2)/(Таблица1[[год]:[год]]=$L$2)/(Таблица1[[изд]:[изд]]=$O$1)/(Таблица1[[партия]:[партия]]=$S$1),ROW(C7))),"") ->  | E10: =IFERROR(INDEX(Таблица1[1],_xlfn.AGGREGATE(15,6,(ROW(Таблица1[1])-ROW(Таблица1[[#Headers],[1]]))/(Таблица1[[месяц]:[месяц]]=$J$2)/(Таблица1[[год]:[год]]=$L$2)/(Таблица1[[изд]:[изд]]=$O$1)/(Таблица1[[партия]:[партия]]=$S$1),ROW(D7))),"") ->  | F10: =IFERROR(INDEX(Таблица1[2],_xlfn.AGGREGATE(15,6,(ROW(Таблица1[2])-ROW(Таблица1[[#Headers],[2]]))/(Таблица1[[месяц]:[месяц]]=$J$2)/(Таблица1[[год]:[год]]=$L$2)/(Таблица1[[изд]:[изд]]=$O$1)/(Таблица1[[партия]:[партия]]=$S$1),ROW(E7))),"") ->  | G10: =IFERROR(INDEX(Таблица1[3],_xlfn.AGGREGATE(15,6,(ROW(Таблица1[3])-ROW(Таблица1[[#Headers],[3]]))/(Таблица1[[месяц]:[месяц]]=$J$2)/(Таблица1[[год]:[год]]=$L$2)/(Таблица1[[изд]:[изд]]=$O$1)/(Таблица1[[партия]:[партия]]=$S$1),ROW(F7))),"") ->  | H10: =IFERROR(INDEX(Таблица1[4],_xlfn.AGGREGATE(15,6,(ROW(Таблица1[4])-ROW(Таблица1[[#Headers],[4]]))/(Таблица1[[месяц]:[месяц]]=$J$2)/(Таблица1[[год]:[год]]=$L$2)/(Таблица1[[изд]:[изд]]=$O$1)/(Таблица1[[партия]:[партия]]=$S$1),ROW(G7))),"") ->  | I10: =IFERROR(INDEX(Таблица1[5],_xlfn.AGGREGATE(15,6,(ROW(Таблица1[5])-ROW(Таблица1[[#Headers],[5]]))/(Таблица1[[месяц]:[месяц]]=$J$2)/(Таблица1[[год]:[год]]=$L$2)/(Таблица1[[изд]:[изд]]=$O$1)/(Таблица1[[партия]:[партия]]=$S$1),ROW(H7))),"") ->  | J10: =IFERROR(INDEX(Таблица1[6],_xlfn.AGGREGATE(15,6,(ROW(Таблица1[6])-ROW(Таблица1[[#Headers],[6]]))/(Таблица1[[месяц]:[месяц]]=$J$2)/(Таблица1[[год]:[год]]=$L$2)/(Таблица1[[изд]:[изд]]=$O$1)/(Таблица1[[партия]:[партия]]=$S$1),ROW(I7))),"") ->  | K10: =IFERROR(INDEX(Таблица1[7],_xlfn.AGGREGATE(15,6,(ROW(Таблица1[7])-ROW(Таблица1[[#Headers],[7]]))/(Таблица1[[месяц]:[месяц]]=$J$2)/(Таблица1[[год]:[год]]=$L$2)/(Таблица1[[изд]:[изд]]=$O$1)/(Таблица1[[партия]:[партия]]=$S$1),ROW(J7))),"") ->  | L10: =IFERROR(INDEX(Таблица1[8],_xlfn.AGGREGATE(15,6,(ROW(Таблица1[8])-ROW(Таблица1[[#Headers],[8]]))/(Таблица1[[месяц]:[месяц]]=$J$2)/(Таблица1[[год]:[год]]=$L$2)/(Таблица1[[изд]:[изд]]=$O$1)/(Таблица1[[партия]:[партия]]=$S$1),ROW(K7))),"") ->  | M10: =IFERROR(INDEX(Таблица1[9],_xlfn.AGGREGATE(15,6,(ROW(Таблица1[9])-ROW(Таблица1[[#Headers],[9]]))/(Таблица1[[месяц]:[месяц]]=$J$2)/(Таблица1[[год]:[год]]=$L$2)/(Таблица1[[изд]:[изд]]=$O$1)/(Таблица1[[партия]:[партия]]=$S$1),ROW(L7))),"") ->  | N10: =IFERROR(INDEX(Таблица1[10],_xlfn.AGGREGATE(15,6,(ROW(Таблица1[10])-ROW(Таблица1[[#Headers],[10]]))/(Таблица1[[месяц]:[месяц]]=$J$2)/(Таблица1[[год]:[год]]=$L$2)/(Таблица1[[изд]:[изд]]=$O$1)/(Таблица1[[партия]:[партия]]=$S$1),ROW(M7))),"") ->  | O10: =IFERROR(INDEX(Таблица1[11],_xlfn.AGGREGATE(15,6,(ROW(Таблица1[11])-ROW(Таблица1[[#Headers],[11]]))/(Таблица1[[месяц]:[месяц]]=$J$2)/(Таблица1[[год]:[год]]=$L$2)/(Таблица1[[изд]:[изд]]=$O$1)/(Таблица1[[партия]:[партия]]=$S$1),ROW(N7))),"") ->  | P10: =IFERROR(INDEX(Таблица1[12],_xlfn.AGGREGATE(15,6,(ROW(Таблица1[12])-ROW(Таблица1[[#Headers],[12]]))/(Таблица1[[месяц]:[месяц]]=$J$2)/(Таблица1[[год]:[год]]=$L$2)/(Таблица1[[изд]:[изд]]=$O$1)/(Таблица1[[партия]:[партия]]=$S$1),ROW(O7))),"") ->  | Q10: =IFERROR(INDEX(Таблица1[13],_xlfn.AGGREGATE(15,6,(ROW(Таблица1[13])-ROW(Таблица1[[#Headers],[13]]))/(Таблица1[[месяц]:[месяц]]=$J$2)/(Таблица1[[год]:[год]]=$L$2)/(Таблица1[[изд]:[изд]]=$O$1)/(Таблица1[[партия]:[партия]]=$S$1),ROW(P7))),"") ->  | R10: =IFERROR(INDEX(Таблица1[14],_xlfn.AGGREGATE(15,6,(ROW(Таблица1[14])-ROW(Таблица1[[#Headers],[14]]))/(Таблица1[[месяц]:[месяц]]=$J$2)/(Таблица1[[год]:[год]]=$L$2)/(Таблица1[[изд]:[изд]]=$O$1)/(Таблица1[[партия]:[партия]]=$S$1),ROW(Q7))),"") ->  | S10: =IFERROR(INDEX(Таблица1[15],_xlfn.AGGREGATE(15,6,(ROW(Таблица1[15])-ROW(Таблица1[[#Headers],[15]]))/(Таблица1[[месяц]:[месяц]]=$J$2)/(Таблица1[[год]:[год]]=$L$2)/(Таблица1[[изд]:[изд]]=$O$1)/(Таблица1[[партия]:[партия]]=$S$1),ROW(R7))),"") ->  | T10: =IFERROR(INDEX(Таблица1[16],_xlfn.AGGREGATE(15,6,(ROW(Таблица1[16])-ROW(Таблица1[[#Headers],[16]]))/(Таблица1[[месяц]:[месяц]]=$J$2)/(Таблица1[[год]:[год]]=$L$2)/(Таблица1[[изд]:[изд]]=$O$1)/(Таблица1[[партия]:[партия]]=$S$1),ROW(S7))),"") ->  | U10: =IFERROR(INDEX(Таблица1[17],_xlfn.AGGREGATE(15,6,(ROW(Таблица1[17])-ROW(Таблица1[[#Headers],[17]]))/(Таблица1[[месяц]:[месяц]]=$J$2)/(Таблица1[[год]:[год]]=$L$2)/(Таблица1[[изд]:[изд]]=$O$1)/(Таблица1[[партия]:[партия]]=$S$1),ROW(T7))),"") ->  | V10: =IFERROR(INDEX(Таблица1[18],_xlfn.AGGREGATE(15,6,(ROW(Таблица1[18])-ROW(Таблица1[[#Headers],[18]]))/(Таблица1[[месяц]:[месяц]]=$J$2)/(Таблица1[[год]:[год]]=$L$2)/(Таблица1[[изд]:[изд]]=$O$1)/(Таблица1[[партия]:[партия]]=$S$1),ROW(U7))),"") ->  | W10: =IFERROR(INDEX(Таблица1[19],_xlfn.AGGREGATE(15,6,(ROW(Таблица1[19])-ROW(Таблица1[[#Headers],[19]]))/(Таблица1[[месяц]:[месяц]]=$J$2)/(Таблица1[[год]:[год]]=$L$2)/(Таблица1[[изд]:[изд]]=$O$1)/(Таблица1[[партия]:[партия]]=$S$1),ROW(V7))),"") ->  | X10: =IFERROR(INDEX(Таблица1[20],_xlfn.AGGREGATE(15,6,(ROW(Таблица1[20])-ROW(Таблица1[[#Headers],[20]]))/(Таблица1[[месяц]:[месяц]]=$J$2)/(Таблица1[[год]:[год]]=$L$2)/(Таблица1[[изд]:[изд]]=$O$1)/(Таблица1[[партия]:[партия]]=$S$1),ROW(W7))),"") ->  | Y10: =IFERROR(INDEX(Таблица1[21],_xlfn.AGGREGATE(15,6,(ROW(Таблица1[21])-ROW(Таблица1[[#Headers],[21]]))/(Таблица1[[месяц]:[месяц]]=$J$2)/(Таблица1[[год]:[год]]=$L$2)/(Таблица1[[изд]:[изд]]=$O$1)/(Таблица1[[партия]:[партия]]=$S$1),ROW(X7))),"") ->  | Z10: =IFERROR(INDEX(Таблица1[22],_xlfn.AGGREGATE(15,6,(ROW(Таблица1[22])-ROW(Таблица1[[#Headers],[22]]))/(Таблица1[[месяц]:[месяц]]=$J$2)/(Таблица1[[год]:[год]]=$L$2)/(Таблица1[[изд]:[изд]]=$O$1)/(Таблица1[[партия]:[партия]]=$S$1),ROW(Y7))),"") ->  | AA10: =IFERROR(INDEX(Таблица1[23],_xlfn.AGGREGATE(15,6,(ROW(Таблица1[23])-ROW(Таблица1[[#Headers],[23]]))/(Таблица1[[месяц]:[месяц]]=$J$2)/(Таблица1[[год]:[год]]=$L$2)/(Таблица1[[изд]:[изд]]=$O$1)/(Таблица1[[партия]:[партия]]=$S$1),ROW(Z7))),"") ->  | AB10: =IFERROR(INDEX(Таблица1[24],_xlfn.AGGREGATE(15,6,(ROW(Таблица1[24])-ROW(Таблица1[[#Headers],[24]]))/(Таблица1[[месяц]:[месяц]]=$J$2)/(Таблица1[[год]:[год]]=$L$2)/(Таблица1[[изд]:[изд]]=$O$1)/(Таблица1[[партия]:[партия]]=$S$1),ROW(AA7))),"") ->  | AC10: =IFERROR(INDEX(Таблица1[25],_xlfn.AGGREGATE(15,6,(ROW(Таблица1[25])-ROW(Таблица1[[#Headers],[25]]))/(Таблица1[[месяц]:[месяц]]=$J$2)/(Таблица1[[год]:[год]]=$L$2)/(Таблица1[[изд]:[изд]]=$O$1)/(Таблица1[[партия]:[партия]]=$S$1),ROW(AB7))),"") ->  | AD10: =IFERROR(INDEX(Таблица1[26],_xlfn.AGGREGATE(15,6,(ROW(Таблица1[26])-ROW(Таблица1[[#Headers],[26]]))/(Таблица1[[месяц]:[месяц]]=$J$2)/(Таблица1[[год]:[год]]=$L$2)/(Таблица1[[изд]:[изд]]=$O$1)/(Таблица1[[партия]:[партия]]=$S$1),ROW(AC7))),"") ->  | AE10: =IFERROR(INDEX(Таблица1[27],_xlfn.AGGREGATE(15,6,(ROW(Таблица1[27])-ROW(Таблица1[[#Headers],[27]]))/(Таблица1[[месяц]:[месяц]]=$J$2)/(Таблица1[[год]:[год]]=$L$2)/(Таблица1[[изд]:[изд]]=$O$1)/(Таблица1[[партия]:[партия]]=$S$1),ROW(AD7))),"") ->  | AF10: =IFERROR(INDEX(Таблица1[28],_xlfn.AGGREGATE(15,6,(ROW(Таблица1[28])-ROW(Таблица1[[#Headers],[28]]))/(Таблица1[[месяц]:[месяц]]=$J$2)/(Таблица1[[год]:[год]]=$L$2)/(Таблица1[[изд]:[изд]]=$O$1)/(Таблица1[[партия]:[партия]]=$S$1),ROW(AE7))),"") ->  | AG10: =IFERROR(INDEX(Таблица1[29],_xlfn.AGGREGATE(15,6,(ROW(Таблица1[29])-ROW(Таблица1[[#Headers],[29]]))/(Таблица1[[месяц]:[месяц]]=$J$2)/(Таблица1[[год]:[год]]=$L$2)/(Таблица1[[изд]:[изд]]=$O$1)/(Таблица1[[партия]:[партия]]=$S$1),ROW(AF7))),"") ->  | AH10: =IFERROR(INDEX(Таблица1[30],_xlfn.AGGREGATE(15,6,(ROW(Таблица1[30])-ROW(Таблица1[[#Headers],[30]]))/(Таблица1[[месяц]:[месяц]]=$J$2)/(Таблица1[[год]:[год]]=$L$2)/(Таблица1[[изд]:[изд]]=$O$1)/(Таблица1[[партия]:[партия]]=$S$1),ROW(AG7))),"") ->  | AI10: =IFERROR(INDEX(Таблица1[31],_xlfn.AGGREGATE(15,6,(ROW(Таблица1[31])-ROW(Таблица1[[#Headers],[31]]))/(Таблица1[[месяц]:[месяц]]=$J$2)/(Таблица1[[год]:[год]]=$L$2)/(Таблица1[[изд]:[изд]]=$O$1)/(Таблица1[[партия]:[партия]]=$S$1),ROW(AH7))),"") ->  | AJ10: 0
B11: =IFERROR(INDEX(Таблица1[коэф],_xlfn.AGGREGATE(15,6,(ROW(Таблица1[коэф])-ROW(Таблица1[[#Headers],[коэф]]))/(Таблица1[[месяц]:[месяц]]=$J$2)/(Таблица1[[год]:[год]]=$L$2)/(Таблица1[[изд]:[изд]]=$O$1)/(Таблица1[[партия]:[партия]]=$S$1),ROW(A8))),"") ->  | C11: =IFERROR(INDEX(Таблица1[Ф. И. О.],_xlfn.AGGREGATE(15,6,(ROW(Таблица1[Ф. И. О.])-ROW(Таблица1[[#Headers],[Ф. И. О.]]))/(Таблица1[[месяц]:[месяц]]=$J$2)/(Таблица1[[год]:[год]]=$L$2)/(Таблица1[[изд]:[изд]]=$O$1)/(Таблица1[[партия]:[партия]]=$S$1),ROW(B8))),"") ->  | D11: =IFERROR(INDEX(Таблица1[р/р],_xlfn.AGGREGATE(15,6,(ROW(Таблица1[р/р])-ROW(Таблица1[[#Headers],[р/р]]))/(Таблица1[[месяц]:[месяц]]=$J$2)/(Таблица1[[год]:[год]]=$L$2)/(Таблица1[[изд]:[изд]]=$O$1)/(Таблица1[[партия]:[партия]]=$S$1),ROW(C8))),"") ->  | E11: =IFERROR(INDEX(Таблица1[1],_xlfn.AGGREGATE(15,6,(ROW(Таблица1[1])-ROW(Таблица1[[#Headers],[1]]))/(Таблица1[[месяц]:[месяц]]=$J$2)/(Таблица1[[год]:[год]]=$L$2)/(Таблица1[[изд]:[изд]]=$O$1)/(Таблица1[[партия]:[партия]]=$S$1),ROW(D8))),"") ->  | F11: =IFERROR(INDEX(Таблица1[2],_xlfn.AGGREGATE(15,6,(ROW(Таблица1[2])-ROW(Таблица1[[#Headers],[2]]))/(Таблица1[[месяц]:[месяц]]=$J$2)/(Таблица1[[год]:[год]]=$L$2)/(Таблица1[[изд]:[изд]]=$O$1)/(Таблица1[[партия]:[партия]]=$S$1),ROW(E8))),"") ->  | G11: =IFERROR(INDEX(Таблица1[3],_xlfn.AGGREGATE(15,6,(ROW(Таблица1[3])-ROW(Таблица1[[#Headers],[3]]))/(Таблица1[[месяц]:[месяц]]=$J$2)/(Таблица1[[год]:[год]]=$L$2)/(Таблица1[[изд]:[изд]]=$O$1)/(Таблица1[[партия]:[партия]]=$S$1),ROW(F8))),"") ->  | H11: =IFERROR(INDEX(Таблица1[4],_xlfn.AGGREGATE(15,6,(ROW(Таблица1[4])-ROW(Таблица1[[#Headers],[4]]))/(Таблица1[[месяц]:[месяц]]=$J$2)/(Таблица1[[год]:[год]]=$L$2)/(Таблица1[[изд]:[изд]]=$O$1)/(Таблица1[[партия]:[партия]]=$S$1),ROW(G8))),"") ->  | I11: =IFERROR(INDEX(Таблица1[5],_xlfn.AGGREGATE(15,6,(ROW(Таблица1[5])-ROW(Таблица1[[#Headers],[5]]))/(Таблица1[[месяц]:[месяц]]=$J$2)/(Таблица1[[год]:[год]]=$L$2)/(Таблица1[[изд]:[изд]]=$O$1)/(Таблица1[[партия]:[партия]]=$S$1),ROW(H8))),"") ->  | J11: =IFERROR(INDEX(Таблица1[6],_xlfn.AGGREGATE(15,6,(ROW(Таблица1[6])-ROW(Таблица1[[#Headers],[6]]))/(Таблица1[[месяц]:[месяц]]=$J$2)/(Таблица1[[год]:[год]]=$L$2)/(Таблица1[[изд]:[изд]]=$O$1)/(Таблица1[[партия]:[партия]]=$S$1),ROW(I8))),"") ->  | K11: =IFERROR(INDEX(Таблица1[7],_xlfn.AGGREGATE(15,6,(ROW(Таблица1[7])-ROW(Таблица1[[#Headers],[7]]))/(Таблица1[[месяц]:[месяц]]=$J$2)/(Таблица1[[год]:[год]]=$L$2)/(Таблица1[[изд]:[изд]]=$O$1)/(Таблица1[[партия]:[партия]]=$S$1),ROW(J8))),"") ->  | L11: =IFERROR(INDEX(Таблица1[8],_xlfn.AGGREGATE(15,6,(ROW(Таблица1[8])-ROW(Таблица1[[#Headers],[8]]))/(Таблица1[[месяц]:[месяц]]=$J$2)/(Таблица1[[год]:[год]]=$L$2)/(Таблица1[[изд]:[изд]]=$O$1)/(Таблица1[[партия]:[партия]]=$S$1),ROW(K8))),"") ->  | M11: =IFERROR(INDEX(Таблица1[9],_xlfn.AGGREGATE(15,6,(ROW(Таблица1[9])-ROW(Таблица1[[#Headers],[9]]))/(Таблица1[[месяц]:[месяц]]=$J$2)/(Таблица1[[год]:[год]]=$L$2)/(Таблица1[[изд]:[изд]]=$O$1)/(Таблица1[[партия]:[партия]]=$S$1),ROW(L8))),"") ->  | N11: =IFERROR(INDEX(Таблица1[10],_xlfn.AGGREGATE(15,6,(ROW(Таблица1[10])-ROW(Таблица1[[#Headers],[10]]))/(Таблица1[[месяц]:[месяц]]=$J$2)/(Таблица1[[год]:[год]]=$L$2)/(Таблица1[[изд]:[изд]]=$O$1)/(Таблица1[[партия]:[партия]]=$S$1),ROW(M8))),"") ->  | O11: =IFERROR(INDEX(Таблица1[11],_xlfn.AGGREGATE(15,6,(ROW(Таблица1[11])-ROW(Таблица1[[#Headers],[11]]))/(Таблица1[[месяц]:[месяц]]=$J$2)/(Таблица1[[год]:[год]]=$L$2)/(Таблица1[[изд]:[изд]]=$O$1)/(Таблица1[[партия]:[партия]]=$S$1),ROW(N8))),"") ->  | P11: =IFERROR(INDEX(Таблица1[12],_xlfn.AGGREGATE(15,6,(ROW(Таблица1[12])-ROW(Таблица1[[#Headers],[12]]))/(Таблица1[[месяц]:[месяц]]=$J$2)/(Таблица1[[год]:[год]]=$L$2)/(Таблица1[[изд]:[изд]]=$O$1)/(Таблица1[[партия]:[партия]]=$S$1),ROW(O8))),"") ->  | Q11: =IFERROR(INDEX(Таблица1[13],_xlfn.AGGREGATE(15,6,(ROW(Таблица1[13])-ROW(Таблица1[[#Headers],[13]]))/(Таблица1[[месяц]:[месяц]]=$J$2)/(Таблица1[[год]:[год]]=$L$2)/(Таблица1[[изд]:[изд]]=$O$1)/(Таблица1[[партия]:[партия]]=$S$1),ROW(P8))),"") ->  | R11: =IFERROR(INDEX(Таблица1[14],_xlfn.AGGREGATE(15,6,(ROW(Таблица1[14])-ROW(Таблица1[[#Headers],[14]]))/(Таблица1[[месяц]:[месяц]]=$J$2)/(Таблица1[[год]:[год]]=$L$2)/(Таблица1[[изд]:[изд]]=$O$1)/(Таблица1[[партия]:[партия]]=$S$1),ROW(Q8))),"") ->  | S11: =IFERROR(INDEX(Таблица1[15],_xlfn.AGGREGATE(15,6,(ROW(Таблица1[15])-ROW(Таблица1[[#Headers],[15]]))/(Таблица1[[месяц]:[месяц]]=$J$2)/(Таблица1[[год]:[год]]=$L$2)/(Таблица1[[изд]:[изд]]=$O$1)/(Таблица1[[партия]:[партия]]=$S$1),ROW(R8))),"") ->  | T11: =IFERROR(INDEX(Таблица1[16],_xlfn.AGGREGATE(15,6,(ROW(Таблица1[16])-ROW(Таблица1[[#Headers],[16]]))/(Таблица1[[месяц]:[месяц]]=$J$2)/(Таблица1[[год]:[год]]=$L$2)/(Таблица1[[изд]:[изд]]=$O$1)/(Таблица1[[партия]:[партия]]=$S$1),ROW(S8))),"") ->  | U11: =IFERROR(INDEX(Таблица1[17],_xlfn.AGGREGATE(15,6,(ROW(Таблица1[17])-ROW(Таблица1[[#Headers],[17]]))/(Таблица1[[месяц]:[месяц]]=$J$2)/(Таблица1[[год]:[год]]=$L$2)/(Таблица1[[изд]:[изд]]=$O$1)/(Таблица1[[партия]:[партия]]=$S$1),ROW(T8))),"") ->  | V11: =IFERROR(INDEX(Таблица1[18],_xlfn.AGGREGATE(15,6,(ROW(Таблица1[18])-ROW(Таблица1[[#Headers],[18]]))/(Таблица1[[месяц]:[месяц]]=$J$2)/(Таблица1[[год]:[год]]=$L$2)/(Таблица1[[изд]:[изд]]=$O$1)/(Таблица1[[партия]:[партия]]=$S$1),ROW(U8))),"") ->  | W11: =IFERROR(INDEX(Таблица1[19],_xlfn.AGGREGATE(15,6,(ROW(Таблица1[19])-ROW(Таблица1[[#Headers],[19]]))/(Таблица1[[месяц]:[месяц]]=$J$2)/(Таблица1[[год]:[год]]=$L$2)/(Таблица1[[изд]:[изд]]=$O$1)/(Таблица1[[партия]:[партия]]=$S$1),ROW(V8))),"") ->  | X11: =IFERROR(INDEX(Таблица1[20],_xlfn.AGGREGATE(15,6,(ROW(Таблица1[20])-ROW(Таблица1[[#Headers],[20]]))/(Таблица1[[месяц]:[месяц]]=$J$2)/(Таблица1[[год]:[год]]=$L$2)/(Таблица1[[изд]:[изд]]=$O$1)/(Таблица1[[партия]:[партия]]=$S$1),ROW(W8))),"") ->  | Y11: =IFERROR(INDEX(Таблица1[21],_xlfn.AGGREGATE(15,6,(ROW(Таблица1[21])-ROW(Таблица1[[#Headers],[21]]))/(Таблица1[[месяц]:[месяц]]=$J$2)/(Таблица1[[год]:[год]]=$L$2)/(Таблица1[[изд]:[изд]]=$O$1)/(Таблица1[[партия]:[партия]]=$S$1),ROW(X8))),"") ->  | Z11: =IFERROR(INDEX(Таблица1[22],_xlfn.AGGREGATE(15,6,(ROW(Таблица1[22])-ROW(Таблица1[[#Headers],[22]]))/(Таблица1[[месяц]:[месяц]]=$J$2)/(Таблица1[[год]:[год]]=$L$2)/(Таблица1[[изд]:[изд]]=$O$1)/(Таблица1[[партия]:[партия]]=$S$1),ROW(Y8))),"") ->  | AA11: =IFERROR(INDEX(Таблица1[23],_xlfn.AGGREGATE(15,6,(ROW(Таблица1[23])-ROW(Таблица1[[#Headers],[23]]))/(Таблица1[[месяц]:[месяц]]=$J$2)/(Таблица1[[год]:[год]]=$L$2)/(Таблица1[[изд]:[изд]]=$O$1)/(Таблица1[[партия]:[партия]]=$S$1),ROW(Z8))),"") ->  | AB11: =IFERROR(INDEX(Таблица1[24],_xlfn.AGGREGATE(15,6,(ROW(Таблица1[24])-ROW(Таблица1[[#Headers],[24]]))/(Таблица1[[месяц]:[месяц]]=$J$2)/(Таблица1[[год]:[год]]=$L$2)/(Таблица1[[изд]:[изд]]=$O$1)/(Таблица1[[партия]:[партия]]=$S$1),ROW(AA8))),"") ->  | AC11: =IFERROR(INDEX(Таблица1[25],_xlfn.AGGREGATE(15,6,(ROW(Таблица1[25])-ROW(Таблица1[[#Headers],[25]]))/(Таблица1[[месяц]:[месяц]]=$J$2)/(Таблица1[[год]:[год]]=$L$2)/(Таблица1[[изд]:[изд]]=$O$1)/(Таблица1[[партия]:[партия]]=$S$1),ROW(AB8))),"") ->  | AD11: =IFERROR(INDEX(Таблица1[26],_xlfn.AGGREGATE(15,6,(ROW(Таблица1[26])-ROW(Таблица1[[#Headers],[26]]))/(Таблица1[[месяц]:[месяц]]=$J$2)/(Таблица1[[год]:[год]]=$L$2)/(Таблица1[[изд]:[изд]]=$O$1)/(Таблица1[[партия]:[партия]]=$S$1),ROW(AC8))),"") ->  | AE11: =IFERROR(INDEX(Таблица1[27],_xlfn.AGGREGATE(15,6,(ROW(Таблица1[27])-ROW(Таблица1[[#Headers],[27]]))/(Таблица1[[месяц]:[месяц]]=$J$2)/(Таблица1[[год]:[год]]=$L$2)/(Таблица1[[изд]:[изд]]=$O$1)/(Таблица1[[партия]:[партия]]=$S$1),ROW(AD8))),"") ->  | AF11: =IFERROR(INDEX(Таблица1[28],_xlfn.AGGREGATE(15,6,(ROW(Таблица1[28])-ROW(Таблица1[[#Headers],[28]]))/(Таблица1[[месяц]:[месяц]]=$J$2)/(Таблица1[[год]:[год]]=$L$2)/(Таблица1[[изд]:[изд]]=$O$1)/(Таблица1[[партия]:[партия]]=$S$1),ROW(AE8))),"") ->  | AG11: =IFERROR(INDEX(Таблица1[29],_xlfn.AGGREGATE(15,6,(ROW(Таблица1[29])-ROW(Таблица1[[#Headers],[29]]))/(Таблица1[[месяц]:[месяц]]=$J$2)/(Таблица1[[год]:[год]]=$L$2)/(Таблица1[[изд]:[изд]]=$O$1)/(Таблица1[[партия]:[партия]]=$S$1),ROW(AF8))),"") ->  | AH11: =IFERROR(INDEX(Таблица1[30],_xlfn.AGGREGATE(15,6,(ROW(Таблица1[30])-ROW(Таблица1[[#Headers],[30]]))/(Таблица1[[месяц]:[месяц]]=$J$2)/(Таблица1[[год]:[год]]=$L$2)/(Таблица1[[изд]:[изд]]=$O$1)/(Таблица1[[партия]:[партия]]=$S$1),ROW(AG8))),"") ->  | AI11: =IFERROR(INDEX(Таблица1[31],_xlfn.AGGREGATE(15,6,(ROW(Таблица1[31])-ROW(Таблица1[[#Headers],[31]]))/(Таблица1[[месяц]:[месяц]]=$J$2)/(Таблица1[[год]:[год]]=$L$2)/(Таблица1[[изд]:[изд]]=$O$1)/(Таблица1[[партия]:[партия]]=$S$1),ROW(AH8))),"") ->  | AJ11: 0
B12: =IFERROR(INDEX(Таблица1[коэф],_xlfn.AGGREGATE(15,6,(ROW(Таблица1[коэф])-ROW(Таблица1[[#Headers],[коэф]]))/(Таблица1[[месяц]:[месяц]]=$J$2)/(Таблица1[[год]:[год]]=$L$2)/(Таблица1[[изд]:[изд]]=$O$1)/(Таблица1[[партия]:[партия]]=$S$1),ROW(A9))),"") ->  | C12: =IFERROR(INDEX(Таблица1[Ф. И. О.],_xlfn.AGGREGATE(15,6,(ROW(Таблица1[Ф. И. О.])-ROW(Таблица1[[#Headers],[Ф. И. О.]]))/(Таблица1[[месяц]:[месяц]]=$J$2)/(Таблица1[[год]:[год]]=$L$2)/(Таблица1[[изд]:[изд]]=$O$1)/(Таблица1[[партия]:[партия]]=$S$1),ROW(B9))),"") ->  | D12: =IFERROR(INDEX(Таблица1[р/р],_xlfn.AGGREGATE(15,6,(ROW(Таблица1[р/р])-ROW(Таблица1[[#Headers],[р/р]]))/(Таблица1[[месяц]:[месяц]]=$J$2)/(Таблица1[[год]:[год]]=$L$2)/(Таблица1[[изд]:[изд]]=$O$1)/(Таблица1[[партия]:[партия]]=$S$1),ROW(C9))),"") ->  | E12: =IFERROR(INDEX(Таблица1[1],_xlfn.AGGREGATE(15,6,(ROW(Таблица1[1])-ROW(Таблица1[[#Headers],[1]]))/(Таблица1[[месяц]:[месяц]]=$J$2)/(Таблица1[[год]:[год]]=$L$2)/(Таблица1[[изд]:[изд]]=$O$1)/(Таблица1[[партия]:[партия]]=$S$1),ROW(D9))),"") ->  | F12: =IFERROR(INDEX(Таблица1[2],_xlfn.AGGREGATE(15,6,(ROW(Таблица1[2])-ROW(Таблица1[[#Headers],[2]]))/(Таблица1[[месяц]:[месяц]]=$J$2)/(Таблица1[[год]:[год]]=$L$2)/(Таблица1[[изд]:[изд]]=$O$1)/(Таблица1[[партия]:[партия]]=$S$1),ROW(E9))),"") ->  | G12: =IFERROR(INDEX(Таблица1[3],_xlfn.AGGREGATE(15,6,(ROW(Таблица1[3])-ROW(Таблица1[[#Headers],[3]]))/(Таблица1[[месяц]:[месяц]]=$J$2)/(Таблица1[[год]:[год]]=$L$2)/(Таблица1[[изд]:[изд]]=$O$1)/(Таблица1[[партия]:[партия]]=$S$1),ROW(F9))),"") ->  | H12: =IFERROR(INDEX(Таблица1[4],_xlfn.AGGREGATE(15,6,(ROW(Таблица1[4])-ROW(Таблица1[[#Headers],[4]]))/(Таблица1[[месяц]:[месяц]]=$J$2)/(Таблица1[[год]:[год]]=$L$2)/(Таблица1[[изд]:[изд]]=$O$1)/(Таблица1[[партия]:[партия]]=$S$1),ROW(G9))),"") ->  | I12: =IFERROR(INDEX(Таблица1[5],_xlfn.AGGREGATE(15,6,(ROW(Таблица1[5])-ROW(Таблица1[[#Headers],[5]]))/(Таблица1[[месяц]:[месяц]]=$J$2)/(Таблица1[[год]:[год]]=$L$2)/(Таблица1[[изд]:[изд]]=$O$1)/(Таблица1[[партия]:[партия]]=$S$1),ROW(H9))),"") ->  | J12: =IFERROR(INDEX(Таблица1[6],_xlfn.AGGREGATE(15,6,(ROW(Таблица1[6])-ROW(Таблица1[[#Headers],[6]]))/(Таблица1[[месяц]:[месяц]]=$J$2)/(Таблица1[[год]:[год]]=$L$2)/(Таблица1[[изд]:[изд]]=$O$1)/(Таблица1[[партия]:[партия]]=$S$1),ROW(I9))),"") ->  | K12: =IFERROR(INDEX(Таблица1[7],_xlfn.AGGREGATE(15,6,(ROW(Таблица1[7])-ROW(Таблица1[[#Headers],[7]]))/(Таблица1[[месяц]:[месяц]]=$J$2)/(Таблица1[[год]:[год]]=$L$2)/(Таблица1[[изд]:[изд]]=$O$1)/(Таблица1[[партия]:[партия]]=$S$1),ROW(J9))),"") ->  | L12: =IFERROR(INDEX(Таблица1[8],_xlfn.AGGREGATE(15,6,(ROW(Таблица1[8])-ROW(Таблица1[[#Headers],[8]]))/(Таблица1[[месяц]:[месяц]]=$J$2)/(Таблица1[[год]:[год]]=$L$2)/(Таблица1[[изд]:[изд]]=$O$1)/(Таблица1[[партия]:[партия]]=$S$1),ROW(K9))),"") ->  | M12: =IFERROR(INDEX(Таблица1[9],_xlfn.AGGREGATE(15,6,(ROW(Таблица1[9])-ROW(Таблица1[[#Headers],[9]]))/(Таблица1[[месяц]:[месяц]]=$J$2)/(Таблица1[[год]:[год]]=$L$2)/(Таблица1[[изд]:[изд]]=$O$1)/(Таблица1[[партия]:[партия]]=$S$1),ROW(L9))),"") ->  | N12: =IFERROR(INDEX(Таблица1[10],_xlfn.AGGREGATE(15,6,(ROW(Таблица1[10])-ROW(Таблица1[[#Headers],[10]]))/(Таблица1[[месяц]:[месяц]]=$J$2)/(Таблица1[[год]:[год]]=$L$2)/(Таблица1[[изд]:[изд]]=$O$1)/(Таблица1[[партия]:[партия]]=$S$1),ROW(M9))),"") ->  | O12: =IFERROR(INDEX(Таблица1[11],_xlfn.AGGREGATE(15,6,(ROW(Таблица1[11])-ROW(Таблица1[[#Headers],[11]]))/(Таблица1[[месяц]:[месяц]]=$J$2)/(Таблица1[[год]:[год]]=$L$2)/(Таблица1[[изд]:[изд]]=$O$1)/(Таблица1[[партия]:[партия]]=$S$1),ROW(N9))),"") ->  | P12: =IFERROR(INDEX(Таблица1[12],_xlfn.AGGREGATE(15,6,(ROW(Таблица1[12])-ROW(Таблица1[[#Headers],[12]]))/(Таблица1[[месяц]:[месяц]]=$J$2)/(Таблица1[[год]:[год]]=$L$2)/(Таблица1[[изд]:[изд]]=$O$1)/(Таблица1[[партия]:[партия]]=$S$1),ROW(O9))),"") ->  | Q12: =IFERROR(INDEX(Таблица1[13],_xlfn.AGGREGATE(15,6,(ROW(Таблица1[13])-ROW(Таблица1[[#Headers],[13]]))/(Таблица1[[месяц]:[месяц]]=$J$2)/(Таблица1[[год]:[год]]=$L$2)/(Таблица1[[изд]:[изд]]=$O$1)/(Таблица1[[партия]:[партия]]=$S$1),ROW(P9))),"") ->  | R12: =IFERROR(INDEX(Таблица1[14],_xlfn.AGGREGATE(15,6,(ROW(Таблица1[14])-ROW(Таблица1[[#Headers],[14]]))/(Таблица1[[месяц]:[месяц]]=$J$2)/(Таблица1[[год]:[год]]=$L$2)/(Таблица1[[изд]:[изд]]=$O$1)/(Таблица1[[партия]:[партия]]=$S$1),ROW(Q9))),"") ->  | S12: =IFERROR(INDEX(Таблица1[15],_xlfn.AGGREGATE(15,6,(ROW(Таблица1[15])-ROW(Таблица1[[#Headers],[15]]))/(Таблица1[[месяц]:[месяц]]=$J$2)/(Таблица1[[год]:[год]]=$L$2)/(Таблица1[[изд]:[изд]]=$O$1)/(Таблица1[[партия]:[партия]]=$S$1),ROW(R9))),"") ->  | T12: =IFERROR(INDEX(Таблица1[16],_xlfn.AGGREGATE(15,6,(ROW(Таблица1[16])-ROW(Таблица1[[#Headers],[16]]))/(Таблица1[[месяц]:[месяц]]=$J$2)/(Таблица1[[год]:[год]]=$L$2)/(Таблица1[[изд]:[изд]]=$O$1)/(Таблица1[[партия]:[партия]]=$S$1),ROW(S9))),"") ->  | U12: =IFERROR(INDEX(Таблица1[17],_xlfn.AGGREGATE(15,6,(ROW(Таблица1[17])-ROW(Таблица1[[#Headers],[17]]))/(Таблица1[[месяц]:[месяц]]=$J$2)/(Таблица1[[год]:[год]]=$L$2)/(Таблица1[[изд]:[изд]]=$O$1)/(Таблица1[[партия]:[партия]]=$S$1),ROW(T9))),"") ->  | V12: =IFERROR(INDEX(Таблица1[18],_xlfn.AGGREGATE(15,6,(ROW(Таблица1[18])-ROW(Таблица1[[#Headers],[18]]))/(Таблица1[[месяц]:[месяц]]=$J$2)/(Таблица1[[год]:[год]]=$L$2)/(Таблица1[[изд]:[изд]]=$O$1)/(Таблица1[[партия]:[партия]]=$S$1),ROW(U9))),"") ->  | W12: =IFERROR(INDEX(Таблица1[19],_xlfn.AGGREGATE(15,6,(ROW(Таблица1[19])-ROW(Таблица1[[#Headers],[19]]))/(Таблица1[[месяц]:[месяц]]=$J$2)/(Таблица1[[год]:[год]]=$L$2)/(Таблица1[[изд]:[изд]]=$O$1)/(Таблица1[[партия]:[партия]]=$S$1),ROW(V9))),"") ->  | X12: =IFERROR(INDEX(Таблица1[20],_xlfn.AGGREGATE(15,6,(ROW(Таблица1[20])-ROW(Таблица1[[#Headers],[20]]))/(Таблица1[[месяц]:[месяц]]=$J$2)/(Таблица1[[год]:[год]]=$L$2)/(Таблица1[[изд]:[изд]]=$O$1)/(Таблица1[[партия]:[партия]]=$S$1),ROW(W9))),"") ->  | Y12: =IFERROR(INDEX(Таблица1[21],_xlfn.AGGREGATE(15,6,(ROW(Таблица1[21])-ROW(Таблица1[[#Headers],[21]]))/(Таблица1[[месяц]:[месяц]]=$J$2)/(Таблица1[[год]:[год]]=$L$2)/(Таблица1[[изд]:[изд]]=$O$1)/(Таблица1[[партия]:[партия]]=$S$1),ROW(X9))),"") ->  | Z12: =IFERROR(INDEX(Таблица1[22],_xlfn.AGGREGATE(15,6,(ROW(Таблица1[22])-ROW(Таблица1[[#Headers],[22]]))/(Таблица1[[месяц]:[месяц]]=$J$2)/(Таблица1[[год]:[год]]=$L$2)/(Таблица1[[изд]:[изд]]=$O$1)/(Таблица1[[партия]:[партия]]=$S$1),ROW(Y9))),"") ->  | AA12: =IFERROR(INDEX(Таблица1[23],_xlfn.AGGREGATE(15,6,(ROW(Таблица1[23])-ROW(Таблица1[[#Headers],[23]]))/(Таблица1[[месяц]:[месяц]]=$J$2)/(Таблица1[[год]:[год]]=$L$2)/(Таблица1[[изд]:[изд]]=$O$1)/(Таблица1[[партия]:[партия]]=$S$1),ROW(Z9))),"") ->  | AB12: =IFERROR(INDEX(Таблица1[24],_xlfn.AGGREGATE(15,6,(ROW(Таблица1[24])-ROW(Таблица1[[#Headers],[24]]))/(Таблица1[[месяц]:[месяц]]=$J$2)/(Таблица1[[год]:[год]]=$L$2)/(Таблица1[[изд]:[изд]]=$O$1)/(Таблица1[[партия]:[партия]]=$S$1),ROW(AA9))),"") ->  | AC12: =IFERROR(INDEX(Таблица1[25],_xlfn.AGGREGATE(15,6,(ROW(Таблица1[25])-ROW(Таблица1[[#Headers],[25]]))/(Таблица1[[месяц]:[месяц]]=$J$2)/(Таблица1[[год]:[год]]=$L$2)/(Таблица1[[изд]:[изд]]=$O$1)/(Таблица1[[партия]:[партия]]=$S$1),ROW(AB9))),"") ->  | AD12: =IFERROR(INDEX(Таблица1[26],_xlfn.AGGREGATE(15,6,(ROW(Таблица1[26])-ROW(Таблица1[[#Headers],[26]]))/(Таблица1[[месяц]:[месяц]]=$J$2)/(Таблица1[[год]:[год]]=$L$2)/(Таблица1[[изд]:[изд]]=$O$1)/(Таблица1[[партия]:[партия]]=$S$1),ROW(AC9))),"") ->  | AE12: =IFERROR(INDEX(Таблица1[27],_xlfn.AGGREGATE(15,6,(ROW(Таблица1[27])-ROW(Таблица1[[#Headers],[27]]))/(Таблица1[[месяц]:[месяц]]=$J$2)/(Таблица1[[год]:[год]]=$L$2)/(Таблица1[[изд]:[изд]]=$O$1)/(Таблица1[[партия]:[партия]]=$S$1),ROW(AD9))),"") ->  | AF12: =IFERROR(INDEX(Таблица1[28],_xlfn.AGGREGATE(15,6,(ROW(Таблица1[28])-ROW(Таблица1[[#Headers],[28]]))/(Таблица1[[месяц]:[месяц]]=$J$2)/(Таблица1[[год]:[год]]=$L$2)/(Таблица1[[изд]:[изд]]=$O$1)/(Таблица1[[партия]:[партия]]=$S$1),ROW(AE9))),"") ->  | AG12: =IFERROR(INDEX(Таблица1[29],_xlfn.AGGREGATE(15,6,(ROW(Таблица1[29])-ROW(Таблица1[[#Headers],[29]]))/(Таблица1[[месяц]:[месяц]]=$J$2)/(Таблица1[[год]:[год]]=$L$2)/(Таблица1[[изд]:[изд]]=$O$1)/(Таблица1[[партия]:[партия]]=$S$1),ROW(AF9))),"") ->  | AH12: =IFERROR(INDEX(Таблица1[30],_xlfn.AGGREGATE(15,6,(ROW(Таблица1[30])-ROW(Таблица1[[#Headers],[30]]))/(Таблица1[[месяц]:[месяц]]=$J$2)/(Таблица1[[год]:[год]]=$L$2)/(Таблица1[[изд]:[изд]]=$O$1)/(Таблица1[[партия]:[партия]]=$S$1),ROW(AG9))),"") ->  | AI12: =IFERROR(INDEX(Таблица1[31],_xlfn.AGGREGATE(15,6,(ROW(Таблица1[31])-ROW(Таблица1[[#Headers],[31]]))/(Таблица1[[месяц]:[месяц]]=$J$2)/(Таблица1[[год]:[год]]=$L$2)/(Таблица1[[изд]:[изд]]=$O$1)/(Таблица1[[партия]:[партия]]=$S$1),ROW(AH9))),"") ->  | AJ12: 0
B13: =IFERROR(INDEX(Таблица1[коэф],_xlfn.AGGREGATE(15,6,(ROW(Таблица1[коэф])-ROW(Таблица1[[#Headers],[коэф]]))/(Таблица1[[месяц]:[месяц]]=$J$2)/(Таблица1[[год]:[год]]=$L$2)/(Таблица1[[изд]:[изд]]=$O$1)/(Таблица1[[партия]:[партия]]=$S$1),ROW(A10))),"") ->  | C13: =IFERROR(INDEX(Таблица1[Ф. И. О.],_xlfn.AGGREGATE(15,6,(ROW(Таблица1[Ф. И. О.])-ROW(Таблица1[[#Headers],[Ф. И. О.]]))/(Таблица1[[месяц]:[месяц]]=$J$2)/(Таблица1[[год]:[год]]=$L$2)/(Таблица1[[изд]:[изд]]=$O$1)/(Таблица1[[партия]:[партия]]=$S$1),ROW(B10))),"") ->  | D13: =IFERROR(INDEX(Таблица1[р/р],_xlfn.AGGREGATE(15,6,(ROW(Таблица1[р/р])-ROW(Таблица1[[#Headers],[р/р]]))/(Таблица1[[месяц]:[месяц]]=$J$2)/(Таблица1[[год]:[год]]=$L$2)/(Таблица1[[изд]:[изд]]=$O$1)/(Таблица1[[партия]:[партия]]=$S$1),ROW(C10))),"") ->  | E13: =IFERROR(INDEX(Таблица1[1],_xlfn.AGGREGATE(15,6,(ROW(Таблица1[1])-ROW(Таблица1[[#Headers],[1]]))/(Таблица1[[месяц]:[месяц]]=$J$2)/(Таблица1[[год]:[год]]=$L$2)/(Таблица1[[изд]:[изд]]=$O$1)/(Таблица1[[партия]:[партия]]=$S$1),ROW(D10))),"") ->  | F13: =IFERROR(INDEX(Таблица1[2],_xlfn.AGGREGATE(15,6,(ROW(Таблица1[2])-ROW(Таблица1[[#Headers],[2]]))/(Таблица1[[месяц]:[месяц]]=$J$2)/(Таблица1[[год]:[год]]=$L$2)/(Таблица1[[изд]:[изд]]=$O$1)/(Таблица1[[партия]:[партия]]=$S$1),ROW(E10))),"") ->  | G13: =IFERROR(INDEX(Таблица1[3],_xlfn.AGGREGATE(15,6,(ROW(Таблица1[3])-ROW(Таблица1[[#Headers],[3]]))/(Таблица1[[месяц]:[месяц]]=$J$2)/(Таблица1[[год]:[год]]=$L$2)/(Таблица1[[изд]:[изд]]=$O$1)/(Таблица1[[партия]:[партия]]=$S$1),ROW(F10))),"") ->  | H13: =IFERROR(INDEX(Таблица1[4],_xlfn.AGGREGATE(15,6,(ROW(Таблица1[4])-ROW(Таблица1[[#Headers],[4]]))/(Таблица1[[месяц]:[месяц]]=$J$2)/(Таблица1[[год]:[год]]=$L$2)/(Таблица1[[изд]:[изд]]=$O$1)/(Таблица1[[партия]:[партия]]=$S$1),ROW(G10))),"") ->  | I13: =IFERROR(INDEX(Таблица1[5],_xlfn.AGGREGATE(15,6,(ROW(Таблица1[5])-ROW(Таблица1[[#Headers],[5]]))/(Таблица1[[месяц]:[месяц]]=$J$2)/(Таблица1[[год]:[год]]=$L$2)/(Таблица1[[изд]:[изд]]=$O$1)/(Таблица1[[партия]:[партия]]=$S$1),ROW(H10))),"") ->  | J13: =IFERROR(INDEX(Таблица1[6],_xlfn.AGGREGATE(15,6,(ROW(Таблица1[6])-ROW(Таблица1[[#Headers],[6]]))/(Таблица1[[месяц]:[месяц]]=$J$2)/(Таблица1[[год]:[год]]=$L$2)/(Таблица1[[изд]:[изд]]=$O$1)/(Таблица1[[партия]:[партия]]=$S$1),ROW(I10))),"") ->  | K13: =IFERROR(INDEX(Таблица1[7],_xlfn.AGGREGATE(15,6,(ROW(Таблица1[7])-ROW(Таблица1[[#Headers],[7]]))/(Таблица1[[месяц]:[месяц]]=$J$2)/(Таблица1[[год]:[год]]=$L$2)/(Таблица1[[изд]:[изд]]=$O$1)/(Таблица1[[партия]:[партия]]=$S$1),ROW(J10))),"") ->  | L13: =IFERROR(INDEX(Таблица1[8],_xlfn.AGGREGATE(15,6,(ROW(Таблица1[8])-ROW(Таблица1[[#Headers],[8]]))/(Таблица1[[месяц]:[месяц]]=$J$2)/(Таблица1[[год]:[год]]=$L$2)/(Таблица1[[изд]:[изд]]=$O$1)/(Таблица1[[партия]:[партия]]=$S$1),ROW(K10))),"") ->  | M13: =IFERROR(INDEX(Таблица1[9],_xlfn.AGGREGATE(15,6,(ROW(Таблица1[9])-ROW(Таблица1[[#Headers],[9]]))/(Таблица1[[месяц]:[месяц]]=$J$2)/(Таблица1[[год]:[год]]=$L$2)/(Таблица1[[изд]:[изд]]=$O$1)/(Таблица1[[партия]:[партия]]=$S$1),ROW(L10))),"") ->  | N13: =IFERROR(INDEX(Таблица1[10],_xlfn.AGGREGATE(15,6,(ROW(Таблица1[10])-ROW(Таблица1[[#Headers],[10]]))/(Таблица1[[месяц]:[месяц]]=$J$2)/(Таблица1[[год]:[год]]=$L$2)/(Таблица1[[изд]:[изд]]=$O$1)/(Таблица1[[партия]:[партия]]=$S$1),ROW(M10))),"") ->  | O13: =IFERROR(INDEX(Таблица1[11],_xlfn.AGGREGATE(15,6,(ROW(Таблица1[11])-ROW(Таблица1[[#Headers],[11]]))/(Таблица1[[месяц]:[месяц]]=$J$2)/(Таблица1[[год]:[год]]=$L$2)/(Таблица1[[изд]:[изд]]=$O$1)/(Таблица1[[партия]:[партия]]=$S$1),ROW(N10))),"") ->  | P13: =IFERROR(INDEX(Таблица1[12],_xlfn.AGGREGATE(15,6,(ROW(Таблица1[12])-ROW(Таблица1[[#Headers],[12]]))/(Таблица1[[месяц]:[месяц]]=$J$2)/(Таблица1[[год]:[год]]=$L$2)/(Таблица1[[изд]:[изд]]=$O$1)/(Таблица1[[партия]:[партия]]=$S$1),ROW(O10))),"") ->  | Q13: =IFERROR(INDEX(Таблица1[13],_xlfn.AGGREGATE(15,6,(ROW(Таблица1[13])-ROW(Таблица1[[#Headers],[13]]))/(Таблица1[[месяц]:[месяц]]=$J$2)/(Таблица1[[год]:[год]]=$L$2)/(Таблица1[[изд]:[изд]]=$O$1)/(Таблица1[[партия]:[партия]]=$S$1),ROW(P10))),"") ->  | R13: =IFERROR(INDEX(Таблица1[14],_xlfn.AGGREGATE(15,6,(ROW(Таблица1[14])-ROW(Таблица1[[#Headers],[14]]))/(Таблица1[[месяц]:[месяц]]=$J$2)/(Таблица1[[год]:[год]]=$L$2)/(Таблица1[[изд]:[изд]]=$O$1)/(Таблица1[[партия]:[партия]]=$S$1),ROW(Q10))),"") ->  | S13: =IFERROR(INDEX(Таблица1[15],_xlfn.AGGREGATE(15,6,(ROW(Таблица1[15])-ROW(Таблица1[[#Headers],[15]]))/(Таблица1[[месяц]:[месяц]]=$J$2)/(Таблица1[[год]:[год]]=$L$2)/(Таблица1[[изд]:[изд]]=$O$1)/(Таблица1[[партия]:[партия]]=$S$1),ROW(R10))),"") ->  | T13: =IFERROR(INDEX(Таблица1[16],_xlfn.AGGREGATE(15,6,(ROW(Таблица1[16])-ROW(Таблица1[[#Headers],[16]]))/(Таблица1[[месяц]:[месяц]]=$J$2)/(Таблица1[[год]:[год]]=$L$2)/(Таблица1[[изд]:[изд]]=$O$1)/(Таблица1[[партия]:[партия]]=$S$1),ROW(S10))),"") ->  | U13: =IFERROR(INDEX(Таблица1[17],_xlfn.AGGREGATE(15,6,(ROW(Таблица1[17])-ROW(Таблица1[[#Headers],[17]]))/(Таблица1[[месяц]:[месяц]]=$J$2)/(Таблица1[[год]:[год]]=$L$2)/(Таблица1[[изд]:[изд]]=$O$1)/(Таблица1[[партия]:[партия]]=$S$1),ROW(T10))),"") ->  | V13: =IFERROR(INDEX(Таблица1[18],_xlfn.AGGREGATE(15,6,(ROW(Таблица1[18])-ROW(Таблица1[[#Headers],[18]]))/(Таблица1[[месяц]:[месяц]]=$J$2)/(Таблица1[[год]:[год]]=$L$2)/(Таблица1[[изд]:[изд]]=$O$1)/(Таблица1[[партия]:[партия]]=$S$1),ROW(U10))),"") ->  | W13: =IFERROR(INDEX(Таблица1[19],_xlfn.AGGREGATE(15,6,(ROW(Таблица1[19])-ROW(Таблица1[[#Headers],[19]]))/(Таблица1[[месяц]:[месяц]]=$J$2)/(Таблица1[[год]:[год]]=$L$2)/(Таблица1[[изд]:[изд]]=$O$1)/(Таблица1[[партия]:[партия]]=$S$1),ROW(V10))),"") ->  | X13: =IFERROR(INDEX(Таблица1[20],_xlfn.AGGREGATE(15,6,(ROW(Таблица1[20])-ROW(Таблица1[[#Headers],[20]]))/(Таблица1[[месяц]:[месяц]]=$J$2)/(Таблица1[[год]:[год]]=$L$2)/(Таблица1[[изд]:[изд]]=$O$1)/(Таблица1[[партия]:[партия]]=$S$1),ROW(W10))),"") ->  | Y13: =IFERROR(INDEX(Таблица1[21],_xlfn.AGGREGATE(15,6,(ROW(Таблица1[21])-ROW(Таблица1[[#Headers],[21]]))/(Таблица1[[месяц]:[месяц]]=$J$2)/(Таблица1[[год]:[год]]=$L$2)/(Таблица1[[изд]:[изд]]=$O$1)/(Таблица1[[партия]:[партия]]=$S$1),ROW(X10))),"") ->  | Z13: =IFERROR(INDEX(Таблица1[22],_xlfn.AGGREGATE(15,6,(ROW(Таблица1[22])-ROW(Таблица1[[#Headers],[22]]))/(Таблица1[[месяц]:[месяц]]=$J$2)/(Таблица1[[год]:[год]]=$L$2)/(Таблица1[[изд]:[изд]]=$O$1)/(Таблица1[[партия]:[партия]]=$S$1),ROW(Y10))),"") ->  | AA13: =IFERROR(INDEX(Таблица1[23],_xlfn.AGGREGATE(15,6,(ROW(Таблица1[23])-ROW(Таблица1[[#Headers],[23]]))/(Таблица1[[месяц]:[месяц]]=$J$2)/(Таблица1[[год]:[год]]=$L$2)/(Таблица1[[изд]:[изд]]=$O$1)/(Таблица1[[партия]:[партия]]=$S$1),ROW(Z10))),"") ->  | AB13: =IFERROR(INDEX(Таблица1[24],_xlfn.AGGREGATE(15,6,(ROW(Таблица1[24])-ROW(Таблица1[[#Headers],[24]]))/(Таблица1[[месяц]:[месяц]]=$J$2)/(Таблица1[[год]:[год]]=$L$2)/(Таблица1[[изд]:[изд]]=$O$1)/(Таблица1[[партия]:[партия]]=$S$1),ROW(AA10))),"") ->  | AC13: =IFERROR(INDEX(Таблица1[25],_xlfn.AGGREGATE(15,6,(ROW(Таблица1[25])-ROW(Таблица1[[#Headers],[25]]))/(Таблица1[[месяц]:[месяц]]=$J$2)/(Таблица1[[год]:[год]]=$L$2)/(Таблица1[[изд]:[изд]]=$O$1)/(Таблица1[[партия]:[партия]]=$S$1),ROW(AB10))),"") ->  | AD13: =IFERROR(INDEX(Таблица1[26],_xlfn.AGGREGATE(15,6,(ROW(Таблица1[26])-ROW(Таблица1[[#Headers],[26]]))/(Таблица1[[месяц]:[месяц]]=$J$2)/(Таблица1[[год]:[год]]=$L$2)/(Таблица1[[изд]:[изд]]=$O$1)/(Таблица1[[партия]:[партия]]=$S$1),ROW(AC10))),"") ->  | AE13: =IFERROR(INDEX(Таблица1[27],_xlfn.AGGREGATE(15,6,(ROW(Таблица1[27])-ROW(Таблица1[[#Headers],[27]]))/(Таблица1[[месяц]:[месяц]]=$J$2)/(Таблица1[[год]:[год]]=$L$2)/(Таблица1[[изд]:[изд]]=$O$1)/(Таблица1[[партия]:[партия]]=$S$1),ROW(AD10))),"") ->  | AF13: =IFERROR(INDEX(Таблица1[28],_xlfn.AGGREGATE(15,6,(ROW(Таблица1[28])-ROW(Таблица1[[#Headers],[28]]))/(Таблица1[[месяц]:[месяц]]=$J$2)/(Таблица1[[год]:[год]]=$L$2)/(Таблица1[[изд]:[изд]]=$O$1)/(Таблица1[[партия]:[партия]]=$S$1),ROW(AE10))),"") ->  | AG13: =IFERROR(INDEX(Таблица1[29],_xlfn.AGGREGATE(15,6,(ROW(Таблица1[29])-ROW(Таблица1[[#Headers],[29]]))/(Таблица1[[месяц]:[месяц]]=$J$2)/(Таблица1[[год]:[год]]=$L$2)/(Таблица1[[изд]:[изд]]=$O$1)/(Таблица1[[партия]:[партия]]=$S$1),ROW(AF10))),"") ->  | AH13: =IFERROR(INDEX(Таблица1[30],_xlfn.AGGREGATE(15,6,(ROW(Таблица1[30])-ROW(Таблица1[[#Headers],[30]]))/(Таблица1[[месяц]:[месяц]]=$J$2)/(Таблица1[[год]:[год]]=$L$2)/(Таблица1[[изд]:[изд]]=$O$1)/(Таблица1[[партия]:[партия]]=$S$1),ROW(AG10))),"") ->  | AI13: =IFERROR(INDEX(Таблица1[31],_xlfn.AGGREGATE(15,6,(ROW(Таблица1[31])-ROW(Таблица1[[#Headers],[31]]))/(Таблица1[[месяц]:[месяц]]=$J$2)/(Таблица1[[год]:[год]]=$L$2)/(Таблица1[[изд]:[изд]]=$O$1)/(Таблица1[[партия]:[партия]]=$S$1),ROW(AH10))),"") ->  | AJ13: 0
B14: =IFERROR(INDEX(Таблица1[коэф],_xlfn.AGGREGATE(15,6,(ROW(Таблица1[коэф])-ROW(Таблица1[[#Headers],[коэф]]))/(Таблица1[[месяц]:[месяц]]=$J$2)/(Таблица1[[год]:[год]]=$L$2)/(Таблица1[[изд]:[изд]]=$O$1)/(Таблица1[[партия]:[партия]]=$S$1),ROW(A11))),"") ->  | C14: =IFERROR(INDEX(Таблица1[Ф. И. О.],_xlfn.AGGREGATE(15,6,(ROW(Таблица1[Ф. И. О.])-ROW(Таблица1[[#Headers],[Ф. И. О.]]))/(Таблица1[[месяц]:[месяц]]=$J$2)/(Таблица1[[год]:[год]]=$L$2)/(Таблица1[[изд]:[изд]]=$O$1)/(Таблица1[[партия]:[партия]]=$S$1),ROW(B11))),"") ->  | D14: =IFERROR(INDEX(Таблица1[р/р],_xlfn.AGGREGATE(15,6,(ROW(Таблица1[р/р])-ROW(Таблица1[[#Headers],[р/р]]))/(Таблица1[[месяц]:[месяц]]=$J$2)/(Таблица1[[год]:[год]]=$L$2)/(Таблица1[[изд]:[изд]]=$O$1)/(Таблица1[[партия]:[партия]]=$S$1),ROW(C11))),"") ->  | E14: =IFERROR(INDEX(Таблица1[1],_xlfn.AGGREGATE(15,6,(ROW(Таблица1[1])-ROW(Таблица1[[#Headers],[1]]))/(Таблица1[[месяц]:[месяц]]=$J$2)/(Таблица1[[год]:[год]]=$L$2)/(Таблица1[[изд]:[изд]]=$O$1)/(Таблица1[[партия]:[партия]]=$S$1),ROW(D11))),"") ->  | F14: =IFERROR(INDEX(Таблица1[2],_xlfn.AGGREGATE(15,6,(ROW(Таблица1[2])-ROW(Таблица1[[#Headers],[2]]))/(Таблица1[[месяц]:[месяц]]=$J$2)/(Таблица1[[год]:[год]]=$L$2)/(Таблица1[[изд]:[изд]]=$O$1)/(Таблица1[[партия]:[партия]]=$S$1),ROW(E11))),"") ->  | G14: =IFERROR(INDEX(Таблица1[3],_xlfn.AGGREGATE(15,6,(ROW(Таблица1[3])-ROW(Таблица1[[#Headers],[3]]))/(Таблица1[[месяц]:[месяц]]=$J$2)/(Таблица1[[год]:[год]]=$L$2)/(Таблица1[[изд]:[изд]]=$O$1)/(Таблица1[[партия]:[партия]]=$S$1),ROW(F11))),"") ->  | H14: =IFERROR(INDEX(Таблица1[4],_xlfn.AGGREGATE(15,6,(ROW(Таблица1[4])-ROW(Таблица1[[#Headers],[4]]))/(Таблица1[[месяц]:[месяц]]=$J$2)/(Таблица1[[год]:[год]]=$L$2)/(Таблица1[[изд]:[изд]]=$O$1)/(Таблица1[[партия]:[партия]]=$S$1),ROW(G11))),"") ->  | I14: =IFERROR(INDEX(Таблица1[5],_xlfn.AGGREGATE(15,6,(ROW(Таблица1[5])-ROW(Таблица1[[#Headers],[5]]))/(Таблица1[[месяц]:[месяц]]=$J$2)/(Таблица1[[год]:[год]]=$L$2)/(Таблица1[[изд]:[изд]]=$O$1)/(Таблица1[[партия]:[партия]]=$S$1),ROW(H11))),"") ->  | J14: =IFERROR(INDEX(Таблица1[6],_xlfn.AGGREGATE(15,6,(ROW(Таблица1[6])-ROW(Таблица1[[#Headers],[6]]))/(Таблица1[[месяц]:[месяц]]=$J$2)/(Таблица1[[год]:[год]]=$L$2)/(Таблица1[[изд]:[изд]]=$O$1)/(Таблица1[[партия]:[партия]]=$S$1),ROW(I11))),"") ->  | K14: =IFERROR(INDEX(Таблица1[7],_xlfn.AGGREGATE(15,6,(ROW(Таблица1[7])-ROW(Таблица1[[#Headers],[7]]))/(Таблица1[[месяц]:[месяц]]=$J$2)/(Таблица1[[год]:[год]]=$L$2)/(Таблица1[[изд]:[изд]]=$O$1)/(Таблица1[[партия]:[партия]]=$S$1),ROW(J11))),"") ->  | L14: =IFERROR(INDEX(Таблица1[8],_xlfn.AGGREGATE(15,6,(ROW(Таблица1[8])-ROW(Таблица1[[#Headers],[8]]))/(Таблица1[[месяц]:[месяц]]=$J$2)/(Таблица1[[год]:[год]]=$L$2)/(Таблица1[[изд]:[изд]]=$O$1)/(Таблица1[[партия]:[партия]]=$S$1),ROW(K11))),"") ->  | M14: =IFERROR(INDEX(Таблица1[9],_xlfn.AGGREGATE(15,6,(ROW(Таблица1[9])-ROW(Таблица1[[#Headers],[9]]))/(Таблица1[[месяц]:[месяц]]=$J$2)/(Таблица1[[год]:[год]]=$L$2)/(Таблица1[[изд]:[изд]]=$O$1)/(Таблица1[[партия]:[партия]]=$S$1),ROW(L11))),"") ->  | N14: =IFERROR(INDEX(Таблица1[10],_xlfn.AGGREGATE(15,6,(ROW(Таблица1[10])-ROW(Таблица1[[#Headers],[10]]))/(Таблица1[[месяц]:[месяц]]=$J$2)/(Таблица1[[год]:[год]]=$L$2)/(Таблица1[[изд]:[изд]]=$O$1)/(Таблица1[[партия]:[партия]]=$S$1),ROW(M11))),"") ->  | O14: =IFERROR(INDEX(Таблица1[11],_xlfn.AGGREGATE(15,6,(ROW(Таблица1[11])-ROW(Таблица1[[#Headers],[11]]))/(Таблица1[[месяц]:[месяц]]=$J$2)/(Таблица1[[год]:[год]]=$L$2)/(Таблица1[[изд]:[изд]]=$O$1)/(Таблица1[[партия]:[партия]]=$S$1),ROW(N11))),"") ->  | P14: =IFERROR(INDEX(Таблица1[12],_xlfn.AGGREGATE(15,6,(ROW(Таблица1[12])-ROW(Таблица1[[#Headers],[12]]))/(Таблица1[[месяц]:[месяц]]=$J$2)/(Таблица1[[год]:[год]]=$L$2)/(Таблица1[[изд]:[изд]]=$O$1)/(Таблица1[[партия]:[партия]]=$S$1),ROW(O11))),"") ->  | Q14: =IFERROR(INDEX(Таблица1[13],_xlfn.AGGREGATE(15,6,(ROW(Таблица1[13])-ROW(Таблица1[[#Headers],[13]]))/(Таблица1[[месяц]:[месяц]]=$J$2)/(Таблица1[[год]:[год]]=$L$2)/(Таблица1[[изд]:[изд]]=$O$1)/(Таблица1[[партия]:[партия]]=$S$1),ROW(P11))),"") ->  | R14: =IFERROR(INDEX(Таблица1[14],_xlfn.AGGREGATE(15,6,(ROW(Таблица1[14])-ROW(Таблица1[[#Headers],[14]]))/(Таблица1[[месяц]:[месяц]]=$J$2)/(Таблица1[[год]:[год]]=$L$2)/(Таблица1[[изд]:[изд]]=$O$1)/(Таблица1[[партия]:[партия]]=$S$1),ROW(Q11))),"") ->  | S14: =IFERROR(INDEX(Таблица1[15],_xlfn.AGGREGATE(15,6,(ROW(Таблица1[15])-ROW(Таблица1[[#Headers],[15]]))/(Таблица1[[месяц]:[месяц]]=$J$2)/(Таблица1[[год]:[год]]=$L$2)/(Таблица1[[изд]:[изд]]=$O$1)/(Таблица1[[партия]:[партия]]=$S$1),ROW(R11))),"") ->  | T14: =IFERROR(INDEX(Таблица1[16],_xlfn.AGGREGATE(15,6,(ROW(Таблица1[16])-ROW(Таблица1[[#Headers],[16]]))/(Таблица1[[месяц]:[месяц]]=$J$2)/(Таблица1[[год]:[год]]=$L$2)/(Таблица1[[изд]:[изд]]=$O$1)/(Таблица1[[партия]:[партия]]=$S$1),ROW(S11))),"") ->  | U14: =IFERROR(INDEX(Таблица1[17],_xlfn.AGGREGATE(15,6,(ROW(Таблица1[17])-ROW(Таблица1[[#Headers],[17]]))/(Таблица1[[месяц]:[месяц]]=$J$2)/(Таблица1[[год]:[год]]=$L$2)/(Таблица1[[изд]:[изд]]=$O$1)/(Таблица1[[партия]:[партия]]=$S$1),ROW(T11))),"") ->  | V14: =IFERROR(INDEX(Таблица1[18],_xlfn.AGGREGATE(15,6,(ROW(Таблица1[18])-ROW(Таблица1[[#Headers],[18]]))/(Таблица1[[месяц]:[месяц]]=$J$2)/(Таблица1[[год]:[год]]=$L$2)/(Таблица1[[изд]:[изд]]=$O$1)/(Таблица1[[партия]:[партия]]=$S$1),ROW(U11))),"") ->  | W14: =IFERROR(INDEX(Таблица1[19],_xlfn.AGGREGATE(15,6,(ROW(Таблица1[19])-ROW(Таблица1[[#Headers],[19]]))/(Таблица1[[месяц]:[месяц]]=$J$2)/(Таблица1[[год]:[год]]=$L$2)/(Таблица1[[изд]:[изд]]=$O$1)/(Таблица1[[партия]:[партия]]=$S$1),ROW(V11))),"") ->  | X14: =IFERROR(INDEX(Таблица1[20],_xlfn.AGGREGATE(15,6,(ROW(Таблица1[20])-ROW(Таблица1[[#Headers],[20]]))/(Таблица1[[месяц]:[месяц]]=$J$2)/(Таблица1[[год]:[год]]=$L$2)/(Таблица1[[изд]:[изд]]=$O$1)/(Таблица1[[партия]:[партия]]=$S$1),ROW(W11))),"") ->  | Y14: =IFERROR(INDEX(Таблица1[21],_xlfn.AGGREGATE(15,6,(ROW(Таблица1[21])-ROW(Таблица1[[#Headers],[21]]))/(Таблица1[[месяц]:[месяц]]=$J$2)/(Таблица1[[год]:[год]]=$L$2)/(Таблица1[[изд]:[изд]]=$O$1)/(Таблица1[[партия]:[партия]]=$S$1),ROW(X11))),"") ->  | Z14: =IFERROR(INDEX(Таблица1[22],_xlfn.AGGREGATE(15,6,(ROW(Таблица1[22])-ROW(Таблица1[[#Headers],[22]]))/(Таблица1[[месяц]:[месяц]]=$J$2)/(Таблица1[[год]:[год]]=$L$2)/(Таблица1[[изд]:[изд]]=$O$1)/(Таблица1[[партия]:[партия]]=$S$1),ROW(Y11))),"") ->  | AA14: =IFERROR(INDEX(Таблица1[23],_xlfn.AGGREGATE(15,6,(ROW(Таблица1[23])-ROW(Таблица1[[#Headers],[23]]))/(Таблица1[[месяц]:[месяц]]=$J$2)/(Таблица1[[год]:[год]]=$L$2)/(Таблица1[[изд]:[изд]]=$O$1)/(Таблица1[[партия]:[партия]]=$S$1),ROW(Z11))),"") ->  | AB14: =IFERROR(INDEX(Таблица1[24],_xlfn.AGGREGATE(15,6,(ROW(Таблица1[24])-ROW(Таблица1[[#Headers],[24]]))/(Таблица1[[месяц]:[месяц]]=$J$2)/(Таблица1[[год]:[год]]=$L$2)/(Таблица1[[изд]:[изд]]=$O$1)/(Таблица1[[партия]:[партия]]=$S$1),ROW(AA11))),"") ->  | AC14: =IFERROR(INDEX(Таблица1[25],_xlfn.AGGREGATE(15,6,(ROW(Таблица1[25])-ROW(Таблица1[[#Headers],[25]]))/(Таблица1[[месяц]:[месяц]]=$J$2)/(Таблица1[[год]:[год]]=$L$2)/(Таблица1[[изд]:[изд]]=$O$1)/(Таблица1[[партия]:[партия]]=$S$1),ROW(AB11))),"") ->  | AD14: =IFERROR(INDEX(Таблица1[26],_xlfn.AGGREGATE(15,6,(ROW(Таблица1[26])-ROW(Таблица1[[#Headers],[26]]))/(Таблица1[[месяц]:[месяц]]=$J$2)/(Таблица1[[год]:[год]]=$L$2)/(Таблица1[[изд]:[изд]]=$O$1)/(Таблица1[[партия]:[партия]]=$S$1),ROW(AC11))),"") ->  | AE14: =IFERROR(INDEX(Таблица1[27],_xlfn.AGGREGATE(15,6,(ROW(Таблица1[27])-ROW(Таблица1[[#Headers],[27]]))/(Таблица1[[месяц]:[месяц]]=$J$2)/(Таблица1[[год]:[год]]=$L$2)/(Таблица1[[изд]:[изд]]=$O$1)/(Таблица1[[партия]:[партия]]=$S$1),ROW(AD11))),"") ->  | AF14: =IFERROR(INDEX(Таблица1[28],_xlfn.AGGREGATE(15,6,(ROW(Таблица1[28])-ROW(Таблица1[[#Headers],[28]]))/(Таблица1[[месяц]:[месяц]]=$J$2)/(Таблица1[[год]:[год]]=$L$2)/(Таблица1[[изд]:[изд]]=$O$1)/(Таблица1[[партия]:[партия]]=$S$1),ROW(AE11))),"") ->  | AG14: =IFERROR(INDEX(Таблица1[29],_xlfn.AGGREGATE(15,6,(ROW(Таблица1[29])-ROW(Таблица1[[#Headers],[29]]))/(Таблица1[[месяц]:[месяц]]=$J$2)/(Таблица1[[год]:[год]]=$L$2)/(Таблица1[[изд]:[изд]]=$O$1)/(Таблица1[[партия]:[партия]]=$S$1),ROW(AF11))),"") ->  | AH14: =IFERROR(INDEX(Таблица1[30],_xlfn.AGGREGATE(15,6,(ROW(Таблица1[30])-ROW(Таблица1[[#Headers],[30]]))/(Таблица1[[месяц]:[месяц]]=$J$2)/(Таблица1[[год]:[год]]=$L$2)/(Таблица1[[изд]:[изд]]=$O$1)/(Таблица1[[партия]:[партия]]=$S$1),ROW(AG11))),"") ->  | AI14: =IFERROR(INDEX(Таблица1[31],_xlfn.AGGREGATE(15,6,(ROW(Таблица1[31])-ROW(Таблица1[[#Headers],[31]]))/(Таблица1[[месяц]:[месяц]]=$J$2)/(Таблица1[[год]:[год]]=$L$2)/(Таблица1[[изд]:[изд]]=$O$1)/(Таблица1[[партия]:[партия]]=$S$1),ROW(AH11))),"") ->  | AJ14: 0
B15: =IFERROR(INDEX(Таблица1[коэф],_xlfn.AGGREGATE(15,6,(ROW(Таблица1[коэф])-ROW(Таблица1[[#Headers],[коэф]]))/(Таблица1[[месяц]:[месяц]]=$J$2)/(Таблица1[[год]:[год]]=$L$2)/(Таблица1[[изд]:[изд]]=$O$1)/(Таблица1[[партия]:[партия]]=$S$1),ROW(A12))),"") ->  | C15: =IFERROR(INDEX(Таблица1[Ф. И. О.],_xlfn.AGGREGATE(15,6,(ROW(Таблица1[Ф. И. О.])-ROW(Таблица1[[#Headers],[Ф. И. О.]]))/(Таблица1[[месяц]:[месяц]]=$J$2)/(Таблица1[[год]:[год]]=$L$2)/(Таблица1[[изд]:[изд]]=$O$1)/(Таблица1[[партия]:[партия]]=$S$1),ROW(B12))),"") ->  | D15: =IFERROR(INDEX(Таблица1[р/р],_xlfn.AGGREGATE(15,6,(ROW(Таблица1[р/р])-ROW(Таблица1[[#Headers],[р/р]]))/(Таблица1[[месяц]:[месяц]]=$J$2)/(Таблица1[[год]:[год]]=$L$2)/(Таблица1[[изд]:[изд]]=$O$1)/(Таблица1[[партия]:[партия]]=$S$1),ROW(C12))),"") ->  | E15: =IFERROR(INDEX(Таблица1[1],_xlfn.AGGREGATE(15,6,(ROW(Таблица1[1])-ROW(Таблица1[[#Headers],[1]]))/(Таблица1[[месяц]:[месяц]]=$J$2)/(Таблица1[[год]:[год]]=$L$2)/(Таблица1[[изд]:[изд]]=$O$1)/(Таблица1[[партия]:[партия]]=$S$1),ROW(D12))),"") ->  | F15: =IFERROR(INDEX(Таблица1[2],_xlfn.AGGREGATE(15,6,(ROW(Таблица1[2])-ROW(Таблица1[[#Headers],[2]]))/(Таблица1[[месяц]:[месяц]]=$J$2)/(Таблица1[[год]:[год]]=$L$2)/(Таблица1[[изд]:[изд]]=$O$1)/(Таблица1[[партия]:[партия]]=$S$1),ROW(E12))),"") ->  | G15: =IFERROR(INDEX(Таблица1[3],_xlfn.AGGREGATE(15,6,(ROW(Таблица1[3])-ROW(Таблица1[[#Headers],[3]]))/(Таблица1[[месяц]:[месяц]]=$J$2)/(Таблица1[[год]:[год]]=$L$2)/(Таблица1[[изд]:[изд]]=$O$1)/(Таблица1[[партия]:[партия]]=$S$1),ROW(F12))),"") ->  | H15: =IFERROR(INDEX(Таблица1[4],_xlfn.AGGREGATE(15,6,(ROW(Таблица1[4])-ROW(Таблица1[[#Headers],[4]]))/(Таблица1[[месяц]:[месяц]]=$J$2)/(Таблица1[[год]:[год]]=$L$2)/(Таблица1[[изд]:[изд]]=$O$1)/(Таблица1[[партия]:[партия]]=$S$1),ROW(G12))),"") ->  | I15: =IFERROR(INDEX(Таблица1[5],_xlfn.AGGREGATE(15,6,(ROW(Таблица1[5])-ROW(Таблица1[[#Headers],[5]]))/(Таблица1[[месяц]:[месяц]]=$J$2)/(Таблица1[[год]:[год]]=$L$2)/(Таблица1[[изд]:[изд]]=$O$1)/(Таблица1[[партия]:[партия]]=$S$1),ROW(H12))),"") ->  | J15: =IFERROR(INDEX(Таблица1[6],_xlfn.AGGREGATE(15,6,(ROW(Таблица1[6])-ROW(Таблица1[[#Headers],[6]]))/(Таблица1[[месяц]:[месяц]]=$J$2)/(Таблица1[[год]:[год]]=$L$2)/(Таблица1[[изд]:[изд]]=$O$1)/(Таблица1[[партия]:[партия]]=$S$1),ROW(I12))),"") ->  | K15: =IFERROR(INDEX(Таблица1[7],_xlfn.AGGREGATE(15,6,(ROW(Таблица1[7])-ROW(Таблица1[[#Headers],[7]]))/(Таблица1[[месяц]:[месяц]]=$J$2)/(Таблица1[[год]:[год]]=$L$2)/(Таблица1[[изд]:[изд]]=$O$1)/(Таблица1[[партия]:[партия]]=$S$1),ROW(J12))),"") ->  | L15: =IFERROR(INDEX(Таблица1[8],_xlfn.AGGREGATE(15,6,(ROW(Таблица1[8])-ROW(Таблица1[[#Headers],[8]]))/(Таблица1[[месяц]:[месяц]]=$J$2)/(Таблица1[[год]:[год]]=$L$2)/(Таблица1[[изд]:[изд]]=$O$1)/(Таблица1[[партия]:[партия]]=$S$1),ROW(K12))),"") ->  | M15: =IFERROR(INDEX(Таблица1[9],_xlfn.AGGREGATE(15,6,(ROW(Таблица1[9])-ROW(Таблица1[[#Headers],[9]]))/(Таблица1[[месяц]:[месяц]]=$J$2)/(Таблица1[[год]:[год]]=$L$2)/(Таблица1[[изд]:[изд]]=$O$1)/(Таблица1[[партия]:[партия]]=$S$1),ROW(L12))),"") ->  | N15: =IFERROR(INDEX(Таблица1[10],_xlfn.AGGREGATE(15,6,(ROW(Таблица1[10])-ROW(Таблица1[[#Headers],[10]]))/(Таблица1[[месяц]:[месяц]]=$J$2)/(Таблица1[[год]:[год]]=$L$2)/(Таблица1[[изд]:[изд]]=$O$1)/(Таблица1[[партия]:[партия]]=$S$1),ROW(M12))),"") ->  | O15: =IFERROR(INDEX(Таблица1[11],_xlfn.AGGREGATE(15,6,(ROW(Таблица1[11])-ROW(Таблица1[[#Headers],[11]]))/(Таблица1[[месяц]:[месяц]]=$J$2)/(Таблица1[[год]:[год]]=$L$2)/(Таблица1[[изд]:[изд]]=$O$1)/(Таблица1[[партия]:[партия]]=$S$1),ROW(N12))),"") ->  | P15: =IFERROR(INDEX(Таблица1[12],_xlfn.AGGREGATE(15,6,(ROW(Таблица1[12])-ROW(Таблица1[[#Headers],[12]]))/(Таблица1[[месяц]:[месяц]]=$J$2)/(Таблица1[[год]:[год]]=$L$2)/(Таблица1[[изд]:[изд]]=$O$1)/(Таблица1[[партия]:[партия]]=$S$1),ROW(O12))),"") ->  | Q15: =IFERROR(INDEX(Таблица1[13],_xlfn.AGGREGATE(15,6,(ROW(Таблица1[13])-ROW(Таблица1[[#Headers],[13]]))/(Таблица1[[месяц]:[месяц]]=$J$2)/(Таблица1[[год]:[год]]=$L$2)/(Таблица1[[изд]:[изд]]=$O$1)/(Таблица1[[партия]:[партия]]=$S$1),ROW(P12))),"") ->  | R15: =IFERROR(INDEX(Таблица1[14],_xlfn.AGGREGATE(15,6,(ROW(Таблица1[14])-ROW(Таблица1[[#Headers],[14]]))/(Таблица1[[месяц]:[месяц]]=$J$2)/(Таблица1[[год]:[год]]=$L$2)/(Таблица1[[изд]:[изд]]=$O$1)/(Таблица1[[партия]:[партия]]=$S$1),ROW(Q12))),"") ->  | S15: =IFERROR(INDEX(Таблица1[15],_xlfn.AGGREGATE(15,6,(ROW(Таблица1[15])-ROW(Таблица1[[#Headers],[15]]))/(Таблица1[[месяц]:[месяц]]=$J$2)/(Таблица1[[год]:[год]]=$L$2)/(Таблица1[[изд]:[изд]]=$O$1)/(Таблица1[[партия]:[партия]]=$S$1),ROW(R12))),"") ->  | T15: =IFERROR(INDEX(Таблица1[16],_xlfn.AGGREGATE(15,6,(ROW(Таблица1[16])-ROW(Таблица1[[#Headers],[16]]))/(Таблица1[[месяц]:[месяц]]=$J$2)/(Таблица1[[год]:[год]]=$L$2)/(Таблица1[[изд]:[изд]]=$O$1)/(Таблица1[[партия]:[партия]]=$S$1),ROW(S12))),"") ->  | U15: =IFERROR(INDEX(Таблица1[17],_xlfn.AGGREGATE(15,6,(ROW(Таблица1[17])-ROW(Таблица1[[#Headers],[17]]))/(Таблица1[[месяц]:[месяц]]=$J$2)/(Таблица1[[год]:[год]]=$L$2)/(Таблица1[[изд]:[изд]]=$O$1)/(Таблица1[[партия]:[партия]]=$S$1),ROW(T12))),"") ->  | V15: =IFERROR(INDEX(Таблица1[18],_xlfn.AGGREGATE(15,6,(ROW(Таблица1[18])-ROW(Таблица1[[#Headers],[18]]))/(Таблица1[[месяц]:[месяц]]=$J$2)/(Таблица1[[год]:[год]]=$L$2)/(Таблица1[[изд]:[изд]]=$O$1)/(Таблица1[[партия]:[партия]]=$S$1),ROW(U12))),"") ->  | W15: =IFERROR(INDEX(Таблица1[19],_xlfn.AGGREGATE(15,6,(ROW(Таблица1[19])-ROW(Таблица1[[#Headers],[19]]))/(Таблица1[[месяц]:[месяц]]=$J$2)/(Таблица1[[год]:[год]]=$L$2)/(Таблица1[[изд]:[изд]]=$O$1)/(Таблица1[[партия]:[партия]]=$S$1),ROW(V12))),"") ->  | X15: =IFERROR(INDEX(Таблица1[20],_xlfn.AGGREGATE(15,6,(ROW(Таблица1[20])-ROW(Таблица1[[#Headers],[20]]))/(Таблица1[[месяц]:[месяц]]=$J$2)/(Таблица1[[год]:[год]]=$L$2)/(Таблица1[[изд]:[изд]]=$O$1)/(Таблица1[[партия]:[партия]]=$S$1),ROW(W12))),"") ->  | Y15: =IFERROR(INDEX(Таблица1[21],_xlfn.AGGREGATE(15,6,(ROW(Таблица1[21])-ROW(Таблица1[[#Headers],[21]]))/(Таблица1[[месяц]:[месяц]]=$J$2)/(Таблица1[[год]:[год]]=$L$2)/(Таблица1[[изд]:[изд]]=$O$1)/(Таблица1[[партия]:[партия]]=$S$1),ROW(X12))),"") ->  | Z15: =IFERROR(INDEX(Таблица1[22],_xlfn.AGGREGATE(15,6,(ROW(Таблица1[22])-ROW(Таблица1[[#Headers],[22]]))/(Таблица1[[месяц]:[месяц]]=$J$2)/(Таблица1[[год]:[год]]=$L$2)/(Таблица1[[изд]:[изд]]=$O$1)/(Таблица1[[партия]:[партия]]=$S$1),ROW(Y12))),"") ->  | AA15: =IFERROR(INDEX(Таблица1[23],_xlfn.AGGREGATE(15,6,(ROW(Таблица1[23])-ROW(Таблица1[[#Headers],[23]]))/(Таблица1[[месяц]:[месяц]]=$J$2)/(Таблица1[[год]:[год]]=$L$2)/(Таблица1[[изд]:[изд]]=$O$1)/(Таблица1[[партия]:[партия]]=$S$1),ROW(Z12))),"") ->  | AB15: =IFERROR(INDEX(Таблица1[24],_xlfn.AGGREGATE(15,6,(ROW(Таблица1[24])-ROW(Таблица1[[#Headers],[24]]))/(Таблица1[[месяц]:[месяц]]=$J$2)/(Таблица1[[год]:[год]]=$L$2)/(Таблица1[[изд]:[изд]]=$O$1)/(Таблица1[[партия]:[партия]]=$S$1),ROW(AA12))),"") ->  | AC15: =IFERROR(INDEX(Таблица1[25],_xlfn.AGGREGATE(15,6,(ROW(Таблица1[25])-ROW(Таблица1[[#Headers],[25]]))/(Таблица1[[месяц]:[месяц]]=$J$2)/(Таблица1[[год]:[год]]=$L$2)/(Таблица1[[изд]:[изд]]=$O$1)/(Таблица1[[партия]:[партия]]=$S$1),ROW(AB12))),"") ->  | AD15: =IFERROR(INDEX(Таблица1[26],_xlfn.AGGREGATE(15,6,(ROW(Таблица1[26])-ROW(Таблица1[[#Headers],[26]]))/(Таблица1[[месяц]:[месяц]]=$J$2)/(Таблица1[[год]:[год]]=$L$2)/(Таблица1[[изд]:[изд]]=$O$1)/(Таблица1[[партия]:[партия]]=$S$1),ROW(AC12))),"") ->  | AE15: =IFERROR(INDEX(Таблица1[27],_xlfn.AGGREGATE(15,6,(ROW(Таблица1[27])-ROW(Таблица1[[#Headers],[27]]))/(Таблица1[[месяц]:[месяц]]=$J$2)/(Таблица1[[год]:[год]]=$L$2)/(Таблица1[[изд]:[изд]]=$O$1)/(Таблица1[[партия]:[партия]]=$S$1),ROW(AD12))),"") ->  | AF15: =IFERROR(INDEX(Таблица1[28],_xlfn.AGGREGATE(15,6,(ROW(Таблица1[28])-ROW(Таблица1[[#Headers],[28]]))/(Таблица1[[месяц]:[месяц]]=$J$2)/(Таблица1[[год]:[год]]=$L$2)/(Таблица1[[изд]:[изд]]=$O$1)/(Таблица1[[партия]:[партия]]=$S$1),ROW(AE12))),"") ->  | AG15: =IFERROR(INDEX(Таблица1[29],_xlfn.AGGREGATE(15,6,(ROW(Таблица1[29])-ROW(Таблица1[[#Headers],[29]]))/(Таблица1[[месяц]:[месяц]]=$J$2)/(Таблица1[[год]:[год]]=$L$2)/(Таблица1[[изд]:[изд]]=$O$1)/(Таблица1[[партия]:[партия]]=$S$1),ROW(AF12))),"") ->  | AH15: =IFERROR(INDEX(Таблица1[30],_xlfn.AGGREGATE(15,6,(ROW(Таблица1[30])-ROW(Таблица1[[#Headers],[30]]))/(Таблица1[[месяц]:[месяц]]=$J$2)/(Таблица1[[год]:[год]]=$L$2)/(Таблица1[[изд]:[изд]]=$O$1)/(Таблица1[[партия]:[партия]]=$S$1),ROW(AG12))),"") ->  | AI15: =IFERROR(INDEX(Таблица1[31],_xlfn.AGGREGATE(15,6,(ROW(Таблица1[31])-ROW(Таблица1[[#Headers],[31]]))/(Таблица1[[месяц]:[месяц]]=$J$2)/(Таблица1[[год]:[год]]=$L$2)/(Таблица1[[изд]:[изд]]=$O$1)/(Таблица1[[партия]:[партия]]=$S$1),ROW(AH12))),"") ->  | AJ15: 0
B16: =IFERROR(INDEX(Таблица1[коэф],_xlfn.AGGREGATE(15,6,(ROW(Таблица1[коэф])-ROW(Таблица1[[#Headers],[коэф]]))/(Таблица1[[месяц]:[месяц]]=$J$2)/(Таблица1[[год]:[год]]=$L$2)/(Таблица1[[изд]:[изд]]=$O$1)/(Таблица1[[партия]:[партия]]=$S$1),ROW(A13))),"") ->  | C16: =IFERROR(INDEX(Таблица1[Ф. И. О.],_xlfn.AGGREGATE(15,6,(ROW(Таблица1[Ф. И. О.])-ROW(Таблица1[[#Headers],[Ф. И. О.]]))/(Таблица1[[месяц]:[месяц]]=$J$2)/(Таблица1[[год]:[год]]=$L$2)/(Таблица1[[изд]:[изд]]=$O$1)/(Таблица1[[партия]:[партия]]=$S$1),ROW(B13))),"") ->  | D16: =IFERROR(INDEX(Таблица1[р/р],_xlfn.AGGREGATE(15,6,(ROW(Таблица1[р/р])-ROW(Таблица1[[#Headers],[р/р]]))/(Таблица1[[месяц]:[месяц]]=$J$2)/(Таблица1[[год]:[год]]=$L$2)/(Таблица1[[изд]:[изд]]=$O$1)/(Таблица1[[партия]:[партия]]=$S$1),ROW(C13))),"") ->  | E16: =IFERROR(INDEX(Таблица1[1],_xlfn.AGGREGATE(15,6,(ROW(Таблица1[1])-ROW(Таблица1[[#Headers],[1]]))/(Таблица1[[месяц]:[месяц]]=$J$2)/(Таблица1[[год]:[год]]=$L$2)/(Таблица1[[изд]:[изд]]=$O$1)/(Таблица1[[партия]:[партия]]=$S$1),ROW(D13))),"") ->  | F16: =IFERROR(INDEX(Таблица1[2],_xlfn.AGGREGATE(15,6,(ROW(Таблица1[2])-ROW(Таблица1[[#Headers],[2]]))/(Таблица1[[месяц]:[месяц]]=$J$2)/(Таблица1[[год]:[год]]=$L$2)/(Таблица1[[изд]:[изд]]=$O$1)/(Таблица1[[партия]:[партия]]=$S$1),ROW(E13))),"") ->  | G16: =IFERROR(INDEX(Таблица1[3],_xlfn.AGGREGATE(15,6,(ROW(Таблица1[3])-ROW(Таблица1[[#Headers],[3]]))/(Таблица1[[месяц]:[месяц]]=$J$2)/(Таблица1[[год]:[год]]=$L$2)/(Таблица1[[изд]:[изд]]=$O$1)/(Таблица1[[партия]:[партия]]=$S$1),ROW(F13))),"") ->  | H16: =IFERROR(INDEX(Таблица1[4],_xlfn.AGGREGATE(15,6,(ROW(Таблица1[4])-ROW(Таблица1[[#Headers],[4]]))/(Таблица1[[месяц]:[месяц]]=$J$2)/(Таблица1[[год]:[год]]=$L$2)/(Таблица1[[изд]:[изд]]=$O$1)/(Таблица1[[партия]:[партия]]=$S$1),ROW(G13))),"") ->  | I16: =IFERROR(INDEX(Таблица1[5],_xlfn.AGGREGATE(15,6,(ROW(Таблица1[5])-ROW(Таблица1[[#Headers],[5]]))/(Таблица1[[месяц]:[месяц]]=$J$2)/(Таблица1[[год]:[год]]=$L$2)/(Таблица1[[изд]:[изд]]=$O$1)/(Таблица1[[партия]:[партия]]=$S$1),ROW(H13))),"") ->  | J16: =IFERROR(INDEX(Таблица1[6],_xlfn.AGGREGATE(15,6,(ROW(Таблица1[6])-ROW(Таблица1[[#Headers],[6]]))/(Таблица1[[месяц]:[месяц]]=$J$2)/(Таблица1[[год]:[год]]=$L$2)/(Таблица1[[изд]:[изд]]=$O$1)/(Таблица1[[партия]:[партия]]=$S$1),ROW(I13))),"") ->  | K16: =IFERROR(INDEX(Таблица1[7],_xlfn.AGGREGATE(15,6,(ROW(Таблица1[7])-ROW(Таблица1[[#Headers],[7]]))/(Таблица1[[месяц]:[месяц]]=$J$2)/(Таблица1[[год]:[год]]=$L$2)/(Таблица1[[изд]:[изд]]=$O$1)/(Таблица1[[партия]:[партия]]=$S$1),ROW(J13))),"") ->  | L16: =IFERROR(INDEX(Таблица1[8],_xlfn.AGGREGATE(15,6,(ROW(Таблица1[8])-ROW(Таблица1[[#Headers],[8]]))/(Таблица1[[месяц]:[месяц]]=$J$2)/(Таблица1[[год]:[год]]=$L$2)/(Таблица1[[изд]:[изд]]=$O$1)/(Таблица1[[партия]:[партия]]=$S$1),ROW(K13))),"") ->  | M16: =IFERROR(INDEX(Таблица1[9],_xlfn.AGGREGATE(15,6,(ROW(Таблица1[9])-ROW(Таблица1[[#Headers],[9]]))/(Таблица1[[месяц]:[месяц]]=$J$2)/(Таблица1[[год]:[год]]=$L$2)/(Таблица1[[изд]:[изд]]=$O$1)/(Таблица1[[партия]:[партия]]=$S$1),ROW(L13))),"") ->  | N16: =IFERROR(INDEX(Таблица1[10],_xlfn.AGGREGATE(15,6,(ROW(Таблица1[10])-ROW(Таблица1[[#Headers],[10]]))/(Таблица1[[месяц]:[месяц]]=$J$2)/(Таблица1[[год]:[год]]=$L$2)/(Таблица1[[изд]:[изд]]=$O$1)/(Таблица1[[партия]:[партия]]=$S$1),ROW(M13))),"") ->  | O16: =IFERROR(INDEX(Таблица1[11],_xlfn.AGGREGATE(15,6,(ROW(Таблица1[11])-ROW(Таблица1[[#Headers],[11]]))/(Таблица1[[месяц]:[месяц]]=$J$2)/(Таблица1[[год]:[год]]=$L$2)/(Таблица1[[изд]:[изд]]=$O$1)/(Таблица1[[партия]:[партия]]=$S$1),ROW(N13))),"") ->  | P16: =IFERROR(INDEX(Таблица1[12],_xlfn.AGGREGATE(15,6,(ROW(Таблица1[12])-ROW(Таблица1[[#Headers],[12]]))/(Таблица1[[месяц]:[месяц]]=$J$2)/(Таблица1[[год]:[год]]=$L$2)/(Таблица1[[изд]:[изд]]=$O$1)/(Таблица1[[партия]:[партия]]=$S$1),ROW(O13))),"") ->  | Q16: =IFERROR(INDEX(Таблица1[13],_xlfn.AGGREGATE(15,6,(ROW(Таблица1[13])-ROW(Таблица1[[#Headers],[13]]))/(Таблица1[[месяц]:[месяц]]=$J$2)/(Таблица1[[год]:[год]]=$L$2)/(Таблица1[[изд]:[изд]]=$O$1)/(Таблица1[[партия]:[партия]]=$S$1),ROW(P13))),"") ->  | R16: =IFERROR(INDEX(Таблица1[14],_xlfn.AGGREGATE(15,6,(ROW(Таблица1[14])-ROW(Таблица1[[#Headers],[14]]))/(Таблица1[[месяц]:[месяц]]=$J$2)/(Таблица1[[год]:[год]]=$L$2)/(Таблица1[[изд]:[изд]]=$O$1)/(Таблица1[[партия]:[партия]]=$S$1),ROW(Q13))),"") ->  | S16: =IFERROR(INDEX(Таблица1[15],_xlfn.AGGREGATE(15,6,(ROW(Таблица1[15])-ROW(Таблица1[[#Headers],[15]]))/(Таблица1[[месяц]:[месяц]]=$J$2)/(Таблица1[[год]:[год]]=$L$2)/(Таблица1[[изд]:[изд]]=$O$1)/(Таблица1[[партия]:[партия]]=$S$1),ROW(R13))),"") ->  | T16: =IFERROR(INDEX(Таблица1[16],_xlfn.AGGREGATE(15,6,(ROW(Таблица1[16])-ROW(Таблица1[[#Headers],[16]]))/(Таблица1[[месяц]:[месяц]]=$J$2)/(Таблица1[[год]:[год]]=$L$2)/(Таблица1[[изд]:[изд]]=$O$1)/(Таблица1[[партия]:[партия]]=$S$1),ROW(S13))),"") ->  | U16: =IFERROR(INDEX(Таблица1[17],_xlfn.AGGREGATE(15,6,(ROW(Таблица1[17])-ROW(Таблица1[[#Headers],[17]]))/(Таблица1[[месяц]:[месяц]]=$J$2)/(Таблица1[[год]:[год]]=$L$2)/(Таблица1[[изд]:[изд]]=$O$1)/(Таблица1[[партия]:[партия]]=$S$1),ROW(T13))),"") ->  | V16: =IFERROR(INDEX(Таблица1[18],_xlfn.AGGREGATE(15,6,(ROW(Таблица1[18])-ROW(Таблица1[[#Headers],[18]]))/(Таблица1[[месяц]:[месяц]]=$J$2)/(Таблица1[[год]:[год]]=$L$2)/(Таблица1[[изд]:[изд]]=$O$1)/(Таблица1[[партия]:[партия]]=$S$1),ROW(U13))),"") ->  | W16: =IFERROR(INDEX(Таблица1[19],_xlfn.AGGREGATE(15,6,(ROW(Таблица1[19])-ROW(Таблица1[[#Headers],[19]]))/(Таблица1[[месяц]:[месяц]]=$J$2)/(Таблица1[[год]:[год]]=$L$2)/(Таблица1[[изд]:[изд]]=$O$1)/(Таблица1[[партия]:[партия]]=$S$1),ROW(V13))),"") ->  | X16: =IFERROR(INDEX(Таблица1[20],_xlfn.AGGREGATE(15,6,(ROW(Таблица1[20])-ROW(Таблица1[[#Headers],[20]]))/(Таблица1[[месяц]:[месяц]]=$J$2)/(Таблица1[[год]:[год]]=$L$2)/(Таблица1[[изд]:[изд]]=$O$1)/(Таблица1[[партия]:[партия]]=$S$1),ROW(W13))),"") ->  | Y16: =IFERROR(INDEX(Таблица1[21],_xlfn.AGGREGATE(15,6,(ROW(Таблица1[21])-ROW(Таблица1[[#Headers],[21]]))/(Таблица1[[месяц]:[месяц]]=$J$2)/(Таблица1[[год]:[год]]=$L$2)/(Таблица1[[изд]:[изд]]=$O$1)/(Таблица1[[партия]:[партия]]=$S$1),ROW(X13))),"") ->  | Z16: =IFERROR(INDEX(Таблица1[22],_xlfn.AGGREGATE(15,6,(ROW(Таблица1[22])-ROW(Таблица1[[#Headers],[22]]))/(Таблица1[[месяц]:[месяц]]=$J$2)/(Таблица1[[год]:[год]]=$L$2)/(Таблица1[[изд]:[изд]]=$O$1)/(Таблица1[[партия]:[партия]]=$S$1),ROW(Y13))),"") ->  | AA16: =IFERROR(INDEX(Таблица1[23],_xlfn.AGGREGATE(15,6,(ROW(Таблица1[23])-ROW(Таблица1[[#Headers],[23]]))/(Таблица1[[месяц]:[месяц]]=$J$2)/(Таблица1[[год]:[год]]=$L$2)/(Таблица1[[изд]:[изд]]=$O$1)/(Таблица1[[партия]:[партия]]=$S$1),ROW(Z13))),"") ->  | AB16: =IFERROR(INDEX(Таблица1[24],_xlfn.AGGREGATE(15,6,(ROW(Таблица1[24])-ROW(Таблица1[[#Headers],[24]]))/(Таблица1[[месяц]:[месяц]]=$J$2)/(Таблица1[[год]:[год]]=$L$2)/(Таблица1[[изд]:[изд]]=$O$1)/(Таблица1[[партия]:[партия]]=$S$1),ROW(AA13))),"") ->  | AC16: =IFERROR(INDEX(Таблица1[25],_xlfn.AGGREGATE(15,6,(ROW(Таблица1[25])-ROW(Таблица1[[#Headers],[25]]))/(Таблица1[[месяц]:[месяц]]=$J$2)/(Таблица1[[год]:[год]]=$L$2)/(Таблица1[[изд]:[изд]]=$O$1)/(Таблица1[[партия]:[партия]]=$S$1),ROW(AB13))),"") ->  | AD16: =IFERROR(INDEX(Таблица1[26],_xlfn.AGGREGATE(15,6,(ROW(Таблица1[26])-ROW(Таблица1[[#Headers],[26]]))/(Таблица1[[месяц]:[месяц]]=$J$2)/(Таблица1[[год]:[год]]=$L$2)/(Таблица1[[изд]:[изд]]=$O$1)/(Таблица1[[партия]:[партия]]=$S$1),ROW(AC13))),"") ->  | AE16: =IFERROR(INDEX(Таблица1[27],_xlfn.AGGREGATE(15,6,(ROW(Таблица1[27])-ROW(Таблица1[[#Headers],[27]]))/(Таблица1[[месяц]:[месяц]]=$J$2)/(Таблица1[[год]:[год]]=$L$2)/(Таблица1[[изд]:[изд]]=$O$1)/(Таблица1[[партия]:[партия]]=$S$1),ROW(AD13))),"") ->  | AF16: =IFERROR(INDEX(Таблица1[28],_xlfn.AGGREGATE(15,6,(ROW(Таблица1[28])-ROW(Таблица1[[#Headers],[28]]))/(Таблица1[[месяц]:[месяц]]=$J$2)/(Таблица1[[год]:[год]]=$L$2)/(Таблица1[[изд]:[изд]]=$O$1)/(Таблица1[[партия]:[партия]]=$S$1),ROW(AE13))),"") ->  | AG16: =IFERROR(INDEX(Таблица1[29],_xlfn.AGGREGATE(15,6,(ROW(Таблица1[29])-ROW(Таблица1[[#Headers],[29]]))/(Таблица1[[месяц]:[месяц]]=$J$2)/(Таблица1[[год]:[год]]=$L$2)/(Таблица1[[изд]:[изд]]=$O$1)/(Таблица1[[партия]:[партия]]=$S$1),ROW(AF13))),"") ->  | AH16: =IFERROR(INDEX(Таблица1[30],_xlfn.AGGREGATE(15,6,(ROW(Таблица1[30])-ROW(Таблица1[[#Headers],[30]]))/(Таблица1[[месяц]:[месяц]]=$J$2)/(Таблица1[[год]:[год]]=$L$2)/(Таблица1[[изд]:[изд]]=$O$1)/(Таблица1[[партия]:[партия]]=$S$1),ROW(AG13))),"") ->  | AI16: =IFERROR(INDEX(Таблица1[31],_xlfn.AGGREGATE(15,6,(ROW(Таблица1[31])-ROW(Таблица1[[#Headers],[31]]))/(Таблица1[[месяц]:[месяц]]=$J$2)/(Таблица1[[год]:[год]]=$L$2)/(Таблица1[[изд]:[изд]]=$O$1)/(Таблица1[[партия]:[партия]]=$S$1),ROW(AH13))),"") ->  | AJ16: 0
B17: =IFERROR(INDEX(Таблица1[коэф],_xlfn.AGGREGATE(15,6,(ROW(Таблица1[коэф])-ROW(Таблица1[[#Headers],[коэф]]))/(Таблица1[[месяц]:[месяц]]=$J$2)/(Таблица1[[год]:[год]]=$L$2)/(Таблица1[[изд]:[изд]]=$O$1)/(Таблица1[[партия]:[партия]]=$S$1),ROW(A14))),"") ->  | C17: =IFERROR(INDEX(Таблица1[Ф. И. О.],_xlfn.AGGREGATE(15,6,(ROW(Таблица1[Ф. И. О.])-ROW(Таблица1[[#Headers],[Ф. И. О.]]))/(Таблица1[[месяц]:[месяц]]=$J$2)/(Таблица1[[год]:[год]]=$L$2)/(Таблица1[[изд]:[изд]]=$O$1)/(Таблица1[[партия]:[партия]]=$S$1),ROW(B14))),"") ->  | D17: =IFERROR(INDEX(Таблица1[р/р],_xlfn.AGGREGATE(15,6,(ROW(Таблица1[р/р])-ROW(Таблица1[[#Headers],[р/р]]))/(Таблица1[[месяц]:[месяц]]=$J$2)/(Таблица1[[год]:[год]]=$L$2)/(Таблица1[[изд]:[изд]]=$O$1)/(Таблица1[[партия]:[партия]]=$S$1),ROW(C14))),"") ->  | E17: =IFERROR(INDEX(Таблица1[1],_xlfn.AGGREGATE(15,6,(ROW(Таблица1[1])-ROW(Таблица1[[#Headers],[1]]))/(Таблица1[[месяц]:[месяц]]=$J$2)/(Таблица1[[год]:[год]]=$L$2)/(Таблица1[[изд]:[изд]]=$O$1)/(Таблица1[[партия]:[партия]]=$S$1),ROW(D14))),"") ->  | F17: =IFERROR(INDEX(Таблица1[2],_xlfn.AGGREGATE(15,6,(ROW(Таблица1[2])-ROW(Таблица1[[#Headers],[2]]))/(Таблица1[[месяц]:[месяц]]=$J$2)/(Таблица1[[год]:[год]]=$L$2)/(Таблица1[[изд]:[изд]]=$O$1)/(Таблица1[[партия]:[партия]]=$S$1),ROW(E14))),"") ->  | G17: =IFERROR(INDEX(Таблица1[3],_xlfn.AGGREGATE(15,6,(ROW(Таблица1[3])-ROW(Таблица1[[#Headers],[3]]))/(Таблица1[[месяц]:[месяц]]=$J$2)/(Таблица1[[год]:[год]]=$L$2)/(Таблица1[[изд]:[изд]]=$O$1)/(Таблица1[[партия]:[партия]]=$S$1),ROW(F14))),"") ->  | H17: =IFERROR(INDEX(Таблица1[4],_xlfn.AGGREGATE(15,6,(ROW(Таблица1[4])-ROW(Таблица1[[#Headers],[4]]))/(Таблица1[[месяц]:[месяц]]=$J$2)/(Таблица1[[год]:[год]]=$L$2)/(Таблица1[[изд]:[изд]]=$O$1)/(Таблица1[[партия]:[партия]]=$S$1),ROW(G14))),"") ->  | I17: =IFERROR(INDEX(Таблица1[5],_xlfn.AGGREGATE(15,6,(ROW(Таблица1[5])-ROW(Таблица1[[#Headers],[5]]))/(Таблица1[[месяц]:[месяц]]=$J$2)/(Таблица1[[год]:[год]]=$L$2)/(Таблица1[[изд]:[изд]]=$O$1)/(Таблица1[[партия]:[партия]]=$S$1),ROW(H14))),"") ->  | J17: =IFERROR(INDEX(Таблица1[6],_xlfn.AGGREGATE(15,6,(ROW(Таблица1[6])-ROW(Таблица1[[#Headers],[6]]))/(Таблица1[[месяц]:[месяц]]=$J$2)/(Таблица1[[год]:[год]]=$L$2)/(Таблица1[[изд]:[изд]]=$O$1)/(Таблица1[[партия]:[партия]]=$S$1),ROW(I14))),"") ->  | K17: =IFERROR(INDEX(Таблица1[7],_xlfn.AGGREGATE(15,6,(ROW(Таблица1[7])-ROW(Таблица1[[#Headers],[7]]))/(Таблица1[[месяц]:[месяц]]=$J$2)/(Таблица1[[год]:[год]]=$L$2)/(Таблица1[[изд]:[изд]]=$O$1)/(Таблица1[[партия]:[партия]]=$S$1),ROW(J14))),"") ->  | L17: =IFERROR(INDEX(Таблица1[8],_xlfn.AGGREGATE(15,6,(ROW(Таблица1[8])-ROW(Таблица1[[#Headers],[8]]))/(Таблица1[[месяц]:[месяц]]=$J$2)/(Таблица1[[год]:[год]]=$L$2)/(Таблица1[[изд]:[изд]]=$O$1)/(Таблица1[[партия]:[партия]]=$S$1),ROW(K14))),"") ->  | M17: =IFERROR(INDEX(Таблица1[9],_xlfn.AGGREGATE(15,6,(ROW(Таблица1[9])-ROW(Таблица1[[#Headers],[9]]))/(Таблица1[[месяц]:[месяц]]=$J$2)/(Таблица1[[год]:[год]]=$L$2)/(Таблица1[[изд]:[изд]]=$O$1)/(Таблица1[[партия]:[партия]]=$S$1),ROW(L14))),"") ->  | N17: =IFERROR(INDEX(Таблица1[10],_xlfn.AGGREGATE(15,6,(ROW(Таблица1[10])-ROW(Таблица1[[#Headers],[10]]))/(Таблица1[[месяц]:[месяц]]=$J$2)/(Таблица1[[год]:[год]]=$L$2)/(Таблица1[[изд]:[изд]]=$O$1)/(Таблица1[[партия]:[партия]]=$S$1),ROW(M14))),"") ->  | O17: =IFERROR(INDEX(Таблица1[11],_xlfn.AGGREGATE(15,6,(ROW(Таблица1[11])-ROW(Таблица1[[#Headers],[11]]))/(Таблица1[[месяц]:[месяц]]=$J$2)/(Таблица1[[год]:[год]]=$L$2)/(Таблица1[[изд]:[изд]]=$O$1)/(Таблица1[[партия]:[партия]]=$S$1),ROW(N14))),"") ->  | P17: =IFERROR(INDEX(Таблица1[12],_xlfn.AGGREGATE(15,6,(ROW(Таблица1[12])-ROW(Таблица1[[#Headers],[12]]))/(Таблица1[[месяц]:[месяц]]=$J$2)/(Таблица1[[год]:[год]]=$L$2)/(Таблица1[[изд]:[изд]]=$O$1)/(Таблица1[[партия]:[партия]]=$S$1),ROW(O14))),"") ->  | Q17: =IFERROR(INDEX(Таблица1[13],_xlfn.AGGREGATE(15,6,(ROW(Таблица1[13])-ROW(Таблица1[[#Headers],[13]]))/(Таблица1[[месяц]:[месяц]]=$J$2)/(Таблица1[[год]:[год]]=$L$2)/(Таблица1[[изд]:[изд]]=$O$1)/(Таблица1[[партия]:[партия]]=$S$1),ROW(P14))),"") ->  | R17: =IFERROR(INDEX(Таблица1[14],_xlfn.AGGREGATE(15,6,(ROW(Таблица1[14])-ROW(Таблица1[[#Headers],[14]]))/(Таблица1[[месяц]:[месяц]]=$J$2)/(Таблица1[[год]:[год]]=$L$2)/(Таблица1[[изд]:[изд]]=$O$1)/(Таблица1[[партия]:[партия]]=$S$1),ROW(Q14))),"") ->  | S17: =IFERROR(INDEX(Таблица1[15],_xlfn.AGGREGATE(15,6,(ROW(Таблица1[15])-ROW(Таблица1[[#Headers],[15]]))/(Таблица1[[месяц]:[месяц]]=$J$2)/(Таблица1[[год]:[год]]=$L$2)/(Таблица1[[изд]:[изд]]=$O$1)/(Таблица1[[партия]:[партия]]=$S$1),ROW(R14))),"") ->  | T17: =IFERROR(INDEX(Таблица1[16],_xlfn.AGGREGATE(15,6,(ROW(Таблица1[16])-ROW(Таблица1[[#Headers],[16]]))/(Таблица1[[месяц]:[месяц]]=$J$2)/(Таблица1[[год]:[год]]=$L$2)/(Таблица1[[изд]:[изд]]=$O$1)/(Таблица1[[партия]:[партия]]=$S$1),ROW(S14))),"") ->  | U17: =IFERROR(INDEX(Таблица1[17],_xlfn.AGGREGATE(15,6,(ROW(Таблица1[17])-ROW(Таблица1[[#Headers],[17]]))/(Таблица1[[месяц]:[месяц]]=$J$2)/(Таблица1[[год]:[год]]=$L$2)/(Таблица1[[изд]:[изд]]=$O$1)/(Таблица1[[партия]:[партия]]=$S$1),ROW(T14))),"") ->  | V17: =IFERROR(INDEX(Таблица1[18],_xlfn.AGGREGATE(15,6,(ROW(Таблица1[18])-ROW(Таблица1[[#Headers],[18]]))/(Таблица1[[месяц]:[месяц]]=$J$2)/(Таблица1[[год]:[год]]=$L$2)/(Таблица1[[изд]:[изд]]=$O$1)/(Таблица1[[партия]:[партия]]=$S$1),ROW(U14))),"") ->  | W17: =IFERROR(INDEX(Таблица1[19],_xlfn.AGGREGATE(15,6,(ROW(Таблица1[19])-ROW(Таблица1[[#Headers],[19]]))/(Таблица1[[месяц]:[месяц]]=$J$2)/(Таблица1[[год]:[год]]=$L$2)/(Таблица1[[изд]:[изд]]=$O$1)/(Таблица1[[партия]:[партия]]=$S$1),ROW(V14))),"") ->  | X17: =IFERROR(INDEX(Таблица1[20],_xlfn.AGGREGATE(15,6,(ROW(Таблица1[20])-ROW(Таблица1[[#Headers],[20]]))/(Таблица1[[месяц]:[месяц]]=$J$2)/(Таблица1[[год]:[год]]=$L$2)/(Таблица1[[изд]:[изд]]=$O$1)/(Таблица1[[партия]:[партия]]=$S$1),ROW(W14))),"") ->  | Y17: =IFERROR(INDEX(Таблица1[21],_xlfn.AGGREGATE(15,6,(ROW(Таблица1[21])-ROW(Таблица1[[#Headers],[21]]))/(Таблица1[[месяц]:[месяц]]=$J$2)/(Таблица1[[год]:[год]]=$L$2)/(Таблица1[[изд]:[изд]]=$O$1)/(Таблица1[[партия]:[партия]]=$S$1),ROW(X14))),"") ->  | Z17: =IFERROR(INDEX(Таблица1[22],_xlfn.AGGREGATE(15,6,(ROW(Таблица1[22])-ROW(Таблица1[[#Headers],[22]]))/(Таблица1[[месяц]:[месяц]]=$J$2)/(Таблица1[[год]:[год]]=$L$2)/(Таблица1[[изд]:[изд]]=$O$1)/(Таблица1[[партия]:[партия]]=$S$1),ROW(Y14))),"") ->  | AA17: =IFERROR(INDEX(Таблица1[23],_xlfn.AGGREGATE(15,6,(ROW(Таблица1[23])-ROW(Таблица1[[#Headers],[23]]))/(Таблица1[[месяц]:[месяц]]=$J$2)/(Таблица1[[год]:[год]]=$L$2)/(Таблица1[[изд]:[изд]]=$O$1)/(Таблица1[[партия]:[партия]]=$S$1),ROW(Z14))),"") ->  | AB17: =IFERROR(INDEX(Таблица1[24],_xlfn.AGGREGATE(15,6,(ROW(Таблица1[24])-ROW(Таблица1[[#Headers],[24]]))/(Таблица1[[месяц]:[месяц]]=$J$2)/(Таблица1[[год]:[год]]=$L$2)/(Таблица1[[изд]:[изд]]=$O$1)/(Таблица1[[партия]:[партия]]=$S$1),ROW(AA14))),"") ->  | AC17: =IFERROR(INDEX(Таблица1[25],_xlfn.AGGREGATE(15,6,(ROW(Таблица1[25])-ROW(Таблица1[[#Headers],[25]]))/(Таблица1[[месяц]:[месяц]]=$J$2)/(Таблица1[[год]:[год]]=$L$2)/(Таблица1[[изд]:[изд]]=$O$1)/(Таблица1[[партия]:[партия]]=$S$1),ROW(AB14))),"") ->  | AD17: =IFERROR(INDEX(Таблица1[26],_xlfn.AGGREGATE(15,6,(ROW(Таблица1[26])-ROW(Таблица1[[#Headers],[26]]))/(Таблица1[[месяц]:[месяц]]=$J$2)/(Таблица1[[год]:[год]]=$L$2)/(Таблица1[[изд]:[изд]]=$O$1)/(Таблица1[[партия]:[партия]]=$S$1),ROW(AC14))),"") ->  | AE17: =IFERROR(INDEX(Таблица1[27],_xlfn.AGGREGATE(15,6,(ROW(Таблица1[27])-ROW(Таблица1[[#Headers],[27]]))/(Таблица1[[месяц]:[месяц]]=$J$2)/(Таблица1[[год]:[год]]=$L$2)/(Таблица1[[изд]:[изд]]=$O$1)/(Таблица1[[партия]:[партия]]=$S$1),ROW(AD14))),"") ->  | AF17: =IFERROR(INDEX(Таблица1[28],_xlfn.AGGREGATE(15,6,(ROW(Таблица1[28])-ROW(Таблица1[[#Headers],[28]]))/(Таблица1[[месяц]:[месяц]]=$J$2)/(Таблица1[[год]:[год]]=$L$2)/(Таблица1[[изд]:[изд]]=$O$1)/(Таблица1[[партия]:[партия]]=$S$1),ROW(AE14))),"") ->  | AG17: =IFERROR(INDEX(Таблица1[29],_xlfn.AGGREGATE(15,6,(ROW(Таблица1[29])-ROW(Таблица1[[#Headers],[29]]))/(Таблица1[[месяц]:[месяц]]=$J$2)/(Таблица1[[год]:[год]]=$L$2)/(Таблица1[[изд]:[изд]]=$O$1)/(Таблица1[[партия]:[партия]]=$S$1),ROW(AF14))),"") ->  | AH17: =IFERROR(INDEX(Таблица1[30],_xlfn.AGGREGATE(15,6,(ROW(Таблица1[30])-ROW(Таблица1[[#Headers],[30]]))/(Таблица1[[месяц]:[месяц]]=$J$2)/(Таблица1[[год]:[год]]=$L$2)/(Таблица1[[изд]:[изд]]=$O$1)/(Таблица1[[партия]:[партия]]=$S$1),ROW(AG14))),"") ->  | AI17: =IFERROR(INDEX(Таблица1[31],_xlfn.AGGREGATE(15,6,(ROW(Таблица1[31])-ROW(Таблица1[[#Headers],[31]]))/(Таблица1[[месяц]:[месяц]]=$J$2)/(Таблица1[[год]:[год]]=$L$2)/(Таблица1[[изд]:[изд]]=$O$1)/(Таблица1[[партия]:[партия]]=$S$1),ROW(AH14))),"") ->  | AJ17: 0
B18: =IFERROR(INDEX(Таблица1[коэф],_xlfn.AGGREGATE(15,6,(ROW(Таблица1[коэф])-ROW(Таблица1[[#Headers],[коэф]]))/(Таблица1[[месяц]:[месяц]]=$J$2)/(Таблица1[[год]:[год]]=$L$2)/(Таблица1[[изд]:[изд]]=$O$1)/(Таблица1[[партия]:[партия]]=$S$1),ROW(A15))),"") ->  | C18: =IFERROR(INDEX(Таблица1[Ф. И. О.],_xlfn.AGGREGATE(15,6,(ROW(Таблица1[Ф. И. О.])-ROW(Таблица1[[#Headers],[Ф. И. О.]]))/(Таблица1[[месяц]:[месяц]]=$J$2)/(Таблица1[[год]:[год]]=$L$2)/(Таблица1[[изд]:[изд]]=$O$1)/(Таблица1[[партия]:[партия]]=$S$1),ROW(B15))),"") ->  | D18: =IFERROR(INDEX(Таблица1[р/р],_xlfn.AGGREGATE(15,6,(ROW(Таблица1[р/р])-ROW(Таблица1[[#Headers],[р/р]]))/(Таблица1[[месяц]:[месяц]]=$J$2)/(Таблица1[[год]:[год]]=$L$2)/(Таблица1[[изд]:[изд]]=$O$1)/(Таблица1[[партия]:[партия]]=$S$1),ROW(C15))),"") ->  | E18: =IFERROR(INDEX(Таблица1[1],_xlfn.AGGREGATE(15,6,(ROW(Таблица1[1])-ROW(Таблица1[[#Headers],[1]]))/(Таблица1[[месяц]:[месяц]]=$J$2)/(Таблица1[[год]:[год]]=$L$2)/(Таблица1[[изд]:[изд]]=$O$1)/(Таблица1[[партия]:[партия]]=$S$1),ROW(D15))),"") ->  | F18: =IFERROR(INDEX(Таблица1[2],_xlfn.AGGREGATE(15,6,(ROW(Таблица1[2])-ROW(Таблица1[[#Headers],[2]]))/(Таблица1[[месяц]:[месяц]]=$J$2)/(Таблица1[[год]:[год]]=$L$2)/(Таблица1[[изд]:[изд]]=$O$1)/(Таблица1[[партия]:[партия]]=$S$1),ROW(E15))),"") ->  | G18: =IFERROR(INDEX(Таблица1[3],_xlfn.AGGREGATE(15,6,(ROW(Таблица1[3])-ROW(Таблица1[[#Headers],[3]]))/(Таблица1[[месяц]:[месяц]]=$J$2)/(Таблица1[[год]:[год]]=$L$2)/(Таблица1[[изд]:[изд]]=$O$1)/(Таблица1[[партия]:[партия]]=$S$1),ROW(F15))),"") ->  | H18: =IFERROR(INDEX(Таблица1[4],_xlfn.AGGREGATE(15,6,(ROW(Таблица1[4])-ROW(Таблица1[[#Headers],[4]]))/(Таблица1[[месяц]:[месяц]]=$J$2)/(Таблица1[[год]:[год]]=$L$2)/(Таблица1[[изд]:[изд]]=$O$1)/(Таблица1[[партия]:[партия]]=$S$1),ROW(G15))),"") ->  | I18: =IFERROR(INDEX(Таблица1[5],_xlfn.AGGREGATE(15,6,(ROW(Таблица1[5])-ROW(Таблица1[[#Headers],[5]]))/(Таблица1[[месяц]:[месяц]]=$J$2)/(Таблица1[[год]:[год]]=$L$2)/(Таблица1[[изд]:[изд]]=$O$1)/(Таблица1[[партия]:[партия]]=$S$1),ROW(H15))),"") ->  | J18: =IFERROR(INDEX(Таблица1[6],_xlfn.AGGREGATE(15,6,(ROW(Таблица1[6])-ROW(Таблица1[[#Headers],[6]]))/(Таблица1[[месяц]:[месяц]]=$J$2)/(Таблица1[[год]:[год]]=$L$2)/(Таблица1[[изд]:[изд]]=$O$1)/(Таблица1[[партия]:[партия]]=$S$1),ROW(I15))),"") ->  | K18: =IFERROR(INDEX(Таблица1[7],_xlfn.AGGREGATE(15,6,(ROW(Таблица1[7])-ROW(Таблица1[[#Headers],[7]]))/(Таблица1[[месяц]:[месяц]]=$J$2)/(Таблица1[[год]:[год]]=$L$2)/(Таблица1[[изд]:[изд]]=$O$1)/(Таблица1[[партия]:[партия]]=$S$1),ROW(J15))),"") ->  | L18: =IFERROR(INDEX(Таблица1[8],_xlfn.AGGREGATE(15,6,(ROW(Таблица1[8])-ROW(Таблица1[[#Headers],[8]]))/(Таблица1[[месяц]:[месяц]]=$J$2)/(Таблица1[[год]:[год]]=$L$2)/(Таблица1[[изд]:[изд]]=$O$1)/(Таблица1[[партия]:[партия]]=$S$1),ROW(K15))),"") ->  | M18: =IFERROR(INDEX(Таблица1[9],_xlfn.AGGREGATE(15,6,(ROW(Таблица1[9])-ROW(Таблица1[[#Headers],[9]]))/(Таблица1[[месяц]:[месяц]]=$J$2)/(Таблица1[[год]:[год]]=$L$2)/(Таблица1[[изд]:[изд]]=$O$1)/(Таблица1[[партия]:[партия]]=$S$1),ROW(L15))),"") ->  | N18: =IFERROR(INDEX(Таблица1[10],_xlfn.AGGREGATE(15,6,(ROW(Таблица1[10])-ROW(Таблица1[[#Headers],[10]]))/(Таблица1[[месяц]:[месяц]]=$J$2)/(Таблица1[[год]:[год]]=$L$2)/(Таблица1[[изд]:[изд]]=$O$1)/(Таблица1[[партия]:[партия]]=$S$1),ROW(M15))),"") ->  | O18: =IFERROR(INDEX(Таблица1[11],_xlfn.AGGREGATE(15,6,(ROW(Таблица1[11])-ROW(Таблица1[[#Headers],[11]]))/(Таблица1[[месяц]:[месяц]]=$J$2)/(Таблица1[[год]:[год]]=$L$2)/(Таблица1[[изд]:[изд]]=$O$1)/(Таблица1[[партия]:[партия]]=$S$1),ROW(N15))),"") ->  | P18: =IFERROR(INDEX(Таблица1[12],_xlfn.AGGREGATE(15,6,(ROW(Таблица1[12])-ROW(Таблица1[[#Headers],[12]]))/(Таблица1[[месяц]:[месяц]]=$J$2)/(Таблица1[[год]:[год]]=$L$2)/(Таблица1[[изд]:[изд]]=$O$1)/(Таблица1[[партия]:[партия]]=$S$1),ROW(O15))),"") ->  | Q18: =IFERROR(INDEX(Таблица1[13],_xlfn.AGGREGATE(15,6,(ROW(Таблица1[13])-ROW(Таблица1[[#Headers],[13]]))/(Таблица1[[месяц]:[месяц]]=$J$2)/(Таблица1[[год]:[год]]=$L$2)/(Таблица1[[изд]:[изд]]=$O$1)/(Таблица1[[партия]:[партия]]=$S$1),ROW(P15))),"") ->  | R18: =IFERROR(INDEX(Таблица1[14],_xlfn.AGGREGATE(15,6,(ROW(Таблица1[14])-ROW(Таблица1[[#Headers],[14]]))/(Таблица1[[месяц]:[месяц]]=$J$2)/(Таблица1[[год]:[год]]=$L$2)/(Таблица1[[изд]:[изд]]=$O$1)/(Таблица1[[партия]:[партия]]=$S$1),ROW(Q15))),"") ->  | S18: =IFERROR(INDEX(Таблица1[15],_xlfn.AGGREGATE(15,6,(ROW(Таблица1[15])-ROW(Таблица1[[#Headers],[15]]))/(Таблица1[[месяц]:[месяц]]=$J$2)/(Таблица1[[год]:[год]]=$L$2)/(Таблица1[[изд]:[изд]]=$O$1)/(Таблица1[[партия]:[партия]]=$S$1),ROW(R15))),"") ->  | T18: =IFERROR(INDEX(Таблица1[16],_xlfn.AGGREGATE(15,6,(ROW(Таблица1[16])-ROW(Таблица1[[#Headers],[16]]))/(Таблица1[[месяц]:[месяц]]=$J$2)/(Таблица1[[год]:[год]]=$L$2)/(Таблица1[[изд]:[изд]]=$O$1)/(Таблица1[[партия]:[партия]]=$S$1),ROW(S15))),"") ->  | U18: =IFERROR(INDEX(Таблица1[17],_xlfn.AGGREGATE(15,6,(ROW(Таблица1[17])-ROW(Таблица1[[#Headers],[17]]))/(Таблица1[[месяц]:[месяц]]=$J$2)/(Таблица1[[год]:[год]]=$L$2)/(Таблица1[[изд]:[изд]]=$O$1)/(Таблица1[[партия]:[партия]]=$S$1),ROW(T15))),"") ->  | V18: =IFERROR(INDEX(Таблица1[18],_xlfn.AGGREGATE(15,6,(ROW(Таблица1[18])-ROW(Таблица1[[#Headers],[18]]))/(Таблица1[[месяц]:[месяц]]=$J$2)/(Таблица1[[год]:[год]]=$L$2)/(Таблица1[[изд]:[изд]]=$O$1)/(Таблица1[[партия]:[партия]]=$S$1),ROW(U15))),"") ->  | W18: =IFERROR(INDEX(Таблица1[19],_xlfn.AGGREGATE(15,6,(ROW(Таблица1[19])-ROW(Таблица1[[#Headers],[19]]))/(Таблица1[[месяц]:[месяц]]=$J$2)/(Таблица1[[год]:[год]]=$L$2)/(Таблица1[[изд]:[изд]]=$O$1)/(Таблица1[[партия]:[партия]]=$S$1),ROW(V15))),"") ->  | X18: =IFERROR(INDEX(Таблица1[20],_xlfn.AGGREGATE(15,6,(ROW(Таблица1[20])-ROW(Таблица1[[#Headers],[20]]))/(Таблица1[[месяц]:[месяц]]=$J$2)/(Таблица1[[год]:[год]]=$L$2)/(Таблица1[[изд]:[изд]]=$O$1)/(Таблица1[[партия]:[партия]]=$S$1),ROW(W15))),"") ->  | Y18: =IFERROR(INDEX(Таблица1[21],_xlfn.AGGREGATE(15,6,(ROW(Таблица1[21])-ROW(Таблица1[[#Headers],[21]]))/(Таблица1[[месяц]:[месяц]]=$J$2)/(Таблица1[[год]:[год]]=$L$2)/(Таблица1[[изд]:[изд]]=$O$1)/(Таблица1[[партия]:[партия]]=$S$1),ROW(X15))),"") ->  | Z18: =IFERROR(INDEX(Таблица1[22],_xlfn.AGGREGATE(15,6,(ROW(Таблица1[22])-ROW(Таблица1[[#Headers],[22]]))/(Таблица1[[месяц]:[месяц]]=$J$2)/(Таблица1[[год]:[год]]=$L$2)/(Таблица1[[изд]:[изд]]=$O$1)/(Таблица1[[партия]:[партия]]=$S$1),ROW(Y15))),"") ->  | AA18: =IFERROR(INDEX(Таблица1[23],_xlfn.AGGREGATE(15,6,(ROW(Таблица1[23])-ROW(Таблица1[[#Headers],[23]]))/(Таблица1[[месяц]:[месяц]]=$J$2)/(Таблица1[[год]:[год]]=$L$2)/(Таблица1[[изд]:[изд]]=$O$1)/(Таблица1[[партия]:[партия]]=$S$1),ROW(Z15))),"") ->  | AB18: =IFERROR(INDEX(Таблица1[24],_xlfn.AGGREGATE(15,6,(ROW(Таблица1[24])-ROW(Таблица1[[#Headers],[24]]))/(Таблица1[[месяц]:[месяц]]=$J$2)/(Таблица1[[год]:[год]]=$L$2)/(Таблица1[[изд]:[изд]]=$O$1)/(Таблица1[[партия]:[партия]]=$S$1),ROW(AA15))),"") ->  | AC18: =IFERROR(INDEX(Таблица1[25],_xlfn.AGGREGATE(15,6,(ROW(Таблица1[25])-ROW(Таблица1[[#Headers],[25]]))/(Таблица1[[месяц]:[месяц]]=$J$2)/(Таблица1[[год]:[год]]=$L$2)/(Таблица1[[изд]:[изд]]=$O$1)/(Таблица1[[партия]:[партия]]=$S$1),ROW(AB15))),"") ->  | AD18: =IFERROR(INDEX(Таблица1[26],_xlfn.AGGREGATE(15,6,(ROW(Таблица1[26])-ROW(Таблица1[[#Headers],[26]]))/(Таблица1[[месяц]:[месяц]]=$J$2)/(Таблица1[[год]:[год]]=$L$2)/(Таблица1[[изд]:[изд]]=$O$1)/(Таблица1[[партия]:[партия]]=$S$1),ROW(AC15))),"") ->  | AE18: =IFERROR(INDEX(Таблица1[27],_xlfn.AGGREGATE(15,6,(ROW(Таблица1[27])-ROW(Таблица1[[#Headers],[27]]))/(Таблица1[[месяц]:[месяц]]=$J$2)/(Таблица1[[год]:[год]]=$L$2)/(Таблица1[[изд]:[изд]]=$O$1)/(Таблица1[[партия]:[партия]]=$S$1),ROW(AD15))),"") ->  | AF18: =IFERROR(INDEX(Таблица1[28],_xlfn.AGGREGATE(15,6,(ROW(Таблица1[28])-ROW(Таблица1[[#Headers],[28]]))/(Таблица1[[месяц]:[месяц]]=$J$2)/(Таблица1[[год]:[год]]=$L$2)/(Таблица1[[изд]:[изд]]=$O$1)/(Таблица1[[партия]:[партия]]=$S$1),ROW(AE15))),"") ->  | AG18: =IFERROR(INDEX(Таблица1[29],_xlfn.AGGREGATE(15,6,(ROW(Таблица1[29])-ROW(Таблица1[[#Headers],[29]]))/(Таблица1[[месяц]:[месяц]]=$J$2)/(Таблица1[[год]:[год]]=$L$2)/(Таблица1[[изд]:[изд]]=$O$1)/(Таблица1[[партия]:[партия]]=$S$1),ROW(AF15))),"") ->  | AH18: =IFERROR(INDEX(Таблица1[30],_xlfn.AGGREGATE(15,6,(ROW(Таблица1[30])-ROW(Таблица1[[#Headers],[30]]))/(Таблица1[[месяц]:[месяц]]=$J$2)/(Таблица1[[год]:[год]]=$L$2)/(Таблица1[[изд]:[изд]]=$O$1)/(Таблица1[[партия]:[партия]]=$S$1),ROW(AG15))),"") ->  | AI18: =IFERROR(INDEX(Таблица1[31],_xlfn.AGGREGATE(15,6,(ROW(Таблица1[31])-ROW(Таблица1[[#Headers],[31]]))/(Таблица1[[месяц]:[месяц]]=$J$2)/(Таблица1[[год]:[год]]=$L$2)/(Таблица1[[изд]:[изд]]=$O$1)/(Таблица1[[партия]:[партия]]=$S$1),ROW(AH15))),"") ->  | AJ18: 0
B19: =IFERROR(INDEX(Таблица1[коэф],_xlfn.AGGREGATE(15,6,(ROW(Таблица1[коэф])-ROW(Таблица1[[#Headers],[коэф]]))/(Таблица1[[месяц]:[месяц]]=$J$2)/(Таблица1[[год]:[год]]=$L$2)/(Таблица1[[изд]:[изд]]=$O$1)/(Таблица1[[партия]:[партия]]=$S$1),ROW(A16))),"") ->  | C19: =IFERROR(INDEX(Таблица1[Ф. И. О.],_xlfn.AGGREGATE(15,6,(ROW(Таблица1[Ф. И. О.])-ROW(Таблица1[[#Headers],[Ф. И. О.]]))/(Таблица1[[месяц]:[месяц]]=$J$2)/(Таблица1[[год]:[год]]=$L$2)/(Таблица1[[изд]:[изд]]=$O$1)/(Таблица1[[партия]:[партия]]=$S$1),ROW(B16))),"") ->  | D19: =IFERROR(INDEX(Таблица1[р/р],_xlfn.AGGREGATE(15,6,(ROW(Таблица1[р/р])-ROW(Таблица1[[#Headers],[р/р]]))/(Таблица1[[месяц]:[месяц]]=$J$2)/(Таблица1[[год]:[год]]=$L$2)/(Таблица1[[изд]:[изд]]=$O$1)/(Таблица1[[партия]:[партия]]=$S$1),ROW(C16))),"") ->  | E19: =IFERROR(INDEX(Таблица1[1],_xlfn.AGGREGATE(15,6,(ROW(Таблица1[1])-ROW(Таблица1[[#Headers],[1]]))/(Таблица1[[месяц]:[месяц]]=$J$2)/(Таблица1[[год]:[год]]=$L$2)/(Таблица1[[изд]:[изд]]=$O$1)/(Таблица1[[партия]:[партия]]=$S$1),ROW(D16))),"") ->  | F19: =IFERROR(INDEX(Таблица1[2],_xlfn.AGGREGATE(15,6,(ROW(Таблица1[2])-ROW(Таблица1[[#Headers],[2]]))/(Таблица1[[месяц]:[месяц]]=$J$2)/(Таблица1[[год]:[год]]=$L$2)/(Таблица1[[изд]:[изд]]=$O$1)/(Таблица1[[партия]:[партия]]=$S$1),ROW(E16))),"") ->  | G19: =IFERROR(INDEX(Таблица1[3],_xlfn.AGGREGATE(15,6,(ROW(Таблица1[3])-ROW(Таблица1[[#Headers],[3]]))/(Таблица1[[месяц]:[месяц]]=$J$2)/(Таблица1[[год]:[год]]=$L$2)/(Таблица1[[изд]:[изд]]=$O$1)/(Таблица1[[партия]:[партия]]=$S$1),ROW(F16))),"") ->  | H19: =IFERROR(INDEX(Таблица1[4],_xlfn.AGGREGATE(15,6,(ROW(Таблица1[4])-ROW(Таблица1[[#Headers],[4]]))/(Таблица1[[месяц]:[месяц]]=$J$2)/(Таблица1[[год]:[год]]=$L$2)/(Таблица1[[изд]:[изд]]=$O$1)/(Таблица1[[партия]:[партия]]=$S$1),ROW(G16))),"") ->  | I19: =IFERROR(INDEX(Таблица1[5],_xlfn.AGGREGATE(15,6,(ROW(Таблица1[5])-ROW(Таблица1[[#Headers],[5]]))/(Таблица1[[месяц]:[месяц]]=$J$2)/(Таблица1[[год]:[год]]=$L$2)/(Таблица1[[изд]:[изд]]=$O$1)/(Таблица1[[партия]:[партия]]=$S$1),ROW(H16))),"") ->  | J19: =IFERROR(INDEX(Таблица1[6],_xlfn.AGGREGATE(15,6,(ROW(Таблица1[6])-ROW(Таблица1[[#Headers],[6]]))/(Таблица1[[месяц]:[месяц]]=$J$2)/(Таблица1[[год]:[год]]=$L$2)/(Таблица1[[изд]:[изд]]=$O$1)/(Таблица1[[партия]:[партия]]=$S$1),ROW(I16))),"") ->  | K19: =IFERROR(INDEX(Таблица1[7],_xlfn.AGGREGATE(15,6,(ROW(Таблица1[7])-ROW(Таблица1[[#Headers],[7]]))/(Таблица1[[месяц]:[месяц]]=$J$2)/(Таблица1[[год]:[год]]=$L$2)/(Таблица1[[изд]:[изд]]=$O$1)/(Таблица1[[партия]:[партия]]=$S$1),ROW(J16))),"") ->  | L19: =IFERROR(INDEX(Таблица1[8],_xlfn.AGGREGATE(15,6,(ROW(Таблица1[8])-ROW(Таблица1[[#Headers],[8]]))/(Таблица1[[месяц]:[месяц]]=$J$2)/(Таблица1[[год]:[год]]=$L$2)/(Таблица1[[изд]:[изд]]=$O$1)/(Таблица1[[партия]:[партия]]=$S$1),ROW(K16))),"") ->  | M19: =IFERROR(INDEX(Таблица1[9],_xlfn.AGGREGATE(15,6,(ROW(Таблица1[9])-ROW(Таблица1[[#Headers],[9]]))/(Таблица1[[месяц]:[месяц]]=$J$2)/(Таблица1[[год]:[год]]=$L$2)/(Таблица1[[изд]:[изд]]=$O$1)/(Таблица1[[партия]:[партия]]=$S$1),ROW(L16))),"") ->  | N19: =IFERROR(INDEX(Таблица1[10],_xlfn.AGGREGATE(15,6,(ROW(Таблица1[10])-ROW(Таблица1[[#Headers],[10]]))/(Таблица1[[месяц]:[месяц]]=$J$2)/(Таблица1[[год]:[год]]=$L$2)/(Таблица1[[изд]:[изд]]=$O$1)/(Таблица1[[партия]:[партия]]=$S$1),ROW(M16))),"") ->  | O19: =IFERROR(INDEX(Таблица1[11],_xlfn.AGGREGATE(15,6,(ROW(Таблица1[11])-ROW(Таблица1[[#Headers],[11]]))/(Таблица1[[месяц]:[месяц]]=$J$2)/(Таблица1[[год]:[год]]=$L$2)/(Таблица1[[изд]:[изд]]=$O$1)/(Таблица1[[партия]:[партия]]=$S$1),ROW(N16))),"") ->  | P19: =IFERROR(INDEX(Таблица1[12],_xlfn.AGGREGATE(15,6,(ROW(Таблица1[12])-ROW(Таблица1[[#Headers],[12]]))/(Таблица1[[месяц]:[месяц]]=$J$2)/(Таблица1[[год]:[год]]=$L$2)/(Таблица1[[изд]:[изд]]=$O$1)/(Таблица1[[партия]:[партия]]=$S$1),ROW(O16))),"") ->  | Q19: =IFERROR(INDEX(Таблица1[13],_xlfn.AGGREGATE(15,6,(ROW(Таблица1[13])-ROW(Таблица1[[#Headers],[13]]))/(Таблица1[[месяц]:[месяц]]=$J$2)/(Таблица1[[год]:[год]]=$L$2)/(Таблица1[[изд]:[изд]]=$O$1)/(Таблица1[[партия]:[партия]]=$S$1),ROW(P16))),"") ->  | R19: =IFERROR(INDEX(Таблица1[14],_xlfn.AGGREGATE(15,6,(ROW(Таблица1[14])-ROW(Таблица1[[#Headers],[14]]))/(Таблица1[[месяц]:[месяц]]=$J$2)/(Таблица1[[год]:[год]]=$L$2)/(Таблица1[[изд]:[изд]]=$O$1)/(Таблица1[[партия]:[партия]]=$S$1),ROW(Q16))),"") ->  | S19: =IFERROR(INDEX(Таблица1[15],_xlfn.AGGREGATE(15,6,(ROW(Таблица1[15])-ROW(Таблица1[[#Headers],[15]]))/(Таблица1[[месяц]:[месяц]]=$J$2)/(Таблица1[[год]:[год]]=$L$2)/(Таблица1[[изд]:[изд]]=$O$1)/(Таблица1[[партия]:[партия]]=$S$1),ROW(R16))),"") ->  | T19: =IFERROR(INDEX(Таблица1[16],_xlfn.AGGREGATE(15,6,(ROW(Таблица1[16])-ROW(Таблица1[[#Headers],[16]]))/(Таблица1[[месяц]:[месяц]]=$J$2)/(Таблица1[[год]:[год]]=$L$2)/(Таблица1[[изд]:[изд]]=$O$1)/(Таблица1[[партия]:[партия]]=$S$1),ROW(S16))),"") ->  | U19: =IFERROR(INDEX(Таблица1[17],_xlfn.AGGREGATE(15,6,(ROW(Таблица1[17])-ROW(Таблица1[[#Headers],[17]]))/(Таблица1[[месяц]:[месяц]]=$J$2)/(Таблица1[[год]:[год]]=$L$2)/(Таблица1[[изд]:[изд]]=$O$1)/(Таблица1[[партия]:[партия]]=$S$1),ROW(T16))),"") ->  | V19: =IFERROR(INDEX(Таблица1[18],_xlfn.AGGREGATE(15,6,(ROW(Таблица1[18])-ROW(Таблица1[[#Headers],[18]]))/(Таблица1[[месяц]:[месяц]]=$J$2)/(Таблица1[[год]:[год]]=$L$2)/(Таблица1[[изд]:[изд]]=$O$1)/(Таблица1[[партия]:[партия]]=$S$1),ROW(U16))),"") ->  | W19: =IFERROR(INDEX(Таблица1[19],_xlfn.AGGREGATE(15,6,(ROW(Таблица1[19])-ROW(Таблица1[[#Headers],[19]]))/(Таблица1[[месяц]:[месяц]]=$J$2)/(Таблица1[[год]:[год]]=$L$2)/(Таблица1[[изд]:[изд]]=$O$1)/(Таблица1[[партия]:[партия]]=$S$1),ROW(V16))),"") ->  | X19: =IFERROR(INDEX(Таблица1[20],_xlfn.AGGREGATE(15,6,(ROW(Таблица1[20])-ROW(Таблица1[[#Headers],[20]]))/(Таблица1[[месяц]:[месяц]]=$J$2)/(Таблица1[[год]:[год]]=$L$2)/(Таблица1[[изд]:[изд]]=$O$1)/(Таблица1[[партия]:[партия]]=$S$1),ROW(W16))),"") ->  | Y19: =IFERROR(INDEX(Таблица1[21],_xlfn.AGGREGATE(15,6,(ROW(Таблица1[21])-ROW(Таблица1[[#Headers],[21]]))/(Таблица1[[месяц]:[месяц]]=$J$2)/(Таблица1[[год]:[год]]=$L$2)/(Таблица1[[изд]:[изд]]=$O$1)/(Таблица1[[партия]:[партия]]=$S$1),ROW(X16))),"") ->  | Z19: =IFERROR(INDEX(Таблица1[22],_xlfn.AGGREGATE(15,6,(ROW(Таблица1[22])-ROW(Таблица1[[#Headers],[22]]))/(Таблица1[[месяц]:[месяц]]=$J$2)/(Таблица1[[год]:[год]]=$L$2)/(Таблица1[[изд]:[изд]]=$O$1)/(Таблица1[[партия]:[партия]]=$S$1),ROW(Y16))),"") ->  | AA19: =IFERROR(INDEX(Таблица1[23],_xlfn.AGGREGATE(15,6,(ROW(Таблица1[23])-ROW(Таблица1[[#Headers],[23]]))/(Таблица1[[месяц]:[месяц]]=$J$2)/(Таблица1[[год]:[год]]=$L$2)/(Таблица1[[изд]:[изд]]=$O$1)/(Таблица1[[партия]:[партия]]=$S$1),ROW(Z16))),"") ->  | AB19: =IFERROR(INDEX(Таблица1[24],_xlfn.AGGREGATE(15,6,(ROW(Таблица1[24])-ROW(Таблица1[[#Headers],[24]]))/(Таблица1[[месяц]:[месяц]]=$J$2)/(Таблица1[[год]:[год]]=$L$2)/(Таблица1[[изд]:[изд]]=$O$1)/(Таблица1[[партия]:[партия]]=$S$1),ROW(AA16))),"") ->  | AC19: =IFERROR(INDEX(Таблица1[25],_xlfn.AGGREGATE(15,6,(ROW(Таблица1[25])-ROW(Таблица1[[#Headers],[25]]))/(Таблица1[[месяц]:[месяц]]=$J$2)/(Таблица1[[год]:[год]]=$L$2)/(Таблица1[[изд]:[изд]]=$O$1)/(Таблица1[[партия]:[партия]]=$S$1),ROW(AB16))),"") ->  | AD19: =IFERROR(INDEX(Таблица1[26],_xlfn.AGGREGATE(15,6,(ROW(Таблица1[26])-ROW(Таблица1[[#Headers],[26]]))/(Таблица1[[месяц]:[месяц]]=$J$2)/(Таблица1[[год]:[год]]=$L$2)/(Таблица1[[изд]:[изд]]=$O$1)/(Таблица1[[партия]:[партия]]=$S$1),ROW(AC16))),"") ->  | AE19: =IFERROR(INDEX(Таблица1[27],_xlfn.AGGREGATE(15,6,(ROW(Таблица1[27])-ROW(Таблица1[[#Headers],[27]]))/(Таблица1[[месяц]:[месяц]]=$J$2)/(Таблица1[[год]:[год]]=$L$2)/(Таблица1[[изд]:[изд]]=$O$1)/(Таблица1[[партия]:[партия]]=$S$1),ROW(AD16))),"") ->  | AF19: =IFERROR(INDEX(Таблица1[28],_xlfn.AGGREGATE(15,6,(ROW(Таблица1[28])-ROW(Таблица1[[#Headers],[28]]))/(Таблица1[[месяц]:[месяц]]=$J$2)/(Таблица1[[год]:[год]]=$L$2)/(Таблица1[[изд]:[изд]]=$O$1)/(Таблица1[[партия]:[партия]]=$S$1),ROW(AE16))),"") ->  | AG19: =IFERROR(INDEX(Таблица1[29],_xlfn.AGGREGATE(15,6,(ROW(Таблица1[29])-ROW(Таблица1[[#Headers],[29]]))/(Таблица1[[месяц]:[месяц]]=$J$2)/(Таблица1[[год]:[год]]=$L$2)/(Таблица1[[изд]:[изд]]=$O$1)/(Таблица1[[партия]:[партия]]=$S$1),ROW(AF16))),"") ->  | AH19: =IFERROR(INDEX(Таблица1[30],_xlfn.AGGREGATE(15,6,(ROW(Таблица1[30])-ROW(Таблица1[[#Headers],[30]]))/(Таблица1[[месяц]:[месяц]]=$J$2)/(Таблица1[[год]:[год]]=$L$2)/(Таблица1[[изд]:[изд]]=$O$1)/(Таблица1[[партия]:[партия]]=$S$1),ROW(AG16))),"") ->  | AI19: =IFERROR(INDEX(Таблица1[31],_xlfn.AGGREGATE(15,6,(ROW(Таблица1[31])-ROW(Таблица1[[#Headers],[31]]))/(Таблица1[[месяц]:[месяц]]=$J$2)/(Таблица1[[год]:[год]]=$L$2)/(Таблица1[[изд]:[изд]]=$O$1)/(Таблица1[[партия]:[партия]]=$S$1),ROW(AH16))),"") ->  | AJ19: 0
B20: =IFERROR(INDEX(Таблица1[коэф],_xlfn.AGGREGATE(15,6,(ROW(Таблица1[коэф])-ROW(Таблица1[[#Headers],[коэф]]))/(Таблица1[[месяц]:[месяц]]=$J$2)/(Таблица1[[год]:[год]]=$L$2)/(Таблица1[[изд]:[изд]]=$O$1)/(Таблица1[[партия]:[партия]]=$S$1),ROW(A17))),"") ->  | C20: =IFERROR(INDEX(Таблица1[Ф. И. О.],_xlfn.AGGREGATE(15,6,(ROW(Таблица1[Ф. И. О.])-ROW(Таблица1[[#Headers],[Ф. И. О.]]))/(Таблица1[[месяц]:[месяц]]=$J$2)/(Таблица1[[год]:[год]]=$L$2)/(Таблица1[[изд]:[изд]]=$O$1)/(Таблица1[[партия]:[партия]]=$S$1),ROW(B17))),"") ->  | D20: =IFERROR(INDEX(Таблица1[р/р],_xlfn.AGGREGATE(15,6,(ROW(Таблица1[р/р])-ROW(Таблица1[[#Headers],[р/р]]))/(Таблица1[[месяц]:[месяц]]=$J$2)/(Таблица1[[год]:[год]]=$L$2)/(Таблица1[[изд]:[изд]]=$O$1)/(Таблица1[[партия]:[партия]]=$S$1),ROW(C17))),"") ->  | E20: =IFERROR(INDEX(Таблица1[1],_xlfn.AGGREGATE(15,6,(ROW(Таблица1[1])-ROW(Таблица1[[#Headers],[1]]))/(Таблица1[[месяц]:[месяц]]=$J$2)/(Таблица1[[год]:[год]]=$L$2)/(Таблица1[[изд]:[изд]]=$O$1)/(Таблица1[[партия]:[партия]]=$S$1),ROW(D17))),"") ->  | F20: =IFERROR(INDEX(Таблица1[2],_xlfn.AGGREGATE(15,6,(ROW(Таблица1[2])-ROW(Таблица1[[#Headers],[2]]))/(Таблица1[[месяц]:[месяц]]=$J$2)/(Таблица1[[год]:[год]]=$L$2)/(Таблица1[[изд]:[изд]]=$O$1)/(Таблица1[[партия]:[партия]]=$S$1),ROW(E17))),"") ->  | G20: =IFERROR(INDEX(Таблица1[3],_xlfn.AGGREGATE(15,6,(ROW(Таблица1[3])-ROW(Таблица1[[#Headers],[3]]))/(Таблица1[[месяц]:[месяц]]=$J$2)/(Таблица1[[год]:[год]]=$L$2)/(Таблица1[[изд]:[изд]]=$O$1)/(Таблица1[[партия]:[партия]]=$S$1),ROW(F17))),"") ->  | H20: =IFERROR(INDEX(Таблица1[4],_xlfn.AGGREGATE(15,6,(ROW(Таблица1[4])-ROW(Таблица1[[#Headers],[4]]))/(Таблица1[[месяц]:[месяц]]=$J$2)/(Таблица1[[год]:[год]]=$L$2)/(Таблица1[[изд]:[изд]]=$O$1)/(Таблица1[[партия]:[партия]]=$S$1),ROW(G17))),"") ->  | I20: =IFERROR(INDEX(Таблица1[5],_xlfn.AGGREGATE(15,6,(ROW(Таблица1[5])-ROW(Таблица1[[#Headers],[5]]))/(Таблица1[[месяц]:[месяц]]=$J$2)/(Таблица1[[год]:[год]]=$L$2)/(Таблица1[[изд]:[изд]]=$O$1)/(Таблица1[[партия]:[партия]]=$S$1),ROW(H17))),"") ->  | J20: =IFERROR(INDEX(Таблица1[6],_xlfn.AGGREGATE(15,6,(ROW(Таблица1[6])-ROW(Таблица1[[#Headers],[6]]))/(Таблица1[[месяц]:[месяц]]=$J$2)/(Таблица1[[год]:[год]]=$L$2)/(Таблица1[[изд]:[изд]]=$O$1)/(Таблица1[[партия]:[партия]]=$S$1),ROW(I17))),"") ->  | K20: =IFERROR(INDEX(Таблица1[7],_xlfn.AGGREGATE(15,6,(ROW(Таблица1[7])-ROW(Таблица1[[#Headers],[7]]))/(Таблица1[[месяц]:[месяц]]=$J$2)/(Таблица1[[год]:[год]]=$L$2)/(Таблица1[[изд]:[изд]]=$O$1)/(Таблица1[[партия]:[партия]]=$S$1),ROW(J17))),"") ->  | L20: =IFERROR(INDEX(Таблица1[8],_xlfn.AGGREGATE(15,6,(ROW(Таблица1[8])-ROW(Таблица1[[#Headers],[8]]))/(Таблица1[[месяц]:[месяц]]=$J$2)/(Таблица1[[год]:[год]]=$L$2)/(Таблица1[[изд]:[изд]]=$O$1)/(Таблица1[[партия]:[партия]]=$S$1),ROW(K17))),"") ->  | M20: =IFERROR(INDEX(Таблица1[9],_xlfn.AGGREGATE(15,6,(ROW(Таблица1[9])-ROW(Таблица1[[#Headers],[9]]))/(Таблица1[[месяц]:[месяц]]=$J$2)/(Таблица1[[год]:[год]]=$L$2)/(Таблица1[[изд]:[изд]]=$O$1)/(Таблица1[[партия]:[партия]]=$S$1),ROW(L17))),"") ->  | N20: =IFERROR(INDEX(Таблица1[10],_xlfn.AGGREGATE(15,6,(ROW(Таблица1[10])-ROW(Таблица1[[#Headers],[10]]))/(Таблица1[[месяц]:[месяц]]=$J$2)/(Таблица1[[год]:[год]]=$L$2)/(Таблица1[[изд]:[изд]]=$O$1)/(Таблица1[[партия]:[партия]]=$S$1),ROW(M17))),"") ->  | O20: =IFERROR(INDEX(Таблица1[11],_xlfn.AGGREGATE(15,6,(ROW(Таблица1[11])-ROW(Таблица1[[#Headers],[11]]))/(Таблица1[[месяц]:[месяц]]=$J$2)/(Таблица1[[год]:[год]]=$L$2)/(Таблица1[[изд]:[изд]]=$O$1)/(Таблица1[[партия]:[партия]]=$S$1),ROW(N17))),"") ->  | P20: =IFERROR(INDEX(Таблица1[12],_xlfn.AGGREGATE(15,6,(ROW(Таблица1[12])-ROW(Таблица1[[#Headers],[12]]))/(Таблица1[[месяц]:[месяц]]=$J$2)/(Таблица1[[год]:[год]]=$L$2)/(Таблица1[[изд]:[изд]]=$O$1)/(Таблица1[[партия]:[партия]]=$S$1),ROW(O17))),"") ->  | Q20: =IFERROR(INDEX(Таблица1[13],_xlfn.AGGREGATE(15,6,(ROW(Таблица1[13])-ROW(Таблица1[[#Headers],[13]]))/(Таблица1[[месяц]:[месяц]]=$J$2)/(Таблица1[[год]:[год]]=$L$2)/(Таблица1[[изд]:[изд]]=$O$1)/(Таблица1[[партия]:[партия]]=$S$1),ROW(P17))),"") ->  | R20: =IFERROR(INDEX(Таблица1[14],_xlfn.AGGREGATE(15,6,(ROW(Таблица1[14])-ROW(Таблица1[[#Headers],[14]]))/(Таблица1[[месяц]:[месяц]]=$J$2)/(Таблица1[[год]:[год]]=$L$2)/(Таблица1[[изд]:[изд]]=$O$1)/(Таблица1[[партия]:[партия]]=$S$1),ROW(Q17))),"") ->  | S20: =IFERROR(INDEX(Таблица1[15],_xlfn.AGGREGATE(15,6,(ROW(Таблица1[15])-ROW(Таблица1[[#Headers],[15]]))/(Таблица1[[месяц]:[месяц]]=$J$2)/(Таблица1[[год]:[год]]=$L$2)/(Таблица1[[изд]:[изд]]=$O$1)/(Таблица1[[партия]:[партия]]=$S$1),ROW(R17))),"") ->  | T20: =IFERROR(INDEX(Таблица1[16],_xlfn.AGGREGATE(15,6,(ROW(Таблица1[16])-ROW(Таблица1[[#Headers],[16]]))/(Таблица1[[месяц]:[месяц]]=$J$2)/(Таблица1[[год]:[год]]=$L$2)/(Таблица1[[изд]:[изд]]=$O$1)/(Таблица1[[партия]:[партия]]=$S$1),ROW(S17))),"") ->  | U20: =IFERROR(INDEX(Таблица1[17],_xlfn.AGGREGATE(15,6,(ROW(Таблица1[17])-ROW(Таблица1[[#Headers],[17]]))/(Таблица1[[месяц]:[месяц]]=$J$2)/(Таблица1[[год]:[год]]=$L$2)/(Таблица1[[изд]:[изд]]=$O$1)/(Таблица1[[партия]:[партия]]=$S$1),ROW(T17))),"") ->  | V20: =IFERROR(INDEX(Таблица1[18],_xlfn.AGGREGATE(15,6,(ROW(Таблица1[18])-ROW(Таблица1[[#Headers],[18]]))/(Таблица1[[месяц]:[месяц]]=$J$2)/(Таблица1[[год]:[год]]=$L$2)/(Таблица1[[изд]:[изд]]=$O$1)/(Таблица1[[партия]:[партия]]=$S$1),ROW(U17))),"") ->  | W20: =IFERROR(INDEX(Таблица1[19],_xlfn.AGGREGATE(15,6,(ROW(Таблица1[19])-ROW(Таблица1[[#Headers],[19]]))/(Таблица1[[месяц]:[месяц]]=$J$2)/(Таблица1[[год]:[год]]=$L$2)/(Таблица1[[изд]:[изд]]=$O$1)/(Таблица1[[партия]:[партия]]=$S$1),ROW(V17))),"") ->  | X20: =IFERROR(INDEX(Таблица1[20],_xlfn.AGGREGATE(15,6,(ROW(Таблица1[20])-ROW(Таблица1[[#Headers],[20]]))/(Таблица1[[месяц]:[месяц]]=$J$2)/(Таблица1[[год]:[год]]=$L$2)/(Таблица1[[изд]:[изд]]=$O$1)/(Таблица1[[партия]:[партия]]=$S$1),ROW(W17))),"") ->  | Y20: =IFERROR(INDEX(Таблица1[21],_xlfn.AGGREGATE(15,6,(ROW(Таблица1[21])-ROW(Таблица1[[#Headers],[21]]))/(Таблица1[[месяц]:[месяц]]=$J$2)/(Таблица1[[год]:[год]]=$L$2)/(Таблица1[[изд]:[изд]]=$O$1)/(Таблица1[[партия]:[партия]]=$S$1),ROW(X17))),"") ->  | Z20: =IFERROR(INDEX(Таблица1[22],_xlfn.AGGREGATE(15,6,(ROW(Таблица1[22])-ROW(Таблица1[[#Headers],[22]]))/(Таблица1[[месяц]:[месяц]]=$J$2)/(Таблица1[[год]:[год]]=$L$2)/(Таблица1[[изд]:[изд]]=$O$1)/(Таблица1[[партия]:[партия]]=$S$1),ROW(Y17))),"") ->  | AA20: =IFERROR(INDEX(Таблица1[23],_xlfn.AGGREGATE(15,6,(ROW(Таблица1[23])-ROW(Таблица1[[#Headers],[23]]))/(Таблица1[[месяц]:[месяц]]=$J$2)/(Таблица1[[год]:[год]]=$L$2)/(Таблица1[[изд]:[изд]]=$O$1)/(Таблица1[[партия]:[партия]]=$S$1),ROW(Z17))),"") ->  | AB20: =IFERROR(INDEX(Таблица1[24],_xlfn.AGGREGATE(15,6,(ROW(Таблица1[24])-ROW(Таблица1[[#Headers],[24]]))/(Таблица1[[месяц]:[месяц]]=$J$2)/(Таблица1[[год]:[год]]=$L$2)/(Таблица1[[изд]:[изд]]=$O$1)/(Таблица1[[партия]:[партия]]=$S$1),ROW(AA17))),"") ->  | AC20: =IFERROR(INDEX(Таблица1[25],_xlfn.AGGREGATE(15,6,(ROW(Таблица1[25])-ROW(Таблица1[[#Headers],[25]]))/(Таблица1[[месяц]:[месяц]]=$J$2)/(Таблица1[[год]:[год]]=$L$2)/(Таблица1[[изд]:[изд]]=$O$1)/(Таблица1[[партия]:[партия]]=$S$1),ROW(AB17))),"") ->  | AD20: =IFERROR(INDEX(Таблица1[26],_xlfn.AGGREGATE(15,6,(ROW(Таблица1[26])-ROW(Таблица1[[#Headers],[26]]))/(Таблица1[[месяц]:[месяц]]=$J$2)/(Таблица1[[год]:[год]]=$L$2)/(Таблица1[[изд]:[изд]]=$O$1)/(Таблица1[[партия]:[партия]]=$S$1),ROW(AC17))),"") ->  | AE20: =IFERROR(INDEX(Таблица1[27],_xlfn.AGGREGATE(15,6,(ROW(Таблица1[27])-ROW(Таблица1[[#Headers],[27]]))/(Таблица1[[месяц]:[месяц]]=$J$2)/(Таблица1[[год]:[год]]=$L$2)/(Таблица1[[изд]:[изд]]=$O$1)/(Таблица1[[партия]:[партия]]=$S$1),ROW(AD17))),"") ->  | AF20: =IFERROR(INDEX(Таблица1[28],_xlfn.AGGREGATE(15,6,(ROW(Таблица1[28])-ROW(Таблица1[[#Headers],[28]]))/(Таблица1[[месяц]:[месяц]]=$J$2)/(Таблица1[[год]:[год]]=$L$2)/(Таблица1[[изд]:[изд]]=$O$1)/(Таблица1[[партия]:[партия]]=$S$1),ROW(AE17))),"") ->  | AG20: =IFERROR(INDEX(Таблица1[29],_xlfn.AGGREGATE(15,6,(ROW(Таблица1[29])-ROW(Таблица1[[#Headers],[29]]))/(Таблица1[[месяц]:[месяц]]=$J$2)/(Таблица1[[год]:[год]]=$L$2)/(Таблица1[[изд]:[изд]]=$O$1)/(Таблица1[[партия]:[партия]]=$S$1),ROW(AF17))),"") ->  | AH20: =IFERROR(INDEX(Таблица1[30],_xlfn.AGGREGATE(15,6,(ROW(Таблица1[30])-ROW(Таблица1[[#Headers],[30]]))/(Таблица1[[месяц]:[месяц]]=$J$2)/(Таблица1[[год]:[год]]=$L$2)/(Таблица1[[изд]:[изд]]=$O$1)/(Таблица1[[партия]:[партия]]=$S$1),ROW(AG17))),"") ->  | AI20: =IFERROR(INDEX(Таблица1[31],_xlfn.AGGREGATE(15,6,(ROW(Таблица1[31])-ROW(Таблица1[[#Headers],[31]]))/(Таблица1[[месяц]:[месяц]]=$J$2)/(Таблица1[[год]:[год]]=$L$2)/(Таблица1[[изд]:[изд]]=$O$1)/(Таблица1[[партия]:[партия]]=$S$1),ROW(AH17))),"") ->  | AJ20: 0
B21: =IFERROR(INDEX(Таблица1[коэф],_xlfn.AGGREGATE(15,6,(ROW(Таблица1[коэф])-ROW(Таблица1[[#Headers],[коэф]]))/(Таблица1[[месяц]:[месяц]]=$J$2)/(Таблица1[[год]:[год]]=$L$2)/(Таблица1[[изд]:[изд]]=$O$1)/(Таблица1[[партия]:[партия]]=$S$1),ROW(A18))),"") ->  | C21: =IFERROR(INDEX(Таблица1[Ф. И. О.],_xlfn.AGGREGATE(15,6,(ROW(Таблица1[Ф. И. О.])-ROW(Таблица1[[#Headers],[Ф. И. О.]]))/(Таблица1[[месяц]:[месяц]]=$J$2)/(Таблица1[[год]:[год]]=$L$2)/(Таблица1[[изд]:[изд]]=$O$1)/(Таблица1[[партия]:[партия]]=$S$1),ROW(B18))),"") ->  | D21: =IFERROR(INDEX(Таблица1[р/р],_xlfn.AGGREGATE(15,6,(ROW(Таблица1[р/р])-ROW(Таблица1[[#Headers],[р/р]]))/(Таблица1[[месяц]:[месяц]]=$J$2)/(Таблица1[[год]:[год]]=$L$2)/(Таблица1[[изд]:[изд]]=$O$1)/(Таблица1[[партия]:[партия]]=$S$1),ROW(C18))),"") ->  | E21: =IFERROR(INDEX(Таблица1[1],_xlfn.AGGREGATE(15,6,(ROW(Таблица1[1])-ROW(Таблица1[[#Headers],[1]]))/(Таблица1[[месяц]:[месяц]]=$J$2)/(Таблица1[[год]:[год]]=$L$2)/(Таблица1[[изд]:[изд]]=$O$1)/(Таблица1[[партия]:[партия]]=$S$1),ROW(D18))),"") ->  | F21: =IFERROR(INDEX(Таблица1[2],_xlfn.AGGREGATE(15,6,(ROW(Таблица1[2])-ROW(Таблица1[[#Headers],[2]]))/(Таблица1[[месяц]:[месяц]]=$J$2)/(Таблица1[[год]:[год]]=$L$2)/(Таблица1[[изд]:[изд]]=$O$1)/(Таблица1[[партия]:[партия]]=$S$1),ROW(E18))),"") ->  | G21: =IFERROR(INDEX(Таблица1[3],_xlfn.AGGREGATE(15,6,(ROW(Таблица1[3])-ROW(Таблица1[[#Headers],[3]]))/(Таблица1[[месяц]:[месяц]]=$J$2)/(Таблица1[[год]:[год]]=$L$2)/(Таблица1[[изд]:[изд]]=$O$1)/(Таблица1[[партия]:[партия]]=$S$1),ROW(F18))),"") ->  | H21: =IFERROR(INDEX(Таблица1[4],_xlfn.AGGREGATE(15,6,(ROW(Таблица1[4])-ROW(Таблица1[[#Headers],[4]]))/(Таблица1[[месяц]:[месяц]]=$J$2)/(Таблица1[[год]:[год]]=$L$2)/(Таблица1[[изд]:[изд]]=$O$1)/(Таблица1[[партия]:[партия]]=$S$1),ROW(G18))),"") ->  | I21: =IFERROR(INDEX(Таблица1[5],_xlfn.AGGREGATE(15,6,(ROW(Таблица1[5])-ROW(Таблица1[[#Headers],[5]]))/(Таблица1[[месяц]:[месяц]]=$J$2)/(Таблица1[[год]:[год]]=$L$2)/(Таблица1[[изд]:[изд]]=$O$1)/(Таблица1[[партия]:[партия]]=$S$1),ROW(H18))),"") ->  | J21: =IFERROR(INDEX(Таблица1[6],_xlfn.AGGREGATE(15,6,(ROW(Таблица1[6])-ROW(Таблица1[[#Headers],[6]]))/(Таблица1[[месяц]:[месяц]]=$J$2)/(Таблица1[[год]:[год]]=$L$2)/(Таблица1[[изд]:[изд]]=$O$1)/(Таблица1[[партия]:[партия]]=$S$1),ROW(I18))),"") ->  | K21: =IFERROR(INDEX(Таблица1[7],_xlfn.AGGREGATE(15,6,(ROW(Таблица1[7])-ROW(Таблица1[[#Headers],[7]]))/(Таблица1[[месяц]:[месяц]]=$J$2)/(Таблица1[[год]:[год]]=$L$2)/(Таблица1[[изд]:[изд]]=$O$1)/(Таблица1[[партия]:[партия]]=$S$1),ROW(J18))),"") ->  | L21: =IFERROR(INDEX(Таблица1[8],_xlfn.AGGREGATE(15,6,(ROW(Таблица1[8])-ROW(Таблица1[[#Headers],[8]]))/(Таблица1[[месяц]:[месяц]]=$J$2)/(Таблица1[[год]:[год]]=$L$2)/(Таблица1[[изд]:[изд]]=$O$1)/(Таблица1[[партия]:[партия]]=$S$1),ROW(K18))),"") ->  | M21: =IFERROR(INDEX(Таблица1[9],_xlfn.AGGREGATE(15,6,(ROW(Таблица1[9])-ROW(Таблица1[[#Headers],[9]]))/(Таблица1[[месяц]:[месяц]]=$J$2)/(Таблица1[[год]:[год]]=$L$2)/(Таблица1[[изд]:[изд]]=$O$1)/(Таблица1[[партия]:[партия]]=$S$1),ROW(L18))),"") ->  | N21: =IFERROR(INDEX(Таблица1[10],_xlfn.AGGREGATE(15,6,(ROW(Таблица1[10])-ROW(Таблица1[[#Headers],[10]]))/(Таблица1[[месяц]:[месяц]]=$J$2)/(Таблица1[[год]:[год]]=$L$2)/(Таблица1[[изд]:[изд]]=$O$1)/(Таблица1[[партия]:[партия]]=$S$1),ROW(M18))),"") ->  | O21: =IFERROR(INDEX(Таблица1[11],_xlfn.AGGREGATE(15,6,(ROW(Таблица1[11])-ROW(Таблица1[[#Headers],[11]]))/(Таблица1[[месяц]:[месяц]]=$J$2)/(Таблица1[[год]:[год]]=$L$2)/(Таблица1[[изд]:[изд]]=$O$1)/(Таблица1[[партия]:[партия]]=$S$1),ROW(N18))),"") ->  | P21: =IFERROR(INDEX(Таблица1[12],_xlfn.AGGREGATE(15,6,(ROW(Таблица1[12])-ROW(Таблица1[[#Headers],[12]]))/(Таблица1[[месяц]:[месяц]]=$J$2)/(Таблица1[[год]:[год]]=$L$2)/(Таблица1[[изд]:[изд]]=$O$1)/(Таблица1[[партия]:[партия]]=$S$1),ROW(O18))),"") ->  | Q21: =IFERROR(INDEX(Таблица1[13],_xlfn.AGGREGATE(15,6,(ROW(Таблица1[13])-ROW(Таблица1[[#Headers],[13]]))/(Таблица1[[месяц]:[месяц]]=$J$2)/(Таблица1[[год]:[год]]=$L$2)/(Таблица1[[изд]:[изд]]=$O$1)/(Таблица1[[партия]:[партия]]=$S$1),ROW(P18))),"") ->  | R21: =IFERROR(INDEX(Таблица1[14],_xlfn.AGGREGATE(15,6,(ROW(Таблица1[14])-ROW(Таблица1[[#Headers],[14]]))/(Таблица1[[месяц]:[месяц]]=$J$2)/(Таблица1[[год]:[год]]=$L$2)/(Таблица1[[изд]:[изд]]=$O$1)/(Таблица1[[партия]:[партия]]=$S$1),ROW(Q18))),"") ->  | S21: =IFERROR(INDEX(Таблица1[15],_xlfn.AGGREGATE(15,6,(ROW(Таблица1[15])-ROW(Таблица1[[#Headers],[15]]))/(Таблица1[[месяц]:[месяц]]=$J$2)/(Таблица1[[год]:[год]]=$L$2)/(Таблица1[[изд]:[изд]]=$O$1)/(Таблица1[[партия]:[партия]]=$S$1),ROW(R18))),"") ->  | T21: =IFERROR(INDEX(Таблица1[16],_xlfn.AGGREGATE(15,6,(ROW(Таблица1[16])-ROW(Таблица1[[#Headers],[16]]))/(Таблица1[[месяц]:[месяц]]=$J$2)/(Таблица1[[год]:[год]]=$L$2)/(Таблица1[[изд]:[изд]]=$O$1)/(Таблица1[[партия]:[партия]]=$S$1),ROW(S18))),"") ->  | U21: =IFERROR(INDEX(Таблица1[17],_xlfn.AGGREGATE(15,6,(ROW(Таблица1[17])-ROW(Таблица1[[#Headers],[17]]))/(Таблица1[[месяц]:[месяц]]=$J$2)/(Таблица1[[год]:[год]]=$L$2)/(Таблица1[[изд]:[изд]]=$O$1)/(Таблица1[[партия]:[партия]]=$S$1),ROW(T18))),"") ->  | V21: =IFERROR(INDEX(Таблица1[18],_xlfn.AGGREGATE(15,6,(ROW(Таблица1[18])-ROW(Таблица1[[#Headers],[18]]))/(Таблица1[[месяц]:[месяц]]=$J$2)/(Таблица1[[год]:[год]]=$L$2)/(Таблица1[[изд]:[изд]]=$O$1)/(Таблица1[[партия]:[партия]]=$S$1),ROW(U18))),"") ->  | W21: =IFERROR(INDEX(Таблица1[19],_xlfn.AGGREGATE(15,6,(ROW(Таблица1[19])-ROW(Таблица1[[#Headers],[19]]))/(Таблица1[[месяц]:[месяц]]=$J$2)/(Таблица1[[год]:[год]]=$L$2)/(Таблица1[[изд]:[изд]]=$O$1)/(Таблица1[[партия]:[партия]]=$S$1),ROW(V18))),"") ->  | X21: =IFERROR(INDEX(Таблица1[20],_xlfn.AGGREGATE(15,6,(ROW(Таблица1[20])-ROW(Таблица1[[#Headers],[20]]))/(Таблица1[[месяц]:[месяц]]=$J$2)/(Таблица1[[год]:[год]]=$L$2)/(Таблица1[[изд]:[изд]]=$O$1)/(Таблица1[[партия]:[партия]]=$S$1),ROW(W18))),"") ->  | Y21: =IFERROR(INDEX(Таблица1[21],_xlfn.AGGREGATE(15,6,(ROW(Таблица1[21])-ROW(Таблица1[[#Headers],[21]]))/(Таблица1[[месяц]:[месяц]]=$J$2)/(Таблица1[[год]:[год]]=$L$2)/(Таблица1[[изд]:[изд]]=$O$1)/(Таблица1[[партия]:[партия]]=$S$1),ROW(X18))),"") ->  | Z21: =IFERROR(INDEX(Таблица1[22],_xlfn.AGGREGATE(15,6,(ROW(Таблица1[22])-ROW(Таблица1[[#Headers],[22]]))/(Таблица1[[месяц]:[месяц]]=$J$2)/(Таблица1[[год]:[год]]=$L$2)/(Таблица1[[изд]:[изд]]=$O$1)/(Таблица1[[партия]:[партия]]=$S$1),ROW(Y18))),"") ->  | AA21: =IFERROR(INDEX(Таблица1[23],_xlfn.AGGREGATE(15,6,(ROW(Таблица1[23])-ROW(Таблица1[[#Headers],[23]]))/(Таблица1[[месяц]:[месяц]]=$J$2)/(Таблица1[[год]:[год]]=$L$2)/(Таблица1[[изд]:[изд]]=$O$1)/(Таблица1[[партия]:[партия]]=$S$1),ROW(Z18))),"") ->  | AB21: =IFERROR(INDEX(Таблица1[24],_xlfn.AGGREGATE(15,6,(ROW(Таблица1[24])-ROW(Таблица1[[#Headers],[24]]))/(Таблица1[[месяц]:[месяц]]=$J$2)/(Таблица1[[год]:[год]]=$L$2)/(Таблица1[[изд]:[изд]]=$O$1)/(Таблица1[[партия]:[партия]]=$S$1),ROW(AA18))),"") ->  | AC21: =IFERROR(INDEX(Таблица1[25],_xlfn.AGGREGATE(15,6,(ROW(Таблица1[25])-ROW(Таблица1[[#Headers],[25]]))/(Таблица1[[месяц]:[месяц]]=$J$2)/(Таблица1[[год]:[год]]=$L$2)/(Таблица1[[изд]:[изд]]=$O$1)/(Таблица1[[партия]:[партия]]=$S$1),ROW(AB18))),"") ->  | AD21: =IFERROR(INDEX(Таблица1[26],_xlfn.AGGREGATE(15,6,(ROW(Таблица1[26])-ROW(Таблица1[[#Headers],[26]]))/(Таблица1[[месяц]:[месяц]]=$J$2)/(Таблица1[[год]:[год]]=$L$2)/(Таблица1[[изд]:[изд]]=$O$1)/(Таблица1[[партия]:[партия]]=$S$1),ROW(AC18))),"") ->  | AE21: =IFERROR(INDEX(Таблица1[27],_xlfn.AGGREGATE(15,6,(ROW(Таблица1[27])-ROW(Таблица1[[#Headers],[27]]))/(Таблица1[[месяц]:[месяц]]=$J$2)/(Таблица1[[год]:[год]]=$L$2)/(Таблица1[[изд]:[изд]]=$O$1)/(Таблица1[[партия]:[партия]]=$S$1),ROW(AD18))),"") ->  | AF21: =IFERROR(INDEX(Таблица1[28],_xlfn.AGGREGATE(15,6,(ROW(Таблица1[28])-ROW(Таблица1[[#Headers],[28]]))/(Таблица1[[месяц]:[месяц]]=$J$2)/(Таблица1[[год]:[год]]=$L$2)/(Таблица1[[изд]:[изд]]=$O$1)/(Таблица1[[партия]:[партия]]=$S$1),ROW(AE18))),"") ->  | AG21: =IFERROR(INDEX(Таблица1[29],_xlfn.AGGREGATE(15,6,(ROW(Таблица1[29])-ROW(Таблица1[[#Headers],[29]]))/(Таблица1[[месяц]:[месяц]]=$J$2)/(Таблица1[[год]:[год]]=$L$2)/(Таблица1[[изд]:[изд]]=$O$1)/(Таблица1[[партия]:[партия]]=$S$1),ROW(AF18))),"") ->  | AH21: =IFERROR(INDEX(Таблица1[30],_xlfn.AGGREGATE(15,6,(ROW(Таблица1[30])-ROW(Таблица1[[#Headers],[30]]))/(Таблица1[[месяц]:[месяц]]=$J$2)/(Таблица1[[год]:[год]]=$L$2)/(Таблица1[[изд]:[изд]]=$O$1)/(Таблица1[[партия]:[партия]]=$S$1),ROW(AG18))),"") ->  | AI21: =IFERROR(INDEX(Таблица1[31],_xlfn.AGGREGATE(15,6,(ROW(Таблица1[31])-ROW(Таблица1[[#Headers],[31]]))/(Таблица1[[месяц]:[месяц]]=$J$2)/(Таблица1[[год]:[год]]=$L$2)/(Таблица1[[изд]:[изд]]=$O$1)/(Таблица1[[партия]:[партия]]=$S$1),ROW(AH18))),"") ->  | AJ21: 0
B22: =IFERROR(INDEX(Таблица1[коэф],_xlfn.AGGREGATE(15,6,(ROW(Таблица1[коэф])-ROW(Таблица1[[#Headers],[коэф]]))/(Таблица1[[месяц]:[месяц]]=$J$2)/(Таблица1[[год]:[год]]=$L$2)/(Таблица1[[изд]:[изд]]=$O$1)/(Таблица1[[партия]:[партия]]=$S$1),ROW(A19))),"") ->  | C22: =IFERROR(INDEX(Таблица1[Ф. И. О.],_xlfn.AGGREGATE(15,6,(ROW(Таблица1[Ф. И. О.])-ROW(Таблица1[[#Headers],[Ф. И. О.]]))/(Таблица1[[месяц]:[месяц]]=$J$2)/(Таблица1[[год]:[год]]=$L$2)/(Таблица1[[изд]:[изд]]=$O$1)/(Таблица1[[партия]:[партия]]=$S$1),ROW(B19))),"") ->  | D22: =IFERROR(INDEX(Таблица1[р/р],_xlfn.AGGREGATE(15,6,(ROW(Таблица1[р/р])-ROW(Таблица1[[#Headers],[р/р]]))/(Таблица1[[месяц]:[месяц]]=$J$2)/(Таблица1[[год]:[год]]=$L$2)/(Таблица1[[изд]:[изд]]=$O$1)/(Таблица1[[партия]:[партия]]=$S$1),ROW(C19))),"") ->  | E22: =IFERROR(INDEX(Таблица1[1],_xlfn.AGGREGATE(15,6,(ROW(Таблица1[1])-ROW(Таблица1[[#Headers],[1]]))/(Таблица1[[месяц]:[месяц]]=$J$2)/(Таблица1[[год]:[год]]=$L$2)/(Таблица1[[изд]:[изд]]=$O$1)/(Таблица1[[партия]:[партия]]=$S$1),ROW(D19))),"") ->  | F22: =IFERROR(INDEX(Таблица1[2],_xlfn.AGGREGATE(15,6,(ROW(Таблица1[2])-ROW(Таблица1[[#Headers],[2]]))/(Таблица1[[месяц]:[месяц]]=$J$2)/(Таблица1[[год]:[год]]=$L$2)/(Таблица1[[изд]:[изд]]=$O$1)/(Таблица1[[партия]:[партия]]=$S$1),ROW(E19))),"") ->  | G22: =IFERROR(INDEX(Таблица1[3],_xlfn.AGGREGATE(15,6,(ROW(Таблица1[3])-ROW(Таблица1[[#Headers],[3]]))/(Таблица1[[месяц]:[месяц]]=$J$2)/(Таблица1[[год]:[год]]=$L$2)/(Таблица1[[изд]:[изд]]=$O$1)/(Таблица1[[партия]:[партия]]=$S$1),ROW(F19))),"") ->  | H22: =IFERROR(INDEX(Таблица1[4],_xlfn.AGGREGATE(15,6,(ROW(Таблица1[4])-ROW(Таблица1[[#Headers],[4]]))/(Таблица1[[месяц]:[месяц]]=$J$2)/(Таблица1[[год]:[год]]=$L$2)/(Таблица1[[изд]:[изд]]=$O$1)/(Таблица1[[партия]:[партия]]=$S$1),ROW(G19))),"") ->  | I22: =IFERROR(INDEX(Таблица1[5],_xlfn.AGGREGATE(15,6,(ROW(Таблица1[5])-ROW(Таблица1[[#Headers],[5]]))/(Таблица1[[месяц]:[месяц]]=$J$2)/(Таблица1[[год]:[год]]=$L$2)/(Таблица1[[изд]:[изд]]=$O$1)/(Таблица1[[партия]:[партия]]=$S$1),ROW(H19))),"") ->  | J22: =IFERROR(INDEX(Таблица1[6],_xlfn.AGGREGATE(15,6,(ROW(Таблица1[6])-ROW(Таблица1[[#Headers],[6]]))/(Таблица1[[месяц]:[месяц]]=$J$2)/(Таблица1[[год]:[год]]=$L$2)/(Таблица1[[изд]:[изд]]=$O$1)/(Таблица1[[партия]:[партия]]=$S$1),ROW(I19))),"") ->  | K22: =IFERROR(INDEX(Таблица1[7],_xlfn.AGGREGATE(15,6,(ROW(Таблица1[7])-ROW(Таблица1[[#Headers],[7]]))/(Таблица1[[месяц]:[месяц]]=$J$2)/(Таблица1[[год]:[год]]=$L$2)/(Таблица1[[изд]:[изд]]=$O$1)/(Таблица1[[партия]:[партия]]=$S$1),ROW(J19))),"") ->  | L22: =IFERROR(INDEX(Таблица1[8],_xlfn.AGGREGATE(15,6,(ROW(Таблица1[8])-ROW(Таблица1[[#Headers],[8]]))/(Таблица1[[месяц]:[месяц]]=$J$2)/(Таблица1[[год]:[год]]=$L$2)/(Таблица1[[изд]:[изд]]=$O$1)/(Таблица1[[партия]:[партия]]=$S$1),ROW(K19))),"") ->  | M22: =IFERROR(INDEX(Таблица1[9],_xlfn.AGGREGATE(15,6,(ROW(Таблица1[9])-ROW(Таблица1[[#Headers],[9]]))/(Таблица1[[месяц]:[месяц]]=$J$2)/(Таблица1[[год]:[год]]=$L$2)/(Таблица1[[изд]:[изд]]=$O$1)/(Таблица1[[партия]:[партия]]=$S$1),ROW(L19))),"") ->  | N22: =IFERROR(INDEX(Таблица1[10],_xlfn.AGGREGATE(15,6,(ROW(Таблица1[10])-ROW(Таблица1[[#Headers],[10]]))/(Таблица1[[месяц]:[месяц]]=$J$2)/(Таблица1[[год]:[год]]=$L$2)/(Таблица1[[изд]:[изд]]=$O$1)/(Таблица1[[партия]:[партия]]=$S$1),ROW(M19))),"") ->  | O22: =IFERROR(INDEX(Таблица1[11],_xlfn.AGGREGATE(15,6,(ROW(Таблица1[11])-ROW(Таблица1[[#Headers],[11]]))/(Таблица1[[месяц]:[месяц]]=$J$2)/(Таблица1[[год]:[год]]=$L$2)/(Таблица1[[изд]:[изд]]=$O$1)/(Таблица1[[партия]:[партия]]=$S$1),ROW(N19))),"") ->  | P22: =IFERROR(INDEX(Таблица1[12],_xlfn.AGGREGATE(15,6,(ROW(Таблица1[12])-ROW(Таблица1[[#Headers],[12]]))/(Таблица1[[месяц]:[месяц]]=$J$2)/(Таблица1[[год]:[год]]=$L$2)/(Таблица1[[изд]:[изд]]=$O$1)/(Таблица1[[партия]:[партия]]=$S$1),ROW(O19))),"") ->  | Q22: =IFERROR(INDEX(Таблица1[13],_xlfn.AGGREGATE(15,6,(ROW(Таблица1[13])-ROW(Таблица1[[#Headers],[13]]))/(Таблица1[[месяц]:[месяц]]=$J$2)/(Таблица1[[год]:[год]]=$L$2)/(Таблица1[[изд]:[изд]]=$O$1)/(Таблица1[[партия]:[партия]]=$S$1),ROW(P19))),"") ->  | R22: =IFERROR(INDEX(Таблица1[14],_xlfn.AGGREGATE(15,6,(ROW(Таблица1[14])-ROW(Таблица1[[#Headers],[14]]))/(Таблица1[[месяц]:[месяц]]=$J$2)/(Таблица1[[год]:[год]]=$L$2)/(Таблица1[[изд]:[изд]]=$O$1)/(Таблица1[[партия]:[партия]]=$S$1),ROW(Q19))),"") ->  | S22: =IFERROR(INDEX(Таблица1[15],_xlfn.AGGREGATE(15,6,(ROW(Таблица1[15])-ROW(Таблица1[[#Headers],[15]]))/(Таблица1[[месяц]:[месяц]]=$J$2)/(Таблица1[[год]:[год]]=$L$2)/(Таблица1[[изд]:[изд]]=$O$1)/(Таблица1[[партия]:[партия]]=$S$1),ROW(R19))),"") ->  | T22: =IFERROR(INDEX(Таблица1[16],_xlfn.AGGREGATE(15,6,(ROW(Таблица1[16])-ROW(Таблица1[[#Headers],[16]]))/(Таблица1[[месяц]:[месяц]]=$J$2)/(Таблица1[[год]:[год]]=$L$2)/(Таблица1[[изд]:[изд]]=$O$1)/(Таблица1[[партия]:[партия]]=$S$1),ROW(S19))),"") ->  | U22: =IFERROR(INDEX(Таблица1[17],_xlfn.AGGREGATE(15,6,(ROW(Таблица1[17])-ROW(Таблица1[[#Headers],[17]]))/(Таблица1[[месяц]:[месяц]]=$J$2)/(Таблица1[[год]:[год]]=$L$2)/(Таблица1[[изд]:[изд]]=$O$1)/(Таблица1[[партия]:[партия]]=$S$1),ROW(T19))),"") ->  | V22: =IFERROR(INDEX(Таблица1[18],_xlfn.AGGREGATE(15,6,(ROW(Таблица1[18])-ROW(Таблица1[[#Headers],[18]]))/(Таблица1[[месяц]:[месяц]]=$J$2)/(Таблица1[[год]:[год]]=$L$2)/(Таблица1[[изд]:[изд]]=$O$1)/(Таблица1[[партия]:[партия]]=$S$1),ROW(U19))),"") ->  | W22: =IFERROR(INDEX(Таблица1[19],_xlfn.AGGREGATE(15,6,(ROW(Таблица1[19])-ROW(Таблица1[[#Headers],[19]]))/(Таблица1[[месяц]:[месяц]]=$J$2)/(Таблица1[[год]:[год]]=$L$2)/(Таблица1[[изд]:[изд]]=$O$1)/(Таблица1[[партия]:[партия]]=$S$1),ROW(V19))),"") ->  | X22: =IFERROR(INDEX(Таблица1[20],_xlfn.AGGREGATE(15,6,(ROW(Таблица1[20])-ROW(Таблица1[[#Headers],[20]]))/(Таблица1[[месяц]:[месяц]]=$J$2)/(Таблица1[[год]:[год]]=$L$2)/(Таблица1[[изд]:[изд]]=$O$1)/(Таблица1[[партия]:[партия]]=$S$1),ROW(W19))),"") ->  | Y22: =IFERROR(INDEX(Таблица1[21],_xlfn.AGGREGATE(15,6,(ROW(Таблица1[21])-ROW(Таблица1[[#Headers],[21]]))/(Таблица1[[месяц]:[месяц]]=$J$2)/(Таблица1[[год]:[год]]=$L$2)/(Таблица1[[изд]:[изд]]=$O$1)/(Таблица1[[партия]:[партия]]=$S$1),ROW(X19))),"") ->  | Z22: =IFERROR(INDEX(Таблица1[22],_xlfn.AGGREGATE(15,6,(ROW(Таблица1[22])-ROW(Таблица1[[#Headers],[22]]))/(Таблица1[[месяц]:[месяц]]=$J$2)/(Таблица1[[год]:[год]]=$L$2)/(Таблица1[[изд]:[изд]]=$O$1)/(Таблица1[[партия]:[партия]]=$S$1),ROW(Y19))),"") ->  | AA22: =IFERROR(INDEX(Таблица1[23],_xlfn.AGGREGATE(15,6,(ROW(Таблица1[23])-ROW(Таблица1[[#Headers],[23]]))/(Таблица1[[месяц]:[месяц]]=$J$2)/(Таблица1[[год]:[год]]=$L$2)/(Таблица1[[изд]:[изд]]=$O$1)/(Таблица1[[партия]:[партия]]=$S$1),ROW(Z19))),"") ->  | AB22: =IFERROR(INDEX(Таблица1[24],_xlfn.AGGREGATE(15,6,(ROW(Таблица1[24])-ROW(Таблица1[[#Headers],[24]]))/(Таблица1[[месяц]:[месяц]]=$J$2)/(Таблица1[[год]:[год]]=$L$2)/(Таблица1[[изд]:[изд]]=$O$1)/(Таблица1[[партия]:[партия]]=$S$1),ROW(AA19))),"") ->  | AC22: =IFERROR(INDEX(Таблица1[25],_xlfn.AGGREGATE(15,6,(ROW(Таблица1[25])-ROW(Таблица1[[#Headers],[25]]))/(Таблица1[[месяц]:[месяц]]=$J$2)/(Таблица1[[год]:[год]]=$L$2)/(Таблица1[[изд]:[изд]]=$O$1)/(Таблица1[[партия]:[партия]]=$S$1),ROW(AB19))),"") ->  | AD22: =IFERROR(INDEX(Таблица1[26],_xlfn.AGGREGATE(15,6,(ROW(Таблица1[26])-ROW(Таблица1[[#Headers],[26]]))/(Таблица1[[месяц]:[месяц]]=$J$2)/(Таблица1[[год]:[год]]=$L$2)/(Таблица1[[изд]:[изд]]=$O$1)/(Таблица1[[партия]:[партия]]=$S$1),ROW(AC19))),"") ->  | AE22: =IFERROR(INDEX(Таблица1[27],_xlfn.AGGREGATE(15,6,(ROW(Таблица1[27])-ROW(Таблица1[[#Headers],[27]]))/(Таблица1[[месяц]:[месяц]]=$J$2)/(Таблица1[[год]:[год]]=$L$2)/(Таблица1[[изд]:[изд]]=$O$1)/(Таблица1[[партия]:[партия]]=$S$1),ROW(AD19))),"") ->  | AF22: =IFERROR(INDEX(Таблица1[28],_xlfn.AGGREGATE(15,6,(ROW(Таблица1[28])-ROW(Таблица1[[#Headers],[28]]))/(Таблица1[[месяц]:[месяц]]=$J$2)/(Таблица1[[год]:[год]]=$L$2)/(Таблица1[[изд]:[изд]]=$O$1)/(Таблица1[[партия]:[партия]]=$S$1),ROW(AE19))),"") ->  | AG22: =IFERROR(INDEX(Таблица1[29],_xlfn.AGGREGATE(15,6,(ROW(Таблица1[29])-ROW(Таблица1[[#Headers],[29]]))/(Таблица1[[месяц]:[месяц]]=$J$2)/(Таблица1[[год]:[год]]=$L$2)/(Таблица1[[изд]:[изд]]=$O$1)/(Таблица1[[партия]:[партия]]=$S$1),ROW(AF19))),"") ->  | AH22: =IFERROR(INDEX(Таблица1[30],_xlfn.AGGREGATE(15,6,(ROW(Таблица1[30])-ROW(Таблица1[[#Headers],[30]]))/(Таблица1[[месяц]:[месяц]]=$J$2)/(Таблица1[[год]:[год]]=$L$2)/(Таблица1[[изд]:[изд]]=$O$1)/(Таблица1[[партия]:[партия]]=$S$1),ROW(AG19))),"") ->  | AI22: =IFERROR(INDEX(Таблица1[31],_xlfn.AGGREGATE(15,6,(ROW(Таблица1[31])-ROW(Таблица1[[#Headers],[31]]))/(Таблица1[[месяц]:[месяц]]=$J$2)/(Таблица1[[год]:[год]]=$L$2)/(Таблица1[[изд]:[изд]]=$O$1)/(Таблица1[[партия]:[партия]]=$S$1),ROW(AH19))),"") ->  | AJ22: 0
B23: =IFERROR(INDEX(Таблица1[коэф],_xlfn.AGGREGATE(15,6,(ROW(Таблица1[коэф])-ROW(Таблица1[[#Headers],[коэф]]))/(Таблица1[[месяц]:[месяц]]=$J$2)/(Таблица1[[год]:[год]]=$L$2)/(Таблица1[[изд]:[изд]]=$O$1)/(Таблица1[[партия]:[партия]]=$S$1),ROW(A20))),"") ->  | C23: =IFERROR(INDEX(Таблица1[Ф. И. О.],_xlfn.AGGREGATE(15,6,(ROW(Таблица1[Ф. И. О.])-ROW(Таблица1[[#Headers],[Ф. И. О.]]))/(Таблица1[[месяц]:[месяц]]=$J$2)/(Таблица1[[год]:[год]]=$L$2)/(Таблица1[[изд]:[изд]]=$O$1)/(Таблица1[[партия]:[партия]]=$S$1),ROW(B20))),"") ->  | D23: =IFERROR(INDEX(Таблица1[р/р],_xlfn.AGGREGATE(15,6,(ROW(Таблица1[р/р])-ROW(Таблица1[[#Headers],[р/р]]))/(Таблица1[[месяц]:[месяц]]=$J$2)/(Таблица1[[год]:[год]]=$L$2)/(Таблица1[[изд]:[изд]]=$O$1)/(Таблица1[[партия]:[партия]]=$S$1),ROW(C20))),"") ->  | E23: =IFERROR(INDEX(Таблица1[1],_xlfn.AGGREGATE(15,6,(ROW(Таблица1[1])-ROW(Таблица1[[#Headers],[1]]))/(Таблица1[[месяц]:[месяц]]=$J$2)/(Таблица1[[год]:[год]]=$L$2)/(Таблица1[[изд]:[изд]]=$O$1)/(Таблица1[[партия]:[партия]]=$S$1),ROW(D20))),"") ->  | F23: =IFERROR(INDEX(Таблица1[2],_xlfn.AGGREGATE(15,6,(ROW(Таблица1[2])-ROW(Таблица1[[#Headers],[2]]))/(Таблица1[[месяц]:[месяц]]=$J$2)/(Таблица1[[год]:[год]]=$L$2)/(Таблица1[[изд]:[изд]]=$O$1)/(Таблица1[[партия]:[партия]]=$S$1),ROW(E20))),"") ->  | G23: =IFERROR(INDEX(Таблица1[3],_xlfn.AGGREGATE(15,6,(ROW(Таблица1[3])-ROW(Таблица1[[#Headers],[3]]))/(Таблица1[[месяц]:[месяц]]=$J$2)/(Таблица1[[год]:[год]]=$L$2)/(Таблица1[[изд]:[изд]]=$O$1)/(Таблица1[[партия]:[партия]]=$S$1),ROW(F20))),"") ->  | H23: =IFERROR(INDEX(Таблица1[4],_xlfn.AGGREGATE(15,6,(ROW(Таблица1[4])-ROW(Таблица1[[#Headers],[4]]))/(Таблица1[[месяц]:[месяц]]=$J$2)/(Таблица1[[год]:[год]]=$L$2)/(Таблица1[[изд]:[изд]]=$O$1)/(Таблица1[[партия]:[партия]]=$S$1),ROW(G20))),"") ->  | I23: =IFERROR(INDEX(Таблица1[5],_xlfn.AGGREGATE(15,6,(ROW(Таблица1[5])-ROW(Таблица1[[#Headers],[5]]))/(Таблица1[[месяц]:[месяц]]=$J$2)/(Таблица1[[год]:[год]]=$L$2)/(Таблица1[[изд]:[изд]]=$O$1)/(Таблица1[[партия]:[партия]]=$S$1),ROW(H20))),"") ->  | J23: =IFERROR(INDEX(Таблица1[6],_xlfn.AGGREGATE(15,6,(ROW(Таблица1[6])-ROW(Таблица1[[#Headers],[6]]))/(Таблица1[[месяц]:[месяц]]=$J$2)/(Таблица1[[год]:[год]]=$L$2)/(Таблица1[[изд]:[изд]]=$O$1)/(Таблица1[[партия]:[партия]]=$S$1),ROW(I20))),"") ->  | K23: =IFERROR(INDEX(Таблица1[7],_xlfn.AGGREGATE(15,6,(ROW(Таблица1[7])-ROW(Таблица1[[#Headers],[7]]))/(Таблица1[[месяц]:[месяц]]=$J$2)/(Таблица1[[год]:[год]]=$L$2)/(Таблица1[[изд]:[изд]]=$O$1)/(Таблица1[[партия]:[партия]]=$S$1),ROW(J20))),"") ->  | L23: =IFERROR(INDEX(Таблица1[8],_xlfn.AGGREGATE(15,6,(ROW(Таблица1[8])-ROW(Таблица1[[#Headers],[8]]))/(Таблица1[[месяц]:[месяц]]=$J$2)/(Таблица1[[год]:[год]]=$L$2)/(Таблица1[[изд]:[изд]]=$O$1)/(Таблица1[[партия]:[партия]]=$S$1),ROW(K20))),"") ->  | M23: =IFERROR(INDEX(Таблица1[9],_xlfn.AGGREGATE(15,6,(ROW(Таблица1[9])-ROW(Таблица1[[#Headers],[9]]))/(Таблица1[[месяц]:[месяц]]=$J$2)/(Таблица1[[год]:[год]]=$L$2)/(Таблица1[[изд]:[изд]]=$O$1)/(Таблица1[[партия]:[партия]]=$S$1),ROW(L20))),"") ->  | N23: =IFERROR(INDEX(Таблица1[10],_xlfn.AGGREGATE(15,6,(ROW(Таблица1[10])-ROW(Таблица1[[#Headers],[10]]))/(Таблица1[[месяц]:[месяц]]=$J$2)/(Таблица1[[год]:[год]]=$L$2)/(Таблица1[[изд]:[изд]]=$O$1)/(Таблица1[[партия]:[партия]]=$S$1),ROW(M20))),"") ->  | O23: =IFERROR(INDEX(Таблица1[11],_xlfn.AGGREGATE(15,6,(ROW(Таблица1[11])-ROW(Таблица1[[#Headers],[11]]))/(Таблица1[[месяц]:[месяц]]=$J$2)/(Таблица1[[год]:[год]]=$L$2)/(Таблица1[[изд]:[изд]]=$O$1)/(Таблица1[[партия]:[партия]]=$S$1),ROW(N20))),"") ->  | P23: =IFERROR(INDEX(Таблица1[12],_xlfn.AGGREGATE(15,6,(ROW(Таблица1[12])-ROW(Таблица1[[#Headers],[12]]))/(Таблица1[[месяц]:[месяц]]=$J$2)/(Таблица1[[год]:[год]]=$L$2)/(Таблица1[[изд]:[изд]]=$O$1)/(Таблица1[[партия]:[партия]]=$S$1),ROW(O20))),"") ->  | Q23: =IFERROR(INDEX(Таблица1[13],_xlfn.AGGREGATE(15,6,(ROW(Таблица1[13])-ROW(Таблица1[[#Headers],[13]]))/(Таблица1[[месяц]:[месяц]]=$J$2)/(Таблица1[[год]:[год]]=$L$2)/(Таблица1[[изд]:[изд]]=$O$1)/(Таблица1[[партия]:[партия]]=$S$1),ROW(P20))),"") ->  | R23: =IFERROR(INDEX(Таблица1[14],_xlfn.AGGREGATE(15,6,(ROW(Таблица1[14])-ROW(Таблица1[[#Headers],[14]]))/(Таблица1[[месяц]:[месяц]]=$J$2)/(Таблица1[[год]:[год]]=$L$2)/(Таблица1[[изд]:[изд]]=$O$1)/(Таблица1[[партия]:[партия]]=$S$1),ROW(Q20))),"") ->  | S23: =IFERROR(INDEX(Таблица1[15],_xlfn.AGGREGATE(15,6,(ROW(Таблица1[15])-ROW(Таблица1[[#Headers],[15]]))/(Таблица1[[месяц]:[месяц]]=$J$2)/(Таблица1[[год]:[год]]=$L$2)/(Таблица1[[изд]:[изд]]=$O$1)/(Таблица1[[партия]:[партия]]=$S$1),ROW(R20))),"") ->  | T23: =IFERROR(INDEX(Таблица1[16],_xlfn.AGGREGATE(15,6,(ROW(Таблица1[16])-ROW(Таблица1[[#Headers],[16]]))/(Таблица1[[месяц]:[месяц]]=$J$2)/(Таблица1[[год]:[год]]=$L$2)/(Таблица1[[изд]:[изд]]=$O$1)/(Таблица1[[партия]:[партия]]=$S$1),ROW(S20))),"") ->  | U23: =IFERROR(INDEX(Таблица1[17],_xlfn.AGGREGATE(15,6,(ROW(Таблица1[17])-ROW(Таблица1[[#Headers],[17]]))/(Таблица1[[месяц]:[месяц]]=$J$2)/(Таблица1[[год]:[год]]=$L$2)/(Таблица1[[изд]:[изд]]=$O$1)/(Таблица1[[партия]:[партия]]=$S$1),ROW(T20))),"") ->  | V23: =IFERROR(INDEX(Таблица1[18],_xlfn.AGGREGATE(15,6,(ROW(Таблица1[18])-ROW(Таблица1[[#Headers],[18]]))/(Таблица1[[месяц]:[месяц]]=$J$2)/(Таблица1[[год]:[год]]=$L$2)/(Таблица1[[изд]:[изд]]=$O$1)/(Таблица1[[партия]:[партия]]=$S$1),ROW(U20))),"") ->  | W23: =IFERROR(INDEX(Таблица1[19],_xlfn.AGGREGATE(15,6,(ROW(Таблица1[19])-ROW(Таблица1[[#Headers],[19]]))/(Таблица1[[месяц]:[месяц]]=$J$2)/(Таблица1[[год]:[год]]=$L$2)/(Таблица1[[изд]:[изд]]=$O$1)/(Таблица1[[партия]:[партия]]=$S$1),ROW(V20))),"") ->  | X23: =IFERROR(INDEX(Таблица1[20],_xlfn.AGGREGATE(15,6,(ROW(Таблица1[20])-ROW(Таблица1[[#Headers],[20]]))/(Таблица1[[месяц]:[месяц]]=$J$2)/(Таблица1[[год]:[год]]=$L$2)/(Таблица1[[изд]:[изд]]=$O$1)/(Таблица1[[партия]:[партия]]=$S$1),ROW(W20))),"") ->  | Y23: =IFERROR(INDEX(Таблица1[21],_xlfn.AGGREGATE(15,6,(ROW(Таблица1[21])-ROW(Таблица1[[#Headers],[21]]))/(Таблица1[[месяц]:[месяц]]=$J$2)/(Таблица1[[год]:[год]]=$L$2)/(Таблица1[[изд]:[изд]]=$O$1)/(Таблица1[[партия]:[партия]]=$S$1),ROW(X20))),"") ->  | Z23: =IFERROR(INDEX(Таблица1[22],_xlfn.AGGREGATE(15,6,(ROW(Таблица1[22])-ROW(Таблица1[[#Headers],[22]]))/(Таблица1[[месяц]:[месяц]]=$J$2)/(Таблица1[[год]:[год]]=$L$2)/(Таблица1[[изд]:[изд]]=$O$1)/(Таблица1[[партия]:[партия]]=$S$1),ROW(Y20))),"") ->  | AA23: =IFERROR(INDEX(Таблица1[23],_xlfn.AGGREGATE(15,6,(ROW(Таблица1[23])-ROW(Таблица1[[#Headers],[23]]))/(Таблица1[[месяц]:[месяц]]=$J$2)/(Таблица1[[год]:[год]]=$L$2)/(Таблица1[[изд]:[изд]]=$O$1)/(Таблица1[[партия]:[партия]]=$S$1),ROW(Z20))),"") ->  | AB23: =IFERROR(INDEX(Таблица1[24],_xlfn.AGGREGATE(15,6,(ROW(Таблица1[24])-ROW(Таблица1[[#Headers],[24]]))/(Таблица1[[месяц]:[месяц]]=$J$2)/(Таблица1[[год]:[год]]=$L$2)/(Таблица1[[изд]:[изд]]=$O$1)/(Таблица1[[партия]:[партия]]=$S$1),ROW(AA20))),"") ->  | AC23: =IFERROR(INDEX(Таблица1[25],_xlfn.AGGREGATE(15,6,(ROW(Таблица1[25])-ROW(Таблица1[[#Headers],[25]]))/(Таблица1[[месяц]:[месяц]]=$J$2)/(Таблица1[[год]:[год]]=$L$2)/(Таблица1[[изд]:[изд]]=$O$1)/(Таблица1[[партия]:[партия]]=$S$1),ROW(AB20))),"") ->  | AD23: =IFERROR(INDEX(Таблица1[26],_xlfn.AGGREGATE(15,6,(ROW(Таблица1[26])-ROW(Таблица1[[#Headers],[26]]))/(Таблица1[[месяц]:[месяц]]=$J$2)/(Таблица1[[год]:[год]]=$L$2)/(Таблица1[[изд]:[изд]]=$O$1)/(Таблица1[[партия]:[партия]]=$S$1),ROW(AC20))),"") ->  | AE23: =IFERROR(INDEX(Таблица1[27],_xlfn.AGGREGATE(15,6,(ROW(Таблица1[27])-ROW(Таблица1[[#Headers],[27]]))/(Таблица1[[месяц]:[месяц]]=$J$2)/(Таблица1[[год]:[год]]=$L$2)/(Таблица1[[изд]:[изд]]=$O$1)/(Таблица1[[партия]:[партия]]=$S$1),ROW(AD20))),"") ->  | AF23: =IFERROR(INDEX(Таблица1[28],_xlfn.AGGREGATE(15,6,(ROW(Таблица1[28])-ROW(Таблица1[[#Headers],[28]]))/(Таблица1[[месяц]:[месяц]]=$J$2)/(Таблица1[[год]:[год]]=$L$2)/(Таблица1[[изд]:[изд]]=$O$1)/(Таблица1[[партия]:[партия]]=$S$1),ROW(AE20))),"") ->  | AG23: =IFERROR(INDEX(Таблица1[29],_xlfn.AGGREGATE(15,6,(ROW(Таблица1[29])-ROW(Таблица1[[#Headers],[29]]))/(Таблица1[[месяц]:[месяц]]=$J$2)/(Таблица1[[год]:[год]]=$L$2)/(Таблица1[[изд]:[изд]]=$O$1)/(Таблица1[[партия]:[партия]]=$S$1),ROW(AF20))),"") ->  | AH23: =IFERROR(INDEX(Таблица1[30],_xlfn.AGGREGATE(15,6,(ROW(Таблица1[30])-ROW(Таблица1[[#Headers],[30]]))/(Таблица1[[месяц]:[месяц]]=$J$2)/(Таблица1[[год]:[год]]=$L$2)/(Таблица1[[изд]:[изд]]=$O$1)/(Таблица1[[партия]:[партия]]=$S$1),ROW(AG20))),"") ->  | AI23: =IFERROR(INDEX(Таблица1[31],_xlfn.AGGREGATE(15,6,(ROW(Таблица1[31])-ROW(Таблица1[[#Headers],[31]]))/(Таблица1[[месяц]:[месяц]]=$J$2)/(Таблица1[[год]:[год]]=$L$2)/(Таблица1[[изд]:[изд]]=$O$1)/(Таблица1[[партия]:[партия]]=$S$1),ROW(AH20))),"") ->  | AJ23: 0
B24: =IFERROR(INDEX(Таблица1[коэф],_xlfn.AGGREGATE(15,6,(ROW(Таблица1[коэф])-ROW(Таблица1[[#Headers],[коэф]]))/(Таблица1[[месяц]:[месяц]]=$J$2)/(Таблица1[[год]:[год]]=$L$2)/(Таблица1[[изд]:[изд]]=$O$1)/(Таблица1[[партия]:[партия]]=$S$1),ROW(A21))),"") ->  | C24: =IFERROR(INDEX(Таблица1[Ф. И. О.],_xlfn.AGGREGATE(15,6,(ROW(Таблица1[Ф. И. О.])-ROW(Таблица1[[#Headers],[Ф. И. О.]]))/(Таблица1[[месяц]:[месяц]]=$J$2)/(Таблица1[[год]:[год]]=$L$2)/(Таблица1[[изд]:[изд]]=$O$1)/(Таблица1[[партия]:[партия]]=$S$1),ROW(B21))),"") ->  | D24: =IFERROR(INDEX(Таблица1[р/р],_xlfn.AGGREGATE(15,6,(ROW(Таблица1[р/р])-ROW(Таблица1[[#Headers],[р/р]]))/(Таблица1[[месяц]:[месяц]]=$J$2)/(Таблица1[[год]:[год]]=$L$2)/(Таблица1[[изд]:[изд]]=$O$1)/(Таблица1[[партия]:[партия]]=$S$1),ROW(C21))),"") ->  | E24: =IFERROR(INDEX(Таблица1[1],_xlfn.AGGREGATE(15,6,(ROW(Таблица1[1])-ROW(Таблица1[[#Headers],[1]]))/(Таблица1[[месяц]:[месяц]]=$J$2)/(Таблица1[[год]:[год]]=$L$2)/(Таблица1[[изд]:[изд]]=$O$1)/(Таблица1[[партия]:[партия]]=$S$1),ROW(D21))),"") ->  | F24: =IFERROR(INDEX(Таблица1[2],_xlfn.AGGREGATE(15,6,(ROW(Таблица1[2])-ROW(Таблица1[[#Headers],[2]]))/(Таблица1[[месяц]:[месяц]]=$J$2)/(Таблица1[[год]:[год]]=$L$2)/(Таблица1[[изд]:[изд]]=$O$1)/(Таблица1[[партия]:[партия]]=$S$1),ROW(E21))),"") ->  | G24: =IFERROR(INDEX(Таблица1[3],_xlfn.AGGREGATE(15,6,(ROW(Таблица1[3])-ROW(Таблица1[[#Headers],[3]]))/(Таблица1[[месяц]:[месяц]]=$J$2)/(Таблица1[[год]:[год]]=$L$2)/(Таблица1[[изд]:[изд]]=$O$1)/(Таблица1[[партия]:[партия]]=$S$1),ROW(F21))),"") ->  | H24: =IFERROR(INDEX(Таблица1[4],_xlfn.AGGREGATE(15,6,(ROW(Таблица1[4])-ROW(Таблица1[[#Headers],[4]]))/(Таблица1[[месяц]:[месяц]]=$J$2)/(Таблица1[[год]:[год]]=$L$2)/(Таблица1[[изд]:[изд]]=$O$1)/(Таблица1[[партия]:[партия]]=$S$1),ROW(G21))),"") ->  | I24: =IFERROR(INDEX(Таблица1[5],_xlfn.AGGREGATE(15,6,(ROW(Таблица1[5])-ROW(Таблица1[[#Headers],[5]]))/(Таблица1[[месяц]:[месяц]]=$J$2)/(Таблица1[[год]:[год]]=$L$2)/(Таблица1[[изд]:[изд]]=$O$1)/(Таблица1[[партия]:[партия]]=$S$1),ROW(H21))),"") ->  | J24: =IFERROR(INDEX(Таблица1[6],_xlfn.AGGREGATE(15,6,(ROW(Таблица1[6])-ROW(Таблица1[[#Headers],[6]]))/(Таблица1[[месяц]:[месяц]]=$J$2)/(Таблица1[[год]:[год]]=$L$2)/(Таблица1[[изд]:[изд]]=$O$1)/(Таблица1[[партия]:[партия]]=$S$1),ROW(I21))),"") ->  | K24: =IFERROR(INDEX(Таблица1[7],_xlfn.AGGREGATE(15,6,(ROW(Таблица1[7])-ROW(Таблица1[[#Headers],[7]]))/(Таблица1[[месяц]:[месяц]]=$J$2)/(Таблица1[[год]:[год]]=$L$2)/(Таблица1[[изд]:[изд]]=$O$1)/(Таблица1[[партия]:[партия]]=$S$1),ROW(J21))),"") ->  | L24: =IFERROR(INDEX(Таблица1[8],_xlfn.AGGREGATE(15,6,(ROW(Таблица1[8])-ROW(Таблица1[[#Headers],[8]]))/(Таблица1[[месяц]:[месяц]]=$J$2)/(Таблица1[[год]:[год]]=$L$2)/(Таблица1[[изд]:[изд]]=$O$1)/(Таблица1[[партия]:[партия]]=$S$1),ROW(K21))),"") ->  | M24: =IFERROR(INDEX(Таблица1[9],_xlfn.AGGREGATE(15,6,(ROW(Таблица1[9])-ROW(Таблица1[[#Headers],[9]]))/(Таблица1[[месяц]:[месяц]]=$J$2)/(Таблица1[[год]:[год]]=$L$2)/(Таблица1[[изд]:[изд]]=$O$1)/(Таблица1[[партия]:[партия]]=$S$1),ROW(L21))),"") ->  | N24: =IFERROR(INDEX(Таблица1[10],_xlfn.AGGREGATE(15,6,(ROW(Таблица1[10])-ROW(Таблица1[[#Headers],[10]]))/(Таблица1[[месяц]:[месяц]]=$J$2)/(Таблица1[[год]:[год]]=$L$2)/(Таблица1[[изд]:[изд]]=$O$1)/(Таблица1[[партия]:[партия]]=$S$1),ROW(M21))),"") ->  | O24: =IFERROR(INDEX(Таблица1[11],_xlfn.AGGREGATE(15,6,(ROW(Таблица1[11])-ROW(Таблица1[[#Headers],[11]]))/(Таблица1[[месяц]:[месяц]]=$J$2)/(Таблица1[[год]:[год]]=$L$2)/(Таблица1[[изд]:[изд]]=$O$1)/(Таблица1[[партия]:[партия]]=$S$1),ROW(N21))),"") ->  | P24: =IFERROR(INDEX(Таблица1[12],_xlfn.AGGREGATE(15,6,(ROW(Таблица1[12])-ROW(Таблица1[[#Headers],[12]]))/(Таблица1[[месяц]:[месяц]]=$J$2)/(Таблица1[[год]:[год]]=$L$2)/(Таблица1[[изд]:[изд]]=$O$1)/(Таблица1[[партия]:[партия]]=$S$1),ROW(O21))),"") ->  | Q24: =IFERROR(INDEX(Таблица1[13],_xlfn.AGGREGATE(15,6,(ROW(Таблица1[13])-ROW(Таблица1[[#Headers],[13]]))/(Таблица1[[месяц]:[месяц]]=$J$2)/(Таблица1[[год]:[год]]=$L$2)/(Таблица1[[изд]:[изд]]=$O$1)/(Таблица1[[партия]:[партия]]=$S$1),ROW(P21))),"") ->  | R24: =IFERROR(INDEX(Таблица1[14],_xlfn.AGGREGATE(15,6,(ROW(Таблица1[14])-ROW(Таблица1[[#Headers],[14]]))/(Таблица1[[месяц]:[месяц]]=$J$2)/(Таблица1[[год]:[год]]=$L$2)/(Таблица1[[изд]:[изд]]=$O$1)/(Таблица1[[партия]:[партия]]=$S$1),ROW(Q21))),"") ->  | S24: =IFERROR(INDEX(Таблица1[15],_xlfn.AGGREGATE(15,6,(ROW(Таблица1[15])-ROW(Таблица1[[#Headers],[15]]))/(Таблица1[[месяц]:[месяц]]=$J$2)/(Таблица1[[год]:[год]]=$L$2)/(Таблица1[[изд]:[изд]]=$O$1)/(Таблица1[[партия]:[партия]]=$S$1),ROW(R21))),"") ->  | T24: =IFERROR(INDEX(Таблица1[16],_xlfn.AGGREGATE(15,6,(ROW(Таблица1[16])-ROW(Таблица1[[#Headers],[16]]))/(Таблица1[[месяц]:[месяц]]=$J$2)/(Таблица1[[год]:[год]]=$L$2)/(Таблица1[[изд]:[изд]]=$O$1)/(Таблица1[[партия]:[партия]]=$S$1),ROW(S21))),"") ->  | U24: =IFERROR(INDEX(Таблица1[17],_xlfn.AGGREGATE(15,6,(ROW(Таблица1[17])-ROW(Таблица1[[#Headers],[17]]))/(Таблица1[[месяц]:[месяц]]=$J$2)/(Таблица1[[год]:[год]]=$L$2)/(Таблица1[[изд]:[изд]]=$O$1)/(Таблица1[[партия]:[партия]]=$S$1),ROW(T21))),"") ->  | V24: =IFERROR(INDEX(Таблица1[18],_xlfn.AGGREGATE(15,6,(ROW(Таблица1[18])-ROW(Таблица1[[#Headers],[18]]))/(Таблица1[[месяц]:[месяц]]=$J$2)/(Таблица1[[год]:[год]]=$L$2)/(Таблица1[[изд]:[изд]]=$O$1)/(Таблица1[[партия]:[партия]]=$S$1),ROW(U21))),"") ->  | W24: =IFERROR(INDEX(Таблица1[19],_xlfn.AGGREGATE(15,6,(ROW(Таблица1[19])-ROW(Таблица1[[#Headers],[19]]))/(Таблица1[[месяц]:[месяц]]=$J$2)/(Таблица1[[год]:[год]]=$L$2)/(Таблица1[[изд]:[изд]]=$O$1)/(Таблица1[[партия]:[партия]]=$S$1),ROW(V21))),"") ->  | X24: =IFERROR(INDEX(Таблица1[20],_xlfn.AGGREGATE(15,6,(ROW(Таблица1[20])-ROW(Таблица1[[#Headers],[20]]))/(Таблица1[[месяц]:[месяц]]=$J$2)/(Таблица1[[год]:[год]]=$L$2)/(Таблица1[[изд]:[изд]]=$O$1)/(Таблица1[[партия]:[партия]]=$S$1),ROW(W21))),"") ->  | Y24: =IFERROR(INDEX(Таблица1[21],_xlfn.AGGREGATE(15,6,(ROW(Таблица1[21])-ROW(Таблица1[[#Headers],[21]]))/(Таблица1[[месяц]:[месяц]]=$J$2)/(Таблица1[[год]:[год]]=$L$2)/(Таблица1[[изд]:[изд]]=$O$1)/(Таблица1[[партия]:[партия]]=$S$1),ROW(X21))),"") ->  | Z24: =IFERROR(INDEX(Таблица1[22],_xlfn.AGGREGATE(15,6,(ROW(Таблица1[22])-ROW(Таблица1[[#Headers],[22]]))/(Таблица1[[месяц]:[месяц]]=$J$2)/(Таблица1[[год]:[год]]=$L$2)/(Таблица1[[изд]:[изд]]=$O$1)/(Таблица1[[партия]:[партия]]=$S$1),ROW(Y21))),"") ->  | AA24: =IFERROR(INDEX(Таблица1[23],_xlfn.AGGREGATE(15,6,(ROW(Таблица1[23])-ROW(Таблица1[[#Headers],[23]]))/(Таблица1[[месяц]:[месяц]]=$J$2)/(Таблица1[[год]:[год]]=$L$2)/(Таблица1[[изд]:[изд]]=$O$1)/(Таблица1[[партия]:[партия]]=$S$1),ROW(Z21))),"") ->  | AB24: =IFERROR(INDEX(Таблица1[24],_xlfn.AGGREGATE(15,6,(ROW(Таблица1[24])-ROW(Таблица1[[#Headers],[24]]))/(Таблица1[[месяц]:[месяц]]=$J$2)/(Таблица1[[год]:[год]]=$L$2)/(Таблица1[[изд]:[изд]]=$O$1)/(Таблица1[[партия]:[партия]]=$S$1),ROW(AA21))),"") ->  | AC24: =IFERROR(INDEX(Таблица1[25],_xlfn.AGGREGATE(15,6,(ROW(Таблица1[25])-ROW(Таблица1[[#Headers],[25]]))/(Таблица1[[месяц]:[месяц]]=$J$2)/(Таблица1[[год]:[год]]=$L$2)/(Таблица1[[изд]:[изд]]=$O$1)/(Таблица1[[партия]:[партия]]=$S$1),ROW(AB21))),"") ->  | AD24: =IFERROR(INDEX(Таблица1[26],_xlfn.AGGREGATE(15,6,(ROW(Таблица1[26])-ROW(Таблица1[[#Headers],[26]]))/(Таблица1[[месяц]:[месяц]]=$J$2)/(Таблица1[[год]:[год]]=$L$2)/(Таблица1[[изд]:[изд]]=$O$1)/(Таблица1[[партия]:[партия]]=$S$1),ROW(AC21))),"") ->  | AE24: =IFERROR(INDEX(Таблица1[27],_xlfn.AGGREGATE(15,6,(ROW(Таблица1[27])-ROW(Таблица1[[#Headers],[27]]))/(Таблица1[[месяц]:[месяц]]=$J$2)/(Таблица1[[год]:[год]]=$L$2)/(Таблица1[[изд]:[изд]]=$O$1)/(Таблица1[[партия]:[партия]]=$S$1),ROW(AD21))),"") ->  | AF24: =IFERROR(INDEX(Таблица1[28],_xlfn.AGGREGATE(15,6,(ROW(Таблица1[28])-ROW(Таблица1[[#Headers],[28]]))/(Таблица1[[месяц]:[месяц]]=$J$2)/(Таблица1[[год]:[год]]=$L$2)/(Таблица1[[изд]:[изд]]=$O$1)/(Таблица1[[партия]:[партия]]=$S$1),ROW(AE21))),"") ->  | AG24: =IFERROR(INDEX(Таблица1[29],_xlfn.AGGREGATE(15,6,(ROW(Таблица1[29])-ROW(Таблица1[[#Headers],[29]]))/(Таблица1[[месяц]:[месяц]]=$J$2)/(Таблица1[[год]:[год]]=$L$2)/(Таблица1[[изд]:[изд]]=$O$1)/(Таблица1[[партия]:[партия]]=$S$1),ROW(AF21))),"") ->  | AH24: =IFERROR(INDEX(Таблица1[30],_xlfn.AGGREGATE(15,6,(ROW(Таблица1[30])-ROW(Таблица1[[#Headers],[30]]))/(Таблица1[[месяц]:[месяц]]=$J$2)/(Таблица1[[год]:[год]]=$L$2)/(Таблица1[[изд]:[изд]]=$O$1)/(Таблица1[[партия]:[партия]]=$S$1),ROW(AG21))),"") ->  | AI24: =IFERROR(INDEX(Таблица1[31],_xlfn.AGGREGATE(15,6,(ROW(Таблица1[31])-ROW(Таблица1[[#Headers],[31]]))/(Таблица1[[месяц]:[месяц]]=$J$2)/(Таблица1[[год]:[год]]=$L$2)/(Таблица1[[изд]:[изд]]=$O$1)/(Таблица1[[партия]:[партия]]=$S$1),ROW(AH21))),"") ->  | AJ24: 0
B25: =IFERROR(INDEX(Таблица1[коэф],_xlfn.AGGREGATE(15,6,(ROW(Таблица1[коэф])-ROW(Таблица1[[#Headers],[коэф]]))/(Таблица1[[месяц]:[месяц]]=$J$2)/(Таблица1[[год]:[год]]=$L$2)/(Таблица1[[изд]:[изд]]=$O$1)/(Таблица1[[партия]:[партия]]=$S$1),ROW(A22))),"") ->  | C25: =IFERROR(INDEX(Таблица1[Ф. И. О.],_xlfn.AGGREGATE(15,6,(ROW(Таблица1[Ф. И. О.])-ROW(Таблица1[[#Headers],[Ф. И. О.]]))/(Таблица1[[месяц]:[месяц]]=$J$2)/(Таблица1[[год]:[год]]=$L$2)/(Таблица1[[изд]:[изд]]=$O$1)/(Таблица1[[партия]:[партия]]=$S$1),ROW(B22))),"") ->  | D25: =IFERROR(INDEX(Таблица1[р/р],_xlfn.AGGREGATE(15,6,(ROW(Таблица1[р/р])-ROW(Таблица1[[#Headers],[р/р]]))/(Таблица1[[месяц]:[месяц]]=$J$2)/(Таблица1[[год]:[год]]=$L$2)/(Таблица1[[изд]:[изд]]=$O$1)/(Таблица1[[партия]:[партия]]=$S$1),ROW(C22))),"") ->  | E25: =IFERROR(INDEX(Таблица1[1],_xlfn.AGGREGATE(15,6,(ROW(Таблица1[1])-ROW(Таблица1[[#Headers],[1]]))/(Таблица1[[месяц]:[месяц]]=$J$2)/(Таблица1[[год]:[год]]=$L$2)/(Таблица1[[изд]:[изд]]=$O$1)/(Таблица1[[партия]:[партия]]=$S$1),ROW(D22))),"") ->  | F25: =IFERROR(INDEX(Таблица1[2],_xlfn.AGGREGATE(15,6,(ROW(Таблица1[2])-ROW(Таблица1[[#Headers],[2]]))/(Таблица1[[месяц]:[месяц]]=$J$2)/(Таблица1[[год]:[год]]=$L$2)/(Таблица1[[изд]:[изд]]=$O$1)/(Таблица1[[партия]:[партия]]=$S$1),ROW(E22))),"") ->  | G25: =IFERROR(INDEX(Таблица1[3],_xlfn.AGGREGATE(15,6,(ROW(Таблица1[3])-ROW(Таблица1[[#Headers],[3]]))/(Таблица1[[месяц]:[месяц]]=$J$2)/(Таблица1[[год]:[год]]=$L$2)/(Таблица1[[изд]:[изд]]=$O$1)/(Таблица1[[партия]:[партия]]=$S$1),ROW(F22))),"") ->  | H25: =IFERROR(INDEX(Таблица1[4],_xlfn.AGGREGATE(15,6,(ROW(Таблица1[4])-ROW(Таблица1[[#Headers],[4]]))/(Таблица1[[месяц]:[месяц]]=$J$2)/(Таблица1[[год]:[год]]=$L$2)/(Таблица1[[изд]:[изд]]=$O$1)/(Таблица1[[партия]:[партия]]=$S$1),ROW(G22))),"") ->  | I25: =IFERROR(INDEX(Таблица1[5],_xlfn.AGGREGATE(15,6,(ROW(Таблица1[5])-ROW(Таблица1[[#Headers],[5]]))/(Таблица1[[месяц]:[месяц]]=$J$2)/(Таблица1[[год]:[год]]=$L$2)/(Таблица1[[изд]:[изд]]=$O$1)/(Таблица1[[партия]:[партия]]=$S$1),ROW(H22))),"") ->  | J25: =IFERROR(INDEX(Таблица1[6],_xlfn.AGGREGATE(15,6,(ROW(Таблица1[6])-ROW(Таблица1[[#Headers],[6]]))/(Таблица1[[месяц]:[месяц]]=$J$2)/(Таблица1[[год]:[год]]=$L$2)/(Таблица1[[изд]:[изд]]=$O$1)/(Таблица1[[партия]:[партия]]=$S$1),ROW(I22))),"") ->  | K25: =IFERROR(INDEX(Таблица1[7],_xlfn.AGGREGATE(15,6,(ROW(Таблица1[7])-ROW(Таблица1[[#Headers],[7]]))/(Таблица1[[месяц]:[месяц]]=$J$2)/(Таблица1[[год]:[год]]=$L$2)/(Таблица1[[изд]:[изд]]=$O$1)/(Таблица1[[партия]:[партия]]=$S$1),ROW(J22))),"") ->  | L25: =IFERROR(INDEX(Таблица1[8],_xlfn.AGGREGATE(15,6,(ROW(Таблица1[8])-ROW(Таблица1[[#Headers],[8]]))/(Таблица1[[месяц]:[месяц]]=$J$2)/(Таблица1[[год]:[год]]=$L$2)/(Таблица1[[изд]:[изд]]=$O$1)/(Таблица1[[партия]:[партия]]=$S$1),ROW(K22))),"") ->  | M25: =IFERROR(INDEX(Таблица1[9],_xlfn.AGGREGATE(15,6,(ROW(Таблица1[9])-ROW(Таблица1[[#Headers],[9]]))/(Таблица1[[месяц]:[месяц]]=$J$2)/(Таблица1[[год]:[год]]=$L$2)/(Таблица1[[изд]:[изд]]=$O$1)/(Таблица1[[партия]:[партия]]=$S$1),ROW(L22))),"") ->  | N25: =IFERROR(INDEX(Таблица1[10],_xlfn.AGGREGATE(15,6,(ROW(Таблица1[10])-ROW(Таблица1[[#Headers],[10]]))/(Таблица1[[месяц]:[месяц]]=$J$2)/(Таблица1[[год]:[год]]=$L$2)/(Таблица1[[изд]:[изд]]=$O$1)/(Таблица1[[партия]:[партия]]=$S$1),ROW(M22))),"") ->  | O25: =IFERROR(INDEX(Таблица1[11],_xlfn.AGGREGATE(15,6,(ROW(Таблица1[11])-ROW(Таблица1[[#Headers],[11]]))/(Таблица1[[месяц]:[месяц]]=$J$2)/(Таблица1[[год]:[год]]=$L$2)/(Таблица1[[изд]:[изд]]=$O$1)/(Таблица1[[партия]:[партия]]=$S$1),ROW(N22))),"") ->  | P25: =IFERROR(INDEX(Таблица1[12],_xlfn.AGGREGATE(15,6,(ROW(Таблица1[12])-ROW(Таблица1[[#Headers],[12]]))/(Таблица1[[месяц]:[месяц]]=$J$2)/(Таблица1[[год]:[год]]=$L$2)/(Таблица1[[изд]:[изд]]=$O$1)/(Таблица1[[партия]:[партия]]=$S$1),ROW(O22))),"") ->  | Q25: =IFERROR(INDEX(Таблица1[13],_xlfn.AGGREGATE(15,6,(ROW(Таблица1[13])-ROW(Таблица1[[#Headers],[13]]))/(Таблица1[[месяц]:[месяц]]=$J$2)/(Таблица1[[год]:[год]]=$L$2)/(Таблица1[[изд]:[изд]]=$O$1)/(Таблица1[[партия]:[партия]]=$S$1),ROW(P22))),"") ->  | R25: =IFERROR(INDEX(Таблица1[14],_xlfn.AGGREGATE(15,6,(ROW(Таблица1[14])-ROW(Таблица1[[#Headers],[14]]))/(Таблица1[[месяц]:[месяц]]=$J$2)/(Таблица1[[год]:[год]]=$L$2)/(Таблица1[[изд]:[изд]]=$O$1)/(Таблица1[[партия]:[партия]]=$S$1),ROW(Q22))),"") ->  | S25: =IFERROR(INDEX(Таблица1[15],_xlfn.AGGREGATE(15,6,(ROW(Таблица1[15])-ROW(Таблица1[[#Headers],[15]]))/(Таблица1[[месяц]:[месяц]]=$J$2)/(Таблица1[[год]:[год]]=$L$2)/(Таблица1[[изд]:[изд]]=$O$1)/(Таблица1[[партия]:[партия]]=$S$1),ROW(R22))),"") ->  | T25: =IFERROR(INDEX(Таблица1[16],_xlfn.AGGREGATE(15,6,(ROW(Таблица1[16])-ROW(Таблица1[[#Headers],[16]]))/(Таблица1[[месяц]:[месяц]]=$J$2)/(Таблица1[[год]:[год]]=$L$2)/(Таблица1[[изд]:[изд]]=$O$1)/(Таблица1[[партия]:[партия]]=$S$1),ROW(S22))),"") ->  | U25: =IFERROR(INDEX(Таблица1[17],_xlfn.AGGREGATE(15,6,(ROW(Таблица1[17])-ROW(Таблица1[[#Headers],[17]]))/(Таблица1[[месяц]:[месяц]]=$J$2)/(Таблица1[[год]:[год]]=$L$2)/(Таблица1[[изд]:[изд]]=$O$1)/(Таблица1[[партия]:[партия]]=$S$1),ROW(T22))),"") ->  | V25: =IFERROR(INDEX(Таблица1[18],_xlfn.AGGREGATE(15,6,(ROW(Таблица1[18])-ROW(Таблица1[[#Headers],[18]]))/(Таблица1[[месяц]:[месяц]]=$J$2)/(Таблица1[[год]:[год]]=$L$2)/(Таблица1[[изд]:[изд]]=$O$1)/(Таблица1[[партия]:[партия]]=$S$1),ROW(U22))),"") ->  | W25: =IFERROR(INDEX(Таблица1[19],_xlfn.AGGREGATE(15,6,(ROW(Таблица1[19])-ROW(Таблица1[[#Headers],[19]]))/(Таблица1[[месяц]:[месяц]]=$J$2)/(Таблица1[[год]:[год]]=$L$2)/(Таблица1[[изд]:[изд]]=$O$1)/(Таблица1[[партия]:[партия]]=$S$1),ROW(V22))),"") ->  | X25: =IFERROR(INDEX(Таблица1[20],_xlfn.AGGREGATE(15,6,(ROW(Таблица1[20])-ROW(Таблица1[[#Headers],[20]]))/(Таблица1[[месяц]:[месяц]]=$J$2)/(Таблица1[[год]:[год]]=$L$2)/(Таблица1[[изд]:[изд]]=$O$1)/(Таблица1[[партия]:[партия]]=$S$1),ROW(W22))),"") ->  | Y25: =IFERROR(INDEX(Таблица1[21],_xlfn.AGGREGATE(15,6,(ROW(Таблица1[21])-ROW(Таблица1[[#Headers],[21]]))/(Таблица1[[месяц]:[месяц]]=$J$2)/(Таблица1[[год]:[год]]=$L$2)/(Таблица1[[изд]:[изд]]=$O$1)/(Таблица1[[партия]:[партия]]=$S$1),ROW(X22))),"") ->  | Z25: =IFERROR(INDEX(Таблица1[22],_xlfn.AGGREGATE(15,6,(ROW(Таблица1[22])-ROW(Таблица1[[#Headers],[22]]))/(Таблица1[[месяц]:[месяц]]=$J$2)/(Таблица1[[год]:[год]]=$L$2)/(Таблица1[[изд]:[изд]]=$O$1)/(Таблица1[[партия]:[партия]]=$S$1),ROW(Y22))),"") ->  | AA25: =IFERROR(INDEX(Таблица1[23],_xlfn.AGGREGATE(15,6,(ROW(Таблица1[23])-ROW(Таблица1[[#Headers],[23]]))/(Таблица1[[месяц]:[месяц]]=$J$2)/(Таблица1[[год]:[год]]=$L$2)/(Таблица1[[изд]:[изд]]=$O$1)/(Таблица1[[партия]:[партия]]=$S$1),ROW(Z22))),"") ->  | AB25: =IFERROR(INDEX(Таблица1[24],_xlfn.AGGREGATE(15,6,(ROW(Таблица1[24])-ROW(Таблица1[[#Headers],[24]]))/(Таблица1[[месяц]:[месяц]]=$J$2)/(Таблица1[[год]:[год]]=$L$2)/(Таблица1[[изд]:[изд]]=$O$1)/(Таблица1[[партия]:[партия]]=$S$1),ROW(AA22))),"") ->  | AC25: =IFERROR(INDEX(Таблица1[25],_xlfn.AGGREGATE(15,6,(ROW(Таблица1[25])-ROW(Таблица1[[#Headers],[25]]))/(Таблица1[[месяц]:[месяц]]=$J$2)/(Таблица1[[год]:[год]]=$L$2)/(Таблица1[[изд]:[изд]]=$O$1)/(Таблица1[[партия]:[партия]]=$S$1),ROW(AB22))),"") ->  | AD25: =IFERROR(INDEX(Таблица1[26],_xlfn.AGGREGATE(15,6,(ROW(Таблица1[26])-ROW(Таблица1[[#Headers],[26]]))/(Таблица1[[месяц]:[месяц]]=$J$2)/(Таблица1[[год]:[год]]=$L$2)/(Таблица1[[изд]:[изд]]=$O$1)/(Таблица1[[партия]:[партия]]=$S$1),ROW(AC22))),"") ->  | AE25: =IFERROR(INDEX(Таблица1[27],_xlfn.AGGREGATE(15,6,(ROW(Таблица1[27])-ROW(Таблица1[[#Headers],[27]]))/(Таблица1[[месяц]:[месяц]]=$J$2)/(Таблица1[[год]:[год]]=$L$2)/(Таблица1[[изд]:[изд]]=$O$1)/(Таблица1[[партия]:[партия]]=$S$1),ROW(AD22))),"") ->  | AF25: =IFERROR(INDEX(Таблица1[28],_xlfn.AGGREGATE(15,6,(ROW(Таблица1[28])-ROW(Таблица1[[#Headers],[28]]))/(Таблица1[[месяц]:[месяц]]=$J$2)/(Таблица1[[год]:[год]]=$L$2)/(Таблица1[[изд]:[изд]]=$O$1)/(Таблица1[[партия]:[партия]]=$S$1),ROW(AE22))),"") ->  | AG25: =IFERROR(INDEX(Таблица1[29],_xlfn.AGGREGATE(15,6,(ROW(Таблица1[29])-ROW(Таблица1[[#Headers],[29]]))/(Таблица1[[месяц]:[месяц]]=$J$2)/(Таблица1[[год]:[год]]=$L$2)/(Таблица1[[изд]:[изд]]=$O$1)/(Таблица1[[партия]:[партия]]=$S$1),ROW(AF22))),"") ->  | AH25: =IFERROR(INDEX(Таблица1[30],_xlfn.AGGREGATE(15,6,(ROW(Таблица1[30])-ROW(Таблица1[[#Headers],[30]]))/(Таблица1[[месяц]:[месяц]]=$J$2)/(Таблица1[[год]:[год]]=$L$2)/(Таблица1[[изд]:[изд]]=$O$1)/(Таблица1[[партия]:[партия]]=$S$1),ROW(AG22))),"") ->  | AI25: =IFERROR(INDEX(Таблица1[31],_xlfn.AGGREGATE(15,6,(ROW(Таблица1[31])-ROW(Таблица1[[#Headers],[31]]))/(Таблица1[[месяц]:[месяц]]=$J$2)/(Таблица1[[год]:[год]]=$L$2)/(Таблица1[[изд]:[изд]]=$O$1)/(Таблица1[[партия]:[партия]]=$S$1),ROW(AH22))),"") ->  | AJ25: 0
B26: =IFERROR(INDEX(Таблица1[коэф],_xlfn.AGGREGATE(15,6,(ROW(Таблица1[коэф])-ROW(Таблица1[[#Headers],[коэф]]))/(Таблица1[[месяц]:[месяц]]=$J$2)/(Таблица1[[год]:[год]]=$L$2)/(Таблица1[[изд]:[изд]]=$O$1)/(Таблица1[[партия]:[партия]]=$S$1),ROW(A23))),"") ->  | C26: =IFERROR(INDEX(Таблица1[Ф. И. О.],_xlfn.AGGREGATE(15,6,(ROW(Таблица1[Ф. И. О.])-ROW(Таблица1[[#Headers],[Ф. И. О.]]))/(Таблица1[[месяц]:[месяц]]=$J$2)/(Таблица1[[год]:[год]]=$L$2)/(Таблица1[[изд]:[изд]]=$O$1)/(Таблица1[[партия]:[партия]]=$S$1),ROW(B23))),"") ->  | D26: =IFERROR(INDEX(Таблица1[р/р],_xlfn.AGGREGATE(15,6,(ROW(Таблица1[р/р])-ROW(Таблица1[[#Headers],[р/р]]))/(Таблица1[[месяц]:[месяц]]=$J$2)/(Таблица1[[год]:[год]]=$L$2)/(Таблица1[[изд]:[изд]]=$O$1)/(Таблица1[[партия]:[партия]]=$S$1),ROW(C23))),"") ->  | E26: =IFERROR(INDEX(Таблица1[1],_xlfn.AGGREGATE(15,6,(ROW(Таблица1[1])-ROW(Таблица1[[#Headers],[1]]))/(Таблица1[[месяц]:[месяц]]=$J$2)/(Таблица1[[год]:[год]]=$L$2)/(Таблица1[[изд]:[изд]]=$O$1)/(Таблица1[[партия]:[партия]]=$S$1),ROW(D23))),"") ->  | F26: =IFERROR(INDEX(Таблица1[2],_xlfn.AGGREGATE(15,6,(ROW(Таблица1[2])-ROW(Таблица1[[#Headers],[2]]))/(Таблица1[[месяц]:[месяц]]=$J$2)/(Таблица1[[год]:[год]]=$L$2)/(Таблица1[[изд]:[изд]]=$O$1)/(Таблица1[[партия]:[партия]]=$S$1),ROW(E23))),"") ->  | G26: =IFERROR(INDEX(Таблица1[3],_xlfn.AGGREGATE(15,6,(ROW(Таблица1[3])-ROW(Таблица1[[#Headers],[3]]))/(Таблица1[[месяц]:[месяц]]=$J$2)/(Таблица1[[год]:[год]]=$L$2)/(Таблица1[[изд]:[изд]]=$O$1)/(Таблица1[[партия]:[партия]]=$S$1),ROW(F23))),"") ->  | H26: =IFERROR(INDEX(Таблица1[4],_xlfn.AGGREGATE(15,6,(ROW(Таблица1[4])-ROW(Таблица1[[#Headers],[4]]))/(Таблица1[[месяц]:[месяц]]=$J$2)/(Таблица1[[год]:[год]]=$L$2)/(Таблица1[[изд]:[изд]]=$O$1)/(Таблица1[[партия]:[партия]]=$S$1),ROW(G23))),"") ->  | I26: =IFERROR(INDEX(Таблица1[5],_xlfn.AGGREGATE(15,6,(ROW(Таблица1[5])-ROW(Таблица1[[#Headers],[5]]))/(Таблица1[[месяц]:[месяц]]=$J$2)/(Таблица1[[год]:[год]]=$L$2)/(Таблица1[[изд]:[изд]]=$O$1)/(Таблица1[[партия]:[партия]]=$S$1),ROW(H23))),"") ->  | J26: =IFERROR(INDEX(Таблица1[6],_xlfn.AGGREGATE(15,6,(ROW(Таблица1[6])-ROW(Таблица1[[#Headers],[6]]))/(Таблица1[[месяц]:[месяц]]=$J$2)/(Таблица1[[год]:[год]]=$L$2)/(Таблица1[[изд]:[изд]]=$O$1)/(Таблица1[[партия]:[партия]]=$S$1),ROW(I23))),"") ->  | K26: =IFERROR(INDEX(Таблица1[7],_xlfn.AGGREGATE(15,6,(ROW(Таблица1[7])-ROW(Таблица1[[#Headers],[7]]))/(Таблица1[[месяц]:[месяц]]=$J$2)/(Таблица1[[год]:[год]]=$L$2)/(Таблица1[[изд]:[изд]]=$O$1)/(Таблица1[[партия]:[партия]]=$S$1),ROW(J23))),"") ->  | L26: =IFERROR(INDEX(Таблица1[8],_xlfn.AGGREGATE(15,6,(ROW(Таблица1[8])-ROW(Таблица1[[#Headers],[8]]))/(Таблица1[[месяц]:[месяц]]=$J$2)/(Таблица1[[год]:[год]]=$L$2)/(Таблица1[[изд]:[изд]]=$O$1)/(Таблица1[[партия]:[партия]]=$S$1),ROW(K23))),"") ->  | M26: =IFERROR(INDEX(Таблица1[9],_xlfn.AGGREGATE(15,6,(ROW(Таблица1[9])-ROW(Таблица1[[#Headers],[9]]))/(Таблица1[[месяц]:[месяц]]=$J$2)/(Таблица1[[год]:[год]]=$L$2)/(Таблица1[[изд]:[изд]]=$O$1)/(Таблица1[[партия]:[партия]]=$S$1),ROW(L23))),"") ->  | N26: =IFERROR(INDEX(Таблица1[10],_xlfn.AGGREGATE(15,6,(ROW(Таблица1[10])-ROW(Таблица1[[#Headers],[10]]))/(Таблица1[[месяц]:[месяц]]=$J$2)/(Таблица1[[год]:[год]]=$L$2)/(Таблица1[[изд]:[изд]]=$O$1)/(Таблица1[[партия]:[партия]]=$S$1),ROW(M23))),"") ->  | O26: =IFERROR(INDEX(Таблица1[11],_xlfn.AGGREGATE(15,6,(ROW(Таблица1[11])-ROW(Таблица1[[#Headers],[11]]))/(Таблица1[[месяц]:[месяц]]=$J$2)/(Таблица1[[год]:[год]]=$L$2)/(Таблица1[[изд]:[изд]]=$O$1)/(Таблица1[[партия]:[партия]]=$S$1),ROW(N23))),"") ->  | P26: =IFERROR(INDEX(Таблица1[12],_xlfn.AGGREGATE(15,6,(ROW(Таблица1[12])-ROW(Таблица1[[#Headers],[12]]))/(Таблица1[[месяц]:[месяц]]=$J$2)/(Таблица1[[год]:[год]]=$L$2)/(Таблица1[[изд]:[изд]]=$O$1)/(Таблица1[[партия]:[партия]]=$S$1),ROW(O23))),"") ->  | Q26: =IFERROR(INDEX(Таблица1[13],_xlfn.AGGREGATE(15,6,(ROW(Таблица1[13])-ROW(Таблица1[[#Headers],[13]]))/(Таблица1[[месяц]:[месяц]]=$J$2)/(Таблица1[[год]:[год]]=$L$2)/(Таблица1[[изд]:[изд]]=$O$1)/(Таблица1[[партия]:[партия]]=$S$1),ROW(P23))),"") ->  | R26: =IFERROR(INDEX(Таблица1[14],_xlfn.AGGREGATE(15,6,(ROW(Таблица1[14])-ROW(Таблица1[[#Headers],[14]]))/(Таблица1[[месяц]:[месяц]]=$J$2)/(Таблица1[[год]:[год]]=$L$2)/(Таблица1[[изд]:[изд]]=$O$1)/(Таблица1[[партия]:[партия]]=$S$1),ROW(Q23))),"") ->  | S26: =IFERROR(INDEX(Таблица1[15],_xlfn.AGGREGATE(15,6,(ROW(Таблица1[15])-ROW(Таблица1[[#Headers],[15]]))/(Таблица1[[месяц]:[месяц]]=$J$2)/(Таблица1[[год]:[год]]=$L$2)/(Таблица1[[изд]:[изд]]=$O$1)/(Таблица1[[партия]:[партия]]=$S$1),ROW(R23))),"") ->  | T26: =IFERROR(INDEX(Таблица1[16],_xlfn.AGGREGATE(15,6,(ROW(Таблица1[16])-ROW(Таблица1[[#Headers],[16]]))/(Таблица1[[месяц]:[месяц]]=$J$2)/(Таблица1[[год]:[год]]=$L$2)/(Таблица1[[изд]:[изд]]=$O$1)/(Таблица1[[партия]:[партия]]=$S$1),ROW(S23))),"") ->  | U26: =IFERROR(INDEX(Таблица1[17],_xlfn.AGGREGATE(15,6,(ROW(Таблица1[17])-ROW(Таблица1[[#Headers],[17]]))/(Таблица1[[месяц]:[месяц]]=$J$2)/(Таблица1[[год]:[год]]=$L$2)/(Таблица1[[изд]:[изд]]=$O$1)/(Таблица1[[партия]:[партия]]=$S$1),ROW(T23))),"") ->  | V26: =IFERROR(INDEX(Таблица1[18],_xlfn.AGGREGATE(15,6,(ROW(Таблица1[18])-ROW(Таблица1[[#Headers],[18]]))/(Таблица1[[месяц]:[месяц]]=$J$2)/(Таблица1[[год]:[год]]=$L$2)/(Таблица1[[изд]:[изд]]=$O$1)/(Таблица1[[партия]:[партия]]=$S$1),ROW(U23))),"") ->  | W26: =IFERROR(INDEX(Таблица1[19],_xlfn.AGGREGATE(15,6,(ROW(Таблица1[19])-ROW(Таблица1[[#Headers],[19]]))/(Таблица1[[месяц]:[месяц]]=$J$2)/(Таблица1[[год]:[год]]=$L$2)/(Таблица1[[изд]:[изд]]=$O$1)/(Таблица1[[партия]:[партия]]=$S$1),ROW(V23))),"") ->  | X26: =IFERROR(INDEX(Таблица1[20],_xlfn.AGGREGATE(15,6,(ROW(Таблица1[20])-ROW(Таблица1[[#Headers],[20]]))/(Таблица1[[месяц]:[месяц]]=$J$2)/(Таблица1[[год]:[год]]=$L$2)/(Таблица1[[изд]:[изд]]=$O$1)/(Таблица1[[партия]:[партия]]=$S$1),ROW(W23))),"") ->  | Y26: =IFERROR(INDEX(Таблица1[21],_xlfn.AGGREGATE(15,6,(ROW(Таблица1[21])-ROW(Таблица1[[#Headers],[21]]))/(Таблица1[[месяц]:[месяц]]=$J$2)/(Таблица1[[год]:[год]]=$L$2)/(Таблица1[[изд]:[изд]]=$O$1)/(Таблица1[[партия]:[партия]]=$S$1),ROW(X23))),"") ->  | Z26: =IFERROR(INDEX(Таблица1[22],_xlfn.AGGREGATE(15,6,(ROW(Таблица1[22])-ROW(Таблица1[[#Headers],[22]]))/(Таблица1[[месяц]:[месяц]]=$J$2)/(Таблица1[[год]:[год]]=$L$2)/(Таблица1[[изд]:[изд]]=$O$1)/(Таблица1[[партия]:[партия]]=$S$1),ROW(Y23))),"") ->  | AA26: =IFERROR(INDEX(Таблица1[23],_xlfn.AGGREGATE(15,6,(ROW(Таблица1[23])-ROW(Таблица1[[#Headers],[23]]))/(Таблица1[[месяц]:[месяц]]=$J$2)/(Таблица1[[год]:[год]]=$L$2)/(Таблица1[[изд]:[изд]]=$O$1)/(Таблица1[[партия]:[партия]]=$S$1),ROW(Z23))),"") ->  | AB26: =IFERROR(INDEX(Таблица1[24],_xlfn.AGGREGATE(15,6,(ROW(Таблица1[24])-ROW(Таблица1[[#Headers],[24]]))/(Таблица1[[месяц]:[месяц]]=$J$2)/(Таблица1[[год]:[год]]=$L$2)/(Таблица1[[изд]:[изд]]=$O$1)/(Таблица1[[партия]:[партия]]=$S$1),ROW(AA23))),"") ->  | AC26: =IFERROR(INDEX(Таблица1[25],_xlfn.AGGREGATE(15,6,(ROW(Таблица1[25])-ROW(Таблица1[[#Headers],[25]]))/(Таблица1[[месяц]:[месяц]]=$J$2)/(Таблица1[[год]:[год]]=$L$2)/(Таблица1[[изд]:[изд]]=$O$1)/(Таблица1[[партия]:[партия]]=$S$1),ROW(AB23))),"") ->  | AD26: =IFERROR(INDEX(Таблица1[26],_xlfn.AGGREGATE(15,6,(ROW(Таблица1[26])-ROW(Таблица1[[#Headers],[26]]))/(Таблица1[[месяц]:[месяц]]=$J$2)/(Таблица1[[год]:[год]]=$L$2)/(Таблица1[[изд]:[изд]]=$O$1)/(Таблица1[[партия]:[партия]]=$S$1),ROW(AC23))),"") ->  | AE26: =IFERROR(INDEX(Таблица1[27],_xlfn.AGGREGATE(15,6,(ROW(Таблица1[27])-ROW(Таблица1[[#Headers],[27]]))/(Таблица1[[месяц]:[месяц]]=$J$2)/(Таблица1[[год]:[год]]=$L$2)/(Таблица1[[изд]:[изд]]=$O$1)/(Таблица1[[партия]:[партия]]=$S$1),ROW(AD23))),"") ->  | AF26: =IFERROR(INDEX(Таблица1[28],_xlfn.AGGREGATE(15,6,(ROW(Таблица1[28])-ROW(Таблица1[[#Headers],[28]]))/(Таблица1[[месяц]:[месяц]]=$J$2)/(Таблица1[[год]:[год]]=$L$2)/(Таблица1[[изд]:[изд]]=$O$1)/(Таблица1[[партия]:[партия]]=$S$1),ROW(AE23))),"") ->  | AG26: =IFERROR(INDEX(Таблица1[29],_xlfn.AGGREGATE(15,6,(ROW(Таблица1[29])-ROW(Таблица1[[#Headers],[29]]))/(Таблица1[[месяц]:[месяц]]=$J$2)/(Таблица1[[год]:[год]]=$L$2)/(Таблица1[[изд]:[изд]]=$O$1)/(Таблица1[[партия]:[партия]]=$S$1),ROW(AF23))),"") ->  | AH26: =IFERROR(INDEX(Таблица1[30],_xlfn.AGGREGATE(15,6,(ROW(Таблица1[30])-ROW(Таблица1[[#Headers],[30]]))/(Таблица1[[месяц]:[месяц]]=$J$2)/(Таблица1[[год]:[год]]=$L$2)/(Таблица1[[изд]:[изд]]=$O$1)/(Таблица1[[партия]:[партия]]=$S$1),ROW(AG23))),"") ->  | AI26: =IFERROR(INDEX(Таблица1[31],_xlfn.AGGREGATE(15,6,(ROW(Таблица1[31])-ROW(Таблица1[[#Headers],[31]]))/(Таблица1[[месяц]:[месяц]]=$J$2)/(Таблица1[[год]:[год]]=$L$2)/(Таблица1[[изд]:[изд]]=$O$1)/(Таблица1[[партия]:[партия]]=$S$1),ROW(AH23))),"") ->  | AJ26: 0
B27: =IFERROR(INDEX(Таблица1[коэф],_xlfn.AGGREGATE(15,6,(ROW(Таблица1[коэф])-ROW(Таблица1[[#Headers],[коэф]]))/(Таблица1[[месяц]:[месяц]]=$J$2)/(Таблица1[[год]:[год]]=$L$2)/(Таблица1[[изд]:[изд]]=$O$1)/(Таблица1[[партия]:[партия]]=$S$1),ROW(A24))),"") ->  | C27: =IFERROR(INDEX(Таблица1[Ф. И. О.],_xlfn.AGGREGATE(15,6,(ROW(Таблица1[Ф. И. О.])-ROW(Таблица1[[#Headers],[Ф. И. О.]]))/(Таблица1[[месяц]:[месяц]]=$J$2)/(Таблица1[[год]:[год]]=$L$2)/(Таблица1[[изд]:[изд]]=$O$1)/(Таблица1[[партия]:[партия]]=$S$1),ROW(B24))),"") ->  | D27: =IFERROR(INDEX(Таблица1[р/р],_xlfn.AGGREGATE(15,6,(ROW(Таблица1[р/р])-ROW(Таблица1[[#Headers],[р/р]]))/(Таблица1[[месяц]:[месяц]]=$J$2)/(Таблица1[[год]:[год]]=$L$2)/(Таблица1[[изд]:[изд]]=$O$1)/(Таблица1[[партия]:[партия]]=$S$1),ROW(C24))),"") ->  | E27: =IFERROR(INDEX(Таблица1[1],_xlfn.AGGREGATE(15,6,(ROW(Таблица1[1])-ROW(Таблица1[[#Headers],[1]]))/(Таблица1[[месяц]:[месяц]]=$J$2)/(Таблица1[[год]:[год]]=$L$2)/(Таблица1[[изд]:[изд]]=$O$1)/(Таблица1[[партия]:[партия]]=$S$1),ROW(D24))),"") ->  | F27: =IFERROR(INDEX(Таблица1[2],_xlfn.AGGREGATE(15,6,(ROW(Таблица1[2])-ROW(Таблица1[[#Headers],[2]]))/(Таблица1[[месяц]:[месяц]]=$J$2)/(Таблица1[[год]:[год]]=$L$2)/(Таблица1[[изд]:[изд]]=$O$1)/(Таблица1[[партия]:[партия]]=$S$1),ROW(E24))),"") ->  | G27: =IFERROR(INDEX(Таблица1[3],_xlfn.AGGREGATE(15,6,(ROW(Таблица1[3])-ROW(Таблица1[[#Headers],[3]]))/(Таблица1[[месяц]:[месяц]]=$J$2)/(Таблица1[[год]:[год]]=$L$2)/(Таблица1[[изд]:[изд]]=$O$1)/(Таблица1[[партия]:[партия]]=$S$1),ROW(F24))),"") ->  | H27: =IFERROR(INDEX(Таблица1[4],_xlfn.AGGREGATE(15,6,(ROW(Таблица1[4])-ROW(Таблица1[[#Headers],[4]]))/(Таблица1[[месяц]:[месяц]]=$J$2)/(Таблица1[[год]:[год]]=$L$2)/(Таблица1[[изд]:[изд]]=$O$1)/(Таблица1[[партия]:[партия]]=$S$1),ROW(G24))),"") ->  | I27: =IFERROR(INDEX(Таблица1[5],_xlfn.AGGREGATE(15,6,(ROW(Таблица1[5])-ROW(Таблица1[[#Headers],[5]]))/(Таблица1[[месяц]:[месяц]]=$J$2)/(Таблица1[[год]:[год]]=$L$2)/(Таблица1[[изд]:[изд]]=$O$1)/(Таблица1[[партия]:[партия]]=$S$1),ROW(H24))),"") ->  | J27: =IFERROR(INDEX(Таблица1[6],_xlfn.AGGREGATE(15,6,(ROW(Таблица1[6])-ROW(Таблица1[[#Headers],[6]]))/(Таблица1[[месяц]:[месяц]]=$J$2)/(Таблица1[[год]:[год]]=$L$2)/(Таблица1[[изд]:[изд]]=$O$1)/(Таблица1[[партия]:[партия]]=$S$1),ROW(I24))),"") ->  | K27: =IFERROR(INDEX(Таблица1[7],_xlfn.AGGREGATE(15,6,(ROW(Таблица1[7])-ROW(Таблица1[[#Headers],[7]]))/(Таблица1[[месяц]:[месяц]]=$J$2)/(Таблица1[[год]:[год]]=$L$2)/(Таблица1[[изд]:[изд]]=$O$1)/(Таблица1[[партия]:[партия]]=$S$1),ROW(J24))),"") ->  | L27: =IFERROR(INDEX(Таблица1[8],_xlfn.AGGREGATE(15,6,(ROW(Таблица1[8])-ROW(Таблица1[[#Headers],[8]]))/(Таблица1[[месяц]:[месяц]]=$J$2)/(Таблица1[[год]:[год]]=$L$2)/(Таблица1[[изд]:[изд]]=$O$1)/(Таблица1[[партия]:[партия]]=$S$1),ROW(K24))),"") ->  | M27: =IFERROR(INDEX(Таблица1[9],_xlfn.AGGREGATE(15,6,(ROW(Таблица1[9])-ROW(Таблица1[[#Headers],[9]]))/(Таблица1[[месяц]:[месяц]]=$J$2)/(Таблица1[[год]:[год]]=$L$2)/(Таблица1[[изд]:[изд]]=$O$1)/(Таблица1[[партия]:[партия]]=$S$1),ROW(L24))),"") ->  | N27: =IFERROR(INDEX(Таблица1[10],_xlfn.AGGREGATE(15,6,(ROW(Таблица1[10])-ROW(Таблица1[[#Headers],[10]]))/(Таблица1[[месяц]:[месяц]]=$J$2)/(Таблица1[[год]:[год]]=$L$2)/(Таблица1[[изд]:[изд]]=$O$1)/(Таблица1[[партия]:[партия]]=$S$1),ROW(M24))),"") ->  | O27: =IFERROR(INDEX(Таблица1[11],_xlfn.AGGREGATE(15,6,(ROW(Таблица1[11])-ROW(Таблица1[[#Headers],[11]]))/(Таблица1[[месяц]:[месяц]]=$J$2)/(Таблица1[[год]:[год]]=$L$2)/(Таблица1[[изд]:[изд]]=$O$1)/(Таблица1[[партия]:[партия]]=$S$1),ROW(N24))),"") ->  | P27: =IFERROR(INDEX(Таблица1[12],_xlfn.AGGREGATE(15,6,(ROW(Таблица1[12])-ROW(Таблица1[[#Headers],[12]]))/(Таблица1[[месяц]:[месяц]]=$J$2)/(Таблица1[[год]:[год]]=$L$2)/(Таблица1[[изд]:[изд]]=$O$1)/(Таблица1[[партия]:[партия]]=$S$1),ROW(O24))),"") ->  | Q27: =IFERROR(INDEX(Таблица1[13],_xlfn.AGGREGATE(15,6,(ROW(Таблица1[13])-ROW(Таблица1[[#Headers],[13]]))/(Таблица1[[месяц]:[месяц]]=$J$2)/(Таблица1[[год]:[год]]=$L$2)/(Таблица1[[изд]:[изд]]=$O$1)/(Таблица1[[партия]:[партия]]=$S$1),ROW(P24))),"") ->  | R27: =IFERROR(INDEX(Таблица1[14],_xlfn.AGGREGATE(15,6,(ROW(Таблица1[14])-ROW(Таблица1[[#Headers],[14]]))/(Таблица1[[месяц]:[месяц]]=$J$2)/(Таблица1[[год]:[год]]=$L$2)/(Таблица1[[изд]:[изд]]=$O$1)/(Таблица1[[партия]:[партия]]=$S$1),ROW(Q24))),"") ->  | S27: =IFERROR(INDEX(Таблица1[15],_xlfn.AGGREGATE(15,6,(ROW(Таблица1[15])-ROW(Таблица1[[#Headers],[15]]))/(Таблица1[[месяц]:[месяц]]=$J$2)/(Таблица1[[год]:[год]]=$L$2)/(Таблица1[[изд]:[изд]]=$O$1)/(Таблица1[[партия]:[партия]]=$S$1),ROW(R24))),"") ->  | T27: =IFERROR(INDEX(Таблица1[16],_xlfn.AGGREGATE(15,6,(ROW(Таблица1[16])-ROW(Таблица1[[#Headers],[16]]))/(Таблица1[[месяц]:[месяц]]=$J$2)/(Таблица1[[год]:[год]]=$L$2)/(Таблица1[[изд]:[изд]]=$O$1)/(Таблица1[[партия]:[партия]]=$S$1),ROW(S24))),"") ->  | U27: =IFERROR(INDEX(Таблица1[17],_xlfn.AGGREGATE(15,6,(ROW(Таблица1[17])-ROW(Таблица1[[#Headers],[17]]))/(Таблица1[[месяц]:[месяц]]=$J$2)/(Таблица1[[год]:[год]]=$L$2)/(Таблица1[[изд]:[изд]]=$O$1)/(Таблица1[[партия]:[партия]]=$S$1),ROW(T24))),"") ->  | V27: =IFERROR(INDEX(Таблица1[18],_xlfn.AGGREGATE(15,6,(ROW(Таблица1[18])-ROW(Таблица1[[#Headers],[18]]))/(Таблица1[[месяц]:[месяц]]=$J$2)/(Таблица1[[год]:[год]]=$L$2)/(Таблица1[[изд]:[изд]]=$O$1)/(Таблица1[[партия]:[партия]]=$S$1),ROW(U24))),"") ->  | W27: =IFERROR(INDEX(Таблица1[19],_xlfn.AGGREGATE(15,6,(ROW(Таблица1[19])-ROW(Таблица1[[#Headers],[19]]))/(Таблица1[[месяц]:[месяц]]=$J$2)/(Таблица1[[год]:[год]]=$L$2)/(Таблица1[[изд]:[изд]]=$O$1)/(Таблица1[[партия]:[партия]]=$S$1),ROW(V24))),"") ->  | X27: =IFERROR(INDEX(Таблица1[20],_xlfn.AGGREGATE(15,6,(ROW(Таблица1[20])-ROW(Таблица1[[#Headers],[20]]))/(Таблица1[[месяц]:[месяц]]=$J$2)/(Таблица1[[год]:[год]]=$L$2)/(Таблица1[[изд]:[изд]]=$O$1)/(Таблица1[[партия]:[партия]]=$S$1),ROW(W24))),"") ->  | Y27: =IFERROR(INDEX(Таблица1[21],_xlfn.AGGREGATE(15,6,(ROW(Таблица1[21])-ROW(Таблица1[[#Headers],[21]]))/(Таблица1[[месяц]:[месяц]]=$J$2)/(Таблица1[[год]:[год]]=$L$2)/(Таблица1[[изд]:[изд]]=$O$1)/(Таблица1[[партия]:[партия]]=$S$1),ROW(X24))),"") ->  | Z27: =IFERROR(INDEX(Таблица1[22],_xlfn.AGGREGATE(15,6,(ROW(Таблица1[22])-ROW(Таблица1[[#Headers],[22]]))/(Таблица1[[месяц]:[месяц]]=$J$2)/(Таблица1[[год]:[год]]=$L$2)/(Таблица1[[изд]:[изд]]=$O$1)/(Таблица1[[партия]:[партия]]=$S$1),ROW(Y24))),"") ->  | AA27: =IFERROR(INDEX(Таблица1[23],_xlfn.AGGREGATE(15,6,(ROW(Таблица1[23])-ROW(Таблица1[[#Headers],[23]]))/(Таблица1[[месяц]:[месяц]]=$J$2)/(Таблица1[[год]:[год]]=$L$2)/(Таблица1[[изд]:[изд]]=$O$1)/(Таблица1[[партия]:[партия]]=$S$1),ROW(Z24))),"") ->  | AB27: =IFERROR(INDEX(Таблица1[24],_xlfn.AGGREGATE(15,6,(ROW(Таблица1[24])-ROW(Таблица1[[#Headers],[24]]))/(Таблица1[[месяц]:[месяц]]=$J$2)/(Таблица1[[год]:[год]]=$L$2)/(Таблица1[[изд]:[изд]]=$O$1)/(Таблица1[[партия]:[партия]]=$S$1),ROW(AA24))),"") ->  | AC27: =IFERROR(INDEX(Таблица1[25],_xlfn.AGGREGATE(15,6,(ROW(Таблица1[25])-ROW(Таблица1[[#Headers],[25]]))/(Таблица1[[месяц]:[месяц]]=$J$2)/(Таблица1[[год]:[год]]=$L$2)/(Таблица1[[изд]:[изд]]=$O$1)/(Таблица1[[партия]:[партия]]=$S$1),ROW(AB24))),"") ->  | AD27: =IFERROR(INDEX(Таблица1[26],_xlfn.AGGREGATE(15,6,(ROW(Таблица1[26])-ROW(Таблица1[[#Headers],[26]]))/(Таблица1[[месяц]:[месяц]]=$J$2)/(Таблица1[[год]:[год]]=$L$2)/(Таблица1[[изд]:[изд]]=$O$1)/(Таблица1[[партия]:[партия]]=$S$1),ROW(AC24))),"") ->  | AE27: =IFERROR(INDEX(Таблица1[27],_xlfn.AGGREGATE(15,6,(ROW(Таблица1[27])-ROW(Таблица1[[#Headers],[27]]))/(Таблица1[[месяц]:[месяц]]=$J$2)/(Таблица1[[год]:[год]]=$L$2)/(Таблица1[[изд]:[изд]]=$O$1)/(Таблица1[[партия]:[партия]]=$S$1),ROW(AD24))),"") ->  | AF27: =IFERROR(INDEX(Таблица1[28],_xlfn.AGGREGATE(15,6,(ROW(Таблица1[28])-ROW(Таблица1[[#Headers],[28]]))/(Таблица1[[месяц]:[месяц]]=$J$2)/(Таблица1[[год]:[год]]=$L$2)/(Таблица1[[изд]:[изд]]=$O$1)/(Таблица1[[партия]:[партия]]=$S$1),ROW(AE24))),"") ->  | AG27: =IFERROR(INDEX(Таблица1[29],_xlfn.AGGREGATE(15,6,(ROW(Таблица1[29])-ROW(Таблица1[[#Headers],[29]]))/(Таблица1[[месяц]:[месяц]]=$J$2)/(Таблица1[[год]:[год]]=$L$2)/(Таблица1[[изд]:[изд]]=$O$1)/(Таблица1[[партия]:[партия]]=$S$1),ROW(AF24))),"") ->  | AH27: =IFERROR(INDEX(Таблица1[30],_xlfn.AGGREGATE(15,6,(ROW(Таблица1[30])-ROW(Таблица1[[#Headers],[30]]))/(Таблица1[[месяц]:[месяц]]=$J$2)/(Таблица1[[год]:[год]]=$L$2)/(Таблица1[[изд]:[изд]]=$O$1)/(Таблица1[[партия]:[партия]]=$S$1),ROW(AG24))),"") ->  | AI27: =IFERROR(INDEX(Таблица1[31],_xlfn.AGGREGATE(15,6,(ROW(Таблица1[31])-ROW(Таблица1[[#Headers],[31]]))/(Таблица1[[месяц]:[месяц]]=$J$2)/(Таблица1[[год]:[год]]=$L$2)/(Таблица1[[изд]:[изд]]=$O$1)/(Таблица1[[партия]:[партия]]=$S$1),ROW(AH24))),"") ->  | AJ27: 0
C28: ИТОГО | E28: =SUM(E4:E27) -> 7.2 | F28: =SUM(F4:F27) -> 7.2 | G28: 7.2 | H28: 7.2 | I28: 7.2 | J28: =IFERROR(INDEX(Таблица1[6],_xlfn.AGGREGATE(15,6,(ROW(Таблица1[6])-ROW(Таблица1[[#Headers],[6]]))/(Таблица1[[месяц]:[месяц]]=$J$2)/(Таблица1[[год]:[год]]=$L$2)/(Таблица1[[изд]:[изд]]=$O$1)/(Таблица1[[партия]:[партия]]=$S$1),ROW(I25))),"") ->  | K28: 0 | L28: 0 | M28: 0 | N28: 0 | O28: 0 | P28: 0 | Q28: 0 | R28: 0 | S28: 0 | T28: 0 | U28: 0 | V28: 0 | W28: 0 | X28: 0 | Y28: 0 | Z28: 0 | AA28: 0 | AB28: 0 | AC28: 0 | AD28: 0 | AE28: 0 | AF28: 0 | AG28: 0 | AH28: 0 | AI28: 0 | AJ28: =SUM(E28:AI28) -> 36 | AK28: =SUM(AJ4:AJ27) -> 43.2
AJ29: =IF(AJ28=AK28,"","ЛОЖЬ") -> ЛОЖЬ
C30: Мастер участка | R30: Начальник участка

Sheet Лист1
G1: технологическая карта | N1: изд | O1: б/а/п | R1: партия | S1: 4-21 | W1: партия
J2: декабрь | L2: 2021
B3: коэф | C3: Ф. И. О. | D3: р/р | E3: 1 | F3: 2 | G3: 3 | H3: 4 | I3: 5 | J3: 6 | K3: 7 | L3: 8 | M3: 9 | N3: 10 | O3: 11 | P3: 12 | Q3: 13 | R3: 14 | S3: 15 | T3: 16 | U3: 17 | V3: 18 | W3: 19 | X3: 20 | Y3: 21 | Z3: 22 | AA3: 23 | AB3: 24 | AC3: 25 | AD3: 26 | AE3: 27 | AF3: 28 | AG3: 29 | AH3: 30 | AI3: 31 | AJ3: сумма
B4: =IFERROR(INDEX(Таблица1[коэф],_xlfn.AGGREGATE(15,6,(ROW(Таблица1[коэф])-ROW(Таблица1[[#Headers],[коэф]]))/(Таблица1[[месяц]:[месяц]]=$J$2)/(Таблица1[[год]:[год]]=$L$2)/(Таблица1[[изд]:[изд]]=$O$1)/(Таблица1[[партия]:[партия]]=$S$1),ROW(A1))),"") -> 1 | C4: =IFERROR(INDEX(Таблица1[Ф. И. О.],_xlfn.AGGREGATE(15,6,(ROW(Таблица1[Ф. И. О.])-ROW(Таблица1[[#Headers],[Ф. И. О.]]))/(Таблица1[[месяц]:[месяц]]=$J$2)/(Таблица1[[год]:[год]]=$L$2)/(Таблица1[[изд]:[изд]]=$O$1)/(Таблица1[[партия]:[партия]]=$S$1),ROW(B1))),"") -> работник 4 | D4: =IFERROR(INDEX(Таблица1[р/р],_xlfn.AGGREGATE(15,6,(ROW(Таблица1[р/р])-ROW(Таблица1[[#Headers],[р/р]]))/(Таблица1[[месяц]:[месяц]]=$J$2)/(Таблица1[[год]:[год]]=$L$2)/(Таблица1[[изд]:[изд]]=$O$1)/(Таблица1[[партия]:[партия]]=$S$1),ROW(C1))),"") -> 3/24 | E4: =IFERROR(INDEX(Таблица1[1],_xlfn.AGGREGATE(15,6,(ROW(Таблица1[1])-ROW(Таблица1[[#Headers],[1]]))/(Таблица1[[месяц]:[месяц]]=$J$2)/(Таблица1[[год]:[год]]=$L$2)/(Таблица1[[изд]:[изд]]=$O$1)/(Таблица1[[партия]:[партия]]=$S$1),ROW(D1))),"") -> 7.2 | F4: =IFERROR(INDEX(Таблица1[2],_xlfn.AGGREGATE(15,6,(ROW(Таблица1[2])-ROW(Таблица1[[#Headers],[2]]))/(Таблица1[[месяц]:[месяц]]=$J$2)/(Таблица1[[год]:[год]]=$L$2)/(Таблица1[[изд]:[изд]]=$O$1)/(Таблица1[[партия]:[партия]]=$S$1),ROW(E1))),"") -> 7.2 | G4: =IFERROR(INDEX(Таблица1[3],_xlfn.AGGREGATE(15,6,(ROW(Таблица1[3])-ROW(Таблица1[[#Headers],[3]]))/(Таблица1[[месяц]:[месяц]]=$J$2)/(Таблица1[[год]:[год]]=$L$2)/(Таблица1[[изд]:[изд]]=$O$1)/(Таблица1[[партия]:[партия]]=$S$1),ROW(F1))),"") -> 0 | H4: =IFERROR(INDEX(Таблица1[4],_xlfn.AGGREGATE(15,6,(ROW(Таблица1[4])-ROW(Таблица1[[#Headers],[4]]))/(Таблица1[[месяц]:[месяц]]=$J$2)/(Таблица1[[год]:[год]]=$L$2)/(Таблица1[[изд]:[изд]]=$O$1)/(Таблица1[[партия]:[партия]]=$S$1),ROW(G1))),"") -> 0 | I4: =IFERROR(INDEX(Таблица1[5],_xlfn.AGGREGATE(15,6,(ROW(Таблица1[5])-ROW(Таблица1[[#Headers],[5]]))/(Таблица1[[месяц]:[месяц]]=$J$2)/(Таблица1[[год]:[год]]=$L$2)/(Таблица1[[изд]:[изд]]=$O$1)/(Таблица1[[партия]:[партия]]=$S$1),ROW(H1))),"") -> 0 | J4: =IFERROR(INDEX(Таблица1[6],_xlfn.AGGREGATE(15,6,(ROW(Таблица1[6])-ROW(Таблица1[[#Headers],[6]]))/(Таблица1[[месяц]:[месяц]]=$J$2)/(Таблица1[[год]:[год]]=$L$2)/(Таблица1[[изд]:[изд]]=$O$1)/(Таблица1[[партия]:[партия]]=$S$1),ROW(I1))),"") -> 0 | K4: =IFERROR(INDEX(Таблица1[7],_xlfn.AGGREGATE(15,6,(ROW(Таблица1[7])-ROW(Таблица1[[#Headers],[7]]))/(Таблица1[[месяц]:[месяц]]=$J$2)/(Таблица1[[год]:[год]]=$L$2)/(Таблица1[[изд]:[изд]]=$O$1)/(Таблица1[[партия]:[партия]]=$S$1),ROW(J1))),"") -> 0 | L4: =IFERROR(INDEX(Таблица1[8],_xlfn.AGGREGATE(15,6,(ROW(Таблица1[8])-ROW(Таблица1[[#Headers],[8]]))/(Таблица1[[месяц]:[месяц]]=$J$2)/(Таблица1[[год]:[год]]=$L$2)/(Таблица1[[изд]:[изд]]=$O$1)/(Таблица1[[партия]:[партия]]=$S$1),ROW(K1))),"") -> 0 | M4: =IFERROR(INDEX(Таблица1[9],_xlfn.AGGREGATE(15,6,(ROW(Таблица1[9])-ROW(Таблица1[[#Headers],[9]]))/(Таблица1[[месяц]:[месяц]]=$J$2)/(Таблица1[[год]:[год]]=$L$2)/(Таблица1[[изд]:[изд]]=$O$1)/(Таблица1[[партия]:[партия]]=$S$1),ROW(L1))),"") -> 0 | N4: =IFERROR(INDEX(Таблица1[10],_xlfn.AGGREGATE(15,6,(ROW(Таблица1[10])-ROW(Таблица1[[#Headers],[10]]))/(Таблица1[[месяц]:[месяц]]=$J$2)/(Таблица1[[год]:[год]]=$L$2)/(Таблица1[[изд]:[изд]]=$O$1)/(Таблица1[[партия]:[партия]]=$S$1),ROW(M1))),"") -> 0 | O4: =IFERROR(INDEX(Таблица1[11],_xlfn.AGGREGATE(15,6,(ROW(Таблица1[11])-ROW(Таблица1[[#Headers],[11]]))/(Таблица1[[месяц]:[месяц]]=$J$2)/(Таблица1[[год]:[год]]=$L$2)/(Таблица1[[изд]:[изд]]=$O$1)/(Таблица1[[партия]:[партия]]=$S$1),ROW(N1))),"") -> 0 | P4: =IFERROR(INDEX(Таблица1[12],_xlfn.AGGREGATE(15,6,(ROW(Таблица1[12])-ROW(Таблица1[[#Headers],[12]]))/(Таблица1[[месяц]:[месяц]]=$J$2)/(Таблица1[[год]:[год]]=$L$2)/(Таблица1[[изд]:[изд]]=$O$1)/(Таблица1[[партия]:[партия]]=$S$1),ROW(O1))),"") -> 0 | Q4: =IFERROR(INDEX(Таблица1[13],_xlfn.AGGREGATE(15,6,(ROW(Таблица1[13])-ROW(Таблица1[[#Headers],[13]]))/(Таблица1[[месяц]:[месяц]]=$J$2)/(Таблица1[[год]:[год]]=$L$2)/(Таблица1[[изд]:[изд]]=$O$1)/(Таблица1[[партия]:[партия]]=$S$1),ROW(P1))),"") -> 0 | R4: =IFERROR(INDEX(Таблица1[14],_xlfn.AGGREGATE(15,6,(ROW(Таблица1[14])-ROW(Таблица1[[#Headers],[14]]))/(Таблица1[[месяц]:[месяц]]=$J$2)/(Таблица1[[год]:[год]]=$L$2)/(Таблица1[[изд]:[изд]]=$O$1)/(Таблица1[[партия]:[партия]]=$S$1),ROW(Q1))),"") -> 0 | S4: =IFERROR(INDEX(Таблица1[15],_xlfn.AGGREGATE(15,6,(ROW(Таблица1[15])-ROW(Таблица1[[#Headers],[15]]))/(Таблица1[[месяц]:[месяц]]=$J$2)/(Таблица1[[год]:[год]]=$L$2)/(Таблица1[[изд]:[изд]]=$O$1)/(Таблица1[[партия]:[партия]]=$S$1),ROW(R1))),"") -> 0 | T4: =IFERROR(INDEX(Таблица1[16],_xlfn.AGGREGATE(15,6,(ROW(Таблица1[16])-ROW(Таблица1[[#Headers],[16]]))/(Таблица1[[месяц]:[месяц]]=$J$2)/(Таблица1[[год]:[год]]=$L$2)/(Таблица1[[изд]:[изд]]=$O$1)/(Таблица1[[партия]:[партия]]=$S$1),ROW(S1))),"") -> 0 | U4: =IFERROR(INDEX(Таблица1[17],_xlfn.AGGREGATE(15,6,(ROW(Таблица1[17])-ROW(Таблица1[[#Headers],[17]]))/(Таблица1[[месяц]:[месяц]]=$J$2)/(Таблица1[[год]:[год]]=$L$2)/(Таблица1[[изд]:[изд]]=$O$1)/(Таблица1[[партия]:[партия]]=$S$1),ROW(T1))),"") -> 0 | V4: =IFERROR(INDEX(Таблица1[18],_xlfn.AGGREGATE(15,6,(ROW(Таблица1[18])-ROW(Таблица1[[#Headers],[18]]))/(Таблица1[[месяц]:[месяц]]=$J$2)/(Таблица1[[год]:[год]]=$L$2)/(Таблица1[[изд]:[изд]]=$O$1)/(Таблица1[[партия]:[партия]]=$S$1),ROW(U1))),"") -> 0 | W4: =IFERROR(INDEX(Таблица1[19],_xlfn.AGGREGATE(15,6,(ROW(Таблица1[19])-ROW(Таблица1[[#Headers],[19]]))/(Таблица1[[месяц]:[месяц]]=$J$2)/(Таблица1[[год]:[год]]=$L$2)/(Таблица1[[изд]:[изд]]=$O$1)/(Таблица1[[партия]:[партия]]=$S$1),ROW(V1))),"") -> 0 | X4: =IFERROR(INDEX(Таблица1[20],_xlfn.AGGREGATE(15,6,(ROW(Таблица1[20])-ROW(Таблица1[[#Headers],[20]]))/(Таблица1[[месяц]:[месяц]]=$J$2)/(Таблица1[[год]:[год]]=$L$2)/(Таблица1[[изд]:[изд]]=$O$1)/(Таблица1[[партия]:[партия]]=$S$1),ROW(W1))),"") -> 0 | Y4: =IFERROR(INDEX(Таблица1[21],_xlfn.AGGREGATE(15,6,(ROW(Таблица1[21])-ROW(Таблица1[[#Headers],[21]]))/(Таблица1[[месяц]:[месяц]]=$J$2)/(Таблица1[[год]:[год]]=$L$2)/(Таблица1[[изд]:[изд]]=$O$1)/(Таблица1[[партия]:[партия]]=$S$1),ROW(X1))),"") -> 0 | Z4: =IFERROR(INDEX(Таблица1[22],_xlfn.AGGREGATE(15,6,(ROW(Таблица1[22])-ROW(Таблица1[[#Headers],[22]]))/(Таблица1[[месяц]:[месяц]]=$J$2)/(Таблица1[[год]:[год]]=$L$2)/(Таблица1[[изд]:[изд]]=$O$1)/(Таблица1[[партия]:[партия]]=$S$1),ROW(Y1))),"") -> 0 | AA4: =IFERROR(INDEX(Таблица1[23],_xlfn.AGGREGATE(15,6,(ROW(Таблица1[23])-ROW(Таблица1[[#Headers],[23]]))/(Таблица1[[месяц]:[месяц]]=$J$2)/(Таблица1[[год]:[год]]=$L$2)/(Таблица1[[изд]:[изд]]=$O$1)/(Таблица1[[партия]:[партия]]=$S$1),ROW(Z1))),"") -> 0 | AB4: =IFERROR(INDEX(Таблица1[24],_xlfn.AGGREGATE(15,6,(ROW(Таблица1[24])-ROW(Таблица1[[#Headers],[24]]))/(Таблица1[[месяц]:[месяц]]=$J$2)/(Таблица1[[год]:[год]]=$L$2)/(Таблица1[[изд]:[изд]]=$O$1)/(Таблица1[[партия]:[партия]]=$S$1),ROW(AA1))),"") -> 0 | AC4: =IFERROR(INDEX(Таблица1[25],_xlfn.AGGREGATE(15,6,(ROW(Таблица1[25])-ROW(Таблица1[[#Headers],[25]]))/(Таблица1[[месяц]:[месяц]]=$J$2)/(Таблица1[[год]:[год]]=$L$2)/(Таблица1[[изд]:[изд]]=$O$1)/(Таблица1[[партия]:[партия]]=$S$1),ROW(AB1))),"") -> 0 | AD4: =IFERROR(INDEX(Таблица1[26],_xlfn.AGGREGATE(15,6,(ROW(Таблица1[26])-ROW(Таблица1[[#Headers],[26]]))/(Таблица1[[месяц]:[месяц]]=$J$2)/(Таблица1[[год]:[год]]=$L$2)/(Таблица1[[изд]:[изд]]=$O$1)/(Таблица1[[партия]:[партия]]=$S$1),ROW(AC1))),"") -> 0 | AE4: =IFERROR(INDEX(Таблица1[27],_xlfn.AGGREGATE(15,6,(ROW(Таблица1[27])-ROW(Таблица1[[#Headers],[27]]))/(Таблица1[[месяц]:[месяц]]=$J$2)/(Таблица1[[год]:[год]]=$L$2)/(Таблица1[[изд]:[изд]]=$O$1)/(Таблица1[[партия]:[партия]]=$S$1),ROW(AD1))),"") -> 0 | AF4: =IFERROR(INDEX(Таблица1[28],_xlfn.AGGREGATE(15,6,(ROW(Таблица1[28])-ROW(Таблица1[[#Headers],[28]]))/(Таблица1[[месяц]:[месяц]]=$J$2)/(Таблица1[[год]:[год]]=$L$2)/(Таблица1[[изд]:[изд]]=$O$1)/(Таблица1[[партия]:[партия]]=$S$1),ROW(AE1))),"") -> 0 | AG4: =IFERROR(INDEX(Таблица1[29],_xlfn.AGGREGATE(15,6,(ROW(Таблица1[29])-ROW(Таблица1[[#Headers],[29]]))/(Таблица1[[месяц]:[месяц]]=$J$2)/(Таблица1[[год]:[год]]=$L$2)/(Таблица1[[изд]:[изд]]=$O$1)/(Таблица1[[партия]:[партия]]=$S$1),ROW(AF1))),"") -> 0 | AH4: =IFERROR(INDEX(Таблица1[30],_xlfn.AGGREGATE(15,6,(ROW(Таблица1[30])-ROW(Таблица1[[#Headers],[30]]))/(Таблица1[[месяц]:[месяц]]=$J$2)/(Таблица1[[год]:[год]]=$L$2)/(Таблица1[[изд]:[изд]]=$O$1)/(Таблица1[[партия]:[партия]]=$S$1),ROW(AG1))),"") -> 0 | AI4: =IFERROR(INDEX(Таблица1[31],_xlfn.AGGREGATE(15,6,(ROW(Таблица1[31])-ROW(Таблица1[[#Headers],[31]]))/(Таблица1[[месяц]:[месяц]]=$J$2)/(Таблица1[[год]:[год]]=$L$2)/(Таблица1[[изд]:[изд]]=$O$1)/(Таблица1[[партия]:[партия]]=$S$1),ROW(AH1))),"") -> 0 | AJ4: =SUM(E4:AI4) -> 14.4
B5: =IFERROR(INDEX(Таблица1[коэф],_xlfn.AGGREGATE(15,6,(ROW(Таблица1[коэф])-ROW(Таблица1[[#Headers],[коэф]]))/(Таблица1[[месяц]:[месяц]]=$J$2)/(Таблица1[[год]:[год]]=$L$2)/(Таблица1[[изд]:[изд]]=$O$1)/(Таблица1[[партия]:[партия]]=$S$1),ROW(A2))),"") -> 1 | C5: =IFERROR(INDEX(Таблица1[Ф. И. О.],_xlfn.AGGREGATE(15,6,(ROW(Таблица1[Ф. И. О.])-ROW(Таблица1[[#Headers],[Ф. И. О.]]))/(Таблица1[[месяц]:[месяц]]=$J$2)/(Таблица1[[год]:[год]]=$L$2)/(Таблица1[[изд]:[изд]]=$O$1)/(Таблица1[[партия]:[партия]]=$S$1),ROW(B2))),"") -> работник 5 | D5: =IFERROR(INDEX(Таблица1[р/р],_xlfn.AGGREGATE(15,6,(ROW(Таблица1[р/р])-ROW(Таблица1[[#Headers],[р/р]]))/(Таблица1[[месяц]:[месяц]]=$J$2)/(Таблица1[[год]:[год]]=$L$2)/(Таблица1[[изд]:[изд]]=$O$1)/(Таблица1[[партия]:[партия]]=$S$1),ROW(C2))),"") -> 3/24 | E5: =IFERROR(INDEX(Таблица1[1],_xlfn.AGGREGATE(15,6,(ROW(Таблица1[1])-ROW(Таблица1[[#Headers],[1]]))/(Таблица1[[месяц]:[месяц]]=$J$2)/(Таблица1[[год]:[год]]=$L$2)/(Таблица1[[изд]:[изд]]=$O$1)/(Таблица1[[партия]:[партия]]=$S$1),ROW(D2))),"") -> 0 | F5: =IFERROR(INDEX(Таблица1[2],_xlfn.AGGREGATE(15,6,(ROW(Таблица1[2])-ROW(Таблица1[[#Headers],[2]]))/(Таблица1[[месяц]:[месяц]]=$J$2)/(Таблица1[[год]:[год]]=$L$2)/(Таблица1[[изд]:[изд]]=$O$1)/(Таблица1[[партия]:[партия]]=$S$1),ROW(E2))),"") -> 7.2 | G5: =IFERROR(INDEX(Таблица1[3],_xlfn.AGGREGATE(15,6,(ROW(Таблица1[3])-ROW(Таблица1[[#Headers],[3]]))/(Таблица1[[месяц]:[месяц]]=$J$2)/(Таблица1[[год]:[год]]=$L$2)/(Таблица1[[изд]:[изд]]=$O$1)/(Таблица1[[партия]:[партия]]=$S$1),ROW(F2))),"") -> 0 | H5: =IFERROR(INDEX(Таблица1[4],_xlfn.AGGREGATE(15,6,(ROW(Таблица1[4])-ROW(Таблица1[[#Headers],[4]]))/(Таблица1[[месяц]:[месяц]]=$J$2)/(Таблица1[[год]:[год]]=$L$2)/(Таблица1[[изд]:[изд]]=$O$1)/(Таблица1[[партия]:[партия]]=$S$1),ROW(G2))),"") -> 0 | I5: =IFERROR(INDEX(Таблица1[5],_xlfn.AGGREGATE(15,6,(ROW(Таблица1[5])-ROW(Таблица1[[#Headers],[5]]))/(Таблица1[[месяц]:[месяц]]=$J$2)/(Таблица1[[год]:[год]]=$L$2)/(Таблица1[[изд]:[изд]]=$O$1)/(Таблица1[[партия]:[партия]]=$S$1),ROW(H2))),"") -> 0 | J5: =IFERROR(INDEX(Таблица1[6],_xlfn.AGGREGATE(15,6,(ROW(Таблица1[6])-ROW(Таблица1[[#Headers],[6]]))/(Таблица1[[месяц]:[месяц]]=$J$2)/(Таблица1[[год]:[год]]=$L$2)/(Таблица1[[изд]:[изд]]=$O$1)/(Таблица1[[партия]:[партия]]=$S$1),ROW(I2))),"") -> 0 | K5: =IFERROR(INDEX(Таблица1[7],_xlfn.AGGREGATE(15,6,(ROW(Таблица1[7])-ROW(Таблица1[[#Headers],[7]]))/(Таблица1[[месяц]:[месяц]]=$J$2)/(Таблица1[[год]:[год]]=$L$2)/(Таблица1[[изд]:[изд]]=$O$1)/(Таблица1[[партия]:[партия]]=$S$1),ROW(J2))),"") -> 0 | L5: =IFERROR(INDEX(Таблица1[8],_xlfn.AGGREGATE(15,6,(ROW(Таблица1[8])-ROW(Таблица1[[#Headers],[8]]))/(Таблица1[[месяц]:[месяц]]=$J$2)/(Таблица1[[год]:[год]]=$L$2)/(Таблица1[[изд]:[изд]]=$O$1)/(Таблица1[[партия]:[партия]]=$S$1),ROW(K2))),"") -> 0 | M5: =IFERROR(INDEX(Таблица1[9],_xlfn.AGGREGATE(15,6,(ROW(Таблица1[9])-ROW(Таблица1[[#Headers],[9]]))/(Таблица1[[месяц]:[месяц]]=$J$2)/(Таблица1[[год]:[год]]=$L$2)/(Таблица1[[изд]:[изд]]=$O$1)/(Таблица1[[партия]:[партия]]=$S$1),ROW(L2))),"") -> 0 | N5: =IFERROR(INDEX(Таблица1[10],_xlfn.AGGREGATE(15,6,(ROW(Таблица1[10])-ROW(Таблица1[[#Headers],[10]]))/(Таблица1[[месяц]:[месяц]]=$J$2)/(Таблица1[[год]:[год]]=$L$2)/(Таблица1[[изд]:[изд]]=$O$1)/(Таблица1[[партия]:[партия]]=$S$1),ROW(M2))),"") -> 0 | O5: =IFERROR(INDEX(Таблица1[11],_xlfn.AGGREGATE(15,6,(ROW(Таблица1[11])-ROW(Таблица1[[#Headers],[11]]))/(Таблица1[[месяц]:[месяц]]=$J$2)/(Таблица1[[год]:[год]]=$L$2)/(Таблица1[[изд]:[изд]]=$O$1)/(Таблица1[[партия]:[партия]]=$S$1),ROW(N2))),"") -> 0 | P5: =IFERROR(INDEX(Таблица1[12],_xlfn.AGGREGATE(15,6,(ROW(Таблица1[12])-ROW(Таблица1[[#Headers],[12]]))/(Таблица1[[месяц]:[месяц]]=$J$2)/(Таблица1[[год]:[год]]=$L$2)/(Таблица1[[изд]:[изд]]=$O$1)/(Таблица1[[партия]:[партия]]=$S$1),ROW(O2))),"") -> 0 | Q5: =IFERROR(INDEX(Таблица1[13],_xlfn.AGGREGATE(15,6,(ROW(Таблица1[13])-ROW(Таблица1[[#Headers],[13]]))/(Таблица1[[месяц]:[месяц]]=$J$2)/(Таблица1[[год]:[год]]=$L$2)/(Таблица1[[изд]:[изд]]=$O$1)/(Таблица1[[партия]:[партия]]=$S$1),ROW(P2))),"") -> 0 | R5: =IFERROR(INDEX(Таблица1[14],_xlfn.AGGREGATE(15,6,(ROW(Таблица1[14])-ROW(Таблица1[[#Headers],[14]]))/(Таблица1[[месяц]:[месяц]]=$J$2)/(Таблица1[[год]:[год]]=$L$2)/(Таблица1[[изд]:[изд]]=$O$1)/(Таблица1[[партия]:[партия]]=$S$1),ROW(Q2))),"") -> 0 | S5: =IFERROR(INDEX(Таблица1[15],_xlfn.AGGREGATE(15,6,(ROW(Таблица1[15])-ROW(Таблица1[[#Headers],[15]]))/(Таблица1[[месяц]:[месяц]]=$J$2)/(Таблица1[[год]:[год]]=$L$2)/(Таблица1[[изд]:[изд]]=$O$1)/(Таблица1[[партия]:[партия]]=$S$1),ROW(R2))),"") -> 0 | T5: =IFERROR(INDEX(Таблица1[16],_xlfn.AGGREGATE(15,6,(ROW(Таблица1[16])-ROW(Таблица1[[#Headers],[16]]))/(Таблица1[[месяц]:[месяц]]=$J$2)/(Таблица1[[год]:[год]]=$L$2)/(Таблица1[[изд]:[изд]]=$O$1)/(Таблица1[[партия]:[партия]]=$S$1),ROW(S2))),"") -> 0 | U5: =IFERROR(INDEX(Таблица1[17],_xlfn.AGGREGATE(15,6,(ROW(Таблица1[17])-ROW(Таблица1[[#Headers],[17]]))/(Таблица1[[месяц]:[месяц]]=$J$2)/(Таблица1[[год]:[год]]=$L$2)/(Таблица1[[изд]:[изд]]=$O$1)/(Таблица1[[партия]:[партия]]=$S$1),ROW(T2))),"") -> 0 | V5: =IFERROR(INDEX(Таблица1[18],_xlfn.AGGREGATE(15,6,(ROW(Таблица1[18])-ROW(Таблица1[[#Headers],[18]]))/(Таблица1[[месяц]:[месяц]]=$J$2)/(Таблица1[[год]:[год]]=$L$2)/(Таблица1[[изд]:[изд]]=$O$1)/(Таблица1[[партия]:[партия]]=$S$1),ROW(U2))),"") -> 0 | W5: =IFERROR(INDEX(Таблица1[19],_xlfn.AGGREGATE(15,6,(ROW(Таблица1[19])-ROW(Таблица1[[#Headers],[19]]))/(Таблица1[[месяц]:[месяц]]=$J$2)/(Таблица1[[год]:[год]]=$L$2)/(Таблица1[[изд]:[изд]]=$O$1)/(Таблица1[[партия]:[партия]]=$S$1),ROW(V2))),"") -> 0 | X5: =IFERROR(INDEX(Таблица1[20],_xlfn.AGGREGATE(15,6,(ROW(Таблица1[20])-ROW(Таблица1[[#Headers],[20]]))/(Таблица1[[месяц]:[месяц]]=$J$2)/(Таблица1[[год]:[год]]=$L$2)/(Таблица1[[изд]:[изд]]=$O$1)/(Таблица1[[партия]:[партия]]=$S$1),ROW(W2))),"") -> 0 | Y5: =IFERROR(INDEX(Таблица1[21],_xlfn.AGGREGATE(15,6,(ROW(Таблица1[21])-ROW(Таблица1[[#Headers],[21]]))/(Таблица1[[месяц]:[месяц]]=$J$2)/(Таблица1[[год]:[год]]=$L$2)/(Таблица1[[изд]:[изд]]=$O$1)/(Таблица1[[партия]:[партия]]=$S$1),ROW(X2))),"") -> 0 | Z5: =IFERROR(INDEX(Таблица1[22],_xlfn.AGGREGATE(15,6,(ROW(Таблица1[22])-ROW(Таблица1[[#Headers],[22]]))/(Таблица1[[месяц]:[месяц]]=$J$2)/(Таблица1[[год]:[год]]=$L$2)/(Таблица1[[изд]:[изд]]=$O$1)/(Таблица1[[партия]:[партия]]=$S$1),ROW(Y2))),"") -> 0 | AA5: =IFERROR(INDEX(Таблица1[23],_xlfn.AGGREGATE(15,6,(ROW(Таблица1[23])-ROW(Таблица1[[#Headers],[23]]))/(Таблица1[[месяц]:[месяц]]=$J$2)/(Таблица1[[год]:[год]]=$L$2)/(Таблица1[[изд]:[изд]]=$O$1)/(Таблица1[[партия]:[партия]]=$S$1),ROW(Z2))),"") -> 0 | AB5: =IFERROR(INDEX(Таблица1[24],_xlfn.AGGREGATE(15,6,(ROW(Таблица1[24])-ROW(Таблица1[[#Headers],[24]]))/(Таблица1[[месяц]:[месяц]]=$J$2)/(Таблица1[[год]:[год]]=$L$2)/(Таблица1[[изд]:[изд]]=$O$1)/(Таблица1[[партия]:[партия]]=$S$1),ROW(AA2))),"") -> 0 | AC5: =IFERROR(INDEX(Таблица1[25],_xlfn.AGGREGATE(15,6,(ROW(Таблица1[25])-ROW(Таблица1[[#Headers],[25]]))/(Таблица1[[месяц]:[месяц]]=$J$2)/(Таблица1[[год]:[год]]=$L$2)/(Таблица1[[изд]:[изд]]=$O$1)/(Таблица1[[партия]:[партия]]=$S$1),ROW(AB2))),"") -> 0 | AD5: =IFERROR(INDEX(Таблица1[26],_xlfn.AGGREGATE(15,6,(ROW(Таблица1[26])-ROW(Таблица1[[#Headers],[26]]))/(Таблица1[[месяц]:[месяц]]=$J$2)/(Таблица1[[год]:[год]]=$L$2)/(Таблица1[[изд]:[изд]]=$O$1)/(Таблица1[[партия]:[партия]]=$S$1),ROW(AC2))),"") -> 0 | AE5: =IFERROR(INDEX(Таблица1[27],_xlfn.AGGREGATE(15,6,(ROW(Таблица1[27])-ROW(Таблица1[[#Headers],[27]]))/(Таблица1[[месяц]:[месяц]]=$J$2)/(Таблица1[[год]:[год]]=$L$2)/(Таблица1[[изд]:[изд]]=$O$1)/(Таблица1[[партия]:[партия]]=$S$1),ROW(AD2))),"") -> 0 | AF5: =IFERROR(INDEX(Таблица1[28],_xlfn.AGGREGATE(15,6,(ROW(Таблица1[28])-ROW(Таблица1[[#Headers],[28]]))/(Таблица1[[месяц]:[месяц]]=$J$2)/(Таблица1[[год]:[год]]=$L$2)/(Таблица1[[изд]:[изд]]=$O$1)/(Таблица1[[партия]:[партия]]=$S$1),ROW(AE2))),"") -> 0 | AG5: =IFERROR(INDEX(Таблица1[29],_xlfn.AGGREGATE(15,6,(ROW(Таблица1[29])-ROW(Таблица1[[#Headers],[29]]))/(Таблица1[[месяц]:[месяц]]=$J$2)/(Таблица1[[год]:[год]]=$L$2)/(Таблица1[[изд]:[изд]]=$O$1)/(Таблица1[[партия]:[партия]]=$S$1),ROW(AF2))),"") -> 0 | AH5: =IFERROR(INDEX(Таблица1[30],_xlfn.AGGREGATE(15,6,(ROW(Таблица1[30])-ROW(Таблица1[[#Headers],[30]]))/(Таблица1[[месяц]:[месяц]]=$J$2)/(Таблица1[[год]:[год]]=$L$2)/(Таблица1[[изд]:[изд]]=$O$1)/(Таблица1[[партия]:[партия]]=$S$1),ROW(AG2))),"") -> 0 | AI5: =IFERROR(INDEX(Таблица1[31],_xlfn.AGGREGATE(15,6,(ROW(Таблица1[31])-ROW(Таблица1[[#Headers],[31]]))/(Таблица1[[месяц]:[месяц]]=$J$2)/(Таблица1[[год]:[год]]=$L$2)/(Таблица1[[изд]:[изд]]=$O$1)/(Таблица1[[партия]:[партия]]=$S$1),ROW(AH2))),"") -> 0 | AJ5: =SUM(E5:AI5) -> 7.2
B6: =IFERROR(INDEX(Таблица1[коэф],_xlfn.AGGREGATE(15,6,(ROW(Таблица1[коэф])-ROW(Таблица1[[#Headers],[коэф]]))/(Таблица1[[месяц]:[месяц]]=$J$2)/(Таблица1[[год]:[год]]=$L$2)/(Таблица1[[изд]:[изд]]=$O$1)/(Таблица1[[партия]:[партия]]=$S$1),ROW(A3))),"") -> 1 | C6: =IFERROR(INDEX(Таблица1[Ф. И. О.],_xlfn.AGGREGATE(15,6,(ROW(Таблица1[Ф. И. О.])-ROW(Таблица1[[#Headers],[Ф. И. О.]]))/(Таблица1[[месяц]:[месяц]]=$J$2)/(Таблица1[[год]:[год]]=$L$2)/(Таблица1[[изд]:[изд]]=$O$1)/(Таблица1[[партия]:[партия]]=$S$1),ROW(B3))),"") -> работник 6 | D6: =IFERROR(INDEX(Таблица1[р/р],_xlfn.AGGREGATE(15,6,(ROW(Таблица1[р/р])-ROW(Таблица1[[#Headers],[р/р]]))/(Таблица1[[месяц]:[месяц]]=$J$2)/(Таблица1[[год]:[год]]=$L$2)/(Таблица1[[изд]:[изд]]=$O$1)/(Таблица1[[партия]:[партия]]=$S$1),ROW(C3))),"") -> 3/24 | E6: =IFERROR(INDEX(Таблица1[1],_xlfn.AGGREGATE(15,6,(ROW(Таблица1[1])-ROW(Таблица1[[#Headers],[1]]))/(Таблица1[[месяц]:[месяц]]=$J$2)/(Таблица1[[год]:[год]]=$L$2)/(Таблица1[[изд]:[изд]]=$O$1)/(Таблица1[[партия]:[партия]]=$S$1),ROW(D3))),"") -> 7.2 | F6: =IFERROR(INDEX(Таблица1[2],_xlfn.AGGREGATE(15,6,(ROW(Таблица1[2])-ROW(Таблица1[[#Headers],[2]]))/(Таблица1[[месяц]:[месяц]]=$J$2)/(Таблица1[[год]:[год]]=$L$2)/(Таблица1[[изд]:[изд]]=$O$1)/(Таблица1[[партия]:[партия]]=$S$1),ROW(E3))),"") -> 0 | G6: =IFERROR(INDEX(Таблица1[3],_xlfn.AGGREGATE(15,6,(ROW(Таблица1[3])-ROW(Таблица1[[#Headers],[3]]))/(Таблица1[[месяц]:[месяц]]=$J$2)/(Таблица1[[год]:[год]]=$L$2)/(Таблица1[[изд]:[изд]]=$O$1)/(Таблица1[[партия]:[партия]]=$S$1),ROW(F3))),"") -> 0 | H6: =IFERROR(INDEX(Таблица1[4],_xlfn.AGGREGATE(15,6,(ROW(Таблица1[4])-ROW(Таблица1[[#Headers],[4]]))/(Таблица1[[месяц]:[месяц]]=$J$2)/(Таблица1[[год]:[год]]=$L$2)/(Таблица1[[изд]:[изд]]=$O$1)/(Таблица1[[партия]:[партия]]=$S$1),ROW(G3))),"") -> 0 | I6: =IFERROR(INDEX(Таблица1[5],_xlfn.AGGREGATE(15,6,(ROW(Таблица1[5])-ROW(Таблица1[[#Headers],[5]]))/(Таблица1[[месяц]:[месяц]]=$J$2)/(Таблица1[[год]:[год]]=$L$2)/(Таблица1[[изд]:[изд]]=$O$1)/(Таблица1[[партия]:[партия]]=$S$1),ROW(H3))),"") -> 0 | J6: =IFERROR(INDEX(Таблица1[6],_xlfn.AGGREGATE(15,6,(ROW(Таблица1[6])-ROW(Таблица1[[#Headers],[6]]))/(Таблица1[[месяц]:[месяц]]=$J$2)/(Таблица1[[год]:[год]]=$L$2)/(Таблица1[[изд]:[изд]]=$O$1)/(Таблица1[[партия]:[партия]]=$S$1),ROW(I3))),"") -> 0 | K6: =IFERROR(INDEX(Таблица1[7],_xlfn.AGGREGATE(15,6,(ROW(Таблица1[7])-ROW(Таблица1[[#Headers],[7]]))/(Таблица1[[месяц]:[месяц]]=$J$2)/(Таблица1[[год]:[год]]=$L$2)/(Таблица1[[изд]:[изд]]=$O$1)/(Таблица1[[партия]:[партия]]=$S$1),ROW(J3))),"") -> 0 | L6: =IFERROR(INDEX(Таблица1[8],_xlfn.AGGREGATE(15,6,(ROW(Таблица1[8])-ROW(Таблица1[[#Headers],[8]]))/(Таблица1[[месяц]:[месяц]]=$J$2)/(Таблица1[[год]:[год]]=$L$2)/(Таблица1[[изд]:[изд]]=$O$1)/(Таблица1[[партия]:[партия]]=$S$1),ROW(K3))),"") -> 0 | M6: =IFERROR(INDEX(Таблица1[9],_xlfn.AGGREGATE(15,6,(ROW(Таблица1[9])-ROW(Таблица1[[#Headers],[9]]))/(Таблица1[[месяц]:[месяц]]=$J$2)/(Таблица1[[год]:[год]]=$L$2)/(Таблица1[[изд]:[изд]]=$O$1)/(Таблица1[[партия]:[партия]]=$S$1),ROW(L3))),"") -> 0 | N6: =IFERROR(INDEX(Таблица1[10],_xlfn.AGGREGATE(15,6,(ROW(Таблица1[10])-ROW(Таблица1[[#Headers],[10]]))/(Таблица1[[месяц]:[месяц]]=$J$2)/(Таблица1[[год]:[год]]=$L$2)/(Таблица1[[изд]:[изд]]=$O$1)/(Таблица1[[партия]:[партия]]=$S$1),ROW(M3))),"") -> 0 | O6: =IFERROR(INDEX(Таблица1[11],_xlfn.AGGREGATE(15,6,(ROW(Таблица1[11])-ROW(Таблица1[[#Headers],[11]]))/(Таблица1[[месяц]:[месяц]]=$J$2)/(Таблица1[[год]:[год]]=$L$2)/(Таблица1[[изд]:[изд]]=$O$1)/(Таблица1[[партия]:[партия]]=$S$1),ROW(N3))),"") -> 0 | P6: =IFERROR(INDEX(Таблица1[12],_xlfn.AGGREGATE(15,6,(ROW(Таблица1[12])-ROW(Таблица1[[#Headers],[12]]))/(Таблица1[[месяц]:[месяц]]=$J$2)/(Таблица1[[год]:[год]]=$L$2)/(Таблица1[[изд]:[изд]]=$O$1)/(Таблица1[[партия]:[партия]]=$S$1),ROW(O3))),"") -> 0 | Q6: =IFERROR(INDEX(Таблица1[13],_xlfn.AGGREGATE(15,6,(ROW(Таблица1[13])-ROW(Таблица1[[#Headers],[13]]))/(Таблица1[[месяц]:[месяц]]=$J$2)/(Таблица1[[год]:[год]]=$L$2)/(Таблица1[[изд]:[изд]]=$O$1)/(Таблица1[[партия]:[партия]]=$S$1),ROW(P3))),"") -> 0 | R6: =IFERROR(INDEX(Таблица1[14],_xlfn.AGGREGATE(15,6,(ROW(Таблица1[14])-ROW(Таблица1[[#Headers],[14]]))/(Таблица1[[месяц]:[месяц]]=$J$2)/(Таблица1[[год]:[год]]=$L$2)/(Таблица1[[изд]:[изд]]=$O$1)/(Таблица1[[партия]:[партия]]=$S$1),ROW(Q3))),"") -> 0 | S6: =IFERROR(INDEX(Таблица1[15],_xlfn.AGGREGATE(15,6,(ROW(Таблица1[15])-ROW(Таблица1[[#Headers],[15]]))/(Таблица1[[месяц]:[месяц]]=$J$2)/(Таблица1[[год]:[год]]=$L$2)/(Таблица1[[изд]:[изд]]=$O$1)/(Таблица1[[партия]:[партия]]=$S$1),ROW(R3))),"") -> 0 | T6: =IFERROR(INDEX(Таблица1[16],_xlfn.AGGREGATE(15,6,(ROW(Таблица1[16])-ROW(Таблица1[[#Headers],[16]]))/(Таблица1[[месяц]:[месяц]]=$J$2)/(Таблица1[[год]:[год]]=$L$2)/(Таблица1[[изд]:[изд]]=$O$1)/(Таблица1[[партия]:[партия]]=$S$1),ROW(S3))),"") -> 0 | U6: =IFERROR(INDEX(Таблица1[17],_xlfn.AGGREGATE(15,6,(ROW(Таблица1[17])-ROW(Таблица1[[#Headers],[17]]))/(Таблица1[[месяц]:[месяц]]=$J$2)/(Таблица1[[год]:[год]]=$L$2)/(Таблица1[[изд]:[изд]]=$O$1)/(Таблица1[[партия]:[партия]]=$S$1),ROW(T3))),"") -> 0 | V6: =IFERROR(INDEX(Таблица1[18],_xlfn.AGGREGATE(15,6,(ROW(Таблица1[18])-ROW(Таблица1[[#Headers],[18]]))/(Таблица1[[месяц]:[месяц]]=$J$2)/(Таблица1[[год]:[год]]=$L$2)/(Таблица1[[изд]:[изд]]=$O$1)/(Таблица1[[партия]:[партия]]=$S$1),ROW(U3))),"") -> 0 | W6: =IFERROR(INDEX(Таблица1[19],_xlfn.AGGREGATE(15,6,(ROW(Таблица1[19])-ROW(Таблица1[[#Headers],[19]]))/(Таблица1[[месяц]:[месяц]]=$J$2)/(Таблица1[[год]:[год]]=$L$2)/(Таблица1[[изд]:[изд]]=$O$1)/(Таблица1[[партия]:[партия]]=$S$1),ROW(V3))),"") -> 0 | X6: =IFERROR(INDEX(Таблица1[20],_xlfn.AGGREGATE(15,6,(ROW(Таблица1[20])-ROW(Таблица1[[#Headers],[20]]))/(Таблица1[[месяц]:[месяц]]=$J$2)/(Таблица1[[год]:[год]]=$L$2)/(Таблица1[[изд]:[изд]]=$O$1)/(Таблица1[[партия]:[партия]]=$S$1),ROW(W3))),"") -> 0 | Y6: =IFERROR(INDEX(Таблица1[21],_xlfn.AGGREGATE(15,6,(ROW(Таблица1[21])-ROW(Таблица1[[#Headers],[21]]))/(Таблица1[[месяц]:[месяц]]=$J$2)/(Таблица1[[год]:[год]]=$L$2)/(Таблица1[[изд]:[изд]]=$O$1)/(Таблица1[[партия]:[партия]]=$S$1),ROW(X3))),"") -> 0 | Z6: =IFERROR(INDEX(Таблица1[22],_xlfn.AGGREGATE(15,6,(ROW(Таблица1[22])-ROW(Таблица1[[#Headers],[22]]))/(Таблица1[[месяц]:[месяц]]=$J$2)/(Таблица1[[год]:[год]]=$L$2)/(Таблица1[[изд]:[изд]]=$O$1)/(Таблица1[[партия]:[партия]]=$S$1),ROW(Y3))),"") -> 0 | AA6: =IFERROR(INDEX(Таблица1[23],_xlfn.AGGREGATE(15,6,(ROW(Таблица1[23])-ROW(Таблица1[[#Headers],[23]]))/(Таблица1[[месяц]:[месяц]]=$J$2)/(Таблица1[[год]:[год]]=$L$2)/(Таблица1[[изд]:[изд]]=$O$1)/(Таблица1[[партия]:[партия]]=$S$1),ROW(Z3))),"") -> 0 | AB6: =IFERROR(INDEX(Таблица1[24],_xlfn.AGGREGATE(15,6,(ROW(Таблица1[24])-ROW(Таблица1[[#Headers],[24]]))/(Таблица1[[месяц]:[месяц]]=$J$2)/(Таблица1[[год]:[год]]=$L$2)/(Таблица1[[изд]:[изд]]=$O$1)/(Таблица1[[партия]:[партия]]=$S$1),ROW(AA3))),"") -> 0 | AC6: =IFERROR(INDEX(Таблица1[25],_xlfn.AGGREGATE(15,6,(ROW(Таблица1[25])-ROW(Таблица1[[#Headers],[25]]))/(Таблица1[[месяц]:[месяц]]=$J$2)/(Таблица1[[год]:[год]]=$L$2)/(Таблица1[[изд]:[изд]]=$O$1)/(Таблица1[[партия]:[партия]]=$S$1),ROW(AB3))),"") -> 0 | AD6: =IFERROR(INDEX(Таблица1[26],_xlfn.AGGREGATE(15,6,(ROW(Таблица1[26])-ROW(Таблица1[[#Headers],[26]]))/(Таблица1[[месяц]:[месяц]]=$J$2)/(Таблица1[[год]:[год]]=$L$2)/(Таблица1[[изд]:[изд]]=$O$1)/(Таблица1[[партия]:[партия]]=$S$1),ROW(AC3))),"") -> 0 | AE6: =IFERROR(INDEX(Таблица1[27],_xlfn.AGGREGATE(15,6,(ROW(Таблица1[27])-ROW(Таблица1[[#Headers],[27]]))/(Таблица1[[месяц]:[месяц]]=$J$2)/(Таблица1[[год]:[год]]=$L$2)/(Таблица1[[изд]:[изд]]=$O$1)/(Таблица1[[партия]:[партия]]=$S$1),ROW(AD3))),"") -> 0 | AF6: =IFERROR(INDEX(Таблица1[28],_xlfn.AGGREGATE(15,6,(ROW(Таблица1[28])-ROW(Таблица1[[#Headers],[28]]))/(Таблица1[[месяц]:[месяц]]=$J$2)/(Таблица1[[год]:[год]]=$L$2)/(Таблица1[[изд]:[изд]]=$O$1)/(Таблица1[[партия]:[партия]]=$S$1),ROW(AE3))),"") -> 0 | AG6: =IFERROR(INDEX(Таблица1[29],_xlfn.AGGREGATE(15,6,(ROW(Таблица1[29])-ROW(Таблица1[[#Headers],[29]]))/(Таблица1[[месяц]:[месяц]]=$J$2)/(Таблица1[[год]:[год]]=$L$2)/(Таблица1[[изд]:[изд]]=$O$1)/(Таблица1[[партия]:[партия]]=$S$1),ROW(AF3))),"") -> 0 | AH6: =IFERROR(INDEX(Таблица1[30],_xlfn.AGGREGATE(15,6,(ROW(Таблица1[30])-ROW(Таблица1[[#Headers],[30]]))/(Таблица1[[месяц]:[месяц]]=$J$2)/(Таблица1[[год]:[год]]=$L$2)/(Таблица1[[изд]:[изд]]=$O$1)/(Таблица1[[партия]:[партия]]=$S$1),ROW(AG3))),"") -> 0 | AI6: =IFERROR(INDEX(Таблица1[31],_xlfn.AGGREGATE(15,6,(ROW(Таблица1[31])-ROW(Таблица1[[#Headers],[31]]))/(Таблица1[[месяц]:[месяц]]=$J$2)/(Таблица1[[год]:[год]]=$L$2)/(Таблица1[[изд]:[изд]]=$O$1)/(Таблица1[[партия]:[партия]]=$S$1),ROW(AH3))),"") -> 0 | AJ6: 7.2
B7: =IFERROR(INDEX(Таблица1[коэф],_xlfn.AGGREGATE(15,6,(ROW(Таблица1[коэф])-ROW(Таблица1[[#Headers],[коэф]]))/(Таблица1[[месяц]:[месяц]]=$J$2)/(Таблица1[[год]:[год]]=$L$2)/(Таблица1[[изд]:[изд]]=$O$1)/(Таблица1[[партия]:[партия]]=$S$1),ROW(A4))),"") ->  | C7: =IFERROR(INDEX(Таблица1[Ф. И. О.],_xlfn.AGGREGATE(15,6,(ROW(Таблица1[Ф. И. О.])-ROW(Таблица1[[#Headers],[Ф. И. О.]]))/(Таблица1[[месяц]:[месяц]]=$J$2)/(Таблица1[[год]:[год]]=$L$2)/(Таблица1[[изд]:[изд]]=$O$1)/(Таблица1[[партия]:[партия]]=$S$1),ROW(B4))),"") ->  | D7: =IFERROR(INDEX(Таблица1[р/р],_xlfn.AGGREGATE(15,6,(ROW(Таблица1[р/р])-ROW(Таблица1[[#Headers],[р/р]]))/(Таблица1[[месяц]:[месяц]]=$J$2)/(Таблица1[[год]:[год]]=$L$2)/(Таблица1[[изд]:[изд]]=$O$1)/(Таблица1[[партия]:[партия]]=$S$1),ROW(C4))),"") ->  | E7: =IFERROR(INDEX(Таблица1[1],_xlfn.AGGREGATE(15,6,(ROW(Таблица1[1])-ROW(Таблица1[[#Headers],[1]]))/(Таблица1[[месяц]:[месяц]]=$J$2)/(Таблица1[[год]:[год]]=$L$2)/(Таблица1[[изд]:[изд]]=$O$1)/(Таблица1[[партия]:[партия]]=$S$1),ROW(D4))),"") ->  | F7: =IFERROR(INDEX(Таблица1[2],_xlfn.AGGREGATE(15,6,(ROW(Таблица1[2])-ROW(Таблица1[[#Headers],[2]]))/(Таблица1[[месяц]:[месяц]]=$J$2)/(Таблица1[[год]:[год]]=$L$2)/(Таблица1[[изд]:[изд]]=$O$1)/(Таблица1[[партия]:[партия]]=$S$1),ROW(E4))),"") ->  | G7: =IFERROR(INDEX(Таблица1[3],_xlfn.AGGREGATE(15,6,(ROW(Таблица1[3])-ROW(Таблица1[[#Headers],[3]]))/(Таблица1[[месяц]:[месяц]]=$J$2)/(Таблица1[[год]:[год]]=$L$2)/(Таблица1[[изд]:[изд]]=$O$1)/(Таблица1[[партия]:[партия]]=$S$1),ROW(F4))),"") ->  | H7: =IFERROR(INDEX(Таблица1[4],_xlfn.AGGREGATE(15,6,(ROW(Таблица1[4])-ROW(Таблица1[[#Headers],[4]]))/(Таблица1[[месяц]:[месяц]]=$J$2)/(Таблица1[[год]:[год]]=$L$2)/(Таблица1[[изд]:[изд]]=$O$1)/(Таблица1[[партия]:[партия]]=$S$1),ROW(G4))),"") ->  | I7: =IFERROR(INDEX(Таблица1[5],_xlfn.AGGREGATE(15,6,(ROW(Таблица1[5])-ROW(Таблица1[[#Headers],[5]]))/(Таблица1[[месяц]:[месяц]]=$J$2)/(Таблица1[[год]:[год]]=$L$2)/(Таблица1[[изд]:[изд]]=$O$1)/(Таблица1[[партия]:[партия]]=$S$1),ROW(H4))),"") ->  | J7: =IFERROR(INDEX(Таблица1[6],_xlfn.AGGREGATE(15,6,(ROW(Таблица1[6])-ROW(Таблица1[[#Headers],[6]]))/(Таблица1[[месяц]:[месяц]]=$J$2)/(Таблица1[[год]:[год]]=$L$2)/(Таблица1[[изд]:[изд]]=$O$1)/(Таблица1[[партия]:[партия]]=$S$1),ROW(I4))),"") ->  | K7: =IFERROR(INDEX(Таблица1[7],_xlfn.AGGREGATE(15,6,(ROW(Таблица1[7])-ROW(Таблица1[[#Headers],[7]]))/(Таблица1[[месяц]:[месяц]]=$J$2)/(Таблица1[[год]:[год]]=$L$2)/(Таблица1[[изд]:[изд]]=$O$1)/(Таблица1[[партия]:[партия]]=$S$1),ROW(J4))),"") ->  | L7: =IFERROR(INDEX(Таблица1[8],_xlfn.AGGREGATE(15,6,(ROW(Таблица1[8])-ROW(Таблица1[[#Headers],[8]]))/(Таблица1[[месяц]:[месяц]]=$J$2)/(Таблица1[[год]:[год]]=$L$2)/(Таблица1[[изд]:[изд]]=$O$1)/(Таблица1[[партия]:[партия]]=$S$1),ROW(K4))),"") ->  | M7: =IFERROR(INDEX(Таблица1[9],_xlfn.AGGREGATE(15,6,(ROW(Таблица1[9])-ROW(Таблица1[[#Headers],[9]]))/(Таблица1[[месяц]:[месяц]]=$J$2)/(Таблица1[[год]:[год]]=$L$2)/(Таблица1[[изд]:[изд]]=$O$1)/(Таблица1[[партия]:[партия]]=$S$1),ROW(L4))),"") ->  | N7: =IFERROR(INDEX(Таблица1[10],_xlfn.AGGREGATE(15,6,(ROW(Таблица1[10])-ROW(Таблица1[[#Headers],[10]]))/(Таблица1[[месяц]:[месяц]]=$J$2)/(Таблица1[[год]:[год]]=$L$2)/(Таблица1[[изд]:[изд]]=$O$1)/(Таблица1[[партия]:[партия]]=$S$1),ROW(M4))),"") ->  | O7: =IFERROR(INDEX(Таблица1[11],_xlfn.AGGREGATE(15,6,(ROW(Таблица1[11])-ROW(Таблица1[[#Headers],[11]]))/(Таблица1[[месяц]:[месяц]]=$J$2)/(Таблица1[[год]:[год]]=$L$2)/(Таблица1[[изд]:[изд]]=$O$1)/(Таблица1[[партия]:[партия]]=$S$1),ROW(N4))),"") ->  | P7: =IFERROR(INDEX(Таблица1[12],_xlfn.AGGREGATE(15,6,(ROW(Таблица1[12])-ROW(Таблица1[[#Headers],[12]]))/(Таблица1[[месяц]:[месяц]]=$J$2)/(Таблица1[[год]:[год]]=$L$2)/(Таблица1[[изд]:[изд]]=$O$1)/(Таблица1[[партия]:[партия]]=$S$1),ROW(O4))),"") ->  | Q7: =IFERROR(INDEX(Таблица1[13],_xlfn.AGGREGATE(15,6,(ROW(Таблица1[13])-ROW(Таблица1[[#Headers],[13]]))/(Таблица1[[месяц]:[месяц]]=$J$2)/(Таблица1[[год]:[год]]=$L$2)/(Таблица1[[изд]:[изд]]=$O$1)/(Таблица1[[партия]:[партия]]=$S$1),ROW(P4))),"") ->  | R7: =IFERROR(INDEX(Таблица1[14],_xlfn.AGGREGATE(15,6,(ROW(Таблица1[14])-ROW(Таблица1[[#Headers],[14]]))/(Таблица1[[месяц]:[месяц]]=$J$2)/(Таблица1[[год]:[год]]=$L$2)/(Таблица1[[изд]:[изд]]=$O$1)/(Таблица1[[партия]:[партия]]=$S$1),ROW(Q4))),"") ->  | S7: =IFERROR(INDEX(Таблица1[15],_xlfn.AGGREGATE(15,6,(ROW(Таблица1[15])-ROW(Таблица1[[#Headers],[15]]))/(Таблица1[[месяц]:[месяц]]=$J$2)/(Таблица1[[год]:[год]]=$L$2)/(Таблица1[[изд]:[изд]]=$O$1)/(Таблица1[[партия]:[партия]]=$S$1),ROW(R4))),"") ->  | T7: =IFERROR(INDEX(Таблица1[16],_xlfn.AGGREGATE(15,6,(ROW(Таблица1[16])-ROW(Таблица1[[#Headers],[16]]))/(Таблица1[[месяц]:[месяц]]=$J$2)/(Таблица1[[год]:[год]]=$L$2)/(Таблица1[[изд]:[изд]]=$O$1)/(Таблица1[[партия]:[партия]]=$S$1),ROW(S4))),"") ->  | U7: =IFERROR(INDEX(Таблица1[17],_xlfn.AGGREGATE(15,6,(ROW(Таблица1[17])-ROW(Таблица1[[#Headers],[17]]))/(Таблица1[[месяц]:[месяц]]=$J$2)/(Таблица1[[год]:[год]]=$L$2)/(Таблица1[[изд]:[изд]]=$O$1)/(Таблица1[[партия]:[партия]]=$S$1),ROW(T4))),"") ->  | V7: =IFERROR(INDEX(Таблица1[18],_xlfn.AGGREGATE(15,6,(ROW(Таблица1[18])-ROW(Таблица1[[#Headers],[18]]))/(Таблица1[[месяц]:[месяц]]=$J$2)/(Таблица1[[год]:[год]]=$L$2)/(Таблица1[[изд]:[изд]]=$O$1)/(Таблица1[[партия]:[партия]]=$S$1),ROW(U4))),"") ->  | W7: =IFERROR(INDEX(Таблица1[19],_xlfn.AGGREGATE(15,6,(ROW(Таблица1[19])-ROW(Таблица1[[#Headers],[19]]))/(Таблица1[[месяц]:[месяц]]=$J$2)/(Таблица1[[год]:[год]]=$L$2)/(Таблица1[[изд]:[изд]]=$O$1)/(Таблица1[[партия]:[партия]]=$S$1),ROW(V4))),"") ->  | X7: =IFERROR(INDEX(Таблица1[20],_xlfn.AGGREGATE(15,6,(ROW(Таблица1[20])-ROW(Таблица1[[#Headers],[20]]))/(Таблица1[[месяц]:[месяц]]=$J$2)/(Таблица1[[год]:[год]]=$L$2)/(Таблица1[[изд]:[изд]]=$O$1)/(Таблица1[[партия]:[партия]]=$S$1),ROW(W4))),"") ->  | Y7: =IFERROR(INDEX(Таблица1[21],_xlfn.AGGREGATE(15,6,(ROW(Таблица1[21])-ROW(Таблица1[[#Headers],[21]]))/(Таблица1[[месяц]:[месяц]]=$J$2)/(Таблица1[[год]:[год]]=$L$2)/(Таблица1[[изд]:[изд]]=$O$1)/(Таблица1[[партия]:[партия]]=$S$1),ROW(X4))),"") ->  | Z7: =IFERROR(INDEX(Таблица1[22],_xlfn.AGGREGATE(15,6,(ROW(Таблица1[22])-ROW(Таблица1[[#Headers],[22]]))/(Таблица1[[месяц]:[месяц]]=$J$2)/(Таблица1[[год]:[год]]=$L$2)/(Таблица1[[изд]:[изд]]=$O$1)/(Таблица1[[партия]:[партия]]=$S$1),ROW(Y4))),"") ->  | AA7: =IFERROR(INDEX(Таблица1[23],_xlfn.AGGREGATE(15,6,(ROW(Таблица1[23])-ROW(Таблица1[[#Headers],[23]]))/(Таблица1[[месяц]:[месяц]]=$J$2)/(Таблица1[[год]:[год]]=$L$2)/(Таблица1[[изд]:[изд]]=$O$1)/(Таблица1[[партия]:[партия]]=$S$1),ROW(Z4))),"") ->  | AB7: =IFERROR(INDEX(Таблица1[24],_xlfn.AGGREGATE(15,6,(ROW(Таблица1[24])-ROW(Таблица1[[#Headers],[24]]))/(Таблица1[[месяц]:[месяц]]=$J$2)/(Таблица1[[год]:[год]]=$L$2)/(Таблица1[[изд]:[изд]]=$O$1)/(Таблица1[[партия]:[партия]]=$S$1),ROW(AA4))),"") ->  | AC7: =IFERROR(INDEX(Таблица1[25],_xlfn.AGGREGATE(15,6,(ROW(Таблица1[25])-ROW(Таблица1[[#Headers],[25]]))/(Таблица1[[месяц]:[месяц]]=$J$2)/(Таблица1[[год]:[год]]=$L$2)/(Таблица1[[изд]:[изд]]=$O$1)/(Таблица1[[партия]:[партия]]=$S$1),ROW(AB4))),"") ->  | AD7: =IFERROR(INDEX(Таблица1[26],_xlfn.AGGREGATE(15,6,(ROW(Таблица1[26])-ROW(Таблица1[[#Headers],[26]]))/(Таблица1[[месяц]:[месяц]]=$J$2)/(Таблица1[[год]:[год]]=$L$2)/(Таблица1[[изд]:[изд]]=$O$1)/(Таблица1[[партия]:[партия]]=$S$1),ROW(AC4))),"") ->  | AE7: =IFERROR(INDEX(Таблица1[27],_xlfn.AGGREGATE(15,6,(ROW(Таблица1[27])-ROW(Таблица1[[#Headers],[27]]))/(Таблица1[[месяц]:[месяц]]=$J$2)/(Таблица1[[год]:[год]]=$L$2)/(Таблица1[[изд]:[изд]]=$O$1)/(Таблица1[[партия]:[партия]]=$S$1),ROW(AD4))),"") ->  | AF7: =IFERROR(INDEX(Таблица1[28],_xlfn.AGGREGATE(15,6,(ROW(Таблица1[28])-ROW(Таблица1[[#Headers],[28]]))/(Таблица1[[месяц]:[месяц]]=$J$2)/(Таблица1[[год]:[год]]=$L$2)/(Таблица1[[изд]:[изд]]=$O$1)/(Таблица1[[партия]:[партия]]=$S$1),ROW(AE4))),"") ->  | AG7: =IFERROR(INDEX(Таблица1[29],_xlfn.AGGREGATE(15,6,(ROW(Таблица1[29])-ROW(Таблица1[[#Headers],[29]]))/(Таблица1[[месяц]:[месяц]]=$J$2)/(Таблица1[[год]:[год]]=$L$2)/(Таблица1[[изд]:[изд]]=$O$1)/(Таблица1[[партия]:[партия]]=$S$1),ROW(AF4))),"") ->  | AH7: =IFERROR(INDEX(Таблица1[30],_xlfn.AGGREGATE(15,6,(ROW(Таблица1[30])-ROW(Таблица1[[#Headers],[30]]))/(Таблица1[[месяц]:[месяц]]=$J$2)/(Таблица1[[год]:[год]]=$L$2)/(Таблица1[[изд]:[изд]]=$O$1)/(Таблица1[[партия]:[партия]]=$S$1),ROW(AG4))),"") ->  | AI7: =IFERROR(INDEX(Таблица1[31],_xlfn.AGGREGATE(15,6,(ROW(Таблица1[31])-ROW(Таблица1[[#Headers],[31]]))/(Таблица1[[месяц]:[месяц]]=$J$2)/(Таблица1[[год]:[год]]=$L$2)/(Таблица1[[изд]:[изд]]=$O$1)/(Таблица1[[партия]:[партия]]=$S$1),ROW(AH4))),"") ->  | AJ7: 0
B8: =IFERROR(INDEX(Таблица1[коэф],_xlfn.AGGREGATE(15,6,(ROW(Таблица1[коэф])-ROW(Таблица1[[#Headers],[коэф]]))/(Таблица1[[месяц]:[месяц]]=$J$2)/(Таблица1[[год]:[год]]=$L$2)/(Таблица1[[изд]:[изд]]=$O$1)/(Таблица1[[партия]:[партия]]=$S$1),ROW(A5))),"") ->  | C8: =IFERROR(INDEX(Таблица1[Ф. И. О.],_xlfn.AGGREGATE(15,6,(ROW(Таблица1[Ф. И. О.])-ROW(Таблица1[[#Headers],[Ф. И. О.]]))/(Таблица1[[месяц]:[месяц]]=$J$2)/(Таблица1[[год]:[год]]=$L$2)/(Таблица1[[изд]:[изд]]=$O$1)/(Таблица1[[партия]:[партия]]=$S$1),ROW(B5))),"") ->  | D8: =IFERROR(INDEX(Таблица1[р/р],_xlfn.AGGREGATE(15,6,(ROW(Таблица1[р/р])-ROW(Таблица1[[#Headers],[р/р]]))/(Таблица1[[месяц]:[месяц]]=$J$2)/(Таблица1[[год]:[год]]=$L$2)/(Таблица1[[изд]:[изд]]=$O$1)/(Таблица1[[партия]:[партия]]=$S$1),ROW(C5))),"") ->  | E8: =IFERROR(INDEX(Таблица1[1],_xlfn.AGGREGATE(15,6,(ROW(Таблица1[1])-ROW(Таблица1[[#Headers],[1]]))/(Таблица1[[месяц]:[месяц]]=$J$2)/(Таблица1[[год]:[год]]=$L$2)/(Таблица1[[изд]:[изд]]=$O$1)/(Таблица1[[партия]:[партия]]=$S$1),ROW(D5))),"") ->  | F8: =IFERROR(INDEX(Таблица1[2],_xlfn.AGGREGATE(15,6,(ROW(Таблица1[2])-ROW(Таблица1[[#Headers],[2]]))/(Таблица1[[месяц]:[месяц]]=$J$2)/(Таблица1[[год]:[год]]=$L$2)/(Таблица1[[изд]:[изд]]=$O$1)/(Таблица1[[партия]:[партия]]=$S$1),ROW(E5))),"") ->  | G8: =IFERROR(INDEX(Таблица1[3],_xlfn.AGGREGATE(15,6,(ROW(Таблица1[3])-ROW(Таблица1[[#Headers],[3]]))/(Таблица1[[месяц]:[месяц]]=$J$2)/(Таблица1[[год]:[год]]=$L$2)/(Таблица1[[изд]:[изд]]=$O$1)/(Таблица1[[партия]:[партия]]=$S$1),ROW(F5))),"") ->  | H8: =IFERROR(INDEX(Таблица1[4],_xlfn.AGGREGATE(15,6,(ROW(Таблица1[4])-ROW(Таблица1[[#Headers],[4]]))/(Таблица1[[месяц]:[месяц]]=$J$2)/(Таблица1[[год]:[год]]=$L$2)/(Таблица1[[изд]:[изд]]=$O$1)/(Таблица1[[партия]:[партия]]=$S$1),ROW(G5))),"") ->  | I8: =IFERROR(INDEX(Таблица1[5],_xlfn.AGGREGATE(15,6,(ROW(Таблица1[5])-ROW(Таблица1[[#Headers],[5]]))/(Таблица1[[месяц]:[месяц]]=$J$2)/(Таблица1[[год]:[год]]=$L$2)/(Таблица1[[изд]:[изд]]=$O$1)/(Таблица1[[партия]:[партия]]=$S$1),ROW(H5))),"") ->  | J8: =IFERROR(INDEX(Таблица1[6],_xlfn.AGGREGATE(15,6,(ROW(Таблица1[6])-ROW(Таблица1[[#Headers],[6]]))/(Таблица1[[месяц]:[месяц]]=$J$2)/(Таблица1[[год]:[год]]=$L$2)/(Таблица1[[изд]:[изд]]=$O$1)/(Таблица1[[партия]:[партия]]=$S$1),ROW(I5))),"") ->  | K8: =IFERROR(INDEX(Таблица1[7],_xlfn.AGGREGATE(15,6,(ROW(Таблица1[7])-ROW(Таблица1[[#Headers],[7]]))/(Таблица1[[месяц]:[месяц]]=$J$2)/(Таблица1[[год]:[год]]=$L$2)/(Таблица1[[изд]:[изд]]=$O$1)/(Таблица1[[партия]:[партия]]=$S$1),ROW(J5))),"") ->  | L8: =IFERROR(INDEX(Таблица1[8],_xlfn.AGGREGATE(15,6,(ROW(Таблица1[8])-ROW(Таблица1[[#Headers],[8]]))/(Таблица1[[месяц]:[месяц]]=$J$2)/(Таблица1[[год]:[год]]=$L$2)/(Таблица1[[изд]:[изд]]=$O$1)/(Таблица1[[партия]:[партия]]=$S$1),ROW(K5))),"") ->  | M8: =IFERROR(INDEX(Таблица1[9],_xlfn.AGGREGATE(15,6,(ROW(Таблица1[9])-ROW(Таблица1[[#Headers],[9]]))/(Таблица1[[месяц]:[месяц]]=$J$2)/(Таблица1[[год]:[год]]=$L$2)/(Таблица1[[изд]:[изд]]=$O$1)/(Таблица1[[партия]:[партия]]=$S$1),ROW(L5))),"") ->  | N8: =IFERROR(INDEX(Таблица1[10],_xlfn.AGGREGATE(15,6,(ROW(Таблица1[10])-ROW(Таблица1[[#Headers],[10]]))/(Таблица1[[месяц]:[месяц]]=$J$2)/(Таблица1[[год]:[год]]=$L$2)/(Таблица1[[изд]:[изд]]=$O$1)/(Таблица1[[партия]:[партия]]=$S$1),ROW(M5))),"") ->  | O8: =IFERROR(INDEX(Таблица1[11],_xlfn.AGGREGATE(15,6,(ROW(Таблица1[11])-ROW(Таблица1[[#Headers],[11]]))/(Таблица1[[месяц]:[месяц]]=$J$2)/(Таблица1[[год]:[год]]=$L$2)/(Таблица1[[изд]:[изд]]=$O$1)/(Таблица1[[партия]:[партия]]=$S$1),ROW(N5))),"") ->  | P8: =IFERROR(INDEX(Таблица1[12],_xlfn.AGGREGATE(15,6,(ROW(Таблица1[12])-ROW(Таблица1[[#Headers],[12]]))/(Таблица1[[месяц]:[месяц]]=$J$2)/(Таблица1[[год]:[год]]=$L$2)/(Таблица1[[изд]:[изд]]=$O$1)/(Таблица1[[партия]:[партия]]=$S$1),ROW(O5))),"") ->  | Q8: =IFERROR(INDEX(Таблица1[13],_xlfn.AGGREGATE(15,6,(ROW(Таблица1[13])-ROW(Таблица1[[#Headers],[13]]))/(Таблица1[[месяц]:[месяц]]=$J$2)/(Таблица1[[год]:[год]]=$L$2)/(Таблица1[[изд]:[изд]]=$O$1)/(Таблица1[[партия]:[партия]]=$S$1),ROW(P5))),"") ->  | R8: =IFERROR(INDEX(Таблица1[14],_xlfn.AGGREGATE(15,6,(ROW(Таблица1[14])-ROW(Таблица1[[#Headers],[14]]))/(Таблица1[[месяц]:[месяц]]=$J$2)/(Таблица1[[год]:[год]]=$L$2)/(Таблица1[[изд]:[изд]]=$O$1)/(Таблица1[[партия]:[партия]]=$S$1),ROW(Q5))),"") ->  | S8: =IFERROR(INDEX(Таблица1[15],_xlfn.AGGREGATE(15,6,(ROW(Таблица1[15])-ROW(Таблица1[[#Headers],[15]]))/(Таблица1[[месяц]:[месяц]]=$J$2)/(Таблица1[[год]:[год]]=$L$2)/(Таблица1[[изд]:[изд]]=$O$1)/(Таблица1[[партия]:[партия]]=$S$1),ROW(R5))),"") ->  | T8: =IFERROR(INDEX(Таблица1[16],_xlfn.AGGREGATE(15,6,(ROW(Таблица1[16])-ROW(Таблица1[[#Headers],[16]]))/(Таблица1[[месяц]:[месяц]]=$J$2)/(Таблица1[[год]:[год]]=$L$2)/(Таблица1[[изд]:[изд]]=$O$1)/(Таблица1[[партия]:[партия]]=$S$1),ROW(S5))),"") ->  | U8: =IFERROR(INDEX(Таблица1[17],_xlfn.AGGREGATE(15,6,(ROW(Таблица1[17])-ROW(Таблица1[[#Headers],[17]]))/(Таблица1[[месяц]:[месяц]]=$J$2)/(Таблица1[[год]:[год]]=$L$2)/(Таблица1[[изд]:[изд]]=$O$1)/(Таблица1[[партия]:[партия]]=$S$1),ROW(T5))),"") ->  | V8: =IFERROR(INDEX(Таблица1[18],_xlfn.AGGREGATE(15,6,(ROW(Таблица1[18])-ROW(Таблица1[[#Headers],[18]]))/(Таблица1[[месяц]:[месяц]]=$J$2)/(Таблица1[[год]:[год]]=$L$2)/(Таблица1[[изд]:[изд]]=$O$1)/(Таблица1[[партия]:[партия]]=$S$1),ROW(U5))),"") ->  | W8: =IFERROR(INDEX(Таблица1[19],_xlfn.AGGREGATE(15,6,(ROW(Таблица1[19])-ROW(Таблица1[[#Headers],[19]]))/(Таблица1[[месяц]:[месяц]]=$J$2)/(Таблица1[[год]:[год]]=$L$2)/(Таблица1[[изд]:[изд]]=$O$1)/(Таблица1[[партия]:[партия]]=$S$1),ROW(V5))),"") ->  | X8: =IFERROR(INDEX(Таблица1[20],_xlfn.AGGREGATE(15,6,(ROW(Таблица1[20])-ROW(Таблица1[[#Headers],[20]]))/(Таблица1[[месяц]:[месяц]]=$J$2)/(Таблица1[[год]:[год]]=$L$2)/(Таблица1[[изд]:[изд]]=$O$1)/(Таблица1[[партия]:[партия]]=$S$1),ROW(W5))),"") ->  | Y8: =IFERROR(INDEX(Таблица1[21],_xlfn.AGGREGATE(15,6,(ROW(Таблица1[21])-ROW(Таблица1[[#Headers],[21]]))/(Таблица1[[месяц]:[месяц]]=$J$2)/(Таблица1[[год]:[год]]=$L$2)/(Таблица1[[изд]:[изд]]=$O$1)/(Таблица1[[партия]:[партия]]=$S$1),ROW(X5))),"") ->  | Z8: =IFERROR(INDEX(Таблица1[22],_xlfn.AGGREGATE(15,6,(ROW(Таблица1[22])-ROW(Таблица1[[#Headers],[22]]))/(Таблица1[[месяц]:[месяц]]=$J$2)/(Таблица1[[год]:[год]]=$L$2)/(Таблица1[[изд]:[изд]]=$O$1)/(Таблица1[[партия]:[партия]]=$S$1),ROW(Y5))),"") ->  | AA8: =IFERROR(INDEX(Таблица1[23],_xlfn.AGGREGATE(15,6,(ROW(Таблица1[23])-ROW(Таблица1[[#Headers],[23]]))/(Таблица1[[месяц]:[месяц]]=$J$2)/(Таблица1[[год]:[год]]=$L$2)/(Таблица1[[изд]:[изд]]=$O$1)/(Таблица1[[партия]:[партия]]=$S$1),ROW(Z5))),"") ->  | AB8: =IFERROR(INDEX(Таблица1[24],_xlfn.AGGREGATE(15,6,(ROW(Таблица1[24])-ROW(Таблица1[[#Headers],[24]]))/(Таблица1[[месяц]:[месяц]]=$J$2)/(Таблица1[[год]:[год]]=$L$2)/(Таблица1[[изд]:[изд]]=$O$1)/(Таблица1[[партия]:[партия]]=$S$1),ROW(AA5))),"") ->  | AC8: =IFERROR(INDEX(Таблица1[25],_xlfn.AGGREGATE(15,6,(ROW(Таблица1[25])-ROW(Таблица1[[#Headers],[25]]))/(Таблица1[[месяц]:[месяц]]=$J$2)/(Таблица1[[год]:[год]]=$L$2)/(Таблица1[[изд]:[изд]]=$O$1)/(Таблица1[[партия]:[партия]]=$S$1),ROW(AB5))),"") ->  | AD8: =IFERROR(INDEX(Таблица1[26],_xlfn.AGGREGATE(15,6,(ROW(Таблица1[26])-ROW(Таблица1[[#Headers],[26]]))/(Таблица1[[месяц]:[месяц]]=$J$2)/(Таблица1[[год]:[год]]=$L$2)/(Таблица1[[изд]:[изд]]=$O$1)/(Таблица1[[партия]:[партия]]=$S$1),ROW(AC5))),"") ->  | AE8: =IFERROR(INDEX(Таблица1[27],_xlfn.AGGREGATE(15,6,(ROW(Таблица1[27])-ROW(Таблица1[[#Headers],[27]]))/(Таблица1[[месяц]:[месяц]]=$J$2)/(Таблица1[[год]:[год]]=$L$2)/(Таблица1[[изд]:[изд]]=$O$1)/(Таблица1[[партия]:[партия]]=$S$1),ROW(AD5))),"") ->  | AF8: =IFERROR(INDEX(Таблица1[28],_xlfn.AGGREGATE(15,6,(ROW(Таблица1[28])-ROW(Таблица1[[#Headers],[28]]))/(Таблица1[[месяц]:[месяц]]=$J$2)/(Таблица1[[год]:[год]]=$L$2)/(Таблица1[[изд]:[изд]]=$O$1)/(Таблица1[[партия]:[партия]]=$S$1),ROW(AE5))),"") ->  | AG8: =IFERROR(INDEX(Таблица1[29],_xlfn.AGGREGATE(15,6,(ROW(Таблица1[29])-ROW(Таблица1[[#Headers],[29]]))/(Таблица1[[месяц]:[месяц]]=$J$2)/(Таблица1[[год]:[год]]=$L$2)/(Таблица1[[изд]:[изд]]=$O$1)/(Таблица1[[партия]:[партия]]=$S$1),ROW(AF5))),"") ->  | AH8: =IFERROR(INDEX(Таблица1[30],_xlfn.AGGREGATE(15,6,(ROW(Таблица1[30])-ROW(Таблица1[[#Headers],[30]]))/(Таблица1[[месяц]:[месяц]]=$J$2)/(Таблица1[[год]:[год]]=$L$2)/(Таблица1[[изд]:[изд]]=$O$1)/(Таблица1[[партия]:[партия]]=$S$1),ROW(AG5))),"") ->  | AI8: =IFERROR(INDEX(Таблица1[31],_xlfn.AGGREGATE(15,6,(ROW(Таблица1[31])-ROW(Таблица1[[#Headers],[31]]))/(Таблица1[[месяц]:[месяц]]=$J$2)/(Таблица1[[год]:[год]]=$L$2)/(Таблица1[[изд]:[изд]]=$O$1)/(Таблица1[[партия]:[партия]]=$S$1),ROW(AH5))),"") ->  | AJ8: 0
B9: =IFERROR(INDEX(Таблица1[коэф],_xlfn.AGGREGATE(15,6,(ROW(Таблица1[коэф])-ROW(Таблица1[[#Headers],[коэф]]))/(Таблица1[[месяц]:[месяц]]=$J$2)/(Таблица1[[год]:[год]]=$L$2)/(Таблица1[[изд]:[изд]]=$O$1)/(Таблица1[[партия]:[партия]]=$S$1),ROW(A6))),"") ->  | C9: =IFERROR(INDEX(Таблица1[Ф. И. О.],_xlfn.AGGREGATE(15,6,(ROW(Таблица1[Ф. И. О.])-ROW(Таблица1[[#Headers],[Ф. И. О.]]))/(Таблица1[[месяц]:[месяц]]=$J$2)/(Таблица1[[год]:[год]]=$L$2)/(Таблица1[[изд]:[изд]]=$O$1)/(Таблица1[[партия]:[партия]]=$S$1),ROW(B6))),"") ->  | D9: =IFERROR(INDEX(Таблица1[р/р],_xlfn.AGGREGATE(15,6,(ROW(Таблица1[р/р])-ROW(Таблица1[[#Headers],[р/р]]))/(Таблица1[[месяц]:[месяц]]=$J$2)/(Таблица1[[год]:[год]]=$L$2)/(Таблица1[[изд]:[изд]]=$O$1)/(Таблица1[[партия]:[партия]]=$S$1),ROW(C6))),"") ->  | E9: =IFERROR(INDEX(Таблица1[1],_xlfn.AGGREGATE(15,6,(ROW(Таблица1[1])-ROW(Таблица1[[#Headers],[1]]))/(Таблица1[[месяц]:[месяц]]=$J$2)/(Таблица1[[год]:[год]]=$L$2)/(Таблица1[[изд]:[изд]]=$O$1)/(Таблица1[[партия]:[партия]]=$S$1),ROW(D6))),"") ->  | F9: =IFERROR(INDEX(Таблица1[2],_xlfn.AGGREGATE(15,6,(ROW(Таблица1[2])-ROW(Таблица1[[#Headers],[2]]))/(Таблица1[[месяц]:[месяц]]=$J$2)/(Таблица1[[год]:[год]]=$L$2)/(Таблица1[[изд]:[изд]]=$O$1)/(Таблица1[[партия]:[партия]]=$S$1),ROW(E6))),"") ->  | G9: =IFERROR(INDEX(Таблица1[3],_xlfn.AGGREGATE(15,6,(ROW(Таблица1[3])-ROW(Таблица1[[#Headers],[3]]))/(Таблица1[[месяц]:[месяц]]=$J$2)/(Таблица1[[год]:[год]]=$L$2)/(Таблица1[[изд]:[изд]]=$O$1)/(Таблица1[[партия]:[партия]]=$S$1),ROW(F6))),"") ->  | H9: =IFERROR(INDEX(Таблица1[4],_xlfn.AGGREGATE(15,6,(ROW(Таблица1[4])-ROW(Таблица1[[#Headers],[4]]))/(Таблица1[[месяц]:[месяц]]=$J$2)/(Таблица1[[год]:[год]]=$L$2)/(Таблица1[[изд]:[изд]]=$O$1)/(Таблица1[[партия]:[партия]]=$S$1),ROW(G6))),"") ->  | I9: =IFERROR(INDEX(Таблица1[5],_xlfn.AGGREGATE(15,6,(ROW(Таблица1[5])-ROW(Таблица1[[#Headers],[5]]))/(Таблица1[[месяц]:[месяц]]=$J$2)/(Таблица1[[год]:[год]]=$L$2)/(Таблица1[[изд]:[изд]]=$O$1)/(Таблица1[[партия]:[партия]]=$S$1),ROW(H6))),"") ->  | J9: =IFERROR(INDEX(Таблица1[6],_xlfn.AGGREGATE(15,6,(ROW(Таблица1[6])-ROW(Таблица1[[#Headers],[6]]))/(Таблица1[[месяц]:[месяц]]=$J$2)/(Таблица1[[год]:[год]]=$L$2)/(Таблица1[[изд]:[изд]]=$O$1)/(Таблица1[[партия]:[партия]]=$S$1),ROW(I6))),"") ->  | K9: =IFERROR(INDEX(Таблица1[7],_xlfn.AGGREGATE(15,6,(ROW(Таблица1[7])-ROW(Таблица1[[#Headers],[7]]))/(Таблица1[[месяц]:[месяц]]=$J$2)/(Таблица1[[год]:[год]]=$L$2)/(Таблица1[[изд]:[изд]]=$O$1)/(Таблица1[[партия]:[партия]]=$S$1),ROW(J6))),"") ->  | L9: =IFERROR(INDEX(Таблица1[8],_xlfn.AGGREGATE(15,6,(ROW(Таблица1[8])-ROW(Таблица1[[#Headers],[8]]))/(Таблица1[[месяц]:[месяц]]=$J$2)/(Таблица1[[год]:[год]]=$L$2)/(Таблица1[[изд]:[изд]]=$O$1)/(Таблица1[[партия]:[партия]]=$S$1),ROW(K6))),"") ->  | M9: =IFERROR(INDEX(Таблица1[9],_xlfn.AGGREGATE(15,6,(ROW(Таблица1[9])-ROW(Таблица1[[#Headers],[9]]))/(Таблица1[[месяц]:[месяц]]=$J$2)/(Таблица1[[год]:[год]]=$L$2)/(Таблица1[[изд]:[изд]]=$O$1)/(Таблица1[[партия]:[партия]]=$S$1),ROW(L6))),"") ->  | N9: =IFERROR(INDEX(Таблица1[10],_xlfn.AGGREGATE(15,6,(ROW(Таблица1[10])-ROW(Таблица1[[#Headers],[10]]))/(Таблица1[[месяц]:[месяц]]=$J$2)/(Таблица1[[год]:[год]]=$L$2)/(Таблица1[[изд]:[изд]]=$O$1)/(Таблица1[[партия]:[партия]]=$S$1),ROW(M6))),"") ->  | O9: =IFERROR(INDEX(Таблица1[11],_xlfn.AGGREGATE(15,6,(ROW(Таблица1[11])-ROW(Таблица1[[#Headers],[11]]))/(Таблица1[[месяц]:[месяц]]=$J$2)/(Таблица1[[год]:[год]]=$L$2)/(Таблица1[[изд]:[изд]]=$O$1)/(Таблица1[[партия]:[партия]]=$S$1),ROW(N6))),"") ->  | P9: =IFERROR(INDEX(Таблица1[12],_xlfn.AGGREGATE(15,6,(ROW(Таблица1[12])-ROW(Таблица1[[#Headers],[12]]))/(Таблица1[[месяц]:[месяц]]=$J$2)/(Таблица1[[год]:[год]]=$L$2)/(Таблица1[[изд]:[изд]]=$O$1)/(Таблица1[[партия]:[партия]]=$S$1),ROW(O6))),"") ->  | Q9: =IFERROR(INDEX(Таблица1[13],_xlfn.AGGREGATE(15,6,(ROW(Таблица1[13])-ROW(Таблица1[[#Headers],[13]]))/(Таблица1[[месяц]:[месяц]]=$J$2)/(Таблица1[[год]:[год]]=$L$2)/(Таблица1[[изд]:[изд]]=$O$1)/(Таблица1[[партия]:[партия]]=$S$1),ROW(P6))),"") ->  | R9: =IFERROR(INDEX(Таблица1[14],_xlfn.AGGREGATE(15,6,(ROW(Таблица1[14])-ROW(Таблица1[[#Headers],[14]]))/(Таблица1[[месяц]:[месяц]]=$J$2)/(Таблица1[[год]:[год]]=$L$2)/(Таблица1[[изд]:[изд]]=$O$1)/(Таблица1[[партия]:[партия]]=$S$1),ROW(Q6))),"") ->  | S9: =IFERROR(INDEX(Таблица1[15],_xlfn.AGGREGATE(15,6,(ROW(Таблица1[15])-ROW(Таблица1[[#Headers],[15]]))/(Таблица1[[месяц]:[месяц]]=$J$2)/(Таблица1[[год]:[год]]=$L$2)/(Таблица1[[изд]:[изд]]=$O$1)/(Таблица1[[партия]:[партия]]=$S$1),ROW(R6))),"") ->  | T9: =IFERROR(INDEX(Таблица1[16],_xlfn.AGGREGATE(15,6,(ROW(Таблица1[16])-ROW(Таблица1[[#Headers],[16]]))/(Таблица1[[месяц]:[месяц]]=$J$2)/(Таблица1[[год]:[год]]=$L$2)/(Таблица1[[изд]:[изд]]=$O$1)/(Таблица1[[партия]:[партия]]=$S$1),ROW(S6))),"") ->  | U9: =IFERROR(INDEX(Таблица1[17],_xlfn.AGGREGATE(15,6,(ROW(Таблица1[17])-ROW(Таблица1[[#Headers],[17]]))/(Таблица1[[месяц]:[месяц]]=$J$2)/(Таблица1[[год]:[год]]=$L$2)/(Таблица1[[изд]:[изд]]=$O$1)/(Таблица1[[партия]:[партия]]=$S$1),ROW(T6))),"") ->  | V9: =IFERROR(INDEX(Таблица1[18],_xlfn.AGGREGATE(15,6,(ROW(Таблица1[18])-ROW(Таблица1[[#Headers],[18]]))/(Таблица1[[месяц]:[месяц]]=$J$2)/(Таблица1[[год]:[год]]=$L$2)/(Таблица1[[изд]:[изд]]=$O$1)/(Таблица1[[партия]:[партия]]=$S$1),ROW(U6))),"") ->  | W9: =IFERROR(INDEX(Таблица1[19],_xlfn.AGGREGATE(15,6,(ROW(Таблица1[19])-ROW(Таблица1[[#Headers],[19]]))/(Таблица1[[месяц]:[месяц]]=$J$2)/(Таблица1[[год]:[год]]=$L$2)/(Таблица1[[изд]:[изд]]=$O$1)/(Таблица1[[партия]:[партия]]=$S$1),ROW(V6))),"") ->  | X9: =IFERROR(INDEX(Таблица1[20],_xlfn.AGGREGATE(15,6,(ROW(Таблица1[20])-ROW(Таблица1[[#Headers],[20]]))/(Таблица1[[месяц]:[месяц]]=$J$2)/(Таблица1[[год]:[год]]=$L$2)/(Таблица1[[изд]:[изд]]=$O$1)/(Таблица1[[партия]:[партия]]=$S$1),ROW(W6))),"") ->  | Y9: =IFERROR(INDEX(Таблица1[21],_xlfn.AGGREGATE(15,6,(ROW(Таблица1[21])-ROW(Таблица1[[#Headers],[21]]))/(Таблица1[[месяц]:[месяц]]=$J$2)/(Таблица1[[год]:[год]]=$L$2)/(Таблица1[[изд]:[изд]]=$O$1)/(Таблица1[[партия]:[партия]]=$S$1),ROW(X6))),"") ->  | Z9: =IFERROR(INDEX(Таблица1[22],_xlfn.AGGREGATE(15,6,(ROW(Таблица1[22])-ROW(Таблица1[[#Headers],[22]]))/(Таблица1[[месяц]:[месяц]]=$J$2)/(Таблица1[[год]:[год]]=$L$2)/(Таблица1[[изд]:[изд]]=$O$1)/(Таблица1[[партия]:[партия]]=$S$1),ROW(Y6))),"") ->  | AA9: =IFERROR(INDEX(Таблица1[23],_xlfn.AGGREGATE(15,6,(ROW(Таблица1[23])-ROW(Таблица1[[#Headers],[23]]))/(Таблица1[[месяц]:[месяц]]=$J$2)/(Таблица1[[год]:[год]]=$L$2)/(Таблица1[[изд]:[изд]]=$O$1)/(Таблица1[[партия]:[партия]]=$S$1),ROW(Z6))),"") ->  | AB9: =IFERROR(INDEX(Таблица1[24],_xlfn.AGGREGATE(15,6,(ROW(Таблица1[24])-ROW(Таблица1[[#Headers],[24]]))/(Таблица1[[месяц]:[месяц]]=$J$2)/(Таблица1[[год]:[год]]=$L$2)/(Таблица1[[изд]:[изд]]=$O$1)/(Таблица1[[партия]:[партия]]=$S$1),ROW(AA6))),"") ->  | AC9: =IFERROR(INDEX(Таблица1[25],_xlfn.AGGREGATE(15,6,(ROW(Таблица1[25])-ROW(Таблица1[[#Headers],[25]]))/(Таблица1[[месяц]:[месяц]]=$J$2)/(Таблица1[[год]:[год]]=$L$2)/(Таблица1[[изд]:[изд]]=$O$1)/(Таблица1[[партия]:[партия]]=$S$1),ROW(AB6))),"") ->  | AD9: =IFERROR(INDEX(Таблица1[26],_xlfn.AGGREGATE(15,6,(ROW(Таблица1[26])-ROW(Таблица1[[#Headers],[26]]))/(Таблица1[[месяц]:[месяц]]=$J$2)/(Таблица1[[год]:[год]]=$L$2)/(Таблица1[[изд]:[изд]]=$O$1)/(Таблица1[[партия]:[партия]]=$S$1),ROW(AC6))),"") ->  | AE9: =IFERROR(INDEX(Таблица1[27],_xlfn.AGGREGATE(15,6,(ROW(Таблица1[27])-ROW(Таблица1[[#Headers],[27]]))/(Таблица1[[месяц]:[месяц]]=$J$2)/(Таблица1[[год]:[год]]=$L$2)/(Таблица1[[изд]:[изд]]=$O$1)/(Таблица1[[партия]:[партия]]=$S$1),ROW(AD6))),"") ->  | AF9: =IFERROR(INDEX(Таблица1[28],_xlfn.AGGREGATE(15,6,(ROW(Таблица1[28])-ROW(Таблица1[[#Headers],[28]]))/(Таблица1[[месяц]:[месяц]]=$J$2)/(Таблица1[[год]:[год]]=$L$2)/(Таблица1[[изд]:[изд]]=$O$1)/(Таблица1[[партия]:[партия]]=$S$1),ROW(AE6))),"") ->  | AG9: =IFERROR(INDEX(Таблица1[29],_xlfn.AGGREGATE(15,6,(ROW(Таблица1[29])-ROW(Таблица1[[#Headers],[29]]))/(Таблица1[[месяц]:[месяц]]=$J$2)/(Таблица1[[год]:[год]]=$L$2)/(Таблица1[[изд]:[изд]]=$O$1)/(Таблица1[[партия]:[партия]]=$S$1),ROW(AF6))),"") ->  | AH9: =IFERROR(INDEX(Таблица1[30],_xlfn.AGGREGATE(15,6,(ROW(Таблица1[30])-ROW(Таблица1[[#Headers],[30]]))/(Таблица1[[месяц]:[месяц]]=$J$2)/(Таблица1[[год]:[год]]=$L$2)/(Таблица1[[изд]:[изд]]=$O$1)/(Таблица1[[партия]:[партия]]=$S$1),ROW(AG6))),"") ->  | AI9: =IFERROR(INDEX(Таблица1[31],_xlfn.AGGREGATE(15,6,(ROW(Таблица1[31])-ROW(Таблица1[[#Headers],[31]]))/(Таблица1[[месяц]:[месяц]]=$J$2)/(Таблица1[[год]:[год]]=$L$2)/(Таблица1[[изд]:[изд]]=$O$1)/(Таблица1[[партия]:[партия]]=$S$1),ROW(AH6))),"") ->  | AJ9: 0
B10: =IFERROR(INDEX(Таблица1[коэф],_xlfn.AGGREGATE(15,6,(ROW(Таблица1[коэф])-ROW(Таблица1[[#Headers],[коэф]]))/(Таблица1[[месяц]:[месяц]]=$J$2)/(Таблица1[[год]:[год]]=$L$2)/(Таблица1[[изд]:[изд]]=$O$1)/(Таблица1[[партия]:[партия]]=$S$1),ROW(A7))),"") ->  | C10: =IFERROR(INDEX(Таблица1[Ф. И. О.],_xlfn.AGGREGATE(15,6,(ROW(Таблица1[Ф. И. О.])-ROW(Таблица1[[#Headers],[Ф. И. О.]]))/(Таблица1[[месяц]:[месяц]]=$J$2)/(Таблица1[[год]:[год]]=$L$2)/(Таблица1[[изд]:[изд]]=$O$1)/(Таблица1[[партия]:[партия]]=$S$1),ROW(B7))),"") ->  | D10: =IFERROR(INDEX(Таблица1[р/р],_xlfn.AGGREGATE(15,6,(ROW(Таблица1[р/р])-ROW(Таблица1[[#Headers],[р/р]]))/(Таблица1[[месяц]:[месяц]]=$J$2)/(Таблица1[[год]:[год]]=$L$2)/(Таблица1[[изд]:[изд]]=$O$1)/(Таблица1[[партия]:[партия]]=$S$1),ROW(C7))),"") ->  | E10: =IFERROR(INDEX(Таблица1[1],_xlfn.AGGREGATE(15,6,(ROW(Таблица1[1])-ROW(Таблица1[[#Headers],[1]]))/(Таблица1[[месяц]:[месяц]]=$J$2)/(Таблица1[[год]:[год]]=$L$2)/(Таблица1[[изд]:[изд]]=$O$1)/(Таблица1[[партия]:[партия]]=$S$1),ROW(D7))),"") ->  | F10: =IFERROR(INDEX(Таблица1[2],_xlfn.AGGREGATE(15,6,(ROW(Таблица1[2])-ROW(Таблица1[[#Headers],[2]]))/(Таблица1[[месяц]:[месяц]]=$J$2)/(Таблица1[[год]:[год]]=$L$2)/(Таблица1[[изд]:[изд]]=$O$1)/(Таблица1[[партия]:[партия]]=$S$1),ROW(E7))),"") ->  | G10: =IFERROR(INDEX(Таблица1[3],_xlfn.AGGREGATE(15,6,(ROW(Таблица1[3])-ROW(Таблица1[[#Headers],[3]]))/(Таблица1[[месяц]:[месяц]]=$J$2)/(Таблица1[[год]:[год]]=$L$2)/(Таблица1[[изд]:[изд]]=$O$1)/(Таблица1[[партия]:[партия]]=$S$1),ROW(F7))),"") ->  | H10: =IFERROR(INDEX(Таблица1[4],_xlfn.AGGREGATE(15,6,(ROW(Таблица1[4])-ROW(Таблица1[[#Headers],[4]]))/(Таблица1[[месяц]:[месяц]]=$J$2)/(Таблица1[[год]:[год]]=$L$2)/(Таблица1[[изд]:[изд]]=$O$1)/(Таблица1[[партия]:[партия]]=$S$1),ROW(G7))),"") ->  | I10: =IFERROR(INDEX(Таблица1[5],_xlfn.AGGREGATE(15,6,(ROW(Таблица1[5])-ROW(Таблица1[[#Headers],[5]]))/(Таблица1[[месяц]:[месяц]]=$J$2)/(Таблица1[[год]:[год]]=$L$2)/(Таблица1[[изд]:[изд]]=$O$1)/(Таблица1[[партия]:[партия]]=$S$1),ROW(H7))),"") ->  | J10: =IFERROR(INDEX(Таблица1[6],_xlfn.AGGREGATE(15,6,(ROW(Таблица1[6])-ROW(Таблица1[[#Headers],[6]]))/(Таблица1[[месяц]:[месяц]]=$J$2)/(Таблица1[[год]:[год]]=$L$2)/(Таблица1[[изд]:[изд]]=$O$1)/(Таблица1[[партия]:[партия]]=$S$1),ROW(I7))),"") ->  | K10: =IFERROR(INDEX(Таблица1[7],_xlfn.AGGREGATE(15,6,(ROW(Таблица1[7])-ROW(Таблица1[[#Headers],[7]]))/(Таблица1[[месяц]:[месяц]]=$J$2)/(Таблица1[[год]:[год]]=$L$2)/(Таблица1[[изд]:[изд]]=$O$1)/(Таблица1[[партия]:[партия]]=$S$1),ROW(J7))),"") ->  | L10: =IFERROR(INDEX(Таблица1[8],_xlfn.AGGREGATE(15,6,(ROW(Таблица1[8])-ROW(Таблица1[[#Headers],[8]]))/(Таблица1[[месяц]:[месяц]]=$J$2)/(Таблица1[[год]:[год]]=$L$2)/(Таблица1[[изд]:[изд]]=$O$1)/(Таблица1[[партия]:[партия]]=$S$1),ROW(K7))),"") ->  | M10: =IFERROR(INDEX(Таблица1[9],_xlfn.AGGREGATE(15,6,(ROW(Таблица1[9])-ROW(Таблица1[[#Headers],[9]]))/(Таблица1[[месяц]:[месяц]]=$J$2)/(Таблица1[[год]:[год]]=$L$2)/(Таблица1[[изд]:[изд]]=$O$1)/(Таблица1[[партия]:[партия]]=$S$1),ROW(L7))),"") ->  | N10: =IFERROR(INDEX(Таблица1[10],_xlfn.AGGREGATE(15,6,(ROW(Таблица1[10])-ROW(Таблица1[[#Headers],[10]]))/(Таблица1[[месяц]:[месяц]]=$J$2)/(Таблица1[[год]:[год]]=$L$2)/(Таблица1[[изд]:[изд]]=$O$1)/(Таблица1[[партия]:[партия]]=$S$1),ROW(M7))),"") ->  | O10: =IFERROR(INDEX(Таблица1[11],_xlfn.AGGREGATE(15,6,(ROW(Таблица1[11])-ROW(Таблица1[[#Headers],[11]]))/(Таблица1[[месяц]:[месяц]]=$J$2)/(Таблица1[[год]:[год]]=$L$2)/(Таблица1[[изд]:[изд]]=$O$1)/(Таблица1[[партия]:[партия]]=$S$1),ROW(N7))),"") ->  | P10: =IFERROR(INDEX(Таблица1[12],_xlfn.AGGREGATE(15,6,(ROW(Таблица1[12])-ROW(Таблица1[[#Headers],[12]]))/(Таблица1[[месяц]:[месяц]]=$J$2)/(Таблица1[[год]:[год]]=$L$2)/(Таблица1[[изд]:[изд]]=$O$1)/(Таблица1[[партия]:[партия]]=$S$1),ROW(O7))),"") ->  | Q10: =IFERROR(INDEX(Таблица1[13],_xlfn.AGGREGATE(15,6,(ROW(Таблица1[13])-ROW(Таблица1[[#Headers],[13]]))/(Таблица1[[месяц]:[месяц]]=$J$2)/(Таблица1[[год]:[год]]=$L$2)/(Таблица1[[изд]:[изд]]=$O$1)/(Таблица1[[партия]:[партия]]=$S$1),ROW(P7))),"") ->  | R10: =IFERROR(INDEX(Таблица1[14],_xlfn.AGGREGATE(15,6,(ROW(Таблица1[14])-ROW(Таблица1[[#Headers],[14]]))/(Таблица1[[месяц]:[месяц]]=$J$2)/(Таблица1[[год]:[год]]=$L$2)/(Таблица1[[изд]:[изд]]=$O$1)/(Таблица1[[партия]:[партия]]=$S$1),ROW(Q7))),"") ->  | S10: =IFERROR(INDEX(Таблица1[15],_xlfn.AGGREGATE(15,6,(ROW(Таблица1[15])-ROW(Таблица1[[#Headers],[15]]))/(Таблица1[[месяц]:[месяц]]=$J$2)/(Таблица1[[год]:[год]]=$L$2)/(Таблица1[[изд]:[изд]]=$O$1)/(Таблица1[[партия]:[партия]]=$S$1),ROW(R7))),"") ->  | T10: =IFERROR(INDEX(Таблица1[16],_xlfn.AGGREGATE(15,6,(ROW(Таблица1[16])-ROW(Таблица1[[#Headers],[16]]))/(Таблица1[[месяц]:[месяц]]=$J$2)/(Таблица1[[год]:[год]]=$L$2)/(Таблица1[[изд]:[изд]]=$O$1)/(Таблица1[[партия]:[партия]]=$S$1),ROW(S7))),"") ->  | U10: =IFERROR(INDEX(Таблица1[17],_xlfn.AGGREGATE(15,6,(ROW(Таблица1[17])-ROW(Таблица1[[#Headers],[17]]))/(Таблица1[[месяц]:[месяц]]=$J$2)/(Таблица1[[год]:[год]]=$L$2)/(Таблица1[[изд]:[изд]]=$O$1)/(Таблица1[[партия]:[партия]]=$S$1),ROW(T7))),"") ->  | V10: =IFERROR(INDEX(Таблица1[18],_xlfn.AGGREGATE(15,6,(ROW(Таблица1[18])-ROW(Таблица1[[#Headers],[18]]))/(Таблица1[[месяц]:[месяц]]=$J$2)/(Таблица1[[год]:[год]]=$L$2)/(Таблица1[[изд]:[изд]]=$O$1)/(Таблица1[[партия]:[партия]]=$S$1),ROW(U7))),"") ->  | W10: =IFERROR(INDEX(Таблица1[19],_xlfn.AGGREGATE(15,6,(ROW(Таблица1[19])-ROW(Таблица1[[#Headers],[19]]))/(Таблица1[[месяц]:[месяц]]=$J$2)/(Таблица1[[год]:[год]]=$L$2)/(Таблица1[[изд]:[изд]]=$O$1)/(Таблица1[[партия]:[партия]]=$S$1),ROW(V7))),"") ->  | X10: =IFERROR(INDEX(Таблица1[20],_xlfn.AGGREGATE(15,6,(ROW(Таблица1[20])-ROW(Таблица1[[#Headers],[20]]))/(Таблица1[[месяц]:[месяц]]=$J$2)/(Таблица1[[год]:[год]]=$L$2)/(Таблица1[[изд]:[изд]]=$O$1)/(Таблица1[[партия]:[партия]]=$S$1),ROW(W7))),"") ->  | Y10: =IFERROR(INDEX(Таблица1[21],_xlfn.AGGREGATE(15,6,(ROW(Таблица1[21])-ROW(Таблица1[[#Headers],[21]]))/(Таблица1[[месяц]:[месяц]]=$J$2)/(Таблица1[[год]:[год]]=$L$2)/(Таблица1[[изд]:[изд]]=$O$1)/(Таблица1[[партия]:[партия]]=$S$1),ROW(X7))),"") ->  | Z10: =IFERROR(INDEX(Таблица1[22],_xlfn.AGGREGATE(15,6,(ROW(Таблица1[22])-ROW(Таблица1[[#Headers],[22]]))/(Таблица1[[месяц]:[месяц]]=$J$2)/(Таблица1[[год]:[год]]=$L$2)/(Таблица1[[изд]:[изд]]=$O$1)/(Таблица1[[партия]:[партия]]=$S$1),ROW(Y7))),"") ->  | AA10: =IFERROR(INDEX(Таблица1[23],_xlfn.AGGREGATE(15,6,(ROW(Таблица1[23])-ROW(Таблица1[[#Headers],[23]]))/(Таблица1[[месяц]:[месяц]]=$J$2)/(Таблица1[[год]:[год]]=$L$2)/(Таблица1[[изд]:[изд]]=$O$1)/(Таблица1[[партия]:[партия]]=$S$1),ROW(Z7))),"") ->  | AB10: =IFERROR(INDEX(Таблица1[24],_xlfn.AGGREGATE(15,6,(ROW(Таблица1[24])-ROW(Таблица1[[#Headers],[24]]))/(Таблица1[[месяц]:[месяц]]=$J$2)/(Таблица1[[год]:[год]]=$L$2)/(Таблица1[[изд]:[изд]]=$O$1)/(Таблица1[[партия]:[партия]]=$S$1),ROW(AA7))),"") ->  | AC10: =IFERROR(INDEX(Таблица1[25],_xlfn.AGGREGATE(15,6,(ROW(Таблица1[25])-ROW(Таблица1[[#Headers],[25]]))/(Таблица1[[месяц]:[месяц]]=$J$2)/(Таблица1[[год]:[год]]=$L$2)/(Таблица1[[изд]:[изд]]=$O$1)/(Таблица1[[партия]:[партия]]=$S$1),ROW(AB7))),"") ->  | AD10: =IFERROR(INDEX(Таблица1[26],_xlfn.AGGREGATE(15,6,(ROW(Таблица1[26])-ROW(Таблица1[[#Headers],[26]]))/(Таблица1[[месяц]:[месяц]]=$J$2)/(Таблица1[[год]:[год]]=$L$2)/(Таблица1[[изд]:[изд]]=$O$1)/(Таблица1[[партия]:[партия]]=$S$1),ROW(AC7))),"") ->  | AE10: =IFERROR(INDEX(Таблица1[27],_xlfn.AGGREGATE(15,6,(ROW(Таблица1[27])-ROW(Таблица1[[#Headers],[27]]))/(Таблица1[[месяц]:[месяц]]=$J$2)/(Таблица1[[год]:[год]]=$L$2)/(Таблица1[[изд]:[изд]]=$O$1)/(Таблица1[[партия]:[партия]]=$S$1),ROW(AD7))),"") ->  | AF10: =IFERROR(INDEX(Таблица1[28],_xlfn.AGGREGATE(15,6,(ROW(Таблица1[28])-ROW(Таблица1[[#Headers],[28]]))/(Таблица1[[месяц]:[месяц]]=$J$2)/(Таблица1[[год]:[год]]=$L$2)/(Таблица1[[изд]:[изд]]=$O$1)/(Таблица1[[партия]:[партия]]=$S$1),ROW(AE7))),"") ->  | AG10: =IFERROR(INDEX(Таблица1[29],_xlfn.AGGREGATE(15,6,(ROW(Таблица1[29])-ROW(Таблица1[[#Headers],[29]]))/(Таблица1[[месяц]:[месяц]]=$J$2)/(Таблица1[[год]:[год]]=$L$2)/(Таблица1[[изд]:[изд]]=$O$1)/(Таблица1[[партия]:[партия]]=$S$1),ROW(AF7))),"") ->  | AH10: =IFERROR(INDEX(Таблица1[30],_xlfn.AGGREGATE(15,6,(ROW(Таблица1[30])-ROW(Таблица1[[#Headers],[30]]))/(Таблица1[[месяц]:[месяц]]=$J$2)/(Таблица1[[год]:[год]]=$L$2)/(Таблица1[[изд]:[изд]]=$O$1)/(Таблица1[[партия]:[партия]]=$S$1),ROW(AG7))),"") ->  | AI10: =IFERROR(INDEX(Таблица1[31],_xlfn.AGGREGATE(15,6,(ROW(Таблица1[31])-ROW(Таблица1[[#Headers],[31]]))/(Таблица1[[месяц]:[месяц]]=$J$2)/(Таблица1[[год]:[год]]=$L$2)/(Таблица1[[изд]:[изд]]=$O$1)/(Таблица1[[партия]:[партия]]=$S$1),ROW(AH7))),"") ->  | AJ10: 0
B11: =IFERROR(INDEX(Таблица1[коэф],_xlfn.AGGREGATE(15,6,(ROW(Таблица1[коэф])-ROW(Таблица1[[#Headers],[коэф]]))/(Таблица1[[месяц]:[месяц]]=$J$2)/(Таблица1[[год]:[год]]=$L$2)/(Таблица1[[изд]:[изд]]=$O$1)/(Таблица1[[партия]:[партия]]=$S$1),ROW(A8))),"") ->  | C11: =IFERROR(INDEX(Таблица1[Ф. И. О.],_xlfn.AGGREGATE(15,6,(ROW(Таблица1[Ф. И. О.])-ROW(Таблица1[[#Headers],[Ф. И. О.]]))/(Таблица1[[месяц]:[месяц]]=$J$2)/(Таблица1[[год]:[год]]=$L$2)/(Таблица1[[изд]:[изд]]=$O$1)/(Таблица1[[партия]:[партия]]=$S$1),ROW(B8))),"") ->  | D11: =IFERROR(INDEX(Таблица1[р/р],_xlfn.AGGREGATE(15,6,(ROW(Таблица1[р/р])-ROW(Таблица1[[#Headers],[р/р]]))/(Таблица1[[месяц]:[месяц]]=$J$2)/(Таблица1[[год]:[год]]=$L$2)/(Таблица1[[изд]:[изд]]=$O$1)/(Таблица1[[партия]:[партия]]=$S$1),ROW(C8))),"") ->  | E11: =IFERROR(INDEX(Таблица1[1],_xlfn.AGGREGATE(15,6,(ROW(Таблица1[1])-ROW(Таблица1[[#Headers],[1]]))/(Таблица1[[месяц]:[месяц]]=$J$2)/(Таблица1[[год]:[год]]=$L$2)/(Таблица1[[изд]:[изд]]=$O$1)/(Таблица1[[партия]:[партия]]=$S$1),ROW(D8))),"") ->  | F11: =IFERROR(INDEX(Таблица1[2],_xlfn.AGGREGATE(15,6,(ROW(Таблица1[2])-ROW(Таблица1[[#Headers],[2]]))/(Таблица1[[месяц]:[месяц]]=$J$2)/(Таблица1[[год]:[год]]=$L$2)/(Таблица1[[изд]:[изд]]=$O$1)/(Таблица1[[партия]:[партия]]=$S$1),ROW(E8))),"") ->  | G11: =IFERROR(INDEX(Таблица1[3],_xlfn.AGGREGATE(15,6,(ROW(Таблица1[3])-ROW(Таблица1[[#Headers],[3]]))/(Таблица1[[месяц]:[месяц]]=$J$2)/(Таблица1[[год]:[год]]=$L$2)/(Таблица1[[изд]:[изд]]=$O$1)/(Таблица1[[партия]:[партия]]=$S$1),ROW(F8))),"") ->  | H11: =IFERROR(INDEX(Таблица1[4],_xlfn.AGGREGATE(15,6,(ROW(Таблица1[4])-ROW(Таблица1[[#Headers],[4]]))/(Таблица1[[месяц]:[месяц]]=$J$2)/(Таблица1[[год]:[год]]=$L$2)/(Таблица1[[изд]:[изд]]=$O$1)/(Таблица1[[партия]:[партия]]=$S$1),ROW(G8))),"") ->  | I11: =IFERROR(INDEX(Таблица1[5],_xlfn.AGGREGATE(15,6,(ROW(Таблица1[5])-ROW(Таблица1[[#Headers],[5]]))/(Таблица1[[месяц]:[месяц]]=$J$2)/(Таблица1[[год]:[год]]=$L$2)/(Таблица1[[изд]:[изд]]=$O$1)/(Таблица1[[партия]:[партия]]=$S$1),ROW(H8))),"") ->  | J11: =IFERROR(INDEX(Таблица1[6],_xlfn.AGGREGATE(15,6,(ROW(Таблица1[6])-ROW(Таблица1[[#Headers],[6]]))/(Таблица1[[месяц]:[месяц]]=$J$2)/(Таблица1[[год]:[год]]=$L$2)/(Таблица1[[изд]:[изд]]=$O$1)/(Таблица1[[партия]:[партия]]=$S$1),ROW(I8))),"") ->  | K11: =IFERROR(INDEX(Таблица1[7],_xlfn.AGGREGATE(15,6,(ROW(Таблица1[7])-ROW(Таблица1[[#Headers],[7]]))/(Таблица1[[месяц]:[месяц]]=$J$2)/(Таблица1[[год]:[год]]=$L$2)/(Таблица1[[изд]:[изд]]=$O$1)/(Таблица1[[партия]:[партия]]=$S$1),ROW(J8))),"") ->  | L11: =IFERROR(INDEX(Таблица1[8],_xlfn.AGGREGATE(15,6,(ROW(Таблица1[8])-ROW(Таблица1[[#Headers],[8]]))/(Таблица1[[месяц]:[месяц]]=$J$2)/(Таблица1[[год]:[год]]=$L$2)/(Таблица1[[изд]:[изд]]=$O$1)/(Таблица1[[партия]:[партия]]=$S$1),ROW(K8))),"") ->  | M11: =IFERROR(INDEX(Таблица1[9],_xlfn.AGGREGATE(15,6,(ROW(Таблица1[9])-ROW(Таблица1[[#Headers],[9]]))/(Таблица1[[месяц]:[месяц]]=$J$2)/(Таблица1[[год]:[год]]=$L$2)/(Таблица1[[изд]:[изд]]=$O$1)/(Таблица1[[партия]:[партия]]=$S$1),ROW(L8))),"") ->  | N11: =IFERROR(INDEX(Таблица1[10],_xlfn.AGGREGATE(15,6,(ROW(Таблица1[10])-ROW(Таблица1[[#Headers],[10]]))/(Таблица1[[месяц]:[месяц]]=$J$2)/(Таблица1[[год]:[год]]=$L$2)/(Таблица1[[изд]:[изд]]=$O$1)/(Таблица1[[партия]:[партия]]=$S$1),ROW(M8))),"") ->  | O11: =IFERROR(INDEX(Таблица1[11],_xlfn.AGGREGATE(15,6,(ROW(Таблица1[11])-ROW(Таблица1[[#Headers],[11]]))/(Таблица1[[месяц]:[месяц]]=$J$2)/(Таблица1[[год]:[год]]=$L$2)/(Таблица1[[изд]:[изд]]=$O$1)/(Таблица1[[партия]:[партия]]=$S$1),ROW(N8))),"") ->  | P11: =IFERROR(INDEX(Таблица1[12],_xlfn.AGGREGATE(15,6,(ROW(Таблица1[12])-ROW(Таблица1[[#Headers],[12]]))/(Таблица1[[месяц]:[месяц]]=$J$2)/(Таблица1[[год]:[год]]=$L$2)/(Таблица1[[изд]:[изд]]=$O$1)/(Таблица1[[партия]:[партия]]=$S$1),ROW(O8))),"") ->  | Q11: =IFERROR(INDEX(Таблица1[13],_xlfn.AGGREGATE(15,6,(ROW(Таблица1[13])-ROW(Таблица1[[#Headers],[13]]))/(Таблица1[[месяц]:[месяц]]=$J$2)/(Таблица1[[год]:[год]]=$L$2)/(Таблица1[[изд]:[изд]]=$O$1)/(Таблица1[[партия]:[партия]]=$S$1),ROW(P8))),"") ->  | R11: =IFERROR(INDEX(Таблица1[14],_xlfn.AGGREGATE(15,6,(ROW(Таблица1[14])-ROW(Таблица1[[#Headers],[14]]))/(Таблица1[[месяц]:[месяц]]=$J$2)/(Таблица1[[год]:[год]]=$L$2)/(Таблица1[[изд]:[изд]]=$O$1)/(Таблица1[[партия]:[партия]]=$S$1),ROW(Q8))),"") ->  | S11: =IFERROR(INDEX(Таблица1[15],_xlfn.AGGREGATE(15,6,(ROW(Таблица1[15])-ROW(Таблица1[[#Headers],[15]]))/(Таблица1[[месяц]:[месяц]]=$J$2)/(Таблица1[[год]:[год]]=$L$2)/(Таблица1[[изд]:[изд]]=$O$1)/(Таблица1[[партия]:[партия]]=$S$1),ROW(R8))),"") ->  | T11: =IFERROR(INDEX(Таблица1[16],_xlfn.AGGREGATE(15,6,(ROW(Таблица1[16])-ROW(Таблица1[[#Headers],[16]]))/(Таблица1[[месяц]:[месяц]]=$J$2)/(Таблица1[[год]:[год]]=$L$2)/(Таблица1[[изд]:[изд]]=$O$1)/(Таблица1[[партия]:[партия]]=$S$1),ROW(S8))),"") ->  | U11: =IFERROR(INDEX(Таблица1[17],_xlfn.AGGREGATE(15,6,(ROW(Таблица1[17])-ROW(Таблица1[[#Headers],[17]]))/(Таблица1[[месяц]:[месяц]]=$J$2)/(Таблица1[[год]:[год]]=$L$2)/(Таблица1[[изд]:[изд]]=$O$1)/(Таблица1[[партия]:[партия]]=$S$1),ROW(T8))),"") ->  | V11: =IFERROR(INDEX(Таблица1[18],_xlfn.AGGREGATE(15,6,(ROW(Таблица1[18])-ROW(Таблица1[[#Headers],[18]]))/(Таблица1[[месяц]:[месяц]]=$J$2)/(Таблица1[[год]:[год]]=$L$2)/(Таблица1[[изд]:[изд]]=$O$1)/(Таблица1[[партия]:[партия]]=$S$1),ROW(U8))),"") ->  | W11: =IFERROR(INDEX(Таблица1[19],_xlfn.AGGREGATE(15,6,(ROW(Таблица1[19])-ROW(Таблица1[[#Headers],[19]]))/(Таблица1[[месяц]:[месяц]]=$J$2)/(Таблица1[[год]:[год]]=$L$2)/(Таблица1[[изд]:[изд]]=$O$1)/(Таблица1[[партия]:[партия]]=$S$1),ROW(V8))),"") ->  | X11: =IFERROR(INDEX(Таблица1[20],_xlfn.AGGREGATE(15,6,(ROW(Таблица1[20])-ROW(Таблица1[[#Headers],[20]]))/(Таблица1[[месяц]:[месяц]]=$J$2)/(Таблица1[[год]:[год]]=$L$2)/(Таблица1[[изд]:[изд]]=$O$1)/(Таблица1[[партия]:[партия]]=$S$1),ROW(W8))),"") ->  | Y11: =IFERROR(INDEX(Таблица1[21],_xlfn.AGGREGATE(15,6,(ROW(Таблица1[21])-ROW(Таблица1[[#Headers],[21]]))/(Таблица1[[месяц]:[месяц]]=$J$2)/(Таблица1[[год]:[год]]=$L$2)/(Таблица1[[изд]:[изд]]=$O$1)/(Таблица1[[партия]:[партия]]=$S$1),ROW(X8))),"") ->  | Z11: =IFERROR(INDEX(Таблица1[22],_xlfn.AGGREGATE(15,6,(ROW(Таблица1[22])-ROW(Таблица1[[#Headers],[22]]))/(Таблица1[[месяц]:[месяц]]=$J$2)/(Таблица1[[год]:[год]]=$L$2)/(Таблица1[[изд]:[изд]]=$O$1)/(Таблица1[[партия]:[партия]]=$S$1),ROW(Y8))),"") ->  | AA11: =IFERROR(INDEX(Таблица1[23],_xlfn.AGGREGATE(15,6,(ROW(Таблица1[23])-ROW(Таблица1[[#Headers],[23]]))/(Таблица1[[месяц]:[месяц]]=$J$2)/(Таблица1[[год]:[год]]=$L$2)/(Таблица1[[изд]:[изд]]=$O$1)/(Таблица1[[партия]:[партия]]=$S$1),ROW(Z8))),"") ->  | AB11: =IFERROR(INDEX(Таблица1[24],_xlfn.AGGREGATE(15,6,(ROW(Таблица1[24])-ROW(Таблица1[[#Headers],[24]]))/(Таблица1[[месяц]:[месяц]]=$J$2)/(Таблица1[[год]:[год]]=$L$2)/(Таблица1[[изд]:[изд]]=$O$1)/(Таблица1[[партия]:[партия]]=$S$1),ROW(AA8))),"") ->  | AC11: =IFERROR(INDEX(Таблица1[25],_xlfn.AGGREGATE(15,6,(ROW(Таблица1[25])-ROW(Таблица1[[#Headers],[25]]))/(Таблица1[[месяц]:[месяц]]=$J$2)/(Таблица1[[год]:[год]]=$L$2)/(Таблица1[[изд]:[изд]]=$O$1)/(Таблица1[[партия]:[партия]]=$S$1),ROW(AB8))),"") ->  | AD11: =IFERROR(INDEX(Таблица1[26],_xlfn.AGGREGATE(15,6,(ROW(Таблица1[26])-ROW(Таблица1[[#Headers],[26]]))/(Таблица1[[месяц]:[месяц]]=$J$2)/(Таблица1[[год]:[год]]=$L$2)/(Таблица1[[изд]:[изд]]=$O$1)/(Таблица1[[партия]:[партия]]=$S$1),ROW(AC8))),"") ->  | AE11: =IFERROR(INDEX(Таблица1[27],_xlfn.AGGREGATE(15,6,(ROW(Таблица1[27])-ROW(Таблица1[[#Headers],[27]]))/(Таблица1[[месяц]:[месяц]]=$J$2)/(Таблица1[[год]:[год]]=$L$2)/(Таблица1[[изд]:[изд]]=$O$1)/(Таблица1[[партия]:[партия]]=$S$1),ROW(AD8))),"") ->  | AF11: =IFERROR(INDEX(Таблица1[28],_xlfn.AGGREGATE(15,6,(ROW(Таблица1[28])-ROW(Таблица1[[#Headers],[28]]))/(Таблица1[[месяц]:[месяц]]=$J$2)/(Таблица1[[год]:[год]]=$L$2)/(Таблица1[[изд]:[изд]]=$O$1)/(Таблица1[[партия]:[партия]]=$S$1),ROW(AE8))),"") ->  | AG11: =IFERROR(INDEX(Таблица1[29],_xlfn.AGGREGATE(15,6,(ROW(Таблица1[29])-ROW(Таблица1[[#Headers],[29]]))/(Таблица1[[месяц]:[месяц]]=$J$2)/(Таблица1[[год]:[год]]=$L$2)/(Таблица1[[изд]:[изд]]=$O$1)/(Таблица1[[партия]:[партия]]=$S$1),ROW(AF8))),"") ->  | AH11: =IFERROR(INDEX(Таблица1[30],_xlfn.AGGREGATE(15,6,(ROW(Таблица1[30])-ROW(Таблица1[[#Headers],[30]]))/(Таблица1[[месяц]:[месяц]]=$J$2)/(Таблица1[[год]:[год]]=$L$2)/(Таблица1[[изд]:[изд]]=$O$1)/(Таблица1[[партия]:[партия]]=$S$1),ROW(AG8))),"") ->  | AI11: =IFERROR(INDEX(Таблица1[31],_xlfn.AGGREGATE(15,6,(ROW(Таблица1[31])-ROW(Таблица1[[#Headers],[31]]))/(Таблица1[[месяц]:[месяц]]=$J$2)/(Таблица1[[год]:[год]]=$L$2)/(Таблица1[[изд]:[изд]]=$O$1)/(Таблица1[[партия]:[партия]]=$S$1),ROW(AH8))),"") ->  | AJ11: 0
B12: =IFERROR(INDEX(Таблица1[коэф],_xlfn.AGGREGATE(15,6,(ROW(Таблица1[коэф])-ROW(Таблица1[[#Headers],[коэф]]))/(Таблица1[[месяц]:[месяц]]=$J$2)/(Таблица1[[год]:[год]]=$L$2)/(Таблица1[[изд]:[изд]]=$O$1)/(Таблица1[[партия]:[партия]]=$S$1),ROW(A9))),"") ->  | C12: =IFERROR(INDEX(Таблица1[Ф. И. О.],_xlfn.AGGREGATE(15,6,(ROW(Таблица1[Ф. И. О.])-ROW(Таблица1[[#Headers],[Ф. И. О.]]))/(Таблица1[[месяц]:[месяц]]=$J$2)/(Таблица1[[год]:[год]]=$L$2)/(Таблица1[[изд]:[изд]]=$O$1)/(Таблица1[[партия]:[партия]]=$S$1),ROW(B9))),"") ->  | D12: =IFERROR(INDEX(Таблица1[р/р],_xlfn.AGGREGATE(15,6,(ROW(Таблица1[р/р])-ROW(Таблица1[[#Headers],[р/р]]))/(Таблица1[[месяц]:[месяц]]=$J$2)/(Таблица1[[год]:[год]]=$L$2)/(Таблица1[[изд]:[изд]]=$O$1)/(Таблица1[[партия]:[партия]]=$S$1),ROW(C9))),"") ->  | E12: =IFERROR(INDEX(Таблица1[1],_xlfn.AGGREGATE(15,6,(ROW(Таблица1[1])-ROW(Таблица1[[#Headers],[1]]))/(Таблица1[[месяц]:[месяц]]=$J$2)/(Таблица1[[год]:[год]]=$L$2)/(Таблица1[[изд]:[изд]]=$O$1)/(Таблица1[[партия]:[партия]]=$S$1),ROW(D9))),"") ->  | F12: =IFERROR(INDEX(Таблица1[2],_xlfn.AGGREGATE(15,6,(ROW(Таблица1[2])-ROW(Таблица1[[#Headers],[2]]))/(Таблица1[[месяц]:[месяц]]=$J$2)/(Таблица1[[год]:[год]]=$L$2)/(Таблица1[[изд]:[изд]]=$O$1)/(Таблица1[[партия]:[партия]]=$S$1),ROW(E9))),"") ->  | G12: =IFERROR(INDEX(Таблица1[3],_xlfn.AGGREGATE(15,6,(ROW(Таблица1[3])-ROW(Таблица1[[#Headers],[3]]))/(Таблица1[[месяц]:[месяц]]=$J$2)/(Таблица1[[год]:[год]]=$L$2)/(Таблица1[[изд]:[изд]]=$O$1)/(Таблица1[[партия]:[партия]]=$S$1),ROW(F9))),"") ->  | H12: =IFERROR(INDEX(Таблица1[4],_xlfn.AGGREGATE(15,6,(ROW(Таблица1[4])-ROW(Таблица1[[#Headers],[4]]))/(Таблица1[[месяц]:[месяц]]=$J$2)/(Таблица1[[год]:[год]]=$L$2)/(Таблица1[[изд]:[изд]]=$O$1)/(Таблица1[[партия]:[партия]]=$S$1),ROW(G9))),"") ->  | I12: =IFERROR(INDEX(Таблица1[5],_xlfn.AGGREGATE(15,6,(ROW(Таблица1[5])-ROW(Таблица1[[#Headers],[5]]))/(Таблица1[[месяц]:[месяц]]=$J$2)/(Таблица1[[год]:[год]]=$L$2)/(Таблица1[[изд]:[изд]]=$O$1)/(Таблица1[[партия]:[партия]]=$S$1),ROW(H9))),"") ->  | J12: =IFERROR(INDEX(Таблица1[6],_xlfn.AGGREGATE(15,6,(ROW(Таблица1[6])-ROW(Таблица1[[#Headers],[6]]))/(Таблица1[[месяц]:[месяц]]=$J$2)/(Таблица1[[год]:[год]]=$L$2)/(Таблица1[[изд]:[изд]]=$O$1)/(Таблица1[[партия]:[партия]]=$S$1),ROW(I9))),"") ->  | K12: =IFERROR(INDEX(Таблица1[7],_xlfn.AGGREGATE(15,6,(ROW(Таблица1[7])-ROW(Таблица1[[#Headers],[7]]))/(Таблица1[[месяц]:[месяц]]=$J$2)/(Таблица1[[год]:[год]]=$L$2)/(Таблица1[[изд]:[изд]]=$O$1)/(Таблица1[[партия]:[партия]]=$S$1),ROW(J9))),"") ->  | L12: =IFERROR(INDEX(Таблица1[8],_xlfn.AGGREGATE(15,6,(ROW(Таблица1[8])-ROW(Таблица1[[#Headers],[8]]))/(Таблица1[[месяц]:[месяц]]=$J$2)/(Таблица1[[год]:[год]]=$L$2)/(Таблица1[[изд]:[изд]]=$O$1)/(Таблица1[[партия]:[партия]]=$S$1),ROW(K9))),"") ->  | M12: =IFERROR(INDEX(Таблица1[9],_xlfn.AGGREGATE(15,6,(ROW(Таблица1[9])-ROW(Таблица1[[#Headers],[9]]))/(Таблица1[[месяц]:[месяц]]=$J$2)/(Таблица1[[год]:[год]]=$L$2)/(Таблица1[[изд]:[изд]]=$O$1)/(Таблица1[[партия]:[партия]]=$S$1),ROW(L9))),"") ->  | N12: =IFERROR(INDEX(Таблица1[10],_xlfn.AGGREGATE(15,6,(ROW(Таблица1[10])-ROW(Таблица1[[#Headers],[10]]))/(Таблица1[[месяц]:[месяц]]=$J$2)/(Таблица1[[год]:[год]]=$L$2)/(Таблица1[[изд]:[изд]]=$O$1)/(Таблица1[[партия]:[партия]]=$S$1),ROW(M9))),"") ->  | O12: =IFERROR(INDEX(Таблица1[11],_xlfn.AGGREGATE(15,6,(ROW(Таблица1[11])-ROW(Таблица1[[#Headers],[11]]))/(Таблица1[[месяц]:[месяц]]=$J$2)/(Таблица1[[год]:[год]]=$L$2)/(Таблица1[[изд]:[изд]]=$O$1)/(Таблица1[[партия]:[партия]]=$S$1),ROW(N9))),"") ->  | P12: =IFERROR(INDEX(Таблица1[12],_xlfn.AGGREGATE(15,6,(ROW(Таблица1[12])-ROW(Таблица1[[#Headers],[12]]))/(Таблица1[[месяц]:[месяц]]=$J$2)/(Таблица1[[год]:[год]]=$L$2)/(Таблица1[[изд]:[изд]]=$O$1)/(Таблица1[[партия]:[партия]]=$S$1),ROW(O9))),"") ->  | Q12: =IFERROR(INDEX(Таблица1[13],_xlfn.AGGREGATE(15,6,(ROW(Таблица1[13])-ROW(Таблица1[[#Headers],[13]]))/(Таблица1[[месяц]:[месяц]]=$J$2)/(Таблица1[[год]:[год]]=$L$2)/(Таблица1[[изд]:[изд]]=$O$1)/(Таблица1[[партия]:[партия]]=$S$1),ROW(P9))),"") ->  | R12: =IFERROR(INDEX(Таблица1[14],_xlfn.AGGREGATE(15,6,(ROW(Таблица1[14])-ROW(Таблица1[[#Headers],[14]]))/(Таблица1[[месяц]:[месяц]]=$J$2)/(Таблица1[[год]:[год]]=$L$2)/(Таблица1[[изд]:[изд]]=$O$1)/(Таблица1[[партия]:[партия]]=$S$1),ROW(Q9))),"") ->  | S12: =IFERROR(INDEX(Таблица1[15],_xlfn.AGGREGATE(15,6,(ROW(Таблица1[15])-ROW(Таблица1[[#Headers],[15]]))/(Таблица1[[месяц]:[месяц]]=$J$2)/(Таблица1[[год]:[год]]=$L$2)/(Таблица1[[изд]:[изд]]=$O$1)/(Таблица1[[партия]:[партия]]=$S$1),ROW(R9))),"") ->  | T12: =IFERROR(INDEX(Таблица1[16],_xlfn.AGGREGATE(15,6,(ROW(Таблица1[16])-ROW(Таблица1[[#Headers],[16]]))/(Таблица1[[месяц]:[месяц]]=$J$2)/(Таблица1[[год]:[год]]=$L$2)/(Таблица1[[изд]:[изд]]=$O$1)/(Таблица1[[партия]:[партия]]=$S$1),ROW(S9))),"") ->  | U12: =IFERROR(INDEX(Таблица1[17],_xlfn.AGGREGATE(15,6,(ROW(Таблица1[17])-ROW(Таблица1[[#Headers],[17]]))/(Таблица1[[месяц]:[месяц]]=$J$2)/(Таблица1[[год]:[год]]=$L$2)/(Таблица1[[изд]:[изд]]=$O$1)/(Таблица1[[партия]:[партия]]=$S$1),ROW(T9))),"") ->  | V12: =IFERROR(INDEX(Таблица1[18],_xlfn.AGGREGATE(15,6,(ROW(Таблица1[18])-ROW(Таблица1[[#Headers],[18]]))/(Таблица1[[месяц]:[месяц]]=$J$2)/(Таблица1[[год]:[год]]=$L$2)/(Таблица1[[изд]:[изд]]=$O$1)/(Таблица1[[партия]:[партия]]=$S$1),ROW(U9))),"") ->  | W12: =IFERROR(INDEX(Таблица1[19],_xlfn.AGGREGATE(15,6,(ROW(Таблица1[19])-ROW(Таблица1[[#Headers],[19]]))/(Таблица1[[месяц]:[месяц]]=$J$2)/(Таблица1[[год]:[год]]=$L$2)/(Таблица1[[изд]:[изд]]=$O$1)/(Таблица1[[партия]:[партия]]=$S$1),ROW(V9))),"") ->  | X12: =IFERROR(INDEX(Таблица1[20],_xlfn.AGGREGATE(15,6,(ROW(Таблица1[20])-ROW(Таблица1[[#Headers],[20]]))/(Таблица1[[месяц]:[месяц]]=$J$2)/(Таблица1[[год]:[год]]=$L$2)/(Таблица1[[изд]:[изд]]=$O$1)/(Таблица1[[партия]:[партия]]=$S$1),ROW(W9))),"") ->  | Y12: =IFERROR(INDEX(Таблица1[21],_xlfn.AGGREGATE(15,6,(ROW(Таблица1[21])-ROW(Таблица1[[#Headers],[21]]))/(Таблица1[[месяц]:[месяц]]=$J$2)/(Таблица1[[год]:[год]]=$L$2)/(Таблица1[[изд]:[изд]]=$O$1)/(Таблица1[[партия]:[партия]]=$S$1),ROW(X9))),"") ->  | Z12: =IFERROR(INDEX(Таблица1[22],_xlfn.AGGREGATE(15,6,(ROW(Таблица1[22])-ROW(Таблица1[[#Headers],[22]]))/(Таблица1[[месяц]:[месяц]]=$J$2)/(Таблица1[[год]:[год]]=$L$2)/(Таблица1[[изд]:[изд]]=$O$1)/(Таблица1[[партия]:[партия]]=$S$1),ROW(Y9))),"") ->  | AA12: =IFERROR(INDEX(Таблица1[23],_xlfn.AGGREGATE(15,6,(ROW(Таблица1[23])-ROW(Таблица1[[#Headers],[23]]))/(Таблица1[[месяц]:[месяц]]=$J$2)/(Таблица1[[год]:[год]]=$L$2)/(Таблица1[[изд]:[изд]]=$O$1)/(Таблица1[[партия]:[партия]]=$S$1),ROW(Z9))),"") ->  | AB12: =IFERROR(INDEX(Таблица1[24],_xlfn.AGGREGATE(15,6,(ROW(Таблица1[24])-ROW(Таблица1[[#Headers],[24]]))/(Таблица1[[месяц]:[месяц]]=$J$2)/(Таблица1[[год]:[год]]=$L$2)/(Таблица1[[изд]:[изд]]=$O$1)/(Таблица1[[партия]:[партия]]=$S$1),ROW(AA9))),"") ->  | AC12: =IFERROR(INDEX(Таблица1[25],_xlfn.AGGREGATE(15,6,(ROW(Таблица1[25])-ROW(Таблица1[[#Headers],[25]]))/(Таблица1[[месяц]:[месяц]]=$J$2)/(Таблица1[[год]:[год]]=$L$2)/(Таблица1[[изд]:[изд]]=$O$1)/(Таблица1[[партия]:[партия]]=$S$1),ROW(AB9))),"") ->  | AD12: =IFERROR(INDEX(Таблица1[26],_xlfn.AGGREGATE(15,6,(ROW(Таблица1[26])-ROW(Таблица1[[#Headers],[26]]))/(Таблица1[[месяц]:[месяц]]=$J$2)/(Таблица1[[год]:[год]]=$L$2)/(Таблица1[[изд]:[изд]]=$O$1)/(Таблица1[[партия]:[партия]]=$S$1),ROW(AC9))),"") ->  | AE12: =IFERROR(INDEX(Таблица1[27],_xlfn.AGGREGATE(15,6,(ROW(Таблица1[27])-ROW(Таблица1[[#Headers],[27]]))/(Таблица1[[месяц]:[месяц]]=$J$2)/(Таблица1[[год]:[год]]=$L$2)/(Таблица1[[изд]:[изд]]=$O$1)/(Таблица1[[партия]:[партия]]=$S$1),ROW(AD9))),"") ->  | AF12: =IFERROR(INDEX(Таблица1[28],_xlfn.AGGREGATE(15,6,(ROW(Таблица1[28])-ROW(Таблица1[[#Headers],[28]]))/(Таблица1[[месяц]:[месяц]]=$J$2)/(Таблица1[[год]:[год]]=$L$2)/(Таблица1[[изд]:[изд]]=$O$1)/(Таблица1[[партия]:[партия]]=$S$1),ROW(AE9))),"") ->  | AG12: =IFERROR(INDEX(Таблица1[29],_xlfn.AGGREGATE(15,6,(ROW(Таблица1[29])-ROW(Таблица1[[#Headers],[29]]))/(Таблица1[[месяц]:[месяц]]=$J$2)/(Таблица1[[год]:[год]]=$L$2)/(Таблица1[[изд]:[изд]]=$O$1)/(Таблица1[[партия]:[партия]]=$S$1),ROW(AF9))),"") ->  | AH12: =IFERROR(INDEX(Таблица1[30],_xlfn.AGGREGATE(15,6,(ROW(Таблица1[30])-ROW(Таблица1[[#Headers],[30]]))/(Таблица1[[месяц]:[месяц]]=$J$2)/(Таблица1[[год]:[год]]=$L$2)/(Таблица1[[изд]:[изд]]=$O$1)/(Таблица1[[партия]:[партия]]=$S$1),ROW(AG9))),"") ->  | AI12: =IFERROR(INDEX(Таблица1[31],_xlfn.AGGREGATE(15,6,(ROW(Таблица1[31])-ROW(Таблица1[[#Headers],[31]]))/(Таблица1[[месяц]:[месяц]]=$J$2)/(Таблица1[[год]:[год]]=$L$2)/(Таблица1[[изд]:[изд]]=$O$1)/(Таблица1[[партия]:[партия]]=$S$1),ROW(AH9))),"") ->  | AJ12: 0
